{"text_format":"1","workbook":"xlsx","n_sheets":7,"sheets":["Home","lkpRates","dataStore","Phase I","Phase II","lkpGeneral","lkpCounty"],"not_rendered":{"charts":0,"images":0,"macros":1,"external_links":0,"defined_names":25,"comments":0,"pivot_tables":0},"unopened":[],"bounds":{"document_bytes":16777216,"sheet_cells":100000,"rows_first":2000,"rows_last":500,"rows_between":2000,"halvings":0,"cell_chars":16384,"cell_head_chars":4096},"cells_cut":0,"cells_raw":0,"read":"whole","date_system":"1900"}

{"sheet":"Home","index":0,"n_rows":15,"n_cols":2,"rows_kept":15,"cut":false,"hidden":false,"merged":[]}
[]
[]
[null,"START HERE -->"]
[]
[]
[null,"STEP 2 -->"]
[]
[]
[null,"STEP 3 -->"]
[]
[]
[null,"STEP 4 -->"]
[]
[]
["Production Rates Estimator v2022.01.01"]

{"sheet":"lkpRates","index":1,"n_rows":725,"n_cols":7,"rows_kept":725,"cut":false,"hidden":true,"merged":[]}
["PayItem","WorkGroup","WorkItem","Unit","Low","Average","High"]
["339-1","Asphalt","Misc Asphalt Pavement","TN",null,60]
["334-1-XX","Asphalt","Superpave (< 1000 TN)","TN",200,300,400]
["334-1-XX","Asphalt","Superpave (> 30000 TN)","TN",1000,1200,1400]
["334-1-XX","Asphalt","Superpave (1000 - 5000 TN)","TN",400,500,600]
["334-1-XX","Asphalt","Superpave (10000 - 30000 TN)","TN",800,900,1000]
["334-1-XX","Asphalt","Superpave (5000 - 10000 TN)","TN",600,700,800]
["210-1 AND 285-XXX","Base","Asphalt/Limerock/OBG Base (< 10,000 SY)","SY",400,700,1000]
["210-1 AND 285-XXX","Base","Asphalt/Limerock/OBG Base (> 40,000 SY)","SY",2000,2500,3000]
["210-1 AND 285-XXX","Base","Asphalt/Limerock/OBG Base (10,000 - 40,000 SY)","SY",1000,1500,2000]
["160-6","Base","Stabilize Subbase","SY",300,400,500]
["286-1","Base","Turnout Construction/Driveway Base- Optional Materials","SY",200,400,800]
["160-4","Base","Type B Stabilized Subgrade","SY",1400,1600,1800]
["370-1","Bridge - Clean & Seal","Bridge Approach Expansion Joint","LF",30,50,80]
[null,"Bridge - Clean & Seal","Concrete Paving Plain (9\")","SY",null,500]
["352-XX","Bridge - Clean & Seal","Grinding Concrete Pavement","SY",555,1500,2700]
["350-XX","Bridge - Clean & Seal","Joints","LF",null,5280,10560]
["350-XX","Bridge - Clean & Seal","Random Cracks ","LF",null,1478]
[null,"Bridge - Demo","Bridge Rail","LF",null,50]
[null,"Bridge - Demo","Deck & Handrail","SY",30,35,40]
[null,"Bridge - Demo","Demolition - Parapet","LF",100,180,220]
[null,"Bridge - Demo","Fender System","LF",null,50]
[null,"Bridge - Demo","Removal Of Existing Structures/Bridges","SF",270,375,600]
[null,"Bridge - Demo","Saw Cut Deck - 1\" Deep","LF",null,550]
[null,"Bridge - Demo","Timber Bridge","SY",40,50,60]
[null,"Bridge - Misc","Average Acrow Bridge","LF",null,30]
[null,"Bridge - Misc","Beam Erection - Precast","LF",250,425,600]
[null,"Bridge - Misc","Beam Erection - Steel","LF",150,200,250]
["370-1","Bridge - Misc","Bridge Approach Expansion Joint For Concrete Pavement","LF",30,50,80]
[null,"Bridge - Misc","Bridge Deck Grooving","SY",null,3000]
["457-XX-XX","Bridge - Misc","Cathodic Protect (Jackets)","EA",null,1.5]
[null,"Bridge - Misc","Cofferdams","SY",100,200,300]
[null,"Bridge - Misc","Erect Structural Steel","TON",3,9,10.5]
[null,"Bridge - Misc","Erect Timber Fender System - Per Bent","DAYS",null,5]
[null,"Bridge - Misc","Expansion Joints - Bridge Deck Expansion Joint (F&I)(New Construction)","LF",30,55,80]
[null,"Bridge - Misc","Expansion Joints - Bridge Deck Expansion Joint Seal (Comp El)(<1\" Wide)","LF",null,80]
[null,"Bridge - Misc","Expansion Joints - Cleaning & Resealing","LF",3000,3500]
[null,"Bridge - Misc","Expansion Joints - Mechanical","LF",null,35]
[null,"Bridge - Misc","Expansion Joints - Polymer Nosing For Bridge Deck Expansion Joint","CF",10,25,40]
[null,"Bridge - Misc","Expansion Joints - Saw Cut/Epoxy/Anchor","LANE",null,1]
["530-77-X","Bridge - Misc","Gabion Mats & Baskets","SY",40,850,1300]
["530-77-X","Bridge - Misc","Gabion Mats & Baskets","CY",20,45,80]
[null,"Bridge - Misc","Handrails - Bridge","LF",150,225,300]
[null,"Bridge - Misc","Hydro Blast Bridge Deck - 2.5\" Deep","SF",null,600]
[null,"Bridge - Misc","Hydro Blast Bridge Deck - 3.5\" Deep","SF",null,215]
[null,"Bridge - Misc","Mobilize Marine - Barge & Crane","DAYS",null,60]
[null,"Bridge - Misc","Precast Bulkhead Panels","SF",null,500]
[null,"Bridge - Misc","Pressure Grout For Sink Hole","CY",20,65,90]
[null,"Bridge - Misc","Protection Of Exisiting Structure","LS",null,1]
[null,"Bridge - Misc","Reinforcing Steel (Bulkhead)","LB",null,1000]
[null,"Bridge - Misc","Reinforcing Steel (Miscellaneous)","LB",null,500]
["530-3-X","Bridge - Misc","Riprap, Rubble, F&I, (Dumped)","TN",null,750]
["530-3-X","Bridge - Misc","Riprap, Rubble, F&I, (Placed)","TN",145,185,225]
["530-3-X","Bridge - Misc","Riprap, Rubble, F&I, (Placed)","CY",50,75,100]
[null,"Bridge - Misc","Sand Bag","SY",80,120,160]
[null,"Bridge - Misc","Test Load (Dynamic)","EA",0.5,2,3]
["470-1","Bridge - Misc","Treated Timber Structural","MB",20,25,30]
[null,"Bridge - Paint","Paint Removal - Dry Blasting","SF",null,60]
[null,"Bridge - Paint","Paint Removal - Power Tooled","SF",null,28]
[null,"Bridge - Paint","Paint Removal - Sandblasting","SF",null,1500]
[null,"Bridge - Paint","Paint Removal - Steel Girder-Sandblasting","SF",null,1500]
[null,"Bridge - Paint","Paint Removal - Water Blasting","SF",null,235]
["563-X","Bridge - Paint","Painting - Anti-Graffiti Coat","SF",null,2500]
[null,"Bridge - Paint","Painting - Bridge Painting","SF",null,2000]
[null,"Bridge - Paint","Painting - Class 5 Application","SF",null,2000]
[null,"Bridge - Paint","Painting - Small Bascule","per Leaf",null,20]
[null,"Bridge - Paint","Painting - Steel","TN",null,20]
[null,"Bridge - Paint","Painting - Steel Girders","SF",null,2000]
[null,"Bridge - Paint","Painting - Steel Girders","TN",null,9]
["561-2","Bridge - Paint","Painting - Structural Steel Coating","SF",1500,2300,3000]
[null,"Bridge - Substructure","Bedding Stone","TN",100,300,500]
[null,"Bridge - Substructure","Compression Seal Replacement","LF",50,100,150]
[null,"Bridge - Substructure","Concrete Class II (Substructure, Bents, Caps & Columns)","CY",4,8,12]
[null,"Bridge - Substructure","Concrete Class IV (Substructure)","CY",7,8,20]
[null,"Bridge - Substructure","Concrete Class IV, Mass, (Substructure)","CY",null,20]
[null,"Bridge - Substructure","Concrete Slope Pavement","SY",null,100]
[null,"Bridge - Substructure","Core-Pilot Hole, Drilled Shaft Excavation","LF",10,15,20]
[null,"Bridge - Substructure","Drilled Shafts Casing","LF",10,25,40]
[null,"Bridge - Substructure","Drilled Shafts-Bridge","LF",200,300,400]
[null,"Bridge - Substructure","Drilled Shafts-Bridge 60\" x 130 ft","EA",null,0.2]
[null,"Bridge - Substructure","Drilled Shafts-Bridge 74\" x 40 ft","EA",null,0.5]
[null,"Bridge - Substructure","Excavation (Unclasified Shaft)","LF",25,200,650]
[null,"Bridge - Substructure","Footings","CY",10,20,30]
["455-34-XX","Bridge - Substructure","Piles -  18\" Pre Stressed Concrete Piling","LF",30,60,100]
["455-34-XX","Bridge - Substructure","Piles -  24\" Pre Stressed Concrete Piling","LF",80,100,130]
["455-34-XX","Bridge - Substructure","Piles - 12\" Pre Stressed Concrete Piling","LF",200,300,400]
["455-XX-XX","Bridge - Substructure","Piles - Pile Jackets 18\" - 24\"","LF",null,7]
["455-XX-XX","Bridge - Substructure","Piles - Production Piles","LF",200,300,400]
["455-XX-XX","Bridge - Substructure","Piles - Test Piles 24\" - 30\"","EA",null,0.8]
[null,"Bridge - Substructure","Reinforcing Steel (Substructure)","LB",null,5000]
[null,"Bridge - Substructure","Rip-Rap Fabric-Formed Concrete (8\" Filter Points)","SY",null,200]
[null,"Bridge - Substructure","Rip-Rap Rubble (Furnish & Install) (Ditch Lining) (Placed)(Bank & Shore)","TN",92,150,275]
[null,"Bridge - Substructure","Rip-Rap Sand-Cement","CY",null,100]
[null,"Bridge - Superstructure","Anchor Bar Steel","EA",null,4]
[null,"Bridge - Superstructure","Anchor Beam - Precast","EA",4,6,8]
[null,"Bridge - Superstructure","Bridge Barrier","LF",80,120,160]
[null,"Bridge - Superstructure","Bridge Deck","CY",6,11,14]
[null,"Bridge - Superstructure","Conc Traffic Separator (Special) (Variable Width)","SY",null,800]
["400-2-XX","Bridge - Superstructure","Concrete Class II (Approach Slab)","CY",7,15,20]
[null,"Bridge - Superstructure","Concrete Class II (Superstructure)","CY",7,10,20]
[null,"Bridge - Superstructure","Concrete Parapet (Pedest/Bicycle)","LF",200,300,400]
[null,"Bridge - Superstructure","Concrete Traffic Railing Barrier Bridge (32\" F)","LF",200,300,400]
[null,"Bridge - Superstructure","Median Concrete Barrier Wall","LF",200,300,400]
[null,"Bridge - Superstructure","Precast Beams","LF",250,425,600]
[null,"Bridge - Superstructure","Prestressed Beams, Type II, III, IV","LF",null,250]
[null,"Bridge - Superstructure","Prestressed Beams, Type V, VI","LF",null,300]
[null,"Bridge - Superstructure","Prestressed Florida I-Beam","LF",200,350,500]
[null,"Bridge - Superstructure","Prestressed Slab Units, 60\" Width, Thickness 16\"","LF",null,400]
[null,"Bridge - Superstructure","Reinforcing Steel (Superstructure)","LB",null,5000]
[null,"Bridge - Superstructure","Steel Beams","LF",null,150]
[null,"Bridge - Walls","Barrier Wall with 3 components (footing, stem, barrier)","LF",null,55]
["521-X","Bridge - Walls","Conc Traffic Rail Barrier Brg (32\" Dbl Or Single) Retro Vertical Face (Hand Form)","LF",20,100,160]
["534-72-XXX","Bridge - Walls","Concrete Barrier Wall","LF",200,300,400]
["400-0-XX","Bridge - Walls","Concrete Class NS, Gravity Wall","CY",5,12,20]
[null,"Bridge - Walls","MSE Wall","SF",500,750]
[null,"Bridge - Walls","Noise Barrier Wall","SF",null,2000]
[null,"Bridge - Walls","Reinforcing Steel (Retaining Wall)","LB",null,5000]
[null,"Bridge - Walls","Retaining","SF",100,150,200]
[null,"Bridge - Walls","Retaining Wall  (Non-Poprietary)","SF",null,200]
[null,"Bridge - Walls","Sound/Noise Barrier - Inc Foundation, Permanent","SF",null,2000]
[null,"Bridge - Walls","Temporary Critical Wall - H-Pile Lagging","LF",3,5,6]
[null,"Bridge - Walls","Traffic Rail Barrier","LF",80,160,200]
[null,"Bridge - Walls","Wingwalls","SF",100,150,200]
["110-1-X","Clearing & Grubbing","Clearing And Grubbing","AC",1,2.5,10]
["110-2","Clearing & Grubbing","Selective Clearing And Grubbing","AC",0.1,0.25,0.5]
["109-71-X","Clearing & Grubbing","Field Office","DA",null,1]
["110-7-X","Clearing & Grubbing","Mailboxes","EA",10,15,25]
["110-73","Clearing & Grubbing","Remove Existing Bulkhead","LF",null,133]
["110-4","Clearing & Grubbing","Remove Existing Concrete Pavement","SY",100,300,600]
[null,"Clearing & Grubbing","Remove Sidewalk","SY",1500,2500,3500]
[null,"Clearing & Grubbing","Rework Shoulders","SY",null,20000]
[null,"Clearing & Grubbing","Shoulder","MI",null,1]
[null,"Concrete","ADA Ramps","EA",null,0.5]
["521-X","Concrete","Barrier Wall","LF",200,300,400]
["521-X","Concrete","Block Sound Walls","SF",null,400]
[null,"Concrete","Break, Compact Pavement","SY",null,5000]
[null,"Concrete","Cleaning & Coating Concrete Surface, Class V Finish","SF",null,1000]
[null,"Concrete","Concrete Class IV (Bulkhead)","CY",7,10,20]
[null,"Concrete","Concrete Class IV (Culverts)","CY",7,10,20]
[null,"Concrete","Concrete Class IV (Miscellaneous)","CY",null,5]
[null,"Concrete","Concrete Class IV (Retaining Wall)","CY",7,10,20]
[null,"Concrete","Concrete Paving Plain (9\" To 11\") - Hand Poured (I.E. Gore Areas)","SY",null,500]
[null,"Concrete","Concrete Paving Plain (9\" To 11\") - Paving Machine (Slip Form)","SY",null,1500]
[null,"Concrete","Concrete Paving Plain (9\" To 11\") - Slab Rehab","SY",null,50]
["353-70","Concrete","Concrete Pavement Slab Replacement","CY",24,60,94]
["353-70","Concrete","Concrete Pavement Slab Replacement","SY",null,130,1192]
["524-1-X","Concrete","Ditch Pavement","SY",null,200]
[null,"Concrete","Latex Modifed Portlant Cement, Type III","CY",null,5]
[null,"Concrete","General Paving","SY",null,5000]
[null,"Concrete","Shotcrete / Gunite","CF",null,130]
[null,"Concrete","Sidewalk","SY",null,300]
["530-74","Drainage","Bedding Stone","TN",100,300,500]
["432-3-X","Drainage","Chemical Grout Repair","EA",null,10]
["430-82X-XX","Drainage","Cleaning & Sealing Existing Pipe Joint","EA",6,9,12]
[null,"Drainage","Concrete Box Culvert (Cast-In-Place)","LF",4,6,10]
["407-1-XX","Drainage","Concrete Box Culvert (Precast)","LF",50,100,150]
["400-1-XX","Drainage","Concrete Class I (Culvert)","CY",5,8,10]
["400-1-XX","Drainage","Concrete Class I (Endwalls)","CY",5,8,10]
["400-1-XX","Drainage","Concrete Class I, Retaining Walls","CY",5,12,20]
["400-2-X","Drainage","Concrete Class II, Culverts","CY",10,20,30]
["400-4-X","Drainage","Concrete Class IV, Culverts","CY",5,10,15]
["400-0-XX","Drainage","Concrete Class NS, Gravity Wall","CY",5,12,20]
["400-X-X","Drainage","Concrete Endwalls","CY",5,8,10]
[null,"Drainage","Corrugated HDPE Pipe","LF",40,80,100]
["430-94-X","Drainage","Desilt Pipe ","LF",null,1000]
[null,"Drainage","Desilt, Clean & Seal Jnt","LF",null,30]
["430-950","Drainage","Desilting Concrete Box Culvert","CY",50,75,150]
["524-1-XXX","Drainage","Ditch Paving","SY",null,200]
["446-1-X","Drainage","Draincrete","LF",null,1500]
["446-1-1","Drainage","Edge Drain","LF",100,300,500]
[null,"Drainage","Flowable Fill (Pipe Filling)","CY",35,65,95]
["443-70-X","Drainage","French Drain","LF",100,500,1000]
[null,"Drainage","Gabion/Reno Mat 9\" Thick","SY",null,144]
[null,"Drainage","Grout (Non Shrink) (F&I) (Miscellaneous)","CF",35,65,95]
["425-1-XXX","Drainage","Inlet Gutter Type S (<10')","EA",4,6,8]
["425-1-XXX","Drainage","Inlets (Ditch Bottom) (<10') Type (D, F & H)","EA",4,6,8]
["425-1-XXX","Drainage","Inlets (Ditch Bottom) (<10') Type C","EA",4,6,8]
["425-1-XXX","Drainage","Inlets (Partial/Modify)","EA",4,6,8]
["425-4","Drainage","Inlets, Adjust","EA",4,6,8]
["425-1-XXX","Drainage","Inlets, Closed Flume","EA",0.5,2,5]
["425-1-XXX","Drainage","Inlets, Ditch Bottom, Type C Modifiied, Back Of Sidewalk","EA",4,6,8]
["425-1-XXX","Drainage","Inlets, Ditch Bottom, Type C, Modify","EA",1,3,5]
["425-1-XXX","Drainage","Inlets, Ditch Bottom, Type C, Partial","EA",1,3,5]
[null,"Drainage","Jack & Bore (36\" - 72\" Diameter)","LF",20,30,40]
[null,"Drainage","Jack & Bore (6\" - 36\" Diameter)","LF",20,35,50]
[null,"Drainage","Jack & Bore (72\" - 108\" Diameter)","LF",15,25,35]
["425-3-XX","Drainage","Junction Box","EA",4,6,8]
[null,"Drainage","Liner Impermeable PVC","SY",null,3560]
["425-2-XXX","Drainage","Manholes","EA",4,6,8]
["425-74-X","Drainage","Manholes & Inlets Cleaning & Sealing","EA",6,9,12]
["425-5-XXX","Drainage","Manholes Adjust ","EA",4,6,8]
["430-982 AND 984","Drainage","Mitered End Sections","EA",8,13]
["430-990","Drainage","Mitered End Sect, Replace Grate","EA",10,12,15]
["425-11","Drainage","Modify Existing Drainage Structure","EA",4,6,8]
["430-95-X","Drainage","Outfall Barnacle Removal, 25 - 36\"","LF",75,88,100]
["430-95-X","Drainage","Outfall Barnacle Removal, 37 - 48\"","LF",50,63,75]
["430-95-X","Drainage","Outfall Barnacle Removal, 49 - 60\"","LF",40,53,65]
["425-2-XXX","Drainage","Partial Manhole","EA",4,6,8]
["430-830","Drainage","Pipe Filling And Plugging- Place Out Of Service","CY",35,65,95]
["430-17X","Drainage","Pipe Installation < 5' deep","LF",200,300,400]
["430-17X","Drainage","Pipe Installation > 5' deep","LF",100,150,200]
[null,"Drainage","Pipe Liner-Section Repair","LF",null,100]
[null,"Drainage","Plastic Filter Fabric Subsurface","SY",null,2500]
["425-85","Drainage","Replace Grate","EA",8,14,20]
["530-3-X","Drainage","Riprap- Rubble, Bank And Shore","TN",50,100,150]
["530-3-X","Drainage","Riprap, Rubble, F&I, Ditch Lining","TN",90,175,250]
["104-7","Drainage","Sediment Basin / Containment System","EA",null,1]
["104-9","Drainage","Sediment Basin / Containment System- Cleanout","EA",null,1]
[null,"Drainage","Shotcrete / Gunite","CF",65,130]
[null,"Drainage","Storm Sewer Pipe Liner","LF",null,100]
[null,"Drainage","Structures < 10' Deep","EA",0.3,0.6,1]
[null,"Drainage","Structures > 10' Deep ","EA",0.3,0.6,1]
["104-6","Drainage","Temporary Pipe (Slope Drain)","LF",100,200,400]
["470-1","Drainage","Treated Timber, Structural","MB",0.5,0.6,0.75]
["436-1-XX","Drainage","Trench Drain (Special)","LF",100,250,400]
["430-600-XXX","Drainage","U-Endwall","EA",0.5,2,5]
["440-73-X","Drainage","Underdrain Outlet Pipe","LF",100,500,1000]
["440-1-XX","Drainage","Underdrain, Type II","LF",100,500,1000]
["425-6","Drainage","Valve Box, Adjust","EA",4,6,8]
[null,"Drainage","Wingwalls","SF",100,150,200]
[null,"Dredging","Drag Line","CY",null,250]
[null,"Dredging","Pump","CY",null,500]
[null,"Earthwork","Backfill Around Structure","CY",50,100,200]
["173-71","Earthwork","Drilling Holes For Pressure Grouting","EA",10,8,15]
["120-6","Earthwork","Embankment (< 1,000 CY)","CY",100,300,600]
["120-6","Earthwork","Embankment (> 5,000 CY)","CY",1000,1500,2000]
["120-6","Earthwork","Embankment (1,000 - 5,000 CY)","CY",600,800,1000]
["121-70","Earthwork","Flowable Fill","CY",35,65,95]
["173-76","Earthwork","Grout Pipe Installation","LF",200,300,400]
[null,"Earthwork","Prepared Soil/Finished Soil Layer 6\"","SY",null,15000]
["120-X","Earthwork","Regular And Borrow Excavation (< 50,000 CY)","CY",700,900,1200]
["120-X","Earthwork","Regular And Borrow Excavation (> 150,000 CY)","CY",1800,2200,2600]
["120-X","Earthwork","Regular And Borrow Excavation (50,000 - 150,000 CY)","CY",1200,1500,1800]
[null,"Earthwork","Rework Shoulders","SY",null,20000]
[null,"Earthwork","Shoulder Grading Resurface","MI",0.5,1,2]
[null,"Earthwork","Soil Improvement ( Pressure Inject Slurry Grout, \"Pins\" )","EA",6,8,10]
["173-78-X","Earthwork","Soil Improvement By Vibro-Compaction, 126-205 HP Vibrator","LF",600,900,1200]
["120-4","Earthwork","Subsoil Excavation","CY",400,800,1200]
["173-77-X","Earthwork","Subsurface Pressure Grouting, Cement Slurry","CY",6,8,10]
["104-19","Erosion Control","Chemical Treatment- Powdered, For Erosion Control","SY",1500,1800,5000]
["104-11","Erosion Control","Floating Tubidity Barrier","LF",100,300,500]
["104-18","Erosion Control","Inlet Protection Systems","EA",4,8,12]
["104-XX","Erosion Control","Rock Bags/Sand Bags","EA",null,400]
["104-10-X","Erosion Control","Sediment Barrier","LF",750,1500,3000]
["104-15","Erosion Control","Soil Tracking Device","EA",null,5]
["104-12","Erosion Control","Staked Turbidity Barrier","LF",200,400,600]
["550-10-XXX","Fence","Fencing (Type B (5.1 -6.0) With Vinyl Coating)","LF",null,500]
[null,"Fence","Fencing < 10,000 LF","LF",500,1000,1500]
[null,"Fence","Fencing > 10,000 LF","LF",1000,1500,3500]
["550-60-XXX","Fence","Fencing Gate (Type B (Double 6.1 -12.0') Opening","EA",2,3,5]
["550-60-XXX","Fence","Gates","EA",null,10]
[null,"General","Demobilize / Punchlist / Clean-Up","WKS",null,1]
["536-85-XX","Guardrail","End Anchors","EA",null,8]
["536-1-XX","Guardrail","Guardrail (Reset)","LF",null,100]
["536-1-XX","Guardrail","Guardrail (Shop Bent Panels)","LF",200,1000,1500]
["536-1-XX","Guardrail","Guardrail Bridge Anchorage Assembly Flared","EA",null,2]
["536-1-XX","Guardrail","Guardrail End Anchorage Assembly - Type II","EA",null,2]
["536-85-XX","Guardrail","Guardrail End Treatment- Parallel Approach Terminal","EA",null,8]
["536-85-XX","Guardrail","Guardrail End Treatment- Type Crt","EA",null,8]
["536-1-XX","Guardrail","Guardrail Furnish & Install","LF",200,1000,1500]
["536-83-X","Guardrail","Guardrail Post Replacement, Regular","EA",50,200,500]
["536-1-XX","Guardrail","Guardrail- Roadway, Double Face","LF",200,1000,1500]
["536-1-XX","Guardrail","Guardrail -Roadway, General Tl-3","LF",200,1000,1500]
["460-71-X","Guardrail","Metal Traffic Railing, Thrie Beam Retrofit","LF",50,100,150]
["536-6","Guardrail","Pipe Rail For Guardrail","LF",100,400,800]
["536-73","Guardrail","Remove Existing","LF",1000,2000,3000]
["630-2-XX","ITS","Directional Bore < 6\"","LF",400,600,800]
["630-2-XX","ITS","Directional Bore > 6\"","LF",200,400,600]
["639-X-XXX","ITS","Electrical Power Service","EA",2,2,6]
["639-X-XXX","ITS","Electrical Power Service Disconnect","LF",200,500,800]
["639-X-XXX","ITS","Electrical Power Service Wire (F&I)","AS",null,2]
["639-X-XXX","ITS","Electrical Power Service, Adjust/Modify","EA",2,4,6]
["639-X-XXX","ITS","Electrical Power, Remove & Dispose, Service Wire","LF",1000,1500,2000]
["639-5-X","ITS","Emergency Generator-Permanent 26-50 Kw","EA",null,1]
["700-4-XXX","ITS","Existing Sign (Remove, Overhead Truss)","AS",null,0.2]
["633-1-XXX","ITS","Fiber Optic Cable, Remove","LF",1000,1500,2000]
["715-19-XX","ITS","High Mast Lighting Pole Complete","EA",null,0.5]
["682-1-XX","ITS","ITS Cctv Camera (F&I)","EA",null,2]
["682-1-XX","ITS","ITS Cctv Camera (Remove & Disposal) ","EA",null,1]
["682-1-XX","ITS","ITS Cctv Camera (Remove & Stockpile) ","EA",null,1]
["630-2-XX","ITS","ITS Conduit (Bridge Mount)","LF",200,400,800]
["630-2-XX","ITS","ITS Conduit Aboveground","LF",500,750,1000]
["783-4-XX","ITS","ITS Conduit Open Trench","LF",100,200,300]
["630-2-XX","ITS","ITS Conduit Remove & Dispose ","LF",500,1000,1500]
["630-2-XX","ITS","ITS Conduit Under Pavement/Saw Cut","LF",200,500,1000]
["630-2-XX","ITS","ITS Conduit, F&I, Underground ","LF",500,1000,1500]
["684-2-X","ITS","ITS Device Server, (Install)","EA",null,4]
["684-3-X","ITS","ITS Digital Video Encoder With Software Decoder","EA",null,4]
["700-X-XXX","ITS","ITS Dynamic Message Sign (Install On Existing Structure, Led, Full Matrix)","EA",0.2,0.5,0.7]
["700-X-XXX","ITS","ITS Dynamic Message Sign (Install, Led, Full Matrix)(Cantilever Mounted)","EA",0.2,0.5,0.7]
["700-X-XXX","ITS","ITS Dynamic Message Sign (Install, Led, Full Matrix)(Truss Mounted)","EA",0.2,0.3,0.7]
["700-X-XXX","ITS","ITS Dynamic Message Sign, Remove","EA",null,0.2]
["677-1-XX","ITS","ITS Equipment Shelter (F&I)(120 Square Feet Or Less)","EA",null,2]
["633-X-XX","ITS","ITS Fiber Optic  Connection Hardware, F&I, Patch Panel, Field Terminated","EA",2,4,6]
["633-X-XX","ITS","ITS Fiber Optic Connection Hardware (F&I)(Splice Enclosure)","EA",2,4,6]
["633-X-XX","ITS","ITS Fiber Optic Connection, Install, Splice","EA",2,4,6]
[null,"ITS","ITS Fiber Optic Connections (F&I) (Termination)","EA",12,16,24]
["676-2-XXX","ITS","ITS Field Cabinet","AS",null,3]
["668-31","ITS","ITS Field Cabinet (Type I) (13\" X10\" X6\")","EA",null,5]
["668-32","ITS","ITS Field Cabinet (Type II) (27\" X15\" X12\")","EA",null,1]
["668-33","ITS","ITS Field Cabinet (Type III) (32\" X20\" X14\")(Type 336)","EA",null,3]
["668-34","ITS","ITS Field Cabinet (Type IV) (48\" X29\" X16\")","EA",null,2]
[" 668-35","ITS","ITS Field Cabinet (Type V) (54\" X38\" X24\")(Type 332)","EA",null,2]
["668-36","ITS","ITS Field Cabinet (Type VI) (74\" X38\" X24\")","EA",null,0.3]
["676-2-XXX","ITS","ITS Field Cabinet Cabinet (F&I) (Special), Pole Mount","EA",null,3]
["676-2-XXX","ITS","ITS Field Cabinet, Relocate","EA",null,0.3]
["676-2-XXX","ITS","ITS Field Cabinet, Remove & Dispose","EA",null,2]
["633-X-XX","ITS","ITS Fo Connection Hardware (F&I)( Splice Tray)","EA",6,8,10]
["633-X-XX","ITS","ITS Fo Connection Hardware (F&I)(Connector Panel)","EA",2,4,6]
["633-X-XX","ITS","ITS Fo Connection Hardware (F&I)(Patch Panel Preterm)","EA",2,4,6]
["687-1-XX","ITS","ITS Highway Advisory Radio (F&I)(Ac Power)","EA",null,4]
["633-X-XX","ITS","ITS Managed Field Ethernet Switch (Install)","EA",2,4,6]
["684-7-X","ITS","ITS Manager Ethernet Hub Switch (F&I)(Long Haul)","EA",null,4]
["684-7-X","ITS","ITS Manager Ethernet Hub Switch (F&I)(Short Haul)","EA",null,4]
[null,"ITS","ITS Pole F&I, Concrete With Lowering Device","EA",null,2]
[null,"ITS","ITS Pole F&I, Concrete Without Lowering Device","EA",null,2]
[null,"ITS","ITS Pole F&I, Steel, With Lowering Device","EA",null,0.5]
["649-2-XXX","ITS","ITS Pole Relocate","EA",0.2,0.4,0.7]
["635-3-XX","ITS","ITS Pull & Junction Box, (Fiber Optic), Remove & Dispose","EA",15,20,25]
["635-3-XX","ITS","ITS Pull & Junction Box, (Fiber Optic), Remove & Stockpile","EA",15,20,25]
["635-3-XX","ITS","ITS Pull & Junction Box, (Fiber Optic, Modify)","EA",5,7,15]
["635-3-XX","ITS","ITS Pull & Junction Boxes F&I, (Electrical - Pull Box)","EA",15,20,25]
["635-3-XX","ITS","ITS Pull & Junction Boxes F&I, (Electrical - Remove & Stock Pile)","EA",15,20,25]
["635-2-XX","ITS","ITS Pull Box For Fiber Optic Cable, Furnish And Install","EA",10,15,20]
["688-1-XX","ITS","ITS Road Weather Information System (F&I)(Mounted To Existing Structure)","EA",null,2]
["635-2-XX","ITS","ITS Splice Box For Fiber Optic Cable, F&I","EA",3,5,8]
["660-3-XX","ITS","ITS Vehicle Detection System, F&I, Microwave","EA",null,2]
["660-X-XX","ITS","ITS Vehicle Detection System, F&I, Special","EA",null,5]
[null,"ITS","ITS Wireless Communication Device, F&I Ethernet Access Point","EA",null,1]
["630-2-XX","ITS","Directional Bore < 6\"","LF",400,600,800]
["630-2-XX","ITS","Directional Bore > 6\"","LF",200,400,600]
["715-19-XX","ITS","Lighting Pole Complete High Mast (F&I)(80')","EA",null,2]
["715-19-X","ITS","Lightning Protection System (F&I)(Point Discharge)","EA",1,2,4]
["715-19-X","ITS","Lightning Protection System (F&I)(Surge Suppression)","EA",10,15,20]
["641-3-XXX","ITS","Prestressed Concrete Poles (Type P-11)(Direct Burial)","EA",2,4,6]
["641-3-XXX","ITS","Prestressed Concrete Poles (Type P-11)(Direct Burial)(12')","EA",2,4,6]
["641-3-XXX","ITS","Prestressed Concrete Poles (Type P-Vi)(With Foundation)","EA",2,4,6]
[null,"ITS","Sign Electrically Powered (Special)","EA",0.2,0.5,0.7]
["643-XXX","ITS","Strain Poles (F&I)(Wood)(Direct Burial)","AS",2,3,6]
[null,"ITS","System Auxiliaries (F&I) (Interface Panel) ","EA",1,2,4]
[null,"ITS","System Auxiliaries (F&I) (Microwave Radar Detection)","EA",4,8,16]
[null,"ITS","System Auxiliaries (F&I) (Telemetry Transcever) ","EA",null,4]
["684-XXX-","ITS","System Auxiliaries Mvds","EA",null,4]
["633-1-XXX","ITS","System Comm. (FOC, 13 To 48 Count SM)(Relocate)","LF",1000,5000,10000]
["633-1-XXX","ITS","System Comm. (FOC, 13-48 Count SM)","LF",1000,5000,10000]
["633-1-XXX","ITS","System Comm. (FOC, 2 To 12 Count SM)(Relocate)","LF",500,1000,1500]
["633-1-XXX","ITS","System Comm. (FOC, 2-12 Count SM)","LF",500,1000,1500]
["633-1-XXX","ITS","System Comm. (FOC, 49-96 Count SM)","LF",1000,5000,10000]
["633-1-XXX","ITS","System Comm. (FOC, 97-144 Count SM)","LF",500,1000,1500]
["633-1-XXX","ITS","System Communications - Cat 5 Cable","LF",1000,1500,2000]
["104-1","Landscaping","Artificial Covering","SY",1500,3200,5000]
["630-2-XX","Landscaping","Directional Bore < 6\"","LF",400,600,800]
["630-2-XX","Landscaping","Directional Bore > 6\"","LF",200,400,600]
[null,"Landscaping","Filter Fabric / Plastic Filter Fabric Stabilization","SY",null,2500]
["162-1-XX","Landscaping","Finish Soil Layer (Landscaping Operations)","CY",1500,3200,5000]
["107-1","Landscaping","Litter Removal","AC",0.4,0.6,0.8]
["107-2","Landscaping","Mowing","AC",0.4,0.6,0.8]
["523-1","Landscaping","Patterned/Textured Pavement (Asphalt)","SY",150,200,250]
["526-1-X","Landscaping","Pavers, Architectural (Roadway)","SY",150,175,200]
["570-1-X","Landscaping","Performance ","SY",1500,2000,23500]
["570-1-X","Landscaping","Performance Turf / Sod / Sodding","SY",1500,3200,5000]
[null,"Landscaping","Plant - 1 Gal","EA",null,400]
[null,"Landscaping","Plant - 3 Gal","EA",null,200,500]
[null,"Landscaping","Plant - 30 Gal","EA",null,30]
[null,"Landscaping","Plant - 7 Gal","EA",null,100]
["580-1-X","Landscaping","Plants (Large)","EA",null,15]
["580-1-X","Landscaping","Plants (Small)","EA",null,30]
["571-1-XX","Landscaping","Plastic Erosion Mat (Turf Reinforced, Type 3)","SY",1500,3200,5000]
["570-2","Landscaping","Seed & Mulch","SY",null,23500]
[null,"Landscaping","Seedlings (Trees & Shrubs)","EA",null,800,1000]
["630-2-XX","Lighting","Conduit, Furnish & Install, Aboveground","LF",500,750,1000]
["630-2-XX","Lighting","Conduit, Furnish & Install, Open Trench","LF",750,1000]
["630-2-XX","Lighting","Directional Bore < 6\"","LF",400,600,800]
["630-2-XX","Lighting","Directional Bore > 6\"","LF",200,400,600]
["639-2-XX","Lighting","Electrical Service Wire, Furnish & Install","LF",500,1500,2500]
["715-19-XX","Lighting","High Mast Light Pole, Furnish And Install","EA",0.5,0.5]
["715-19-XX","Lighting","High Mast Light Pole, Furnish And Install, 80'","EA",0.5,1,2]
[null,"Lighting","Highway Standard","EA",null,5]
["715-4-XX","Lighting","Light Pole Complete, Furnish & Install Standard Pole Special Foundation, 45' Mounting Height","EA",0.5,0.5]
["715-4-XX","Lighting","Light Pole Complete, Furnish & Install Standard Pole Special Foundation, 50' Mounting Height","EA",0.5,0.5]
["715-4-XX","Lighting","Light Pole Complete, Furnish & Install Standard Pole Standard Foundation, 45' Mounting Height","EA",0.5,0.5]
["715-4-XX","Lighting","Light Pole Complete, Furnish & Install Standard Pole Standard Foundation, 50' Mounting Height\t","EA",0.5,0.5]
["715-4-XX","Lighting","Light Pole Complete, Relocate","EA",0.5,0.5]
["715-4-XX","Lighting","Light Pole Complete, Remove (Non-High Mast)","EA",5,10,15]
["715-4-XX","Lighting","Light Pole Complete, Remove Pole And Foundation (Non-High Mast)","EA",5,10,15]
["715-10-X","Lighting","Light Pole Foundation","EA",0.5,3,5]
["715-1-XX","Lighting","Lighting Conductors, F&I, Insulated, No 4 To No 2","LF",null,750]
["715-1-XX","Lighting","Lighting Conductors, F&I, Insulated, No.8 - 6","LF",null,750]
["715-1-XX","Lighting","Lighting Conductors, F&I, No.1/0 - 3/0 (0 To 000)","LF",null,750]
["715-1-XX","Lighting","Lighting Conductors, Remove & Dispose, Contractor Owns","LF",1000,2500,3000]
["715-7-XX","Lighting","Load Center, F&I, Secondary Voltage","EA",1,2,4]
["715-7-XX","Lighting","Load Center, Rework, Secondary Voltage","EA",1,3,6]
["668-13","Lighting","Load Center/Detector Cabinet(Type Iii) ","EA",1,2,4]
["715-11-XXX","Lighting","Luminaire, F&I- Replace Existing Luminaire On Existing Pole/Arm, Roadway, Cobra Head","EA",null,6]
["715-11-XXX","Lighting","Luminaire, F&I, Roadway Special","EA",null,2]
["715-11-XXX","Lighting","Luminaire, F&I, Under Deck, Wall Mount","EA",null,8]
[null,"Lighting","Misc. Concrete","CY",null,15]
["715-500-X","Lighting","Pole Cable Distribution System, Furnish And Install","EA",5,10,15]
[null,"Lighting","Poles","EA",null,10]
["635-3-XX","Lighting","Pull & Junction Boxes","EA",null,8]
["635-3-XX","Lighting","Pull & Junction Boxes, Roadside Moulded","EA",null,8]
["635-3-XX","Lighting","Pull & Junction Boxes, Sidewalk","EA",null,10]
["635-2-XX","Lighting","Pull & Splice Boxes (Fiber Optic-Pull Box) 24\" X 36\" Cover Size","EA",10,15,20]
["635-2-XX","Lighting","Pull & Splice Boxes 13\" X 24\" Cover Size","EA",null,8]
["630-2-XX","Lighting","Underground Conduit","LF",null,750]
["102-76","MOT","Arrow Board / Advance Warning Arrow Panel","ED",10,15,20]
["102-71-XX","MOT","Temporary Barrier Wall, Anchored","LF",450,1200,3000]
["102-71-XX","MOT","Temporary Barrier Wall, Free Standing","LF",450,1500,3000]
["102-71-XX","MOT","Temporary Barrier Wall, Relocate","LF",null,1500]
["102-74-XX","MOT","Channelizing Devices, Types I,II,DI,VP, Drum","EA",300,500,600]
["102-74-XX","MOT","Channelizing Device, Type III, 6'","EA",10,25,40]
["102-X","MOT","Commercial Mat For Temp Driveway","CY",1,4,8]
[null,"MOT","Removable Flexible Pavement","SY",650,800,950]
["102-912-XXX","MOT","Removable Pavement Markings","LF",null,18500]
["102-89-X","MOT","Temp Impact Attenuators","EA",null,30]
[null,"MOT","Temporary Asphalt Curb","LF",null,900]
[null,"MOT","Temporary Curb","LF",null,900]
["102-22-XX","MOT","Temporary Pavement","SY",400,600,800]
["102-78","MOT","Temporary RPM's","EA",null,500]
["102-75-X","MOT","Temporary Separator, F&I Remove","LF",null,900]
["102-104","MOT","Temporary Signalization","PI",1,2,3]
[null,"MOT","Temporary Striping","MI",null,4]
["102-107-X","MOT","Temporary Traffic Detection And Maintenance","ED",1,2,4]
["102-99-XXX","MOT","Variable Message Signs","ED",8,10,12]
["102-60","MOT","Work Zone Signs","ED",80,140,200]
["705-11-X","Pavement Marking","Delineator, Direct Ground Bury, Flexible High Visibility Or Tubular (Flexible) Median ","EA",500,800,1000]
["705-11-X","Pavement Marking","Delineator, Bolted Down, Flexible High Visibility/Performance Or Tubular Flex Median ","EA",25,50,75]
["705-11-X","Pavement Marking","Delineator Tubular (Flexible) Remove","EA",null,1000]
[null,"Pavement Marking","Directional Arrows","EA",25,35,50]
[null,"Pavement Marking","Guide Lines (Thermo)(White)","LF",null,2000]
[null,"Pavement Marking","Island Nose Paint","SY",null,55]
[null,"Pavement Marking","Messages","EA",null,30]
[null,"Pavement Marking","Miscellaneous Striping","LF",null,3000]
["710-11-XXX","Pavement Marking","Paint Pavement Markings, Standard, White/Yellow, Island Nose","SY",null,30]
["710-11-XXX","Pavement Marking","Paint Pavement Markings, Standard, White/Yellow, Island Nose","SF",null,300]
["710-11-XXX","Pavement Marking","Painted Pavement Marking, Standard, White, Message Or Symbol","EA",null,30]
["710-11-XXX","Pavement Marking","Painted Pavement Markings, Standard, White, Arrows","EA",null,30]
["710-11-XXX","Pavement Marking","Painted Pavement Marking, Standard, White, 2'-4' Dotted Guideline/ 6-10 Dotted Extension, 6\"","GM",null,7]
["710-11-XXX","Pavement Marking","Painted Pavement Marking, Standard, White, 3'-9' Skip Drop Line And Approach To Toll Plaza, 12\" Wide","GM",null,7]
["710-90","Pavement Marking","Painted Pavement Markings (Final Surface)","GM",null,7]
["710-11-XXX","Pavement Marking","Painted Pavement Markings, Standard White, Skip, 10-3- Or 3-9 Skip, 6\" Wide","GM",null,7]
["710-11-XXX","Pavement Marking","Painted Pavemnet Markings, Standard, White, Solid For Interchange And Urban Island, 8\"","GM",null,7]
["710-11-XXX","Pavement Marking","Painted Pavemnet Markings, Standard, White/Yellow, Solid, 6\"","GM",null,7]
["710-11-XXX","Pavement Marking","Painted Pavement Markings, Standard, Yellow, 2-4 Dotted Guideline/6-10 Dotted Extension 6\"","GM",null,7]
["710-11-XXX","Pavement Marking","Painted Pavement Markings, Standard White/Yellow, Solid,  12\", 18\", 24\", Stop Line/Crosswalk/Roundabout/Diagonal/Chevron","LF",null,2000]
[null,"Pavement Marking","Pavement Markings, Remove (White/Black/Yellow)(Other)(Water Blasting)","SF",null,2000]
[null,"Pavement Marking","Pavement Markings, Remove (White/Black/Blue)(Skip/Solid)(6\")","GM",null,7]
[null,"Pavement Marking","Pavement Markings, Remove (White/Black/Yellow)(Skip/Solid)(Water Blasting)","LF",null,2000]
["713-1XX-XXX","Pavement Marking","Preformed Tape, High Performance, Black/White/Yellow, Skip/Dotted/Solid, 6\"","GM",null,0.5]
["713-1XX-XXX","Pavement Marking","Preformed Tape, High Performance, White/Black, Contrast, Dotted/Guideline/6-10 Gap,  9\"","LF",null,2000]
[null,"Pavement Marking","Quick Kurb","LF",null,220]
[null,"Pavement Marking","Reflective Paint (Island Nose)","SY",30,45,55]
[null,"Pavement Marking","Reflective Paint (Island Nose)(White/Yellow)(Final)","SF",null,300]
[null,"Pavement Marking","Removable Pavement Markings","LF",null,18500]
["711-XX","Pavement Marking","Remove Exist Thermo (White/Black/Yellow)(Skip)","LF",2000,4800,9600]
["711-XX","Pavement Marking","Remove Exist Thermo (White/Black/Yellow)(Solid)","LF",2000,2400,4800]
["711-XX","Pavement Marking","Remove Exist Thermo (White/Black/Yellow)(Other)","SF",2000,2400,4800]
["711-XX","Pavement Marking","Remove Existing Thermo","SY",null,350]
["711-XX","Pavement Marking","Remove Exist Thermo (White/Black/Yellow)(Skip/Solid)(6\")","GM",null,7]
["706-1","Pavement Marking","RPM's (0 - 5,000)","EA",500,750,1000]
["546-72-XX","Pavement Marking","Rumble Strips, Ground-In 16\" Min Width","GM",null,7]
[null,"Pavement Marking","Temporary Striping","GM",null,4]
["711-11-XXX","Pavement Marking","Thermoplastic Pavement Markings","GM",5,15,30]
["711-XX","Pavement Marking","Thermoplastic Striping","GM",5,15,30]
["711-1X-XXX","Pavement Marking","Thermoplastic, Standard, Yellow, 2-4 Dotted Guide Line / 6-10 Dotted Extension Line 6\"","GM",null,7]
["711-1X-XXX","Pavement Marking","Thermoplastic, Open Graded Asphalt Surface, Standard, White, 6\"/8\"","GM",null,7]
["711-1X-XXX","Pavement Marking","Thermoplastic, Preformed/Standard, White, Arrow","EA",null,30]
["711-1X-XXX","Pavement Marking","Thermoplastic, Preformed, White, Message","EA",null,20]
["711-1X-XXX","Pavement Marking","Thermoplastic, Preformed, White, Solid, 12\"/24\" For Crosswalk","LF",null,2000]
["711-1X-XXX","Pavement Marking","Thermoplastic, Standard, White, 2-4 Dotted Guideline/ 6-10 Gap Extension, 6\"","GM",null,7]
["711-1X-XXX","Pavement Marking","Thermoplastic, Standard-Open Graded Asphalt Surface, Yellow/White, Solid/Skip, 6\"/8\"/12\"","GM",null,7]
["711-1X-XXX","Pavement Marking","Thermoplastic, Standard-Other Surfaces, White/Yellow, Solid/Skip, 6\"","GM",null,7]
["711-1X-XXX","Pavement Marking","Thermoplastic, Standard, White, Message Or Symbol","EA",null,23]
["711-1X-XXX","Pavement Marking","Thermoplastic,  Standard, White/Yellow, Solid,  12\", 18\", 24\", Stop Line/Crosswalk/Roundabout/Diagonal/Chevron","LF",null,2000]
["711-1X-XXX","Pavement Marking","Traffic Stripe Skip  (Thermoplastic)(Standard)(White/Black/Yellow)(6\"), 10-30 Skip Or 3-9 Lane Drop","GM",null,7]
["711-1X-XXX","Pavement Marking","Traffic Stripe Skip (Standard/Wet Weather/Inverted Profile) (Thermoplastic)(White/Black/Yellow)(6\")","GM",null,7]
["711-1X-XXX","Pavement Marking","Traffic Stripe Skip (Paint) (Standard) (White/Black/Yellow)(6\")","LF",null,2000]
["711-1X-XXX","Pavement Marking","Traffic Stripe Skip (Thermoplastic)(Standard)(White/Black/Yellow)(6\"/8\")","LF",null,2000]
["711-1X-XXX","Pavement Marking","Traffic Stripe Skip  (Thermoplastic)(Standard)(White) Dotted/Guideline/ 6-10 Gap Ext, (6\")","LF",null,2000]
["711-1X-XXX","Pavement Marking","Traffic Stripe Solid (Thermoplastic)(Audible & Vibratory Pavement Marking Standard White/Yellow 6\") ","GM",null,7]
["711-1X-XXX","Pavement Marking","Traffic Stripe Solid (Thermoplastic)(Standard)(White/Yellow)(6\"/8\"/12\"/18\"/24\")","GM",null,7]
["711-1X-XXX","Pavement Marking","Traffic Stripe Solid (Thermoplastic)(Standard)(White/Yellow)(6\"/8\"/12\"/18\"/24\")","LF",null,2000]
[null,"Pavement Marking","Traffic Stripe Solid (Two Component)(White/Black)","SY",null,30]
[null,"Procurement ","Aluminum Handrail ","WKS",2,4,6]
[null,"Procurement ","Building Permit","DAYS ",null,45]
[null,"Procurement ","Fiberglass Pile Jackets","DAYS ",null,45]
[null,"Procurement ","Highway Lighting ","DAYS ",120,130,150]
[null,"Procurement ","Highway Lighting - Convert Mercury To Na","DAYS ",null,90]
[null,"Procurement ","Impact Attenuator (G.R.E.A.T.) ","DAYS ",null,30]
[null,"Procurement ","Piles","WKS",3,4,5]
[null,"Procurement ","Pump Station ","WKS",null,12]
[null,"Procurement ","Resurfacing - Superpave <20,000 Tons ","DAYS",null,30]
[null,"Procurement ","Resurfacing - Superpave >60,000 Tons ","DAYS",null,90]
[null,"Procurement ","Resurfacing - Superpave 20,000 - 60,000 Tons ","DAYS",null,60]
[null,"Procurement ","Sign Truss","DAYS",null,150]
[null,"Procurement ","Signals - Concrete Strain Poles ","DAYS",null,90]
[null,"Procurement ","Signals - Steel Mast Arms ","DAYS ",null,150]
[null,"Procurement ","Signs","DAYS ",null,60]
[null,"Procurement ","Steel Beams ","MTHS",2,4,5]
[null,"Procurement ","Utility Steel Poles - Major ","MTHS",null,9]
["521-X","Railing","Conc Traffic Rail Barrier Brg (32\" Dbl Or Single) Retro Vertical Face (Slip Form)","LF",100,250,400]
["521-X","Railing","Conc Traffic Railing Bridge (Special Design)","LF",20,100,160]
["515-2-XX","Railing","Handrail & Bicycle Railing","LF",100,250,400]
["515-2-XXX","Railing","Pedestrian / Bicycle Railing, Ns, 42\" Type 1","LF",100,250,400]
["515-1-X","Railing","Pipe Handrail - Guiderail, Steel","LF",100,250,400]
["515-3-X","Railing","Pipe Handrail- Retrofit To Existing Railing, Steel Or Aluminum","LF",100,250,400]
["520-1-XX","Roadway","Asphalt Curb (Permanent)","LF",null,900]
["341-1","Roadway","Asphalt Membrane Interlayer","SY",null,5000]
["519-78-","Roadway","Bollards","EA",10,20,30]
["522-3-XX","Roadway","Bus Boarding Pad-Concrete","SY",null,300]
["350-5","Roadway","Cleaning & Sealing Joints- Concrete Pavement","LF",null,5280,10560]
["350-5","Roadway","Cleaning & Sealing Joints- Concrete Pavement","MI",null,1,2]
["350-6","Roadway","Cleaning And Sealing Random Cracks (Existing Concrete Pavement)","LF",null,1500]
["350-6","Roadway","Cleaning And Sealing Random Cracks (Existing Concrete Pavement)","MI",null,0.14000000000000001,0.28000000000000003]
["520-5-XX","Roadway","Conc Traffic Separator, Type I, 4'/6'/8.5' Wide","LF",825,900,1050]
["353-70","Roadway","Concrete Pavement Slab Replacement","CY",24,60,94]
["353-70","Roadway","Concrete Pavement Slab Replacement","SY",null,130,1192]
["350-1-X","Roadway","Concrete Paving","SY",null,5000]
["520-1-XX","Roadway","Curb & Gutter, Re-Set Granite Curb","LF",100,125,150]
["520-1-XX","Roadway","Curb & Gutter, Shoulder Gutter","LF",400,600,800]
["520-1-XX","Roadway","Curb & Gutter, Valley Gutter","LF",400,600,800]
["527-2-XX","Roadway","Detectable Warnings","SF",null,200]
["352-70","Roadway","Diamond Grinding Conc","SY",null,2000]
["352-70","Roadway","Grinding Concrete Pavement","SY",2000,1500]
["908-333-XX","Roadway","High Friction Surface Course","SY",2500,2750,3000]
["327-70-XX","Roadway","Asphalt Milling","SY",null,8000]
[null,"Roadway","Rubblization","SY",null,7000]
[null,"Roadway","Rumble Strip Grinding","MI",null,5]
[null,"Roadway","Stabilize Roadbed","SY",1400,1500]
[null,"Roadway","Temporary Pavement","SY",440,600,750]
["523-1","Roadway","Textured Pavement","SY",null,150]
["286-1","Roadway","Turnout Construction","SY",null,200]
["455-35-XX","Sheet Piling","Steel Sheet Piling","SF",640,2000,4000]
["455-35-XX","Sheet Piling","Steel Sheet Piling","SHTS/day",32,40,48]
["455-35-XX","Sheet Piling","Temporary Sheet Pile Wall","LF",150,350,500]
[null,"Sheet Piling","Sheet Piling Concrete (10\" X 30\")","LF",null,500]
[null,"Sheet Piling","Sheet Piling Concrete (5 ft x 20 ft)","EA",null,15]
["646-1-XX","Signalization","Aluminum Signals Pole, Furnish & Install Pedestrian Detector Post","EA",4,8,12]
["646-1-XX","Signalization","Aluminum Signals Pole, Pedestal","EA",4,8,12]
["646-1-XX","Signalization","Aluminum Signals Pole, Remove","EA",4,8,12]
["751-20-X","Signalization","Architectural - Lightning Protection System (F&I)(Point Discharge)","EA",1,2,4]
["751-20-X","Signalization","Architectural - Lightning Protection System (F&I)(Surge Suppresion)","EA",10,15,20]
["632-8-XXX","Signalization","Cable Interconnect (1-25 Pr)","LF",1000,2000,2500]
["632-7-X","Signalization","Cable Signal","PI",null,5]
["685-3-XX","Signalization","CCTV Equipt. (Install)(Camera Assembly)","EA",2,3,5]
["633-8-XX","Signalization","Conductors (F&I)(Insulated)(No. 6)","LF",500,1500,2500]
["630-2-XX","Signalization","Conduit (F & I Underground)(Pvc Sch 40)(2\")","LF",500,750,1000]
["630-2-XX","Signalization","Conduit Above Ground < 3\"","LF",500,750,1000]
["630-2-XX","Signalization","Conduit F & I Above Ground 3\"","LF",500,750,1000]
["630-2-XX","Signalization","Conduit Under Pav'T (3- 1¼ Innerduct)","LF",500,750,1000]
["630-2-XX","Signalization","Conduit Under Pav'T (4- 1¼ Innerduct)","LF",500,750,1000]
["630-2-XX","Signalization","Conduit Under Pav'T 2\" Hdpe","LF",500,750,1000]
["630-2-XX","Signalization","Conduit Underground 1 ¼ Rgs\"","LF",500,750,1000]
["630-2-XX","Signalization","Conduit Underground 2\"","LF",500,750,1000]
["630-2-XX","Signalization","Conduit Underground 3\"","LF",500,750,1000]
["630-2-XX","Signalization","Conduit Underground 4- 1 ¼ \"","LF",500,750,1000]
["630-2-XX","Signalization","Conduit Underground 4\"","LF",500,750,1000]
["630-2-XX","Signalization","Conduit Underground 4\" 3- 1¼\" Innerduct)","LF",500,750,1000]
["630-2-XX","Signalization","Conduit Underground 4\" Rgs","LF",500,750,1000]
["630-2-XX","Signalization","Conduit, Furnish & Install, Aboveground","LF",500,750,1000]
["630-2-XX","Signalization","Conduit, Furnish & Install, Bridge Mount","LF",400,600,800]
["630-2-XX","Signalization","Conduit, Furnish & Install, Directional Bore < 6\"","LF",400,600,800]
["630-2-XX","Signalization","Conduit, Furnish & Install, Directional Bore > 6\"","LF",200,400,600]
["630-2-XX","Signalization","Conduit, Furnish & Install, Open Trench","LF",750,1000]
["678-1-XXX","Signalization","Controller Accessories (F&I)(Power Reduction Assembly)","EA",1,2,4]
[null,"Signalization","Controller And Cabinet","EA",0.01,0.05,0.1]
["660-1-XX","Signalization","Cut Loop Detectors","AS",null,6]
["668-XX","Signalization","Detector Cabinet","EA",3,4,5]
["668-32","Signalization","Detector Cabinet(Type II) ","EA",3,4,6]
["668-33","Signalization","Detector Cabinet(Type III)","EA",1,2,4]
["668-35","Signalization","Detector Cabinet(Type V) ","EA",1,2,4]
["668-36","Signalization","Detector Cabinet(Type VI) ","EA",0.2,0.3,0.5]
["639-1-XX","Signalization","Elctrical Power Service (Underground-Purchased By Contractor From Pwr. Co.)","AS",null,2]
["639-3-XX","Signalization","Elect Pwr Srv Wire Disconnect (Pole)(Cabinet)","EA",null,2]
["639-X","Signalization","Electrical Power Service","AS",null,3]
["639-2-X","Signalization","Electrical Power Service Wire (F&I)","LF",500,1000,2500]
[null,"Signalization","Directional Bore Casing Diameter (<6\")","LF",400,600,800]
[null,"Signalization","Directional Bore Casing Diameter (>6\")","LF",200,400,600]
[null,"Signalization","Lighting Pole (Complete)","EA",null,0.5]
[null,"Signalization","Loop Assemblies","AS",4,6,8]
["639-1-XX","Signalization","Electrical Power Service, F&I, Overhead, Meter Furnished By Power Company","AS",null,2,3]
["639-1-XX","Signalization","Electrical Power Service, F&I, Underground, Meter Furnished By Power Company","AS",null,2,3]
["633-1-XXX","Signalization","Fiber Optic Cable, F&I, Underground,13-48 Fibers","LF",1000,1000,10000]
["633-1-XXX","Signalization","Fiber Optic Cable, F&I, Underground,49-96 Fibers","LF",1000,1000,10000]
["633-1-XXX","Signalization","Fiber Optic Cable, Remove, Underground","LF",300,2000,2000]
["633-3-XX","Signalization","Fiber Optic Connection Hardware, F&I, Splice Enclosure","EA",4,4,8]
["633-2-XX","Signalization","Fiber Optic Connection, Install, Splice","EA",12,16,24]
["641-1-X","Signalization","Guying Existing Concrete Strain Pole","EA",3,3,8]
["700-5-XX","Signalization","Internally Illuminated Sign, Furnish & Install Overhead Mount, Up To 12 Sf","EA",4,6,8]
["700-5-XX","Signalization","Internally Illuminated Sign, Furnish & Install, Overhead Mount, 12-18 Sf","EA",4,6,8]
["700-5-XX","Signalization","Internally Illuminated Sign, Relocate (Less Than 15 Sf)","EA",10,20,30]
["700-3-XX","Signalization","Internally Illuminated Sign, Remove","EA",4,6,8]
["715-11-XXX","Signalization","Luminare (F&I)(Roadway)(Special)","EA",0.5,1,2]
["649-31-XXX","Signalization","Mast Arm (F&I)(Double Arm)","EA",null,0.5]
["635-3-XX","Signalization","Junction Box, Furnish & Install, Aerial","EA",10,15,20]
["715-19-X","Signalization","Lighting - Surge Protector (Pole Base)","EA",10,15,20]
["649-31-XXX","Signalization","Mast Arm (F&I/Hl)(Single W/Luminare)(1St Arm Bx","EA",null,0.5]
["649-31-XXX","Signalization","Mast Arm (F&I/Reduced Loading)","EA",null,0.5]
["660-2-XXX","Signalization","Loop Assembly- F&I, Type A","AS",4,8,12]
["660-2-XXX","Signalization","Loop Assembly, F&I, Type B","AS",4,8,12]
["660-2-XXX","Signalization","Loop Assembly, F&I, Type F","AS",4,8,12]
["649-31-XXX","Signalization","Mast Arm (F&I/Reduced Loading)(Single Arm W/O Luminare)(1St Arm C5)","EA",null,0.5]
["649-31-XXX","Signalization","Mast Arm (F&I/Reduced Loading)(Single Arm W/O Luminare)(1St Arm C6)","EA",null,0.5]
[null,"Signalization","Mast Arm (Single)","EA",null,4]
[null,"Signalization","Mastarm (Double)","EA",null,3]
["665-X","Signalization","Pedestrian Detectors","EA",null,8]
["653-1","Signalization","Pedestrian Signals","AS",null,10]
[null,"Signalization","Poles","EA",null,10]
["635-2-XX","Signalization","Pull Boxes (Roadside)","EA",10,15,20]
["659-1-XX","Signalization","Mounting Assembly, Repair/Replace/Retro- Furnish & Install","EA",5,10,15]
["700-4-XX","Signalization","Overhead Static Sign Structure, Furnish & Install, Span","AS",0.5,1,2]
["665-1-XX","Signalization","Pedestrian Detector, Furnish & Install, Accessible","EA",4,8,8]
["665-1-XX","Signalization","Pedestrian Detector, Furnish & Install, Standard","EA",4,8,12]
["665-1-XX","Signalization","Pedestrian Detector, Remove- Pole/Pedestal To Remain","EA",4,10,16]
["635-2-XX","Signalization","Pull Boxes (Special)","EA",5,8,10]
["653-1-XX","Signalization","Pedestrian Signal, Furnish & Install Led Countdown, 1 Way","AS",4,8,12]
["653-1-XX","Signalization","Pedestrian Signal, Furnish & Install Led Countdown, 2 Ways","AS",4,8,12]
["653-1-XX","Signalization","Pedestrian Signal, Relocate","AS",4,8,12]
["690-XX","Signalization","Remove Existing Signal Equipt.","EA",null,8]
["690-XX","Signalization","Remove Existing Signal Interconnect (Cable)","LF",1000,1250,1500]
["641-2-XXX","Signalization","Prestressed Conc. Poles (Type N-11)(Dir. Burial)","EA",null,3]
["641-2-XXX","Signalization","Prestressed Concrete Pole, F&I, Type P-Ii Service Pole","EA",2,2,2]
["641-2-XXX","Signalization","Prestressed Concrete Pole, Shallow Pole Removal- Pole 30' And Greater","EA",2,6,6]
[null,"Signalization","Prestressed Concrete Poles (Type P-Ii)(Direct Burial)","EA",null,2]
[null,"Signalization","Prestressed Concrete Poles (Type P-Vi)(With Foundation)","EA",null,2]
[null,"Signalization","Prestressed Concrete Poles (Type P-Vii)(With Foundation)","EA",null,2]
[null,"Signalization","Prestressed Concrete Poles (Type P-Vii)(With Foundation)","EA",null,2]
["635-2-XX","Signalization","Pull & Splice Boxes (Fiber Optic-Pull Box) 24\" X 36\" Cover Size","EA",10,15,20]
["635-2-xx","Signalization","Pull & Splice Boxes 13\" X 24\" Cover Size","EA",null,8]
["690-XX","Signalization","Remove Existing Span Wire","EA",null,20]
["700-5-XX","Signalization","Sign (Internal Illuminated), Street Name","EA",4,6,8]
["700-5-XX","Signalization","Sign Panels","EA",null,6]
[null,"Signalization","Signal Heads","EA",null,10]
["650-1-XXX","Signalization","Signal Traffic","AS",10,15,20]
["646-1-XX","Signalization","Signal, Pole & Det (Pedestrian)(Complete)","AS",2,3,5]
["700-5-XX","Signalization","Sign Panel, Furnish & Install","EA",4,8,12]
[null,"Signalization","Signals Per Intersection","DAYS",null,15]
["632-7-X","Signalization","Signal Cable, Adjust","PI",2,5,8]
["649-1-XXX","Signalization","Steel Strain Pole (F&I)(Ns-Ix)(36')","EA",0.5,0.6,0.7]
[null,"Signalization","Signal- ITS Conduit Underground","LF",500,750,1000]
[null,"Signalization","Signal- Per Intersection","DAY",null,15]
["663-1-XXX","Signalization","Signal Priority And Preemption System, F&I, Optical","EA",4,8,16]
["649-1-XXX","Signalization","Steel Strain Pole (F&I)(Ns-Ix)(38')","EA",0.5,0.6,0.7]
[null,"Signalization","Signal, Pole & Det (Pedestrian) (Complete)","AS",null,3]
["684-XX","Signalization","System Comm. (Fiber Optic Cable Sm)","LF",1000,5000,10000]
[null,"Signalization","System Comm. (Foc, 24-Count Sm)","LF",1000,5000,10000]
["634-4-XXX","Signalization","Span Wire Assembly","PI",null,5]
[null,"Signalization","System Comm. (Foc, 48-Count Sm)","LF",1000,5000,10000]
[null,"Signalization","System Comm. (Foc, 6-Count Sm)","LF",1000,5000,10000]
["649-1-XXX","Signalization","Steel Strain Pole, F&I, Type Ps- Ix","EA",0.5,0.6,0.7]
["649-1-XXX","Signalization","Steel Strain Pole, F&I, Type Ps- Viii","EA",0.5,0.6,0.7]
["649-1-XXX","Signalization","Steel Strain Pole, F&I, Type Ps- X","EA",0.5,0.6,0.7]
["649-1-XXX","Signalization","Steel Strain Pole, Remove","EA",0.5,1,2]
["685-XXX","Signalization","System Auxiliaries, Power Distribution Unit","EA",null,10]
[null,"Signalization","System Comm. (Foc, 72-Count Sm)","LF",1000,5000,10000]
["684-XX","Signalization","System Comm. (Multi-Pair Cable)","LF",1000,3000,5000]
["695-7-XXX","Signalization","Tms Cabinet (F&I)(Type Iii)(Pedestal)(2 Backplane)","EA",3,4,6]
["695-6-XX","Signalization","Tms Inductive Loop Assembly (2 Loops Per Lane)","AS",4,8,12]
["695-2-X","Signalization","Tms Vehicle Sensor (Class Ii)(Type I)","EA",4,8,12]
["695-2-X","Signalization","Tms Vehicle Sensor (Class Ii)(Type I)(1/2 Ln)","EA",4,8,12]
["680-1-XXX","Signalization","System Control Equipment, Furnish & Install","EA",4,8,12]
[null,"Signalization","Traffic Signals","AS",null,8]
["670-5-XXX","Signalization","Traffic Controller Assembly, F&I, Nema","AS",2,2,5]
["670-5-XXX","Signalization","Traffic Controller Assembly, Modify","AS",2,4,5]
["670-5-XXX","Signalization","Traffic Controller Assembly, Remove Controller With Cabinet","AS",2,3,5]
["695-7-XXX","Signalization","Traffic Monitoring Site Cabinet, Furnish & Install, Type 3, Pedestal Mount","EA",3,4,6]
["695-7-XXX","Signalization","Traffic Monitoring Site Cabinet, Remove Existing Cabinet","EA",3,4,6]
["695-6-XX","Signalization","Traffic Monitoring Site Inductive Loop Assembly, Furnish & Install, 2 Loops","EA",4,8,12]
["695-1-X","Signalization","Traffic Monitoring Site Vehicle Sensor-Non-Weight, Furnish & Install","EA",4,8,12]
["660-4-XX","Signalization","Vehicle Detection System- Video, Furnish & Install Above Ground Equipment","EA",4,8,16]
["660-4-XX","Signalization","Vehicle Detection System- Video, Furnish & Install Cabinet Equipment","EA",4,8,16]
["650-2-XXX","Signalization","Vehicular Signal Auxiliaries","EA",4,8,12]
["650-1-XXX","Signalization","Vehicular Traffic Signal, Furnish & Install Aluminum, 3 Section, 1 Way","AS",10,20]
["650-1-XXX","Signalization","Vehicular Traffic Signal, Furnish & Install Aluminum, 4 Section, 1 Way","AS",10,20]
["650-1-XXX","Signalization","Vehicular Traffic Signal, Furnish & Install Aluminum, 5 Section, 1 Way","AS",10,20]
["650-1-XXX","Signalization","Vehicular Traffic Signal, Relocate","AS",10,15,20]
["650-1-XXX","Signalization","Vehicular Traffic Signal, Remove- Poles To Remain","AS",10,15,20]
["670-5-XXX","Signalization","Controller Assembly (Cabinet Assembly, Less Foundation)","AS",2,3,5]
["670-5-XXX","Signalization","Controller Assembly Actuated Ss F&I Nema Pre(None)","AS",2,3,5]
["670-5-XXX","Signalization","Controller Assembly Actuated Ss Modify Nema Preempt","AS",1,2,3]
["670-5-XXX","Signalization","Traffic Controller Assembly, F&I, Nema, 2 Preemption","AS",1,2,3]
[null,"Signing","Drillshaft Base","EA",0.2,0.5,0.7]
[null,"Signing","Highway (Bridge)","EA",10,20,30]
[null,"Signing","Large Signs","EA",4,8,12]
["705-10-XXX","Signing","Object Marker","EA",null,10]
[null,"Signing","Overhead","EA",0.2,0.4,0.7]
["705-11-XXX","Signing","Delineators","EA",null,10]
["630-2-XX","Signing","Directional Bore < 6\"","LF",400,600,800]
["630-2-XX","Signing","Directional Bore > 6\"","LF",200,400,600]
["700-3-XXX","Signing","Remove Sign Panels (ground mount, single or multi-post)","EA",null,12]
[null,"Signing","Existing Sign (Remove, Overhead Cantilever)","AS",null,0.5]
[null,"Signing","Existing Sign (Remove, Overhead Truss)","AS",null,0.2]
["700-1-XX","Signing","Sign Install (Existing Breakaway Supports)(Single Post)","AS",4,8,12]
[null,"Signing","Install Sign (Overhead Cantilever)","AS",null,0.5]
[null,"Signing","Install Sign (Overhead Truss)(Special)","AS",null,0.2]
[null,"Signing","Install Sign (Overhead Truss-Monotube, Cantilever)","AS",null,0.2]
[null,"Signing","Install Sign (Overhead Truss-Monotube, Span)","AS",null,0.2]
["700-3-XX","Signing","Sign Panels","EA",null,15]
["700-2-XXX","Signing","Miltipost Removal","AS",null,15]
["700-2-XXX","Signing","Mulitpost  (F & I)","AS",null,10]
["700-2-XXX","Signing","Multi- Post Sign, Relocate ","AS",5,8,10]
["700-1-XX","Signing","Single Post Sign Relocate","AS",null,10]
["700-1-XX","Signing","Single Post Sign Removal","AS",null,30]
["700-3-XXX","Signing","Overhead Signs (Bridge)","SF",0.2,0.4,0.7]
["700-4-XXX","Signing","Overhead Static Sign Structure, Furnish & Install, Cantilever","AS",4,6,8]
["700-4-XXX","Signing","Overhead Static Sign Structure, Furnish & Install, Overpass Bridge Mount","EA",2,5,8]
["700-4-XXX","Signing","Overhead Static Sign Structure, Remove Bridge Mount","EA",2,7,12]
["700-4-XXX","Signing","Overhead Static Sign Structure, Remove Cantilever","EA",0.2,0.4,0.7]
["700-4-XXX","Signing","Overhead Static Sign Structure, Remove Span","EA",4,8,12]
["700-3-XXX","Signing","Relocate Sign Panels","EA",4,10,12]
[null,"Signing","Small Signs","EA",10,20,30]
[null,"Signing","Sign Flashing Beacon, (Remove) Ground Mount","AS",null,2]
[null,"Signing","Sign Flashing Beacon, F&I Ground Mount","AS",null,0.5]
["700-3-XXX","Signing","Sign Panel, Furnish & Install Overhead Mount, 101-200 SF","EA",2,3,4]
["700-3-XXX","Signing","Sign Panels Replace","AS",10,12,15]
["700-3-XXX","Signing","Sign Panels, Remove, 101-200 SF","EA",2,3,4]
["700-1-XX","Signing","Single Post Sign","AS",null,15]
[null,"Signing","Utility Locate (Underground)","EA",2,8,15]
[null,"Toll Plazas","Mainline","MTH",null,18]
[null,"Toll Plazas","Mid Size","MTH",null,12]
[null,"Toll Plazas","Ramp","MTH",4,8]
[null,"Utilities ","Railroad X-Ing 5 Lanes","LF",null,3]
[null,"Utilities ","Watermain","LF",75,100,150]
["1501-1","Utilities ","Lift Stations ","EA",null,1]
["425-2-XXX","Utilities ","Manholes (Utilities)(Adjust) ","EA",4,6,8]

{"sheet":"dataStore","index":2,"n_rows":11,"n_cols":3,"rows_kept":11,"cut":false,"hidden":true,"merged":[]}
["frmProjectInformation",null,"frmRelevantFactors"]
[]
[]
[]
[]
[]
[]
[]
[]
[]
[null,null,0]

{"sheet":"Phase I","index":3,"n_rows":297,"n_cols":14,"rows_kept":297,"cut":false,"hidden":true,"merged":[]}
[null,null,null,null,null,"INSTRUCTIONS:"]
[]
[]
[]
[]
[]
[]
[]
[]
[]
[]
[]
[]
[]
["Pay Item","Work Group","Activity","Quantity","Unit","Low","Avg.","High","Default (Avg.) Rate","User Factored Rate","Rate Override","Estimated Duration (days)","Duration Override","Comments"]
["110-1-X","Clearing & Grubbing","Clearing And Grubbing",1,"AC",0.5,1.5,3,1.5,{"$f":"IFERROR(tblDataEntry1316[[#This Row],[Default (Avg.) Rate]]*(1+dsEstimatorAdjustment/100),\"---\")","v":1.5},null,{"$f":"IFERROR(IF(ISBLANK(tblDataEntry1316[[#This Row],[Rate Override]]),CEILING(tblDataEntry1316[[#This Row],[Quantity]]/tblDataEntry1316[[#This Row],[User Factored Rate]],1),CEILING(tblDataEntry1316[[#This Row],[Quantity]]/tblDataEntry1316[[#This Row],[Rate Override]],1)),\"---\")","v":1}]
["110-4","Clearing & Grubbing","Remove Existing Concrete Pavement",60,"SY",100,300,600,300,{"$f":"IFERROR(tblDataEntry1316[[#This Row],[Default (Avg.) Rate]]*(1+dsEstimatorAdjustment/100),\"---\")","v":300},null,{"$f":"IFERROR(IF(ISBLANK(tblDataEntry1316[[#This Row],[Rate Override]]),CEILING(tblDataEntry1316[[#This Row],[Quantity]]/tblDataEntry1316[[#This Row],[User Factored Rate]],1),CEILING(tblDataEntry1316[[#This Row],[Quantity]]/tblDataEntry1316[[#This Row],[Rate Override]],1)),\"---\")","v":1}]
["120-X","Earthwork","Regular And Borrow Excavation (< 50,000 CY)",8000,"CY",700,900,1200,900,{"$f":"IFERROR(tblDataEntry1316[[#This Row],[Default (Avg.) Rate]]*(1+dsEstimatorAdjustment/100),\"---\")","v":900},750,{"$f":"IFERROR(IF(ISBLANK(tblDataEntry1316[[#This Row],[Rate Override]]),CEILING(tblDataEntry1316[[#This Row],[Quantity]]/tblDataEntry1316[[#This Row],[User Factored Rate]],1),CEILING(tblDataEntry1316[[#This Row],[Quantity]]/tblDataEntry1316[[#This Row],[Rate Override]],1)),\"---\")","v":11},7]
["210-1 AND 285-XXX","Base","Asphalt/Limerock/OBG Base (< 10,000 SY)",588,"SY",400,700,1000,700,{"$f":"IFERROR(tblDataEntry1316[[#This Row],[Default (Avg.) Rate]]*(1+dsEstimatorAdjustment/100),\"---\")","v":700},null,{"$f":"IFERROR(IF(ISBLANK(tblDataEntry1316[[#This Row],[Rate Override]]),CEILING(tblDataEntry1316[[#This Row],[Quantity]]/tblDataEntry1316[[#This Row],[User Factored Rate]],1),CEILING(tblDataEntry1316[[#This Row],[Quantity]]/tblDataEntry1316[[#This Row],[Rate Override]],1)),\"---\")","v":1}]
["520-1-XX","Roadway","Curb & Gutter, Shoulder Gutter",241,"LF",400,600,800,600,{"$f":"IFERROR(tblDataEntry1316[[#This Row],[Default (Avg.) Rate]]*(1+dsEstimatorAdjustment/100),\"---\")","v":600},null,{"$f":"IFERROR(IF(ISBLANK(tblDataEntry1316[[#This Row],[Rate Override]]),CEILING(tblDataEntry1316[[#This Row],[Quantity]]/tblDataEntry1316[[#This Row],[User Factored Rate]],1),CEILING(tblDataEntry1316[[#This Row],[Quantity]]/tblDataEntry1316[[#This Row],[Rate Override]],1)),\"---\")","v":1}]
[null,"Concrete","ADA Ramps",4,"EA","n/a",0.5,"n/a",0.5,{"$f":"IFERROR(tblDataEntry1316[[#This Row],[Default (Avg.) Rate]]*(1+dsEstimatorAdjustment/100),\"---\")","v":0.5},null,{"$f":"IFERROR(IF(ISBLANK(tblDataEntry1316[[#This Row],[Rate Override]]),CEILING(tblDataEntry1316[[#This Row],[Quantity]]/tblDataEntry1316[[#This Row],[User Factored Rate]],1),CEILING(tblDataEntry1316[[#This Row],[Quantity]]/tblDataEntry1316[[#This Row],[Rate Override]],1)),\"---\")","v":8}]
["327-70-XX","Roadway","Asphalt Milling",8400,"SY","n/a",8000,"n/a",8000,{"$f":"IFERROR(tblDataEntry1316[[#This Row],[Default (Avg.) Rate]]*(1+dsEstimatorAdjustment/100),\"---\")","v":8000},null,{"$f":"IFERROR(IF(ISBLANK(tblDataEntry1316[[#This Row],[Rate Override]]),CEILING(tblDataEntry1316[[#This Row],[Quantity]]/tblDataEntry1316[[#This Row],[User Factored Rate]],1),CEILING(tblDataEntry1316[[#This Row],[Quantity]]/tblDataEntry1316[[#This Row],[Rate Override]],1)),\"---\")","v":2},1]
[null,null,null,null,null,null,null,null,null,{"$f":"IFERROR(tblDataEntry1316[[#This Row],[Default (Avg.) Rate]]*(1+dsEstimatorAdjustment/100),\"---\")","v":0},null,{"$f":"IFERROR(IF(ISBLANK(tblDataEntry1316[[#This Row],[Rate Override]]),CEILING(tblDataEntry1316[[#This Row],[Quantity]]/tblDataEntry1316[[#This Row],[User Factored Rate]],1),CEILING(tblDataEntry1316[[#This Row],[Quantity]]/tblDataEntry1316[[#This Row],[Rate Override]],1)),\"---\")","v":"---"}]
[null,null,null,null,null,null,null,null,null,{"$f":"IFERROR(tblDataEntry1316[[#This Row],[Default (Avg.) Rate]]*(1+dsEstimatorAdjustment/100),\"---\")","v":0},null,{"$f":"IFERROR(IF(ISBLANK(tblDataEntry1316[[#This Row],[Rate Override]]),CEILING(tblDataEntry1316[[#This Row],[Quantity]]/tblDataEntry1316[[#This Row],[User Factored Rate]],1),CEILING(tblDataEntry1316[[#This Row],[Quantity]]/tblDataEntry1316[[#This Row],[Rate Override]],1)),\"---\")","v":"---"}]
[null,null,null,null,null,null,null,null,null,{"$f":"IFERROR(tblDataEntry1316[[#This Row],[Default (Avg.) Rate]]*(1+dsEstimatorAdjustment/100),\"---\")","v":0},null,{"$f":"IFERROR(IF(ISBLANK(tblDataEntry1316[[#This Row],[Rate Override]]),CEILING(tblDataEntry1316[[#This Row],[Quantity]]/tblDataEntry1316[[#This Row],[User Factored Rate]],1),CEILING(tblDataEntry1316[[#This Row],[Quantity]]/tblDataEntry1316[[#This Row],[Rate Override]],1)),\"---\")","v":"---"}]
[null,null,null,null,null,null,null,null,null,{"$f":"IFERROR(tblDataEntry1316[[#This Row],[Default (Avg.) Rate]]*(1+dsEstimatorAdjustment/100),\"---\")","v":0},null,{"$f":"IFERROR(IF(ISBLANK(tblDataEntry1316[[#This Row],[Rate Override]]),CEILING(tblDataEntry1316[[#This Row],[Quantity]]/tblDataEntry1316[[#This Row],[User Factored Rate]],1),CEILING(tblDataEntry1316[[#This Row],[Quantity]]/tblDataEntry1316[[#This Row],[Rate Override]],1)),\"---\")","v":"---"}]
[null,null,null,null,null,null,null,null,null,{"$f":"IFERROR(tblDataEntry1316[[#This Row],[Default (Avg.) Rate]]*(1+dsEstimatorAdjustment/100),\"---\")","v":0},null,{"$f":"IFERROR(IF(ISBLANK(tblDataEntry1316[[#This Row],[Rate Override]]),CEILING(tblDataEntry1316[[#This Row],[Quantity]]/tblDataEntry1316[[#This Row],[User Factored Rate]],1),CEILING(tblDataEntry1316[[#This Row],[Quantity]]/tblDataEntry1316[[#This Row],[Rate Override]],1)),\"---\")","v":"---"}]
[null,null,null,null,null,null,null,null,null,{"$f":"IFERROR(tblDataEntry1316[[#This Row],[Default (Avg.) Rate]]*(1+dsEstimatorAdjustment/100),\"---\")","v":0},null,{"$f":"IFERROR(IF(ISBLANK(tblDataEntry1316[[#This Row],[Rate Override]]),CEILING(tblDataEntry1316[[#This Row],[Quantity]]/tblDataEntry1316[[#This Row],[User Factored Rate]],1),CEILING(tblDataEntry1316[[#This Row],[Quantity]]/tblDataEntry1316[[#This Row],[Rate Override]],1)),\"---\")","v":"---"}]
[null,null,null,null,null,null,null,null,null,{"$f":"IFERROR(tblDataEntry1316[[#This Row],[Default (Avg.) Rate]]*(1+dsEstimatorAdjustment/100),\"---\")","v":0},null,{"$f":"IFERROR(IF(ISBLANK(tblDataEntry1316[[#This Row],[Rate Override]]),CEILING(tblDataEntry1316[[#This Row],[Quantity]]/tblDataEntry1316[[#This Row],[User Factored Rate]],1),CEILING(tblDataEntry1316[[#This Row],[Quantity]]/tblDataEntry1316[[#This Row],[Rate Override]],1)),\"---\")","v":"---"}]
[null,null,null,null,null,null,null,null,null,{"$f":"IFERROR(tblDataEntry1316[[#This Row],[Default (Avg.) Rate]]*(1+dsEstimatorAdjustment/100),\"---\")","v":0},null,{"$f":"IFERROR(IF(ISBLANK(tblDataEntry1316[[#This Row],[Rate Override]]),CEILING(tblDataEntry1316[[#This Row],[Quantity]]/tblDataEntry1316[[#This Row],[User Factored Rate]],1),CEILING(tblDataEntry1316[[#This Row],[Quantity]]/tblDataEntry1316[[#This Row],[Rate Override]],1)),\"---\")","v":"---"}]
[null,null,null,null,null,null,null,null,null,{"$f":"IFERROR(tblDataEntry1316[[#This Row],[Default (Avg.) Rate]]*(1+dsEstimatorAdjustment/100),\"---\")","v":0},null,{"$f":"IFERROR(IF(ISBLANK(tblDataEntry1316[[#This Row],[Rate Override]]),CEILING(tblDataEntry1316[[#This Row],[Quantity]]/tblDataEntry1316[[#This Row],[User Factored Rate]],1),CEILING(tblDataEntry1316[[#This Row],[Quantity]]/tblDataEntry1316[[#This Row],[Rate Override]],1)),\"---\")","v":"---"}]
[null,null,null,null,null,null,null,null,null,{"$f":"IFERROR(tblDataEntry1316[[#This Row],[Default (Avg.) Rate]]*(1+dsEstimatorAdjustment/100),\"---\")","v":0},null,{"$f":"IFERROR(IF(ISBLANK(tblDataEntry1316[[#This Row],[Rate Override]]),CEILING(tblDataEntry1316[[#This Row],[Quantity]]/tblDataEntry1316[[#This Row],[User Factored Rate]],1),CEILING(tblDataEntry1316[[#This Row],[Quantity]]/tblDataEntry1316[[#This Row],[Rate Override]],1)),\"---\")","v":"---"}]
[null,null,null,null,null,null,null,null,null,{"$f":"IFERROR(tblDataEntry1316[[#This Row],[Default (Avg.) Rate]]*(1+dsEstimatorAdjustment/100),\"---\")","v":0},null,{"$f":"IFERROR(IF(ISBLANK(tblDataEntry1316[[#This Row],[Rate Override]]),CEILING(tblDataEntry1316[[#This Row],[Quantity]]/tblDataEntry1316[[#This Row],[User Factored Rate]],1),CEILING(tblDataEntry1316[[#This Row],[Quantity]]/tblDataEntry1316[[#This Row],[Rate Override]],1)),\"---\")","v":"---"}]
[null,null,null,null,null,null,null,null,null,{"$f":"IFERROR(tblDataEntry1316[[#This Row],[Default (Avg.) Rate]]*(1+dsEstimatorAdjustment/100),\"---\")","v":0},null,{"$f":"IFERROR(IF(ISBLANK(tblDataEntry1316[[#This Row],[Rate Override]]),CEILING(tblDataEntry1316[[#This Row],[Quantity]]/tblDataEntry1316[[#This Row],[User Factored Rate]],1),CEILING(tblDataEntry1316[[#This Row],[Quantity]]/tblDataEntry1316[[#This Row],[Rate Override]],1)),\"---\")","v":"---"}]
[null,null,null,null,null,null,null,null,null,{"$f":"IFERROR(tblDataEntry1316[[#This Row],[Default (Avg.) Rate]]*(1+dsEstimatorAdjustment/100),\"---\")","v":0},null,{"$f":"IFERROR(IF(ISBLANK(tblDataEntry1316[[#This Row],[Rate Override]]),CEILING(tblDataEntry1316[[#This Row],[Quantity]]/tblDataEntry1316[[#This Row],[User Factored Rate]],1),CEILING(tblDataEntry1316[[#This Row],[Quantity]]/tblDataEntry1316[[#This Row],[Rate Override]],1)),\"---\")","v":"---"}]
[null,null,null,null,null,null,null,null,null,{"$f":"IFERROR(tblDataEntry1316[[#This Row],[Default (Avg.) Rate]]*(1+dsEstimatorAdjustment/100),\"---\")","v":0},null,{"$f":"IFERROR(IF(ISBLANK(tblDataEntry1316[[#This Row],[Rate Override]]),CEILING(tblDataEntry1316[[#This Row],[Quantity]]/tblDataEntry1316[[#This Row],[User Factored Rate]],1),CEILING(tblDataEntry1316[[#This Row],[Quantity]]/tblDataEntry1316[[#This Row],[Rate Override]],1)),\"---\")","v":"---"}]
[null,null,null,null,null,null,null,null,null,{"$f":"IFERROR(tblDataEntry1316[[#This Row],[Default (Avg.) Rate]]*(1+dsEstimatorAdjustment/100),\"---\")","v":0},null,{"$f":"IFERROR(IF(ISBLANK(tblDataEntry1316[[#This Row],[Rate Override]]),CEILING(tblDataEntry1316[[#This Row],[Quantity]]/tblDataEntry1316[[#This Row],[User Factored Rate]],1),CEILING(tblDataEntry1316[[#This Row],[Quantity]]/tblDataEntry1316[[#This Row],[Rate Override]],1)),\"---\")","v":"---"}]
[null,null,null,null,null,null,null,null,null,{"$f":"IFERROR(tblDataEntry1316[[#This Row],[Default (Avg.) Rate]]*(1+dsEstimatorAdjustment/100),\"---\")","v":0},null,{"$f":"IFERROR(IF(ISBLANK(tblDataEntry1316[[#This Row],[Rate Override]]),CEILING(tblDataEntry1316[[#This Row],[Quantity]]/tblDataEntry1316[[#This Row],[User Factored Rate]],1),CEILING(tblDataEntry1316[[#This Row],[Quantity]]/tblDataEntry1316[[#This Row],[Rate Override]],1)),\"---\")","v":"---"}]
[null,null,null,null,null,null,null,null,null,{"$f":"IFERROR(tblDataEntry1316[[#This Row],[Default (Avg.) Rate]]*(1+dsEstimatorAdjustment/100),\"---\")","v":0},null,{"$f":"IFERROR(IF(ISBLANK(tblDataEntry1316[[#This Row],[Rate Override]]),CEILING(tblDataEntry1316[[#This Row],[Quantity]]/tblDataEntry1316[[#This Row],[User Factored Rate]],1),CEILING(tblDataEntry1316[[#This Row],[Quantity]]/tblDataEntry1316[[#This Row],[Rate Override]],1)),\"---\")","v":"---"}]
[null,null,null,null,null,null,null,null,null,{"$f":"IFERROR(tblDataEntry1316[[#This Row],[Default (Avg.) Rate]]*(1+dsEstimatorAdjustment/100),\"---\")","v":0},null,{"$f":"IFERROR(IF(ISBLANK(tblDataEntry1316[[#This Row],[Rate Override]]),CEILING(tblDataEntry1316[[#This Row],[Quantity]]/tblDataEntry1316[[#This Row],[User Factored Rate]],1),CEILING(tblDataEntry1316[[#This Row],[Quantity]]/tblDataEntry1316[[#This Row],[Rate Override]],1)),\"---\")","v":"---"}]
[null,null,null,null,null,null,null,null,null,{"$f":"IFERROR(tblDataEntry1316[[#This Row],[Default (Avg.) Rate]]*(1+dsEstimatorAdjustment/100),\"---\")","v":0},null,{"$f":"IFERROR(IF(ISBLANK(tblDataEntry1316[[#This Row],[Rate Override]]),CEILING(tblDataEntry1316[[#This Row],[Quantity]]/tblDataEntry1316[[#This Row],[User Factored Rate]],1),CEILING(tblDataEntry1316[[#This Row],[Quantity]]/tblDataEntry1316[[#This Row],[Rate Override]],1)),\"---\")","v":"---"}]
[null,null,null,null,null,null,null,null,null,{"$f":"IFERROR(tblDataEntry1316[[#This Row],[Default (Avg.) Rate]]*(1+dsEstimatorAdjustment/100),\"---\")","v":0},null,{"$f":"IFERROR(IF(ISBLANK(tblDataEntry1316[[#This Row],[Rate Override]]),CEILING(tblDataEntry1316[[#This Row],[Quantity]]/tblDataEntry1316[[#This Row],[User Factored Rate]],1),CEILING(tblDataEntry1316[[#This Row],[Quantity]]/tblDataEntry1316[[#This Row],[Rate Override]],1)),\"---\")","v":"---"}]
[null,null,null,null,null,null,null,null,null,{"$f":"IFERROR(tblDataEntry1316[[#This Row],[Default (Avg.) Rate]]*(1+dsEstimatorAdjustment/100),\"---\")","v":0},null,{"$f":"IFERROR(IF(ISBLANK(tblDataEntry1316[[#This Row],[Rate Override]]),CEILING(tblDataEntry1316[[#This Row],[Quantity]]/tblDataEntry1316[[#This Row],[User Factored Rate]],1),CEILING(tblDataEntry1316[[#This Row],[Quantity]]/tblDataEntry1316[[#This Row],[Rate Override]],1)),\"---\")","v":"---"}]
[null,null,null,null,null,null,null,null,null,{"$f":"IFERROR(tblDataEntry1316[[#This Row],[Default (Avg.) Rate]]*(1+dsEstimatorAdjustment/100),\"---\")","v":0},null,{"$f":"IFERROR(IF(ISBLANK(tblDataEntry1316[[#This Row],[Rate Override]]),CEILING(tblDataEntry1316[[#This Row],[Quantity]]/tblDataEntry1316[[#This Row],[User Factored Rate]],1),CEILING(tblDataEntry1316[[#This Row],[Quantity]]/tblDataEntry1316[[#This Row],[Rate Override]],1)),\"---\")","v":"---"}]
[null,null,null,null,null,null,null,null,null,{"$f":"IFERROR(tblDataEntry1316[[#This Row],[Default (Avg.) Rate]]*(1+dsEstimatorAdjustment/100),\"---\")","v":0},null,{"$f":"IFERROR(IF(ISBLANK(tblDataEntry1316[[#This Row],[Rate Override]]),CEILING(tblDataEntry1316[[#This Row],[Quantity]]/tblDataEntry1316[[#This Row],[User Factored Rate]],1),CEILING(tblDataEntry1316[[#This Row],[Quantity]]/tblDataEntry1316[[#This Row],[Rate Override]],1)),\"---\")","v":"---"}]
[null,null,null,null,null,null,null,null,null,{"$f":"IFERROR(tblDataEntry1316[[#This Row],[Default (Avg.) Rate]]*(1+dsEstimatorAdjustment/100),\"---\")","v":0},null,{"$f":"IFERROR(IF(ISBLANK(tblDataEntry1316[[#This Row],[Rate Override]]),CEILING(tblDataEntry1316[[#This Row],[Quantity]]/tblDataEntry1316[[#This Row],[User Factored Rate]],1),CEILING(tblDataEntry1316[[#This Row],[Quantity]]/tblDataEntry1316[[#This Row],[Rate Override]],1)),\"---\")","v":"---"}]
[null,null,null,null,null,null,null,null,null,{"$f":"IFERROR(tblDataEntry1316[[#This Row],[Default (Avg.) Rate]]*(1+dsEstimatorAdjustment/100),\"---\")","v":0},null,{"$f":"IFERROR(IF(ISBLANK(tblDataEntry1316[[#This Row],[Rate Override]]),CEILING(tblDataEntry1316[[#This Row],[Quantity]]/tblDataEntry1316[[#This Row],[User Factored Rate]],1),CEILING(tblDataEntry1316[[#This Row],[Quantity]]/tblDataEntry1316[[#This Row],[Rate Override]],1)),\"---\")","v":"---"}]
[null,null,null,null,null,null,null,null,null,{"$f":"IFERROR(tblDataEntry1316[[#This Row],[Default (Avg.) Rate]]*(1+dsEstimatorAdjustment/100),\"---\")","v":0},null,{"$f":"IFERROR(IF(ISBLANK(tblDataEntry1316[[#This Row],[Rate Override]]),CEILING(tblDataEntry1316[[#This Row],[Quantity]]/tblDataEntry1316[[#This Row],[User Factored Rate]],1),CEILING(tblDataEntry1316[[#This Row],[Quantity]]/tblDataEntry1316[[#This Row],[Rate Override]],1)),\"---\")","v":"---"}]
[null,null,null,null,null,null,null,null,null,{"$f":"IFERROR(tblDataEntry1316[[#This Row],[Default (Avg.) Rate]]*(1+dsEstimatorAdjustment/100),\"---\")","v":0},null,{"$f":"IFERROR(IF(ISBLANK(tblDataEntry1316[[#This Row],[Rate Override]]),CEILING(tblDataEntry1316[[#This Row],[Quantity]]/tblDataEntry1316[[#This Row],[User Factored Rate]],1),CEILING(tblDataEntry1316[[#This Row],[Quantity]]/tblDataEntry1316[[#This Row],[Rate Override]],1)),\"---\")","v":"---"}]
[null,null,null,null,null,null,null,null,null,{"$f":"IFERROR(tblDataEntry1316[[#This Row],[Default (Avg.) Rate]]*(1+dsEstimatorAdjustment/100),\"---\")","v":0},null,{"$f":"IFERROR(IF(ISBLANK(tblDataEntry1316[[#This Row],[Rate Override]]),CEILING(tblDataEntry1316[[#This Row],[Quantity]]/tblDataEntry1316[[#This Row],[User Factored Rate]],1),CEILING(tblDataEntry1316[[#This Row],[Quantity]]/tblDataEntry1316[[#This Row],[Rate Override]],1)),\"---\")","v":"---"}]
[null,null,null,null,null,null,null,null,null,{"$f":"IFERROR(tblDataEntry1316[[#This Row],[Default (Avg.) Rate]]*(1+dsEstimatorAdjustment/100),\"---\")","v":0},null,{"$f":"IFERROR(IF(ISBLANK(tblDataEntry1316[[#This Row],[Rate Override]]),CEILING(tblDataEntry1316[[#This Row],[Quantity]]/tblDataEntry1316[[#This Row],[User Factored Rate]],1),CEILING(tblDataEntry1316[[#This Row],[Quantity]]/tblDataEntry1316[[#This Row],[Rate Override]],1)),\"---\")","v":"---"}]
[null,null,null,null,null,null,null,null,null,{"$f":"IFERROR(tblDataEntry1316[[#This Row],[Default (Avg.) Rate]]*(1+dsEstimatorAdjustment/100),\"---\")","v":0},null,{"$f":"IFERROR(IF(ISBLANK(tblDataEntry1316[[#This Row],[Rate Override]]),CEILING(tblDataEntry1316[[#This Row],[Quantity]]/tblDataEntry1316[[#This Row],[User Factored Rate]],1),CEILING(tblDataEntry1316[[#This Row],[Quantity]]/tblDataEntry1316[[#This Row],[Rate Override]],1)),\"---\")","v":"---"}]
[null,null,null,null,null,null,null,null,null,{"$f":"IFERROR(tblDataEntry1316[[#This Row],[Default (Avg.) Rate]]*(1+dsEstimatorAdjustment/100),\"---\")","v":0},null,{"$f":"IFERROR(IF(ISBLANK(tblDataEntry1316[[#This Row],[Rate Override]]),CEILING(tblDataEntry1316[[#This Row],[Quantity]]/tblDataEntry1316[[#This Row],[User Factored Rate]],1),CEILING(tblDataEntry1316[[#This Row],[Quantity]]/tblDataEntry1316[[#This Row],[Rate Override]],1)),\"---\")","v":"---"}]
[null,null,null,null,null,null,null,null,null,{"$f":"IFERROR(tblDataEntry1316[[#This Row],[Default (Avg.) Rate]]*(1+dsEstimatorAdjustment/100),\"---\")","v":0},null,{"$f":"IFERROR(IF(ISBLANK(tblDataEntry1316[[#This Row],[Rate Override]]),CEILING(tblDataEntry1316[[#This Row],[Quantity]]/tblDataEntry1316[[#This Row],[User Factored Rate]],1),CEILING(tblDataEntry1316[[#This Row],[Quantity]]/tblDataEntry1316[[#This Row],[Rate Override]],1)),\"---\")","v":"---"}]
[null,null,null,null,null,null,null,null,null,{"$f":"IFERROR(tblDataEntry1316[[#This Row],[Default (Avg.) Rate]]*(1+dsEstimatorAdjustment/100),\"---\")","v":0},null,{"$f":"IFERROR(IF(ISBLANK(tblDataEntry1316[[#This Row],[Rate Override]]),CEILING(tblDataEntry1316[[#This Row],[Quantity]]/tblDataEntry1316[[#This Row],[User Factored Rate]],1),CEILING(tblDataEntry1316[[#This Row],[Quantity]]/tblDataEntry1316[[#This Row],[Rate Override]],1)),\"---\")","v":"---"}]
[null,null,null,null,null,null,null,null,null,{"$f":"IFERROR(tblDataEntry1316[[#This Row],[Default (Avg.) Rate]]*(1+dsEstimatorAdjustment/100),\"---\")","v":0},null,{"$f":"IFERROR(IF(ISBLANK(tblDataEntry1316[[#This Row],[Rate Override]]),CEILING(tblDataEntry1316[[#This Row],[Quantity]]/tblDataEntry1316[[#This Row],[User Factored Rate]],1),CEILING(tblDataEntry1316[[#This Row],[Quantity]]/tblDataEntry1316[[#This Row],[Rate Override]],1)),\"---\")","v":"---"}]
[null,null,null,null,null,null,null,null,null,{"$f":"IFERROR(tblDataEntry1316[[#This Row],[Default (Avg.) Rate]]*(1+dsEstimatorAdjustment/100),\"---\")","v":0},null,{"$f":"IFERROR(IF(ISBLANK(tblDataEntry1316[[#This Row],[Rate Override]]),CEILING(tblDataEntry1316[[#This Row],[Quantity]]/tblDataEntry1316[[#This Row],[User Factored Rate]],1),CEILING(tblDataEntry1316[[#This Row],[Quantity]]/tblDataEntry1316[[#This Row],[Rate Override]],1)),\"---\")","v":"---"}]
[null,null,null,null,null,null,null,null,null,{"$f":"IFERROR(tblDataEntry1316[[#This Row],[Default (Avg.) Rate]]*(1+dsEstimatorAdjustment/100),\"---\")","v":0},null,{"$f":"IFERROR(IF(ISBLANK(tblDataEntry1316[[#This Row],[Rate Override]]),CEILING(tblDataEntry1316[[#This Row],[Quantity]]/tblDataEntry1316[[#This Row],[User Factored Rate]],1),CEILING(tblDataEntry1316[[#This Row],[Quantity]]/tblDataEntry1316[[#This Row],[Rate Override]],1)),\"---\")","v":"---"}]
[null,null,null,null,null,null,null,null,null,{"$f":"IFERROR(tblDataEntry1316[[#This Row],[Default (Avg.) Rate]]*(1+dsEstimatorAdjustment/100),\"---\")","v":0},null,{"$f":"IFERROR(IF(ISBLANK(tblDataEntry1316[[#This Row],[Rate Override]]),CEILING(tblDataEntry1316[[#This Row],[Quantity]]/tblDataEntry1316[[#This Row],[User Factored Rate]],1),CEILING(tblDataEntry1316[[#This Row],[Quantity]]/tblDataEntry1316[[#This Row],[Rate Override]],1)),\"---\")","v":"---"}]
[null,null,null,null,null,null,null,null,null,{"$f":"IFERROR(tblDataEntry1316[[#This Row],[Default (Avg.) Rate]]*(1+dsEstimatorAdjustment/100),\"---\")","v":0},null,{"$f":"IFERROR(IF(ISBLANK(tblDataEntry1316[[#This Row],[Rate Override]]),CEILING(tblDataEntry1316[[#This Row],[Quantity]]/tblDataEntry1316[[#This Row],[User Factored Rate]],1),CEILING(tblDataEntry1316[[#This Row],[Quantity]]/tblDataEntry1316[[#This Row],[Rate Override]],1)),\"---\")","v":"---"}]
[null,null,null,null,null,null,null,null,null,{"$f":"IFERROR(tblDataEntry1316[[#This Row],[Default (Avg.) Rate]]*(1+dsEstimatorAdjustment/100),\"---\")","v":0},null,{"$f":"IFERROR(IF(ISBLANK(tblDataEntry1316[[#This Row],[Rate Override]]),CEILING(tblDataEntry1316[[#This Row],[Quantity]]/tblDataEntry1316[[#This Row],[User Factored Rate]],1),CEILING(tblDataEntry1316[[#This Row],[Quantity]]/tblDataEntry1316[[#This Row],[Rate Override]],1)),\"---\")","v":"---"}]
[null,null,null,null,null,null,null,null,null,{"$f":"IFERROR(tblDataEntry1316[[#This Row],[Default (Avg.) Rate]]*(1+dsEstimatorAdjustment/100),\"---\")","v":0},null,{"$f":"IFERROR(IF(ISBLANK(tblDataEntry1316[[#This Row],[Rate Override]]),CEILING(tblDataEntry1316[[#This Row],[Quantity]]/tblDataEntry1316[[#This Row],[User Factored Rate]],1),CEILING(tblDataEntry1316[[#This Row],[Quantity]]/tblDataEntry1316[[#This Row],[Rate Override]],1)),\"---\")","v":"---"}]
[null,null,null,null,null,null,null,null,null,{"$f":"IFERROR(tblDataEntry1316[[#This Row],[Default (Avg.) Rate]]*(1+dsEstimatorAdjustment/100),\"---\")","v":0},null,{"$f":"IFERROR(IF(ISBLANK(tblDataEntry1316[[#This Row],[Rate Override]]),CEILING(tblDataEntry1316[[#This Row],[Quantity]]/tblDataEntry1316[[#This Row],[User Factored Rate]],1),CEILING(tblDataEntry1316[[#This Row],[Quantity]]/tblDataEntry1316[[#This Row],[Rate Override]],1)),\"---\")","v":"---"}]
[null,null,null,null,null,null,null,null,null,{"$f":"IFERROR(tblDataEntry1316[[#This Row],[Default (Avg.) Rate]]*(1+dsEstimatorAdjustment/100),\"---\")","v":0},null,{"$f":"IFERROR(IF(ISBLANK(tblDataEntry1316[[#This Row],[Rate Override]]),CEILING(tblDataEntry1316[[#This Row],[Quantity]]/tblDataEntry1316[[#This Row],[User Factored Rate]],1),CEILING(tblDataEntry1316[[#This Row],[Quantity]]/tblDataEntry1316[[#This Row],[Rate Override]],1)),\"---\")","v":"---"}]
[null,null,null,null,null,null,null,null,null,{"$f":"IFERROR(tblDataEntry1316[[#This Row],[Default (Avg.) Rate]]*(1+dsEstimatorAdjustment/100),\"---\")","v":0},null,{"$f":"IFERROR(IF(ISBLANK(tblDataEntry1316[[#This Row],[Rate Override]]),CEILING(tblDataEntry1316[[#This Row],[Quantity]]/tblDataEntry1316[[#This Row],[User Factored Rate]],1),CEILING(tblDataEntry1316[[#This Row],[Quantity]]/tblDataEntry1316[[#This Row],[Rate Override]],1)),\"---\")","v":"---"}]
[null,null,null,null,null,null,null,null,null,{"$f":"IFERROR(tblDataEntry1316[[#This Row],[Default (Avg.) Rate]]*(1+dsEstimatorAdjustment/100),\"---\")","v":0},null,{"$f":"IFERROR(IF(ISBLANK(tblDataEntry1316[[#This Row],[Rate Override]]),CEILING(tblDataEntry1316[[#This Row],[Quantity]]/tblDataEntry1316[[#This Row],[User Factored Rate]],1),CEILING(tblDataEntry1316[[#This Row],[Quantity]]/tblDataEntry1316[[#This Row],[Rate Override]],1)),\"---\")","v":"---"}]
[null,null,null,null,null,null,null,null,null,{"$f":"IFERROR(tblDataEntry1316[[#This Row],[Default (Avg.) Rate]]*(1+dsEstimatorAdjustment/100),\"---\")","v":0},null,{"$f":"IFERROR(IF(ISBLANK(tblDataEntry1316[[#This Row],[Rate Override]]),CEILING(tblDataEntry1316[[#This Row],[Quantity]]/tblDataEntry1316[[#This Row],[User Factored Rate]],1),CEILING(tblDataEntry1316[[#This Row],[Quantity]]/tblDataEntry1316[[#This Row],[Rate Override]],1)),\"---\")","v":"---"}]
[null,null,null,null,null,null,null,null,null,{"$f":"IFERROR(tblDataEntry1316[[#This Row],[Default (Avg.) Rate]]*(1+dsEstimatorAdjustment/100),\"---\")","v":0},null,{"$f":"IFERROR(IF(ISBLANK(tblDataEntry1316[[#This Row],[Rate Override]]),CEILING(tblDataEntry1316[[#This Row],[Quantity]]/tblDataEntry1316[[#This Row],[User Factored Rate]],1),CEILING(tblDataEntry1316[[#This Row],[Quantity]]/tblDataEntry1316[[#This Row],[Rate Override]],1)),\"---\")","v":"---"}]
[null,null,null,null,null,null,null,null,null,{"$f":"IFERROR(tblDataEntry1316[[#This Row],[Default (Avg.) Rate]]*(1+dsEstimatorAdjustment/100),\"---\")","v":0},null,{"$f":"IFERROR(IF(ISBLANK(tblDataEntry1316[[#This Row],[Rate Override]]),CEILING(tblDataEntry1316[[#This Row],[Quantity]]/tblDataEntry1316[[#This Row],[User Factored Rate]],1),CEILING(tblDataEntry1316[[#This Row],[Quantity]]/tblDataEntry1316[[#This Row],[Rate Override]],1)),\"---\")","v":"---"}]
[null,null,null,null,null,null,null,null,null,{"$f":"IFERROR(tblDataEntry1316[[#This Row],[Default (Avg.) Rate]]*(1+dsEstimatorAdjustment/100),\"---\")","v":0},null,{"$f":"IFERROR(IF(ISBLANK(tblDataEntry1316[[#This Row],[Rate Override]]),CEILING(tblDataEntry1316[[#This Row],[Quantity]]/tblDataEntry1316[[#This Row],[User Factored Rate]],1),CEILING(tblDataEntry1316[[#This Row],[Quantity]]/tblDataEntry1316[[#This Row],[Rate Override]],1)),\"---\")","v":"---"}]
[null,null,null,null,null,null,null,null,null,{"$f":"IFERROR(tblDataEntry1316[[#This Row],[Default (Avg.) Rate]]*(1+dsEstimatorAdjustment/100),\"---\")","v":0},null,{"$f":"IFERROR(IF(ISBLANK(tblDataEntry1316[[#This Row],[Rate Override]]),CEILING(tblDataEntry1316[[#This Row],[Quantity]]/tblDataEntry1316[[#This Row],[User Factored Rate]],1),CEILING(tblDataEntry1316[[#This Row],[Quantity]]/tblDataEntry1316[[#This Row],[Rate Override]],1)),\"---\")","v":"---"}]
[null,null,null,null,null,null,null,null,null,{"$f":"IFERROR(tblDataEntry1316[[#This Row],[Default (Avg.) Rate]]*(1+dsEstimatorAdjustment/100),\"---\")","v":0},null,{"$f":"IFERROR(IF(ISBLANK(tblDataEntry1316[[#This Row],[Rate Override]]),CEILING(tblDataEntry1316[[#This Row],[Quantity]]/tblDataEntry1316[[#This Row],[User Factored Rate]],1),CEILING(tblDataEntry1316[[#This Row],[Quantity]]/tblDataEntry1316[[#This Row],[Rate Override]],1)),\"---\")","v":"---"}]
[null,null,null,null,null,null,null,null,null,{"$f":"IFERROR(tblDataEntry1316[[#This Row],[Default (Avg.) Rate]]*(1+dsEstimatorAdjustment/100),\"---\")","v":0},null,{"$f":"IFERROR(IF(ISBLANK(tblDataEntry1316[[#This Row],[Rate Override]]),CEILING(tblDataEntry1316[[#This Row],[Quantity]]/tblDataEntry1316[[#This Row],[User Factored Rate]],1),CEILING(tblDataEntry1316[[#This Row],[Quantity]]/tblDataEntry1316[[#This Row],[Rate Override]],1)),\"---\")","v":"---"}]
[null,null,null,null,null,null,null,null,null,{"$f":"IFERROR(tblDataEntry1316[[#This Row],[Default (Avg.) Rate]]*(1+dsEstimatorAdjustment/100),\"---\")","v":0},null,{"$f":"IFERROR(IF(ISBLANK(tblDataEntry1316[[#This Row],[Rate Override]]),CEILING(tblDataEntry1316[[#This Row],[Quantity]]/tblDataEntry1316[[#This Row],[User Factored Rate]],1),CEILING(tblDataEntry1316[[#This Row],[Quantity]]/tblDataEntry1316[[#This Row],[Rate Override]],1)),\"---\")","v":"---"}]
[null,null,null,null,null,null,null,null,null,{"$f":"IFERROR(tblDataEntry1316[[#This Row],[Default (Avg.) Rate]]*(1+dsEstimatorAdjustment/100),\"---\")","v":0},null,{"$f":"IFERROR(IF(ISBLANK(tblDataEntry1316[[#This Row],[Rate Override]]),CEILING(tblDataEntry1316[[#This Row],[Quantity]]/tblDataEntry1316[[#This Row],[User Factored Rate]],1),CEILING(tblDataEntry1316[[#This Row],[Quantity]]/tblDataEntry1316[[#This Row],[Rate Override]],1)),\"---\")","v":"---"}]
[null,null,null,null,null,null,null,null,null,{"$f":"IFERROR(tblDataEntry1316[[#This Row],[Default (Avg.) Rate]]*(1+dsEstimatorAdjustment/100),\"---\")","v":0},null,{"$f":"IFERROR(IF(ISBLANK(tblDataEntry1316[[#This Row],[Rate Override]]),CEILING(tblDataEntry1316[[#This Row],[Quantity]]/tblDataEntry1316[[#This Row],[User Factored Rate]],1),CEILING(tblDataEntry1316[[#This Row],[Quantity]]/tblDataEntry1316[[#This Row],[Rate Override]],1)),\"---\")","v":"---"}]
[null,null,null,null,null,null,null,null,null,{"$f":"IFERROR(tblDataEntry1316[[#This Row],[Default (Avg.) Rate]]*(1+dsEstimatorAdjustment/100),\"---\")","v":0},null,{"$f":"IFERROR(IF(ISBLANK(tblDataEntry1316[[#This Row],[Rate Override]]),CEILING(tblDataEntry1316[[#This Row],[Quantity]]/tblDataEntry1316[[#This Row],[User Factored Rate]],1),CEILING(tblDataEntry1316[[#This Row],[Quantity]]/tblDataEntry1316[[#This Row],[Rate Override]],1)),\"---\")","v":"---"}]
[null,null,null,null,null,null,null,null,null,{"$f":"IFERROR(tblDataEntry1316[[#This Row],[Default (Avg.) Rate]]*(1+dsEstimatorAdjustment/100),\"---\")","v":0},null,{"$f":"IFERROR(IF(ISBLANK(tblDataEntry1316[[#This Row],[Rate Override]]),CEILING(tblDataEntry1316[[#This Row],[Quantity]]/tblDataEntry1316[[#This Row],[User Factored Rate]],1),CEILING(tblDataEntry1316[[#This Row],[Quantity]]/tblDataEntry1316[[#This Row],[Rate Override]],1)),\"---\")","v":"---"}]
[null,null,null,null,null,null,null,null,null,{"$f":"IFERROR(tblDataEntry1316[[#This Row],[Default (Avg.) Rate]]*(1+dsEstimatorAdjustment/100),\"---\")","v":0},null,{"$f":"IFERROR(IF(ISBLANK(tblDataEntry1316[[#This Row],[Rate Override]]),CEILING(tblDataEntry1316[[#This Row],[Quantity]]/tblDataEntry1316[[#This Row],[User Factored Rate]],1),CEILING(tblDataEntry1316[[#This Row],[Quantity]]/tblDataEntry1316[[#This Row],[Rate Override]],1)),\"---\")","v":"---"}]
[null,null,null,null,null,null,null,null,null,{"$f":"IFERROR(tblDataEntry1316[[#This Row],[Default (Avg.) Rate]]*(1+dsEstimatorAdjustment/100),\"---\")","v":0},null,{"$f":"IFERROR(IF(ISBLANK(tblDataEntry1316[[#This Row],[Rate Override]]),CEILING(tblDataEntry1316[[#This Row],[Quantity]]/tblDataEntry1316[[#This Row],[User Factored Rate]],1),CEILING(tblDataEntry1316[[#This Row],[Quantity]]/tblDataEntry1316[[#This Row],[Rate Override]],1)),\"---\")","v":"---"}]
[null,null,null,null,null,null,null,null,null,{"$f":"IFERROR(tblDataEntry1316[[#This Row],[Default (Avg.) Rate]]*(1+dsEstimatorAdjustment/100),\"---\")","v":0},null,{"$f":"IFERROR(IF(ISBLANK(tblDataEntry1316[[#This Row],[Rate Override]]),CEILING(tblDataEntry1316[[#This Row],[Quantity]]/tblDataEntry1316[[#This Row],[User Factored Rate]],1),CEILING(tblDataEntry1316[[#This Row],[Quantity]]/tblDataEntry1316[[#This Row],[Rate Override]],1)),\"---\")","v":"---"}]
[null,null,null,null,null,null,null,null,null,{"$f":"IFERROR(tblDataEntry1316[[#This Row],[Default (Avg.) Rate]]*(1+dsEstimatorAdjustment/100),\"---\")","v":0},null,{"$f":"IFERROR(IF(ISBLANK(tblDataEntry1316[[#This Row],[Rate Override]]),CEILING(tblDataEntry1316[[#This Row],[Quantity]]/tblDataEntry1316[[#This Row],[User Factored Rate]],1),CEILING(tblDataEntry1316[[#This Row],[Quantity]]/tblDataEntry1316[[#This Row],[Rate Override]],1)),\"---\")","v":"---"}]
[null,null,null,null,null,null,null,null,null,{"$f":"IFERROR(tblDataEntry1316[[#This Row],[Default (Avg.) Rate]]*(1+dsEstimatorAdjustment/100),\"---\")","v":0},null,{"$f":"IFERROR(IF(ISBLANK(tblDataEntry1316[[#This Row],[Rate Override]]),CEILING(tblDataEntry1316[[#This Row],[Quantity]]/tblDataEntry1316[[#This Row],[User Factored Rate]],1),CEILING(tblDataEntry1316[[#This Row],[Quantity]]/tblDataEntry1316[[#This Row],[Rate Override]],1)),\"---\")","v":"---"}]
[null,null,null,null,null,null,null,null,null,{"$f":"IFERROR(tblDataEntry1316[[#This Row],[Default (Avg.) Rate]]*(1+dsEstimatorAdjustment/100),\"---\")","v":0},null,{"$f":"IFERROR(IF(ISBLANK(tblDataEntry1316[[#This Row],[Rate Override]]),CEILING(tblDataEntry1316[[#This Row],[Quantity]]/tblDataEntry1316[[#This Row],[User Factored Rate]],1),CEILING(tblDataEntry1316[[#This Row],[Quantity]]/tblDataEntry1316[[#This Row],[Rate Override]],1)),\"---\")","v":"---"}]
[null,null,null,null,null,null,null,null,null,{"$f":"IFERROR(tblDataEntry1316[[#This Row],[Default (Avg.) Rate]]*(1+dsEstimatorAdjustment/100),\"---\")","v":0},null,{"$f":"IFERROR(IF(ISBLANK(tblDataEntry1316[[#This Row],[Rate Override]]),CEILING(tblDataEntry1316[[#This Row],[Quantity]]/tblDataEntry1316[[#This Row],[User Factored Rate]],1),CEILING(tblDataEntry1316[[#This Row],[Quantity]]/tblDataEntry1316[[#This Row],[Rate Override]],1)),\"---\")","v":"---"}]
[null,null,null,null,null,null,null,null,null,{"$f":"IFERROR(tblDataEntry1316[[#This Row],[Default (Avg.) Rate]]*(1+dsEstimatorAdjustment/100),\"---\")","v":0},null,{"$f":"IFERROR(IF(ISBLANK(tblDataEntry1316[[#This Row],[Rate Override]]),CEILING(tblDataEntry1316[[#This Row],[Quantity]]/tblDataEntry1316[[#This Row],[User Factored Rate]],1),CEILING(tblDataEntry1316[[#This Row],[Quantity]]/tblDataEntry1316[[#This Row],[Rate Override]],1)),\"---\")","v":"---"}]
[null,null,null,null,null,null,null,null,null,{"$f":"IFERROR(tblDataEntry1316[[#This Row],[Default (Avg.) Rate]]*(1+dsEstimatorAdjustment/100),\"---\")","v":0},null,{"$f":"IFERROR(IF(ISBLANK(tblDataEntry1316[[#This Row],[Rate Override]]),CEILING(tblDataEntry1316[[#This Row],[Quantity]]/tblDataEntry1316[[#This Row],[User Factored Rate]],1),CEILING(tblDataEntry1316[[#This Row],[Quantity]]/tblDataEntry1316[[#This Row],[Rate Override]],1)),\"---\")","v":"---"}]
[null,null,null,null,null,null,null,null,null,{"$f":"IFERROR(tblDataEntry1316[[#This Row],[Default (Avg.) Rate]]*(1+dsEstimatorAdjustment/100),\"---\")","v":0},null,{"$f":"IFERROR(IF(ISBLANK(tblDataEntry1316[[#This Row],[Rate Override]]),CEILING(tblDataEntry1316[[#This Row],[Quantity]]/tblDataEntry1316[[#This Row],[User Factored Rate]],1),CEILING(tblDataEntry1316[[#This Row],[Quantity]]/tblDataEntry1316[[#This Row],[Rate Override]],1)),\"---\")","v":"---"}]
[null,null,null,null,null,null,null,null,null,{"$f":"IFERROR(tblDataEntry1316[[#This Row],[Default (Avg.) Rate]]*(1+dsEstimatorAdjustment/100),\"---\")","v":0},null,{"$f":"IFERROR(IF(ISBLANK(tblDataEntry1316[[#This Row],[Rate Override]]),CEILING(tblDataEntry1316[[#This Row],[Quantity]]/tblDataEntry1316[[#This Row],[User Factored Rate]],1),CEILING(tblDataEntry1316[[#This Row],[Quantity]]/tblDataEntry1316[[#This Row],[Rate Override]],1)),\"---\")","v":"---"}]
[null,null,null,null,null,null,null,null,null,{"$f":"IFERROR(tblDataEntry1316[[#This Row],[Default (Avg.) Rate]]*(1+dsEstimatorAdjustment/100),\"---\")","v":0},null,{"$f":"IFERROR(IF(ISBLANK(tblDataEntry1316[[#This Row],[Rate Override]]),CEILING(tblDataEntry1316[[#This Row],[Quantity]]/tblDataEntry1316[[#This Row],[User Factored Rate]],1),CEILING(tblDataEntry1316[[#This Row],[Quantity]]/tblDataEntry1316[[#This Row],[Rate Override]],1)),\"---\")","v":"---"}]
[null,null,null,null,null,null,null,null,null,{"$f":"IFERROR(tblDataEntry1316[[#This Row],[Default (Avg.) Rate]]*(1+dsEstimatorAdjustment/100),\"---\")","v":0},null,{"$f":"IFERROR(IF(ISBLANK(tblDataEntry1316[[#This Row],[Rate Override]]),CEILING(tblDataEntry1316[[#This Row],[Quantity]]/tblDataEntry1316[[#This Row],[User Factored Rate]],1),CEILING(tblDataEntry1316[[#This Row],[Quantity]]/tblDataEntry1316[[#This Row],[Rate Override]],1)),\"---\")","v":"---"}]
[null,null,null,null,null,null,null,null,null,{"$f":"IFERROR(tblDataEntry1316[[#This Row],[Default (Avg.) Rate]]*(1+dsEstimatorAdjustment/100),\"---\")","v":0},null,{"$f":"IFERROR(IF(ISBLANK(tblDataEntry1316[[#This Row],[Rate Override]]),CEILING(tblDataEntry1316[[#This Row],[Quantity]]/tblDataEntry1316[[#This Row],[User Factored Rate]],1),CEILING(tblDataEntry1316[[#This Row],[Quantity]]/tblDataEntry1316[[#This Row],[Rate Override]],1)),\"---\")","v":"---"}]
[null,null,null,null,null,null,null,null,null,{"$f":"IFERROR(tblDataEntry1316[[#This Row],[Default (Avg.) Rate]]*(1+dsEstimatorAdjustment/100),\"---\")","v":0},null,{"$f":"IFERROR(IF(ISBLANK(tblDataEntry1316[[#This Row],[Rate Override]]),CEILING(tblDataEntry1316[[#This Row],[Quantity]]/tblDataEntry1316[[#This Row],[User Factored Rate]],1),CEILING(tblDataEntry1316[[#This Row],[Quantity]]/tblDataEntry1316[[#This Row],[Rate Override]],1)),\"---\")","v":"---"}]
[null,null,null,null,null,null,null,null,null,{"$f":"IFERROR(tblDataEntry1316[[#This Row],[Default (Avg.) Rate]]*(1+dsEstimatorAdjustment/100),\"---\")","v":0},null,{"$f":"IFERROR(IF(ISBLANK(tblDataEntry1316[[#This Row],[Rate Override]]),CEILING(tblDataEntry1316[[#This Row],[Quantity]]/tblDataEntry1316[[#This Row],[User Factored Rate]],1),CEILING(tblDataEntry1316[[#This Row],[Quantity]]/tblDataEntry1316[[#This Row],[Rate Override]],1)),\"---\")","v":"---"}]
[null,null,null,null,null,null,null,null,null,{"$f":"IFERROR(tblDataEntry1316[[#This Row],[Default (Avg.) Rate]]*(1+dsEstimatorAdjustment/100),\"---\")","v":0},null,{"$f":"IFERROR(IF(ISBLANK(tblDataEntry1316[[#This Row],[Rate Override]]),CEILING(tblDataEntry1316[[#This Row],[Quantity]]/tblDataEntry1316[[#This Row],[User Factored Rate]],1),CEILING(tblDataEntry1316[[#This Row],[Quantity]]/tblDataEntry1316[[#This Row],[Rate Override]],1)),\"---\")","v":"---"}]
[null,null,null,null,null,null,null,null,null,{"$f":"IFERROR(tblDataEntry1316[[#This Row],[Default (Avg.) Rate]]*(1+dsEstimatorAdjustment/100),\"---\")","v":0},null,{"$f":"IFERROR(IF(ISBLANK(tblDataEntry1316[[#This Row],[Rate Override]]),CEILING(tblDataEntry1316[[#This Row],[Quantity]]/tblDataEntry1316[[#This Row],[User Factored Rate]],1),CEILING(tblDataEntry1316[[#This Row],[Quantity]]/tblDataEntry1316[[#This Row],[Rate Override]],1)),\"---\")","v":"---"}]
[null,null,null,null,null,null,null,null,null,{"$f":"IFERROR(tblDataEntry1316[[#This Row],[Default (Avg.) Rate]]*(1+dsEstimatorAdjustment/100),\"---\")","v":0},null,{"$f":"IFERROR(IF(ISBLANK(tblDataEntry1316[[#This Row],[Rate Override]]),CEILING(tblDataEntry1316[[#This Row],[Quantity]]/tblDataEntry1316[[#This Row],[User Factored Rate]],1),CEILING(tblDataEntry1316[[#This Row],[Quantity]]/tblDataEntry1316[[#This Row],[Rate Override]],1)),\"---\")","v":"---"}]
[null,null,null,null,null,null,null,null,null,{"$f":"IFERROR(tblDataEntry1316[[#This Row],[Default (Avg.) Rate]]*(1+dsEstimatorAdjustment/100),\"---\")","v":0},null,{"$f":"IFERROR(IF(ISBLANK(tblDataEntry1316[[#This Row],[Rate Override]]),CEILING(tblDataEntry1316[[#This Row],[Quantity]]/tblDataEntry1316[[#This Row],[User Factored Rate]],1),CEILING(tblDataEntry1316[[#This Row],[Quantity]]/tblDataEntry1316[[#This Row],[Rate Override]],1)),\"---\")","v":"---"}]
[null,null,null,null,null,null,null,null,null,{"$f":"IFERROR(tblDataEntry1316[[#This Row],[Default (Avg.) Rate]]*(1+dsEstimatorAdjustment/100),\"---\")","v":0},null,{"$f":"IFERROR(IF(ISBLANK(tblDataEntry1316[[#This Row],[Rate Override]]),CEILING(tblDataEntry1316[[#This Row],[Quantity]]/tblDataEntry1316[[#This Row],[User Factored Rate]],1),CEILING(tblDataEntry1316[[#This Row],[Quantity]]/tblDataEntry1316[[#This Row],[Rate Override]],1)),\"---\")","v":"---"}]
[null,null,null,null,null,null,null,null,null,{"$f":"IFERROR(tblDataEntry1316[[#This Row],[Default (Avg.) Rate]]*(1+dsEstimatorAdjustment/100),\"---\")","v":0},null,{"$f":"IFERROR(IF(ISBLANK(tblDataEntry1316[[#This Row],[Rate Override]]),CEILING(tblDataEntry1316[[#This Row],[Quantity]]/tblDataEntry1316[[#This Row],[User Factored Rate]],1),CEILING(tblDataEntry1316[[#This Row],[Quantity]]/tblDataEntry1316[[#This Row],[Rate Override]],1)),\"---\")","v":"---"}]
[null,null,null,null,null,null,null,null,null,{"$f":"IFERROR(tblDataEntry1316[[#This Row],[Default (Avg.) Rate]]*(1+dsEstimatorAdjustment/100),\"---\")","v":0},null,{"$f":"IFERROR(IF(ISBLANK(tblDataEntry1316[[#This Row],[Rate Override]]),CEILING(tblDataEntry1316[[#This Row],[Quantity]]/tblDataEntry1316[[#This Row],[User Factored Rate]],1),CEILING(tblDataEntry1316[[#This Row],[Quantity]]/tblDataEntry1316[[#This Row],[Rate Override]],1)),\"---\")","v":"---"}]
[null,null,null,null,null,null,null,null,null,{"$f":"IFERROR(tblDataEntry1316[[#This Row],[Default (Avg.) Rate]]*(1+dsEstimatorAdjustment/100),\"---\")","v":0},null,{"$f":"IFERROR(IF(ISBLANK(tblDataEntry1316[[#This Row],[Rate Override]]),CEILING(tblDataEntry1316[[#This Row],[Quantity]]/tblDataEntry1316[[#This Row],[User Factored Rate]],1),CEILING(tblDataEntry1316[[#This Row],[Quantity]]/tblDataEntry1316[[#This Row],[Rate Override]],1)),\"---\")","v":"---"}]
[null,null,null,null,null,null,null,null,null,{"$f":"IFERROR(tblDataEntry1316[[#This Row],[Default (Avg.) Rate]]*(1+dsEstimatorAdjustment/100),\"---\")","v":0},null,{"$f":"IFERROR(IF(ISBLANK(tblDataEntry1316[[#This Row],[Rate Override]]),CEILING(tblDataEntry1316[[#This Row],[Quantity]]/tblDataEntry1316[[#This Row],[User Factored Rate]],1),CEILING(tblDataEntry1316[[#This Row],[Quantity]]/tblDataEntry1316[[#This Row],[Rate Override]],1)),\"---\")","v":"---"}]
[null,null,null,null,null,null,null,null,null,{"$f":"IFERROR(tblDataEntry1316[[#This Row],[Default (Avg.) Rate]]*(1+dsEstimatorAdjustment/100),\"---\")","v":0},null,{"$f":"IFERROR(IF(ISBLANK(tblDataEntry1316[[#This Row],[Rate Override]]),CEILING(tblDataEntry1316[[#This Row],[Quantity]]/tblDataEntry1316[[#This Row],[User Factored Rate]],1),CEILING(tblDataEntry1316[[#This Row],[Quantity]]/tblDataEntry1316[[#This Row],[Rate Override]],1)),\"---\")","v":"---"}]
[null,null,null,null,null,null,null,null,null,{"$f":"IFERROR(tblDataEntry1316[[#This Row],[Default (Avg.) Rate]]*(1+dsEstimatorAdjustment/100),\"---\")","v":0},null,{"$f":"IFERROR(IF(ISBLANK(tblDataEntry1316[[#This Row],[Rate Override]]),CEILING(tblDataEntry1316[[#This Row],[Quantity]]/tblDataEntry1316[[#This Row],[User Factored Rate]],1),CEILING(tblDataEntry1316[[#This Row],[Quantity]]/tblDataEntry1316[[#This Row],[Rate Override]],1)),\"---\")","v":"---"}]
[null,null,null,null,null,null,null,null,null,{"$f":"IFERROR(tblDataEntry1316[[#This Row],[Default (Avg.) Rate]]*(1+dsEstimatorAdjustment/100),\"---\")","v":0},null,{"$f":"IFERROR(IF(ISBLANK(tblDataEntry1316[[#This Row],[Rate Override]]),CEILING(tblDataEntry1316[[#This Row],[Quantity]]/tblDataEntry1316[[#This Row],[User Factored Rate]],1),CEILING(tblDataEntry1316[[#This Row],[Quantity]]/tblDataEntry1316[[#This Row],[Rate Override]],1)),\"---\")","v":"---"}]
[null,null,null,null,null,null,null,null,null,{"$f":"IFERROR(tblDataEntry1316[[#This Row],[Default (Avg.) Rate]]*(1+dsEstimatorAdjustment/100),\"---\")","v":0},null,{"$f":"IFERROR(IF(ISBLANK(tblDataEntry1316[[#This Row],[Rate Override]]),CEILING(tblDataEntry1316[[#This Row],[Quantity]]/tblDataEntry1316[[#This Row],[User Factored Rate]],1),CEILING(tblDataEntry1316[[#This Row],[Quantity]]/tblDataEntry1316[[#This Row],[Rate Override]],1)),\"---\")","v":"---"}]
[null,null,null,null,null,null,null,null,null,{"$f":"IFERROR(tblDataEntry1316[[#This Row],[Default (Avg.) Rate]]*(1+dsEstimatorAdjustment/100),\"---\")","v":0},null,{"$f":"IFERROR(IF(ISBLANK(tblDataEntry1316[[#This Row],[Rate Override]]),CEILING(tblDataEntry1316[[#This Row],[Quantity]]/tblDataEntry1316[[#This Row],[User Factored Rate]],1),CEILING(tblDataEntry1316[[#This Row],[Quantity]]/tblDataEntry1316[[#This Row],[Rate Override]],1)),\"---\")","v":"---"}]
[null,null,null,null,null,null,null,null,null,{"$f":"IFERROR(tblDataEntry1316[[#This Row],[Default (Avg.) Rate]]*(1+dsEstimatorAdjustment/100),\"---\")","v":0},null,{"$f":"IFERROR(IF(ISBLANK(tblDataEntry1316[[#This Row],[Rate Override]]),CEILING(tblDataEntry1316[[#This Row],[Quantity]]/tblDataEntry1316[[#This Row],[User Factored Rate]],1),CEILING(tblDataEntry1316[[#This Row],[Quantity]]/tblDataEntry1316[[#This Row],[Rate Override]],1)),\"---\")","v":"---"}]
[null,null,null,null,null,null,null,null,null,{"$f":"IFERROR(tblDataEntry1316[[#This Row],[Default (Avg.) Rate]]*(1+dsEstimatorAdjustment/100),\"---\")","v":0},null,{"$f":"IFERROR(IF(ISBLANK(tblDataEntry1316[[#This Row],[Rate Override]]),CEILING(tblDataEntry1316[[#This Row],[Quantity]]/tblDataEntry1316[[#This Row],[User Factored Rate]],1),CEILING(tblDataEntry1316[[#This Row],[Quantity]]/tblDataEntry1316[[#This Row],[Rate Override]],1)),\"---\")","v":"---"}]
[null,null,null,null,null,null,null,null,null,{"$f":"IFERROR(tblDataEntry1316[[#This Row],[Default (Avg.) Rate]]*(1+dsEstimatorAdjustment/100),\"---\")","v":0},null,{"$f":"IFERROR(IF(ISBLANK(tblDataEntry1316[[#This Row],[Rate Override]]),CEILING(tblDataEntry1316[[#This Row],[Quantity]]/tblDataEntry1316[[#This Row],[User Factored Rate]],1),CEILING(tblDataEntry1316[[#This Row],[Quantity]]/tblDataEntry1316[[#This Row],[Rate Override]],1)),\"---\")","v":"---"}]
[null,null,null,null,null,null,null,null,null,{"$f":"IFERROR(tblDataEntry1316[[#This Row],[Default (Avg.) Rate]]*(1+dsEstimatorAdjustment/100),\"---\")","v":0},null,{"$f":"IFERROR(IF(ISBLANK(tblDataEntry1316[[#This Row],[Rate Override]]),CEILING(tblDataEntry1316[[#This Row],[Quantity]]/tblDataEntry1316[[#This Row],[User Factored Rate]],1),CEILING(tblDataEntry1316[[#This Row],[Quantity]]/tblDataEntry1316[[#This Row],[Rate Override]],1)),\"---\")","v":"---"}]
[null,null,null,null,null,null,null,null,null,{"$f":"IFERROR(tblDataEntry1316[[#This Row],[Default (Avg.) Rate]]*(1+dsEstimatorAdjustment/100),\"---\")","v":0},null,{"$f":"IFERROR(IF(ISBLANK(tblDataEntry1316[[#This Row],[Rate Override]]),CEILING(tblDataEntry1316[[#This Row],[Quantity]]/tblDataEntry1316[[#This Row],[User Factored Rate]],1),CEILING(tblDataEntry1316[[#This Row],[Quantity]]/tblDataEntry1316[[#This Row],[Rate Override]],1)),\"---\")","v":"---"}]
[null,null,null,null,null,null,null,null,null,{"$f":"IFERROR(tblDataEntry1316[[#This Row],[Default (Avg.) Rate]]*(1+dsEstimatorAdjustment/100),\"---\")","v":0},null,{"$f":"IFERROR(IF(ISBLANK(tblDataEntry1316[[#This Row],[Rate Override]]),CEILING(tblDataEntry1316[[#This Row],[Quantity]]/tblDataEntry1316[[#This Row],[User Factored Rate]],1),CEILING(tblDataEntry1316[[#This Row],[Quantity]]/tblDataEntry1316[[#This Row],[Rate Override]],1)),\"---\")","v":"---"}]
[null,null,null,null,null,null,null,null,null,{"$f":"IFERROR(tblDataEntry1316[[#This Row],[Default (Avg.) Rate]]*(1+dsEstimatorAdjustment/100),\"---\")","v":0},null,{"$f":"IFERROR(IF(ISBLANK(tblDataEntry1316[[#This Row],[Rate Override]]),CEILING(tblDataEntry1316[[#This Row],[Quantity]]/tblDataEntry1316[[#This Row],[User Factored Rate]],1),CEILING(tblDataEntry1316[[#This Row],[Quantity]]/tblDataEntry1316[[#This Row],[Rate Override]],1)),\"---\")","v":"---"}]
[null,null,null,null,null,null,null,null,null,{"$f":"IFERROR(tblDataEntry1316[[#This Row],[Default (Avg.) Rate]]*(1+dsEstimatorAdjustment/100),\"---\")","v":0},null,{"$f":"IFERROR(IF(ISBLANK(tblDataEntry1316[[#This Row],[Rate Override]]),CEILING(tblDataEntry1316[[#This Row],[Quantity]]/tblDataEntry1316[[#This Row],[User Factored Rate]],1),CEILING(tblDataEntry1316[[#This Row],[Quantity]]/tblDataEntry1316[[#This Row],[Rate Override]],1)),\"---\")","v":"---"}]
[null,null,null,null,null,null,null,null,null,{"$f":"IFERROR(tblDataEntry1316[[#This Row],[Default (Avg.) Rate]]*(1+dsEstimatorAdjustment/100),\"---\")","v":0},null,{"$f":"IFERROR(IF(ISBLANK(tblDataEntry1316[[#This Row],[Rate Override]]),CEILING(tblDataEntry1316[[#This Row],[Quantity]]/tblDataEntry1316[[#This Row],[User Factored Rate]],1),CEILING(tblDataEntry1316[[#This Row],[Quantity]]/tblDataEntry1316[[#This Row],[Rate Override]],1)),\"---\")","v":"---"}]
[null,null,null,null,null,null,null,null,null,{"$f":"IFERROR(tblDataEntry1316[[#This Row],[Default (Avg.) Rate]]*(1+dsEstimatorAdjustment/100),\"---\")","v":0},null,{"$f":"IFERROR(IF(ISBLANK(tblDataEntry1316[[#This Row],[Rate Override]]),CEILING(tblDataEntry1316[[#This Row],[Quantity]]/tblDataEntry1316[[#This Row],[User Factored Rate]],1),CEILING(tblDataEntry1316[[#This Row],[Quantity]]/tblDataEntry1316[[#This Row],[Rate Override]],1)),\"---\")","v":"---"}]
[null,null,null,null,null,null,null,null,null,{"$f":"IFERROR(tblDataEntry1316[[#This Row],[Default (Avg.) Rate]]*(1+dsEstimatorAdjustment/100),\"---\")","v":0},null,{"$f":"IFERROR(IF(ISBLANK(tblDataEntry1316[[#This Row],[Rate Override]]),CEILING(tblDataEntry1316[[#This Row],[Quantity]]/tblDataEntry1316[[#This Row],[User Factored Rate]],1),CEILING(tblDataEntry1316[[#This Row],[Quantity]]/tblDataEntry1316[[#This Row],[Rate Override]],1)),\"---\")","v":"---"}]
[null,null,null,null,null,null,null,null,null,{"$f":"IFERROR(tblDataEntry1316[[#This Row],[Default (Avg.) Rate]]*(1+dsEstimatorAdjustment/100),\"---\")","v":0},null,{"$f":"IFERROR(IF(ISBLANK(tblDataEntry1316[[#This Row],[Rate Override]]),CEILING(tblDataEntry1316[[#This Row],[Quantity]]/tblDataEntry1316[[#This Row],[User Factored Rate]],1),CEILING(tblDataEntry1316[[#This Row],[Quantity]]/tblDataEntry1316[[#This Row],[Rate Override]],1)),\"---\")","v":"---"}]
[null,null,null,null,null,null,null,null,null,{"$f":"IFERROR(tblDataEntry1316[[#This Row],[Default (Avg.) Rate]]*(1+dsEstimatorAdjustment/100),\"---\")","v":0},null,{"$f":"IFERROR(IF(ISBLANK(tblDataEntry1316[[#This Row],[Rate Override]]),CEILING(tblDataEntry1316[[#This Row],[Quantity]]/tblDataEntry1316[[#This Row],[User Factored Rate]],1),CEILING(tblDataEntry1316[[#This Row],[Quantity]]/tblDataEntry1316[[#This Row],[Rate Override]],1)),\"---\")","v":"---"}]
[null,null,null,null,null,null,null,null,null,{"$f":"IFERROR(tblDataEntry1316[[#This Row],[Default (Avg.) Rate]]*(1+dsEstimatorAdjustment/100),\"---\")","v":0},null,{"$f":"IFERROR(IF(ISBLANK(tblDataEntry1316[[#This Row],[Rate Override]]),CEILING(tblDataEntry1316[[#This Row],[Quantity]]/tblDataEntry1316[[#This Row],[User Factored Rate]],1),CEILING(tblDataEntry1316[[#This Row],[Quantity]]/tblDataEntry1316[[#This Row],[Rate Override]],1)),\"---\")","v":"---"}]
[null,null,null,null,null,null,null,null,null,{"$f":"IFERROR(tblDataEntry1316[[#This Row],[Default (Avg.) Rate]]*(1+dsEstimatorAdjustment/100),\"---\")","v":0},null,{"$f":"IFERROR(IF(ISBLANK(tblDataEntry1316[[#This Row],[Rate Override]]),CEILING(tblDataEntry1316[[#This Row],[Quantity]]/tblDataEntry1316[[#This Row],[User Factored Rate]],1),CEILING(tblDataEntry1316[[#This Row],[Quantity]]/tblDataEntry1316[[#This Row],[Rate Override]],1)),\"---\")","v":"---"}]
[null,null,null,null,null,null,null,null,null,{"$f":"IFERROR(tblDataEntry1316[[#This Row],[Default (Avg.) Rate]]*(1+dsEstimatorAdjustment/100),\"---\")","v":0},null,{"$f":"IFERROR(IF(ISBLANK(tblDataEntry1316[[#This Row],[Rate Override]]),CEILING(tblDataEntry1316[[#This Row],[Quantity]]/tblDataEntry1316[[#This Row],[User Factored Rate]],1),CEILING(tblDataEntry1316[[#This Row],[Quantity]]/tblDataEntry1316[[#This Row],[Rate Override]],1)),\"---\")","v":"---"}]
[null,null,null,null,null,null,null,null,null,{"$f":"IFERROR(tblDataEntry1316[[#This Row],[Default (Avg.) Rate]]*(1+dsEstimatorAdjustment/100),\"---\")","v":0},null,{"$f":"IFERROR(IF(ISBLANK(tblDataEntry1316[[#This Row],[Rate Override]]),CEILING(tblDataEntry1316[[#This Row],[Quantity]]/tblDataEntry1316[[#This Row],[User Factored Rate]],1),CEILING(tblDataEntry1316[[#This Row],[Quantity]]/tblDataEntry1316[[#This Row],[Rate Override]],1)),\"---\")","v":"---"}]
[null,null,null,null,null,null,null,null,null,{"$f":"IFERROR(tblDataEntry1316[[#This Row],[Default (Avg.) Rate]]*(1+dsEstimatorAdjustment/100),\"---\")","v":0},null,{"$f":"IFERROR(IF(ISBLANK(tblDataEntry1316[[#This Row],[Rate Override]]),CEILING(tblDataEntry1316[[#This Row],[Quantity]]/tblDataEntry1316[[#This Row],[User Factored Rate]],1),CEILING(tblDataEntry1316[[#This Row],[Quantity]]/tblDataEntry1316[[#This Row],[Rate Override]],1)),\"---\")","v":"---"}]
[null,null,null,null,null,null,null,null,null,{"$f":"IFERROR(tblDataEntry1316[[#This Row],[Default (Avg.) Rate]]*(1+dsEstimatorAdjustment/100),\"---\")","v":0},null,{"$f":"IFERROR(IF(ISBLANK(tblDataEntry1316[[#This Row],[Rate Override]]),CEILING(tblDataEntry1316[[#This Row],[Quantity]]/tblDataEntry1316[[#This Row],[User Factored Rate]],1),CEILING(tblDataEntry1316[[#This Row],[Quantity]]/tblDataEntry1316[[#This Row],[Rate Override]],1)),\"---\")","v":"---"}]
[null,null,null,null,null,null,null,null,null,{"$f":"IFERROR(tblDataEntry1316[[#This Row],[Default (Avg.) Rate]]*(1+dsEstimatorAdjustment/100),\"---\")","v":0},null,{"$f":"IFERROR(IF(ISBLANK(tblDataEntry1316[[#This Row],[Rate Override]]),CEILING(tblDataEntry1316[[#This Row],[Quantity]]/tblDataEntry1316[[#This Row],[User Factored Rate]],1),CEILING(tblDataEntry1316[[#This Row],[Quantity]]/tblDataEntry1316[[#This Row],[Rate Override]],1)),\"---\")","v":"---"}]
[null,null,null,null,null,null,null,null,null,{"$f":"IFERROR(tblDataEntry1316[[#This Row],[Default (Avg.) Rate]]*(1+dsEstimatorAdjustment/100),\"---\")","v":0},null,{"$f":"IFERROR(IF(ISBLANK(tblDataEntry1316[[#This Row],[Rate Override]]),CEILING(tblDataEntry1316[[#This Row],[Quantity]]/tblDataEntry1316[[#This Row],[User Factored Rate]],1),CEILING(tblDataEntry1316[[#This Row],[Quantity]]/tblDataEntry1316[[#This Row],[Rate Override]],1)),\"---\")","v":"---"}]
[null,null,null,null,null,null,null,null,null,{"$f":"IFERROR(tblDataEntry1316[[#This Row],[Default (Avg.) Rate]]*(1+dsEstimatorAdjustment/100),\"---\")","v":0},null,{"$f":"IFERROR(IF(ISBLANK(tblDataEntry1316[[#This Row],[Rate Override]]),CEILING(tblDataEntry1316[[#This Row],[Quantity]]/tblDataEntry1316[[#This Row],[User Factored Rate]],1),CEILING(tblDataEntry1316[[#This Row],[Quantity]]/tblDataEntry1316[[#This Row],[Rate Override]],1)),\"---\")","v":"---"}]
[null,null,null,null,null,null,null,null,null,{"$f":"IFERROR(tblDataEntry1316[[#This Row],[Default (Avg.) Rate]]*(1+dsEstimatorAdjustment/100),\"---\")","v":0},null,{"$f":"IFERROR(IF(ISBLANK(tblDataEntry1316[[#This Row],[Rate Override]]),CEILING(tblDataEntry1316[[#This Row],[Quantity]]/tblDataEntry1316[[#This Row],[User Factored Rate]],1),CEILING(tblDataEntry1316[[#This Row],[Quantity]]/tblDataEntry1316[[#This Row],[Rate Override]],1)),\"---\")","v":"---"}]
[null,null,null,null,null,null,null,null,null,{"$f":"IFERROR(tblDataEntry1316[[#This Row],[Default (Avg.) Rate]]*(1+dsEstimatorAdjustment/100),\"---\")","v":0},null,{"$f":"IFERROR(IF(ISBLANK(tblDataEntry1316[[#This Row],[Rate Override]]),CEILING(tblDataEntry1316[[#This Row],[Quantity]]/tblDataEntry1316[[#This Row],[User Factored Rate]],1),CEILING(tblDataEntry1316[[#This Row],[Quantity]]/tblDataEntry1316[[#This Row],[Rate Override]],1)),\"---\")","v":"---"}]
[null,null,null,null,null,null,null,null,null,{"$f":"IFERROR(tblDataEntry1316[[#This Row],[Default (Avg.) Rate]]*(1+dsEstimatorAdjustment/100),\"---\")","v":0},null,{"$f":"IFERROR(IF(ISBLANK(tblDataEntry1316[[#This Row],[Rate Override]]),CEILING(tblDataEntry1316[[#This Row],[Quantity]]/tblDataEntry1316[[#This Row],[User Factored Rate]],1),CEILING(tblDataEntry1316[[#This Row],[Quantity]]/tblDataEntry1316[[#This Row],[Rate Override]],1)),\"---\")","v":"---"}]
[null,null,null,null,null,null,null,null,null,{"$f":"IFERROR(tblDataEntry1316[[#This Row],[Default (Avg.) Rate]]*(1+dsEstimatorAdjustment/100),\"---\")","v":0},null,{"$f":"IFERROR(IF(ISBLANK(tblDataEntry1316[[#This Row],[Rate Override]]),CEILING(tblDataEntry1316[[#This Row],[Quantity]]/tblDataEntry1316[[#This Row],[User Factored Rate]],1),CEILING(tblDataEntry1316[[#This Row],[Quantity]]/tblDataEntry1316[[#This Row],[Rate Override]],1)),\"---\")","v":"---"}]
[null,null,null,null,null,null,null,null,null,{"$f":"IFERROR(tblDataEntry1316[[#This Row],[Default (Avg.) Rate]]*(1+dsEstimatorAdjustment/100),\"---\")","v":0},null,{"$f":"IFERROR(IF(ISBLANK(tblDataEntry1316[[#This Row],[Rate Override]]),CEILING(tblDataEntry1316[[#This Row],[Quantity]]/tblDataEntry1316[[#This Row],[User Factored Rate]],1),CEILING(tblDataEntry1316[[#This Row],[Quantity]]/tblDataEntry1316[[#This Row],[Rate Override]],1)),\"---\")","v":"---"}]
[null,null,null,null,null,null,null,null,null,{"$f":"IFERROR(tblDataEntry1316[[#This Row],[Default (Avg.) Rate]]*(1+dsEstimatorAdjustment/100),\"---\")","v":0},null,{"$f":"IFERROR(IF(ISBLANK(tblDataEntry1316[[#This Row],[Rate Override]]),CEILING(tblDataEntry1316[[#This Row],[Quantity]]/tblDataEntry1316[[#This Row],[User Factored Rate]],1),CEILING(tblDataEntry1316[[#This Row],[Quantity]]/tblDataEntry1316[[#This Row],[Rate Override]],1)),\"---\")","v":"---"}]
[null,null,null,null,null,null,null,null,null,{"$f":"IFERROR(tblDataEntry1316[[#This Row],[Default (Avg.) Rate]]*(1+dsEstimatorAdjustment/100),\"---\")","v":0},null,{"$f":"IFERROR(IF(ISBLANK(tblDataEntry1316[[#This Row],[Rate Override]]),CEILING(tblDataEntry1316[[#This Row],[Quantity]]/tblDataEntry1316[[#This Row],[User Factored Rate]],1),CEILING(tblDataEntry1316[[#This Row],[Quantity]]/tblDataEntry1316[[#This Row],[Rate Override]],1)),\"---\")","v":"---"}]
[null,null,null,null,null,null,null,null,null,{"$f":"IFERROR(tblDataEntry1316[[#This Row],[Default (Avg.) Rate]]*(1+dsEstimatorAdjustment/100),\"---\")","v":0},null,{"$f":"IFERROR(IF(ISBLANK(tblDataEntry1316[[#This Row],[Rate Override]]),CEILING(tblDataEntry1316[[#This Row],[Quantity]]/tblDataEntry1316[[#This Row],[User Factored Rate]],1),CEILING(tblDataEntry1316[[#This Row],[Quantity]]/tblDataEntry1316[[#This Row],[Rate Override]],1)),\"---\")","v":"---"}]
[null,null,null,null,null,null,null,null,null,{"$f":"IFERROR(tblDataEntry1316[[#This Row],[Default (Avg.) Rate]]*(1+dsEstimatorAdjustment/100),\"---\")","v":0},null,{"$f":"IFERROR(IF(ISBLANK(tblDataEntry1316[[#This Row],[Rate Override]]),CEILING(tblDataEntry1316[[#This Row],[Quantity]]/tblDataEntry1316[[#This Row],[User Factored Rate]],1),CEILING(tblDataEntry1316[[#This Row],[Quantity]]/tblDataEntry1316[[#This Row],[Rate Override]],1)),\"---\")","v":"---"}]
[null,null,null,null,null,null,null,null,null,{"$f":"IFERROR(tblDataEntry1316[[#This Row],[Default (Avg.) Rate]]*(1+dsEstimatorAdjustment/100),\"---\")","v":0},null,{"$f":"IFERROR(IF(ISBLANK(tblDataEntry1316[[#This Row],[Rate Override]]),CEILING(tblDataEntry1316[[#This Row],[Quantity]]/tblDataEntry1316[[#This Row],[User Factored Rate]],1),CEILING(tblDataEntry1316[[#This Row],[Quantity]]/tblDataEntry1316[[#This Row],[Rate Override]],1)),\"---\")","v":"---"}]
[null,null,null,null,null,null,null,null,null,{"$f":"IFERROR(tblDataEntry1316[[#This Row],[Default (Avg.) Rate]]*(1+dsEstimatorAdjustment/100),\"---\")","v":0},null,{"$f":"IFERROR(IF(ISBLANK(tblDataEntry1316[[#This Row],[Rate Override]]),CEILING(tblDataEntry1316[[#This Row],[Quantity]]/tblDataEntry1316[[#This Row],[User Factored Rate]],1),CEILING(tblDataEntry1316[[#This Row],[Quantity]]/tblDataEntry1316[[#This Row],[Rate Override]],1)),\"---\")","v":"---"}]
[null,null,null,null,null,null,null,null,null,{"$f":"IFERROR(tblDataEntry1316[[#This Row],[Default (Avg.) Rate]]*(1+dsEstimatorAdjustment/100),\"---\")","v":0},null,{"$f":"IFERROR(IF(ISBLANK(tblDataEntry1316[[#This Row],[Rate Override]]),CEILING(tblDataEntry1316[[#This Row],[Quantity]]/tblDataEntry1316[[#This Row],[User Factored Rate]],1),CEILING(tblDataEntry1316[[#This Row],[Quantity]]/tblDataEntry1316[[#This Row],[Rate Override]],1)),\"---\")","v":"---"}]
[null,null,null,null,null,null,null,null,null,{"$f":"IFERROR(tblDataEntry1316[[#This Row],[Default (Avg.) Rate]]*(1+dsEstimatorAdjustment/100),\"---\")","v":0},null,{"$f":"IFERROR(IF(ISBLANK(tblDataEntry1316[[#This Row],[Rate Override]]),CEILING(tblDataEntry1316[[#This Row],[Quantity]]/tblDataEntry1316[[#This Row],[User Factored Rate]],1),CEILING(tblDataEntry1316[[#This Row],[Quantity]]/tblDataEntry1316[[#This Row],[Rate Override]],1)),\"---\")","v":"---"}]
[null,null,null,null,null,null,null,null,null,{"$f":"IFERROR(tblDataEntry1316[[#This Row],[Default (Avg.) Rate]]*(1+dsEstimatorAdjustment/100),\"---\")","v":0},null,{"$f":"IFERROR(IF(ISBLANK(tblDataEntry1316[[#This Row],[Rate Override]]),CEILING(tblDataEntry1316[[#This Row],[Quantity]]/tblDataEntry1316[[#This Row],[User Factored Rate]],1),CEILING(tblDataEntry1316[[#This Row],[Quantity]]/tblDataEntry1316[[#This Row],[Rate Override]],1)),\"---\")","v":"---"}]
[null,null,null,null,null,null,null,null,null,{"$f":"IFERROR(tblDataEntry1316[[#This Row],[Default (Avg.) Rate]]*(1+dsEstimatorAdjustment/100),\"---\")","v":0},null,{"$f":"IFERROR(IF(ISBLANK(tblDataEntry1316[[#This Row],[Rate Override]]),CEILING(tblDataEntry1316[[#This Row],[Quantity]]/tblDataEntry1316[[#This Row],[User Factored Rate]],1),CEILING(tblDataEntry1316[[#This Row],[Quantity]]/tblDataEntry1316[[#This Row],[Rate Override]],1)),\"---\")","v":"---"}]
[null,null,null,null,null,null,null,null,null,{"$f":"IFERROR(tblDataEntry1316[[#This Row],[Default (Avg.) Rate]]*(1+dsEstimatorAdjustment/100),\"---\")","v":0},null,{"$f":"IFERROR(IF(ISBLANK(tblDataEntry1316[[#This Row],[Rate Override]]),CEILING(tblDataEntry1316[[#This Row],[Quantity]]/tblDataEntry1316[[#This Row],[User Factored Rate]],1),CEILING(tblDataEntry1316[[#This Row],[Quantity]]/tblDataEntry1316[[#This Row],[Rate Override]],1)),\"---\")","v":"---"}]
[null,null,null,null,null,null,null,null,null,{"$f":"IFERROR(tblDataEntry1316[[#This Row],[Default (Avg.) Rate]]*(1+dsEstimatorAdjustment/100),\"---\")","v":0},null,{"$f":"IFERROR(IF(ISBLANK(tblDataEntry1316[[#This Row],[Rate Override]]),CEILING(tblDataEntry1316[[#This Row],[Quantity]]/tblDataEntry1316[[#This Row],[User Factored Rate]],1),CEILING(tblDataEntry1316[[#This Row],[Quantity]]/tblDataEntry1316[[#This Row],[Rate Override]],1)),\"---\")","v":"---"}]
[null,null,null,null,null,null,null,null,null,{"$f":"IFERROR(tblDataEntry1316[[#This Row],[Default (Avg.) Rate]]*(1+dsEstimatorAdjustment/100),\"---\")","v":0},null,{"$f":"IFERROR(IF(ISBLANK(tblDataEntry1316[[#This Row],[Rate Override]]),CEILING(tblDataEntry1316[[#This Row],[Quantity]]/tblDataEntry1316[[#This Row],[User Factored Rate]],1),CEILING(tblDataEntry1316[[#This Row],[Quantity]]/tblDataEntry1316[[#This Row],[Rate Override]],1)),\"---\")","v":"---"}]
[null,null,null,null,null,null,null,null,null,{"$f":"IFERROR(tblDataEntry1316[[#This Row],[Default (Avg.) Rate]]*(1+dsEstimatorAdjustment/100),\"---\")","v":0},null,{"$f":"IFERROR(IF(ISBLANK(tblDataEntry1316[[#This Row],[Rate Override]]),CEILING(tblDataEntry1316[[#This Row],[Quantity]]/tblDataEntry1316[[#This Row],[User Factored Rate]],1),CEILING(tblDataEntry1316[[#This Row],[Quantity]]/tblDataEntry1316[[#This Row],[Rate Override]],1)),\"---\")","v":"---"}]
[null,null,null,null,null,null,null,null,null,{"$f":"IFERROR(tblDataEntry1316[[#This Row],[Default (Avg.) Rate]]*(1+dsEstimatorAdjustment/100),\"---\")","v":0},null,{"$f":"IFERROR(IF(ISBLANK(tblDataEntry1316[[#This Row],[Rate Override]]),CEILING(tblDataEntry1316[[#This Row],[Quantity]]/tblDataEntry1316[[#This Row],[User Factored Rate]],1),CEILING(tblDataEntry1316[[#This Row],[Quantity]]/tblDataEntry1316[[#This Row],[Rate Override]],1)),\"---\")","v":"---"}]
[null,null,null,null,null,null,null,null,null,{"$f":"IFERROR(tblDataEntry1316[[#This Row],[Default (Avg.) Rate]]*(1+dsEstimatorAdjustment/100),\"---\")","v":0},null,{"$f":"IFERROR(IF(ISBLANK(tblDataEntry1316[[#This Row],[Rate Override]]),CEILING(tblDataEntry1316[[#This Row],[Quantity]]/tblDataEntry1316[[#This Row],[User Factored Rate]],1),CEILING(tblDataEntry1316[[#This Row],[Quantity]]/tblDataEntry1316[[#This Row],[Rate Override]],1)),\"---\")","v":"---"}]
[null,null,null,null,null,null,null,null,null,{"$f":"IFERROR(tblDataEntry1316[[#This Row],[Default (Avg.) Rate]]*(1+dsEstimatorAdjustment/100),\"---\")","v":0},null,{"$f":"IFERROR(IF(ISBLANK(tblDataEntry1316[[#This Row],[Rate Override]]),CEILING(tblDataEntry1316[[#This Row],[Quantity]]/tblDataEntry1316[[#This Row],[User Factored Rate]],1),CEILING(tblDataEntry1316[[#This Row],[Quantity]]/tblDataEntry1316[[#This Row],[Rate Override]],1)),\"---\")","v":"---"}]
[null,null,null,null,null,null,null,null,null,{"$f":"IFERROR(tblDataEntry1316[[#This Row],[Default (Avg.) Rate]]*(1+dsEstimatorAdjustment/100),\"---\")","v":0},null,{"$f":"IFERROR(IF(ISBLANK(tblDataEntry1316[[#This Row],[Rate Override]]),CEILING(tblDataEntry1316[[#This Row],[Quantity]]/tblDataEntry1316[[#This Row],[User Factored Rate]],1),CEILING(tblDataEntry1316[[#This Row],[Quantity]]/tblDataEntry1316[[#This Row],[Rate Override]],1)),\"---\")","v":"---"}]
[null,null,null,null,null,null,null,null,null,{"$f":"IFERROR(tblDataEntry1316[[#This Row],[Default (Avg.) Rate]]*(1+dsEstimatorAdjustment/100),\"---\")","v":0},null,{"$f":"IFERROR(IF(ISBLANK(tblDataEntry1316[[#This Row],[Rate Override]]),CEILING(tblDataEntry1316[[#This Row],[Quantity]]/tblDataEntry1316[[#This Row],[User Factored Rate]],1),CEILING(tblDataEntry1316[[#This Row],[Quantity]]/tblDataEntry1316[[#This Row],[Rate Override]],1)),\"---\")","v":"---"}]
[null,null,null,null,null,null,null,null,null,{"$f":"IFERROR(tblDataEntry1316[[#This Row],[Default (Avg.) Rate]]*(1+dsEstimatorAdjustment/100),\"---\")","v":0},null,{"$f":"IFERROR(IF(ISBLANK(tblDataEntry1316[[#This Row],[Rate Override]]),CEILING(tblDataEntry1316[[#This Row],[Quantity]]/tblDataEntry1316[[#This Row],[User Factored Rate]],1),CEILING(tblDataEntry1316[[#This Row],[Quantity]]/tblDataEntry1316[[#This Row],[Rate Override]],1)),\"---\")","v":"---"}]
[null,null,null,null,null,null,null,null,null,{"$f":"IFERROR(tblDataEntry1316[[#This Row],[Default (Avg.) Rate]]*(1+dsEstimatorAdjustment/100),\"---\")","v":0},null,{"$f":"IFERROR(IF(ISBLANK(tblDataEntry1316[[#This Row],[Rate Override]]),CEILING(tblDataEntry1316[[#This Row],[Quantity]]/tblDataEntry1316[[#This Row],[User Factored Rate]],1),CEILING(tblDataEntry1316[[#This Row],[Quantity]]/tblDataEntry1316[[#This Row],[Rate Override]],1)),\"---\")","v":"---"}]
[null,null,null,null,null,null,null,null,null,{"$f":"IFERROR(tblDataEntry1316[[#This Row],[Default (Avg.) Rate]]*(1+dsEstimatorAdjustment/100),\"---\")","v":0},null,{"$f":"IFERROR(IF(ISBLANK(tblDataEntry1316[[#This Row],[Rate Override]]),CEILING(tblDataEntry1316[[#This Row],[Quantity]]/tblDataEntry1316[[#This Row],[User Factored Rate]],1),CEILING(tblDataEntry1316[[#This Row],[Quantity]]/tblDataEntry1316[[#This Row],[Rate Override]],1)),\"---\")","v":"---"}]
[null,null,null,null,null,null,null,null,null,{"$f":"IFERROR(tblDataEntry1316[[#This Row],[Default (Avg.) Rate]]*(1+dsEstimatorAdjustment/100),\"---\")","v":0},null,{"$f":"IFERROR(IF(ISBLANK(tblDataEntry1316[[#This Row],[Rate Override]]),CEILING(tblDataEntry1316[[#This Row],[Quantity]]/tblDataEntry1316[[#This Row],[User Factored Rate]],1),CEILING(tblDataEntry1316[[#This Row],[Quantity]]/tblDataEntry1316[[#This Row],[Rate Override]],1)),\"---\")","v":"---"}]
[null,null,null,null,null,null,null,null,null,{"$f":"IFERROR(tblDataEntry1316[[#This Row],[Default (Avg.) Rate]]*(1+dsEstimatorAdjustment/100),\"---\")","v":0},null,{"$f":"IFERROR(IF(ISBLANK(tblDataEntry1316[[#This Row],[Rate Override]]),CEILING(tblDataEntry1316[[#This Row],[Quantity]]/tblDataEntry1316[[#This Row],[User Factored Rate]],1),CEILING(tblDataEntry1316[[#This Row],[Quantity]]/tblDataEntry1316[[#This Row],[Rate Override]],1)),\"---\")","v":"---"}]
[null,null,null,null,null,null,null,null,null,{"$f":"IFERROR(tblDataEntry1316[[#This Row],[Default (Avg.) Rate]]*(1+dsEstimatorAdjustment/100),\"---\")","v":0},null,{"$f":"IFERROR(IF(ISBLANK(tblDataEntry1316[[#This Row],[Rate Override]]),CEILING(tblDataEntry1316[[#This Row],[Quantity]]/tblDataEntry1316[[#This Row],[User Factored Rate]],1),CEILING(tblDataEntry1316[[#This Row],[Quantity]]/tblDataEntry1316[[#This Row],[Rate Override]],1)),\"---\")","v":"---"}]
[null,null,null,null,null,null,null,null,null,{"$f":"IFERROR(tblDataEntry1316[[#This Row],[Default (Avg.) Rate]]*(1+dsEstimatorAdjustment/100),\"---\")","v":0},null,{"$f":"IFERROR(IF(ISBLANK(tblDataEntry1316[[#This Row],[Rate Override]]),CEILING(tblDataEntry1316[[#This Row],[Quantity]]/tblDataEntry1316[[#This Row],[User Factored Rate]],1),CEILING(tblDataEntry1316[[#This Row],[Quantity]]/tblDataEntry1316[[#This Row],[Rate Override]],1)),\"---\")","v":"---"}]
[null,null,null,null,null,null,null,null,null,{"$f":"IFERROR(tblDataEntry1316[[#This Row],[Default (Avg.) Rate]]*(1+dsEstimatorAdjustment/100),\"---\")","v":0},null,{"$f":"IFERROR(IF(ISBLANK(tblDataEntry1316[[#This Row],[Rate Override]]),CEILING(tblDataEntry1316[[#This Row],[Quantity]]/tblDataEntry1316[[#This Row],[User Factored Rate]],1),CEILING(tblDataEntry1316[[#This Row],[Quantity]]/tblDataEntry1316[[#This Row],[Rate Override]],1)),\"---\")","v":"---"}]
[null,null,null,null,null,null,null,null,null,{"$f":"IFERROR(tblDataEntry1316[[#This Row],[Default (Avg.) Rate]]*(1+dsEstimatorAdjustment/100),\"---\")","v":0},null,{"$f":"IFERROR(IF(ISBLANK(tblDataEntry1316[[#This Row],[Rate Override]]),CEILING(tblDataEntry1316[[#This Row],[Quantity]]/tblDataEntry1316[[#This Row],[User Factored Rate]],1),CEILING(tblDataEntry1316[[#This Row],[Quantity]]/tblDataEntry1316[[#This Row],[Rate Override]],1)),\"---\")","v":"---"}]
[null,null,null,null,null,null,null,null,null,{"$f":"IFERROR(tblDataEntry1316[[#This Row],[Default (Avg.) Rate]]*(1+dsEstimatorAdjustment/100),\"---\")","v":0},null,{"$f":"IFERROR(IF(ISBLANK(tblDataEntry1316[[#This Row],[Rate Override]]),CEILING(tblDataEntry1316[[#This Row],[Quantity]]/tblDataEntry1316[[#This Row],[User Factored Rate]],1),CEILING(tblDataEntry1316[[#This Row],[Quantity]]/tblDataEntry1316[[#This Row],[Rate Override]],1)),\"---\")","v":"---"}]
[null,null,null,null,null,null,null,null,null,{"$f":"IFERROR(tblDataEntry1316[[#This Row],[Default (Avg.) Rate]]*(1+dsEstimatorAdjustment/100),\"---\")","v":0},null,{"$f":"IFERROR(IF(ISBLANK(tblDataEntry1316[[#This Row],[Rate Override]]),CEILING(tblDataEntry1316[[#This Row],[Quantity]]/tblDataEntry1316[[#This Row],[User Factored Rate]],1),CEILING(tblDataEntry1316[[#This Row],[Quantity]]/tblDataEntry1316[[#This Row],[Rate Override]],1)),\"---\")","v":"---"}]
[null,null,null,null,null,null,null,null,null,{"$f":"IFERROR(tblDataEntry1316[[#This Row],[Default (Avg.) Rate]]*(1+dsEstimatorAdjustment/100),\"---\")","v":0},null,{"$f":"IFERROR(IF(ISBLANK(tblDataEntry1316[[#This Row],[Rate Override]]),CEILING(tblDataEntry1316[[#This Row],[Quantity]]/tblDataEntry1316[[#This Row],[User Factored Rate]],1),CEILING(tblDataEntry1316[[#This Row],[Quantity]]/tblDataEntry1316[[#This Row],[Rate Override]],1)),\"---\")","v":"---"}]
[null,null,null,null,null,null,null,null,null,{"$f":"IFERROR(tblDataEntry1316[[#This Row],[Default (Avg.) Rate]]*(1+dsEstimatorAdjustment/100),\"---\")","v":0},null,{"$f":"IFERROR(IF(ISBLANK(tblDataEntry1316[[#This Row],[Rate Override]]),CEILING(tblDataEntry1316[[#This Row],[Quantity]]/tblDataEntry1316[[#This Row],[User Factored Rate]],1),CEILING(tblDataEntry1316[[#This Row],[Quantity]]/tblDataEntry1316[[#This Row],[Rate Override]],1)),\"---\")","v":"---"}]
[null,null,null,null,null,null,null,null,null,{"$f":"IFERROR(tblDataEntry1316[[#This Row],[Default (Avg.) Rate]]*(1+dsEstimatorAdjustment/100),\"---\")","v":0},null,{"$f":"IFERROR(IF(ISBLANK(tblDataEntry1316[[#This Row],[Rate Override]]),CEILING(tblDataEntry1316[[#This Row],[Quantity]]/tblDataEntry1316[[#This Row],[User Factored Rate]],1),CEILING(tblDataEntry1316[[#This Row],[Quantity]]/tblDataEntry1316[[#This Row],[Rate Override]],1)),\"---\")","v":"---"}]
[null,null,null,null,null,null,null,null,null,{"$f":"IFERROR(tblDataEntry1316[[#This Row],[Default (Avg.) Rate]]*(1+dsEstimatorAdjustment/100),\"---\")","v":0},null,{"$f":"IFERROR(IF(ISBLANK(tblDataEntry1316[[#This Row],[Rate Override]]),CEILING(tblDataEntry1316[[#This Row],[Quantity]]/tblDataEntry1316[[#This Row],[User Factored Rate]],1),CEILING(tblDataEntry1316[[#This Row],[Quantity]]/tblDataEntry1316[[#This Row],[Rate Override]],1)),\"---\")","v":"---"}]
[null,null,null,null,null,null,null,null,null,{"$f":"IFERROR(tblDataEntry1316[[#This Row],[Default (Avg.) Rate]]*(1+dsEstimatorAdjustment/100),\"---\")","v":0},null,{"$f":"IFERROR(IF(ISBLANK(tblDataEntry1316[[#This Row],[Rate Override]]),CEILING(tblDataEntry1316[[#This Row],[Quantity]]/tblDataEntry1316[[#This Row],[User Factored Rate]],1),CEILING(tblDataEntry1316[[#This Row],[Quantity]]/tblDataEntry1316[[#This Row],[Rate Override]],1)),\"---\")","v":"---"}]
[null,null,null,null,null,null,null,null,null,{"$f":"IFERROR(tblDataEntry1316[[#This Row],[Default (Avg.) Rate]]*(1+dsEstimatorAdjustment/100),\"---\")","v":0},null,{"$f":"IFERROR(IF(ISBLANK(tblDataEntry1316[[#This Row],[Rate Override]]),CEILING(tblDataEntry1316[[#This Row],[Quantity]]/tblDataEntry1316[[#This Row],[User Factored Rate]],1),CEILING(tblDataEntry1316[[#This Row],[Quantity]]/tblDataEntry1316[[#This Row],[Rate Override]],1)),\"---\")","v":"---"}]
[null,null,null,null,null,null,null,null,null,{"$f":"IFERROR(tblDataEntry1316[[#This Row],[Default (Avg.) Rate]]*(1+dsEstimatorAdjustment/100),\"---\")","v":0},null,{"$f":"IFERROR(IF(ISBLANK(tblDataEntry1316[[#This Row],[Rate Override]]),CEILING(tblDataEntry1316[[#This Row],[Quantity]]/tblDataEntry1316[[#This Row],[User Factored Rate]],1),CEILING(tblDataEntry1316[[#This Row],[Quantity]]/tblDataEntry1316[[#This Row],[Rate Override]],1)),\"---\")","v":"---"}]
[null,null,null,null,null,null,null,null,null,{"$f":"IFERROR(tblDataEntry1316[[#This Row],[Default (Avg.) Rate]]*(1+dsEstimatorAdjustment/100),\"---\")","v":0},null,{"$f":"IFERROR(IF(ISBLANK(tblDataEntry1316[[#This Row],[Rate Override]]),CEILING(tblDataEntry1316[[#This Row],[Quantity]]/tblDataEntry1316[[#This Row],[User Factored Rate]],1),CEILING(tblDataEntry1316[[#This Row],[Quantity]]/tblDataEntry1316[[#This Row],[Rate Override]],1)),\"---\")","v":"---"}]
[null,null,null,null,null,null,null,null,null,{"$f":"IFERROR(tblDataEntry1316[[#This Row],[Default (Avg.) Rate]]*(1+dsEstimatorAdjustment/100),\"---\")","v":0},null,{"$f":"IFERROR(IF(ISBLANK(tblDataEntry1316[[#This Row],[Rate Override]]),CEILING(tblDataEntry1316[[#This Row],[Quantity]]/tblDataEntry1316[[#This Row],[User Factored Rate]],1),CEILING(tblDataEntry1316[[#This Row],[Quantity]]/tblDataEntry1316[[#This Row],[Rate Override]],1)),\"---\")","v":"---"}]
[null,null,null,null,null,null,null,null,null,{"$f":"IFERROR(tblDataEntry1316[[#This Row],[Default (Avg.) Rate]]*(1+dsEstimatorAdjustment/100),\"---\")","v":0},null,{"$f":"IFERROR(IF(ISBLANK(tblDataEntry1316[[#This Row],[Rate Override]]),CEILING(tblDataEntry1316[[#This Row],[Quantity]]/tblDataEntry1316[[#This Row],[User Factored Rate]],1),CEILING(tblDataEntry1316[[#This Row],[Quantity]]/tblDataEntry1316[[#This Row],[Rate Override]],1)),\"---\")","v":"---"}]
[null,null,null,null,null,null,null,null,null,{"$f":"IFERROR(tblDataEntry1316[[#This Row],[Default (Avg.) Rate]]*(1+dsEstimatorAdjustment/100),\"---\")","v":0},null,{"$f":"IFERROR(IF(ISBLANK(tblDataEntry1316[[#This Row],[Rate Override]]),CEILING(tblDataEntry1316[[#This Row],[Quantity]]/tblDataEntry1316[[#This Row],[User Factored Rate]],1),CEILING(tblDataEntry1316[[#This Row],[Quantity]]/tblDataEntry1316[[#This Row],[Rate Override]],1)),\"---\")","v":"---"}]
[null,null,null,null,null,null,null,null,null,{"$f":"IFERROR(tblDataEntry1316[[#This Row],[Default (Avg.) Rate]]*(1+dsEstimatorAdjustment/100),\"---\")","v":0},null,{"$f":"IFERROR(IF(ISBLANK(tblDataEntry1316[[#This Row],[Rate Override]]),CEILING(tblDataEntry1316[[#This Row],[Quantity]]/tblDataEntry1316[[#This Row],[User Factored Rate]],1),CEILING(tblDataEntry1316[[#This Row],[Quantity]]/tblDataEntry1316[[#This Row],[Rate Override]],1)),\"---\")","v":"---"}]
[null,null,null,null,null,null,null,null,null,{"$f":"IFERROR(tblDataEntry1316[[#This Row],[Default (Avg.) Rate]]*(1+dsEstimatorAdjustment/100),\"---\")","v":0},null,{"$f":"IFERROR(IF(ISBLANK(tblDataEntry1316[[#This Row],[Rate Override]]),CEILING(tblDataEntry1316[[#This Row],[Quantity]]/tblDataEntry1316[[#This Row],[User Factored Rate]],1),CEILING(tblDataEntry1316[[#This Row],[Quantity]]/tblDataEntry1316[[#This Row],[Rate Override]],1)),\"---\")","v":"---"}]
[null,null,null,null,null,null,null,null,null,{"$f":"IFERROR(tblDataEntry1316[[#This Row],[Default (Avg.) Rate]]*(1+dsEstimatorAdjustment/100),\"---\")","v":0},null,{"$f":"IFERROR(IF(ISBLANK(tblDataEntry1316[[#This Row],[Rate Override]]),CEILING(tblDataEntry1316[[#This Row],[Quantity]]/tblDataEntry1316[[#This Row],[User Factored Rate]],1),CEILING(tblDataEntry1316[[#This Row],[Quantity]]/tblDataEntry1316[[#This Row],[Rate Override]],1)),\"---\")","v":"---"}]
[null,null,null,null,null,null,null,null,null,{"$f":"IFERROR(tblDataEntry1316[[#This Row],[Default (Avg.) Rate]]*(1+dsEstimatorAdjustment/100),\"---\")","v":0},null,{"$f":"IFERROR(IF(ISBLANK(tblDataEntry1316[[#This Row],[Rate Override]]),CEILING(tblDataEntry1316[[#This Row],[Quantity]]/tblDataEntry1316[[#This Row],[User Factored Rate]],1),CEILING(tblDataEntry1316[[#This Row],[Quantity]]/tblDataEntry1316[[#This Row],[Rate Override]],1)),\"---\")","v":"---"}]
[null,null,null,null,null,null,null,null,null,{"$f":"IFERROR(tblDataEntry1316[[#This Row],[Default (Avg.) Rate]]*(1+dsEstimatorAdjustment/100),\"---\")","v":0},null,{"$f":"IFERROR(IF(ISBLANK(tblDataEntry1316[[#This Row],[Rate Override]]),CEILING(tblDataEntry1316[[#This Row],[Quantity]]/tblDataEntry1316[[#This Row],[User Factored Rate]],1),CEILING(tblDataEntry1316[[#This Row],[Quantity]]/tblDataEntry1316[[#This Row],[Rate Override]],1)),\"---\")","v":"---"}]
[null,null,null,null,null,null,null,null,null,{"$f":"IFERROR(tblDataEntry1316[[#This Row],[Default (Avg.) Rate]]*(1+dsEstimatorAdjustment/100),\"---\")","v":0},null,{"$f":"IFERROR(IF(ISBLANK(tblDataEntry1316[[#This Row],[Rate Override]]),CEILING(tblDataEntry1316[[#This Row],[Quantity]]/tblDataEntry1316[[#This Row],[User Factored Rate]],1),CEILING(tblDataEntry1316[[#This Row],[Quantity]]/tblDataEntry1316[[#This Row],[Rate Override]],1)),\"---\")","v":"---"}]
[null,null,null,null,null,null,null,null,null,{"$f":"IFERROR(tblDataEntry1316[[#This Row],[Default (Avg.) Rate]]*(1+dsEstimatorAdjustment/100),\"---\")","v":0},null,{"$f":"IFERROR(IF(ISBLANK(tblDataEntry1316[[#This Row],[Rate Override]]),CEILING(tblDataEntry1316[[#This Row],[Quantity]]/tblDataEntry1316[[#This Row],[User Factored Rate]],1),CEILING(tblDataEntry1316[[#This Row],[Quantity]]/tblDataEntry1316[[#This Row],[Rate Override]],1)),\"---\")","v":"---"}]
[null,null,null,null,null,null,null,null,null,{"$f":"IFERROR(tblDataEntry1316[[#This Row],[Default (Avg.) Rate]]*(1+dsEstimatorAdjustment/100),\"---\")","v":0},null,{"$f":"IFERROR(IF(ISBLANK(tblDataEntry1316[[#This Row],[Rate Override]]),CEILING(tblDataEntry1316[[#This Row],[Quantity]]/tblDataEntry1316[[#This Row],[User Factored Rate]],1),CEILING(tblDataEntry1316[[#This Row],[Quantity]]/tblDataEntry1316[[#This Row],[Rate Override]],1)),\"---\")","v":"---"}]
[null,null,null,null,null,null,null,null,null,{"$f":"IFERROR(tblDataEntry1316[[#This Row],[Default (Avg.) Rate]]*(1+dsEstimatorAdjustment/100),\"---\")","v":0},null,{"$f":"IFERROR(IF(ISBLANK(tblDataEntry1316[[#This Row],[Rate Override]]),CEILING(tblDataEntry1316[[#This Row],[Quantity]]/tblDataEntry1316[[#This Row],[User Factored Rate]],1),CEILING(tblDataEntry1316[[#This Row],[Quantity]]/tblDataEntry1316[[#This Row],[Rate Override]],1)),\"---\")","v":"---"}]
[null,null,null,null,null,null,null,null,null,{"$f":"IFERROR(tblDataEntry1316[[#This Row],[Default (Avg.) Rate]]*(1+dsEstimatorAdjustment/100),\"---\")","v":0},null,{"$f":"IFERROR(IF(ISBLANK(tblDataEntry1316[[#This Row],[Rate Override]]),CEILING(tblDataEntry1316[[#This Row],[Quantity]]/tblDataEntry1316[[#This Row],[User Factored Rate]],1),CEILING(tblDataEntry1316[[#This Row],[Quantity]]/tblDataEntry1316[[#This Row],[Rate Override]],1)),\"---\")","v":"---"}]
[null,null,null,null,null,null,null,null,null,{"$f":"IFERROR(tblDataEntry1316[[#This Row],[Default (Avg.) Rate]]*(1+dsEstimatorAdjustment/100),\"---\")","v":0},null,{"$f":"IFERROR(IF(ISBLANK(tblDataEntry1316[[#This Row],[Rate Override]]),CEILING(tblDataEntry1316[[#This Row],[Quantity]]/tblDataEntry1316[[#This Row],[User Factored Rate]],1),CEILING(tblDataEntry1316[[#This Row],[Quantity]]/tblDataEntry1316[[#This Row],[Rate Override]],1)),\"---\")","v":"---"}]
[null,null,null,null,null,null,null,null,null,{"$f":"IFERROR(tblDataEntry1316[[#This Row],[Default (Avg.) Rate]]*(1+dsEstimatorAdjustment/100),\"---\")","v":0},null,{"$f":"IFERROR(IF(ISBLANK(tblDataEntry1316[[#This Row],[Rate Override]]),CEILING(tblDataEntry1316[[#This Row],[Quantity]]/tblDataEntry1316[[#This Row],[User Factored Rate]],1),CEILING(tblDataEntry1316[[#This Row],[Quantity]]/tblDataEntry1316[[#This Row],[Rate Override]],1)),\"---\")","v":"---"}]
[null,null,null,null,null,null,null,null,null,{"$f":"IFERROR(tblDataEntry1316[[#This Row],[Default (Avg.) Rate]]*(1+dsEstimatorAdjustment/100),\"---\")","v":0},null,{"$f":"IFERROR(IF(ISBLANK(tblDataEntry1316[[#This Row],[Rate Override]]),CEILING(tblDataEntry1316[[#This Row],[Quantity]]/tblDataEntry1316[[#This Row],[User Factored Rate]],1),CEILING(tblDataEntry1316[[#This Row],[Quantity]]/tblDataEntry1316[[#This Row],[Rate Override]],1)),\"---\")","v":"---"}]
[null,null,null,null,null,null,null,null,null,{"$f":"IFERROR(tblDataEntry1316[[#This Row],[Default (Avg.) Rate]]*(1+dsEstimatorAdjustment/100),\"---\")","v":0},null,{"$f":"IFERROR(IF(ISBLANK(tblDataEntry1316[[#This Row],[Rate Override]]),CEILING(tblDataEntry1316[[#This Row],[Quantity]]/tblDataEntry1316[[#This Row],[User Factored Rate]],1),CEILING(tblDataEntry1316[[#This Row],[Quantity]]/tblDataEntry1316[[#This Row],[Rate Override]],1)),\"---\")","v":"---"}]
[null,null,null,null,null,null,null,null,null,{"$f":"IFERROR(tblDataEntry1316[[#This Row],[Default (Avg.) Rate]]*(1+dsEstimatorAdjustment/100),\"---\")","v":0},null,{"$f":"IFERROR(IF(ISBLANK(tblDataEntry1316[[#This Row],[Rate Override]]),CEILING(tblDataEntry1316[[#This Row],[Quantity]]/tblDataEntry1316[[#This Row],[User Factored Rate]],1),CEILING(tblDataEntry1316[[#This Row],[Quantity]]/tblDataEntry1316[[#This Row],[Rate Override]],1)),\"---\")","v":"---"}]
[null,null,null,null,null,null,null,null,null,{"$f":"IFERROR(tblDataEntry1316[[#This Row],[Default (Avg.) Rate]]*(1+dsEstimatorAdjustment/100),\"---\")","v":0},null,{"$f":"IFERROR(IF(ISBLANK(tblDataEntry1316[[#This Row],[Rate Override]]),CEILING(tblDataEntry1316[[#This Row],[Quantity]]/tblDataEntry1316[[#This Row],[User Factored Rate]],1),CEILING(tblDataEntry1316[[#This Row],[Quantity]]/tblDataEntry1316[[#This Row],[Rate Override]],1)),\"---\")","v":"---"}]
[null,null,null,null,null,null,null,null,null,{"$f":"IFERROR(tblDataEntry1316[[#This Row],[Default (Avg.) Rate]]*(1+dsEstimatorAdjustment/100),\"---\")","v":0},null,{"$f":"IFERROR(IF(ISBLANK(tblDataEntry1316[[#This Row],[Rate Override]]),CEILING(tblDataEntry1316[[#This Row],[Quantity]]/tblDataEntry1316[[#This Row],[User Factored Rate]],1),CEILING(tblDataEntry1316[[#This Row],[Quantity]]/tblDataEntry1316[[#This Row],[Rate Override]],1)),\"---\")","v":"---"}]
[null,null,null,null,null,null,null,null,null,{"$f":"IFERROR(tblDataEntry1316[[#This Row],[Default (Avg.) Rate]]*(1+dsEstimatorAdjustment/100),\"---\")","v":0},null,{"$f":"IFERROR(IF(ISBLANK(tblDataEntry1316[[#This Row],[Rate Override]]),CEILING(tblDataEntry1316[[#This Row],[Quantity]]/tblDataEntry1316[[#This Row],[User Factored Rate]],1),CEILING(tblDataEntry1316[[#This Row],[Quantity]]/tblDataEntry1316[[#This Row],[Rate Override]],1)),\"---\")","v":"---"}]
[null,null,null,null,null,null,null,null,null,{"$f":"IFERROR(tblDataEntry1316[[#This Row],[Default (Avg.) Rate]]*(1+dsEstimatorAdjustment/100),\"---\")","v":0},null,{"$f":"IFERROR(IF(ISBLANK(tblDataEntry1316[[#This Row],[Rate Override]]),CEILING(tblDataEntry1316[[#This Row],[Quantity]]/tblDataEntry1316[[#This Row],[User Factored Rate]],1),CEILING(tblDataEntry1316[[#This Row],[Quantity]]/tblDataEntry1316[[#This Row],[Rate Override]],1)),\"---\")","v":"---"}]
[null,null,null,null,null,null,null,null,null,{"$f":"IFERROR(tblDataEntry1316[[#This Row],[Default (Avg.) Rate]]*(1+dsEstimatorAdjustment/100),\"---\")","v":0},null,{"$f":"IFERROR(IF(ISBLANK(tblDataEntry1316[[#This Row],[Rate Override]]),CEILING(tblDataEntry1316[[#This Row],[Quantity]]/tblDataEntry1316[[#This Row],[User Factored Rate]],1),CEILING(tblDataEntry1316[[#This Row],[Quantity]]/tblDataEntry1316[[#This Row],[Rate Override]],1)),\"---\")","v":"---"}]
[null,null,null,null,null,null,null,null,null,{"$f":"IFERROR(tblDataEntry1316[[#This Row],[Default (Avg.) Rate]]*(1+dsEstimatorAdjustment/100),\"---\")","v":0},null,{"$f":"IFERROR(IF(ISBLANK(tblDataEntry1316[[#This Row],[Rate Override]]),CEILING(tblDataEntry1316[[#This Row],[Quantity]]/tblDataEntry1316[[#This Row],[User Factored Rate]],1),CEILING(tblDataEntry1316[[#This Row],[Quantity]]/tblDataEntry1316[[#This Row],[Rate Override]],1)),\"---\")","v":"---"}]
[null,null,null,null,null,null,null,null,null,{"$f":"IFERROR(tblDataEntry1316[[#This Row],[Default (Avg.) Rate]]*(1+dsEstimatorAdjustment/100),\"---\")","v":0},null,{"$f":"IFERROR(IF(ISBLANK(tblDataEntry1316[[#This Row],[Rate Override]]),CEILING(tblDataEntry1316[[#This Row],[Quantity]]/tblDataEntry1316[[#This Row],[User Factored Rate]],1),CEILING(tblDataEntry1316[[#This Row],[Quantity]]/tblDataEntry1316[[#This Row],[Rate Override]],1)),\"---\")","v":"---"}]
[null,null,null,null,null,null,null,null,null,{"$f":"IFERROR(tblDataEntry1316[[#This Row],[Default (Avg.) Rate]]*(1+dsEstimatorAdjustment/100),\"---\")","v":0},null,{"$f":"IFERROR(IF(ISBLANK(tblDataEntry1316[[#This Row],[Rate Override]]),CEILING(tblDataEntry1316[[#This Row],[Quantity]]/tblDataEntry1316[[#This Row],[User Factored Rate]],1),CEILING(tblDataEntry1316[[#This Row],[Quantity]]/tblDataEntry1316[[#This Row],[Rate Override]],1)),\"---\")","v":"---"}]
[null,null,null,null,null,null,null,null,null,{"$f":"IFERROR(tblDataEntry1316[[#This Row],[Default (Avg.) Rate]]*(1+dsEstimatorAdjustment/100),\"---\")","v":0},null,{"$f":"IFERROR(IF(ISBLANK(tblDataEntry1316[[#This Row],[Rate Override]]),CEILING(tblDataEntry1316[[#This Row],[Quantity]]/tblDataEntry1316[[#This Row],[User Factored Rate]],1),CEILING(tblDataEntry1316[[#This Row],[Quantity]]/tblDataEntry1316[[#This Row],[Rate Override]],1)),\"---\")","v":"---"}]
[null,null,null,null,null,null,null,null,null,{"$f":"IFERROR(tblDataEntry1316[[#This Row],[Default (Avg.) Rate]]*(1+dsEstimatorAdjustment/100),\"---\")","v":0},null,{"$f":"IFERROR(IF(ISBLANK(tblDataEntry1316[[#This Row],[Rate Override]]),CEILING(tblDataEntry1316[[#This Row],[Quantity]]/tblDataEntry1316[[#This Row],[User Factored Rate]],1),CEILING(tblDataEntry1316[[#This Row],[Quantity]]/tblDataEntry1316[[#This Row],[Rate Override]],1)),\"---\")","v":"---"}]
[null,null,null,null,null,null,null,null,null,{"$f":"IFERROR(tblDataEntry1316[[#This Row],[Default (Avg.) Rate]]*(1+dsEstimatorAdjustment/100),\"---\")","v":0},null,{"$f":"IFERROR(IF(ISBLANK(tblDataEntry1316[[#This Row],[Rate Override]]),CEILING(tblDataEntry1316[[#This Row],[Quantity]]/tblDataEntry1316[[#This Row],[User Factored Rate]],1),CEILING(tblDataEntry1316[[#This Row],[Quantity]]/tblDataEntry1316[[#This Row],[Rate Override]],1)),\"---\")","v":"---"}]
[null,null,null,null,null,null,null,null,null,{"$f":"IFERROR(tblDataEntry1316[[#This Row],[Default (Avg.) Rate]]*(1+dsEstimatorAdjustment/100),\"---\")","v":0},null,{"$f":"IFERROR(IF(ISBLANK(tblDataEntry1316[[#This Row],[Rate Override]]),CEILING(tblDataEntry1316[[#This Row],[Quantity]]/tblDataEntry1316[[#This Row],[User Factored Rate]],1),CEILING(tblDataEntry1316[[#This Row],[Quantity]]/tblDataEntry1316[[#This Row],[Rate Override]],1)),\"---\")","v":"---"}]
[null,null,null,null,null,null,null,null,null,{"$f":"IFERROR(tblDataEntry1316[[#This Row],[Default (Avg.) Rate]]*(1+dsEstimatorAdjustment/100),\"---\")","v":0},null,{"$f":"IFERROR(IF(ISBLANK(tblDataEntry1316[[#This Row],[Rate Override]]),CEILING(tblDataEntry1316[[#This Row],[Quantity]]/tblDataEntry1316[[#This Row],[User Factored Rate]],1),CEILING(tblDataEntry1316[[#This Row],[Quantity]]/tblDataEntry1316[[#This Row],[Rate Override]],1)),\"---\")","v":"---"}]
[null,null,null,null,null,null,null,null,null,{"$f":"IFERROR(tblDataEntry1316[[#This Row],[Default (Avg.) Rate]]*(1+dsEstimatorAdjustment/100),\"---\")","v":0},null,{"$f":"IFERROR(IF(ISBLANK(tblDataEntry1316[[#This Row],[Rate Override]]),CEILING(tblDataEntry1316[[#This Row],[Quantity]]/tblDataEntry1316[[#This Row],[User Factored Rate]],1),CEILING(tblDataEntry1316[[#This Row],[Quantity]]/tblDataEntry1316[[#This Row],[Rate Override]],1)),\"---\")","v":"---"}]
[null,null,null,null,null,null,null,null,null,{"$f":"IFERROR(tblDataEntry1316[[#This Row],[Default (Avg.) Rate]]*(1+dsEstimatorAdjustment/100),\"---\")","v":0},null,{"$f":"IFERROR(IF(ISBLANK(tblDataEntry1316[[#This Row],[Rate Override]]),CEILING(tblDataEntry1316[[#This Row],[Quantity]]/tblDataEntry1316[[#This Row],[User Factored Rate]],1),CEILING(tblDataEntry1316[[#This Row],[Quantity]]/tblDataEntry1316[[#This Row],[Rate Override]],1)),\"---\")","v":"---"}]
[null,null,null,null,null,null,null,null,null,{"$f":"IFERROR(tblDataEntry1316[[#This Row],[Default (Avg.) Rate]]*(1+dsEstimatorAdjustment/100),\"---\")","v":0},null,{"$f":"IFERROR(IF(ISBLANK(tblDataEntry1316[[#This Row],[Rate Override]]),CEILING(tblDataEntry1316[[#This Row],[Quantity]]/tblDataEntry1316[[#This Row],[User Factored Rate]],1),CEILING(tblDataEntry1316[[#This Row],[Quantity]]/tblDataEntry1316[[#This Row],[Rate Override]],1)),\"---\")","v":"---"}]
[null,null,null,null,null,null,null,null,null,{"$f":"IFERROR(tblDataEntry1316[[#This Row],[Default (Avg.) Rate]]*(1+dsEstimatorAdjustment/100),\"---\")","v":0},null,{"$f":"IFERROR(IF(ISBLANK(tblDataEntry1316[[#This Row],[Rate Override]]),CEILING(tblDataEntry1316[[#This Row],[Quantity]]/tblDataEntry1316[[#This Row],[User Factored Rate]],1),CEILING(tblDataEntry1316[[#This Row],[Quantity]]/tblDataEntry1316[[#This Row],[Rate Override]],1)),\"---\")","v":"---"}]
[null,null,null,null,null,null,null,null,null,{"$f":"IFERROR(tblDataEntry1316[[#This Row],[Default (Avg.) Rate]]*(1+dsEstimatorAdjustment/100),\"---\")","v":0},null,{"$f":"IFERROR(IF(ISBLANK(tblDataEntry1316[[#This Row],[Rate Override]]),CEILING(tblDataEntry1316[[#This Row],[Quantity]]/tblDataEntry1316[[#This Row],[User Factored Rate]],1),CEILING(tblDataEntry1316[[#This Row],[Quantity]]/tblDataEntry1316[[#This Row],[Rate Override]],1)),\"---\")","v":"---"}]
[null,null,null,null,null,null,null,null,null,{"$f":"IFERROR(tblDataEntry1316[[#This Row],[Default (Avg.) Rate]]*(1+dsEstimatorAdjustment/100),\"---\")","v":0},null,{"$f":"IFERROR(IF(ISBLANK(tblDataEntry1316[[#This Row],[Rate Override]]),CEILING(tblDataEntry1316[[#This Row],[Quantity]]/tblDataEntry1316[[#This Row],[User Factored Rate]],1),CEILING(tblDataEntry1316[[#This Row],[Quantity]]/tblDataEntry1316[[#This Row],[Rate Override]],1)),\"---\")","v":"---"}]
[null,null,null,null,null,null,null,null,null,{"$f":"IFERROR(tblDataEntry1316[[#This Row],[Default (Avg.) Rate]]*(1+dsEstimatorAdjustment/100),\"---\")","v":0},null,{"$f":"IFERROR(IF(ISBLANK(tblDataEntry1316[[#This Row],[Rate Override]]),CEILING(tblDataEntry1316[[#This Row],[Quantity]]/tblDataEntry1316[[#This Row],[User Factored Rate]],1),CEILING(tblDataEntry1316[[#This Row],[Quantity]]/tblDataEntry1316[[#This Row],[Rate Override]],1)),\"---\")","v":"---"}]
[null,null,null,null,null,null,null,null,null,{"$f":"IFERROR(tblDataEntry1316[[#This Row],[Default (Avg.) Rate]]*(1+dsEstimatorAdjustment/100),\"---\")","v":0},null,{"$f":"IFERROR(IF(ISBLANK(tblDataEntry1316[[#This Row],[Rate Override]]),CEILING(tblDataEntry1316[[#This Row],[Quantity]]/tblDataEntry1316[[#This Row],[User Factored Rate]],1),CEILING(tblDataEntry1316[[#This Row],[Quantity]]/tblDataEntry1316[[#This Row],[Rate Override]],1)),\"---\")","v":"---"}]
[null,null,null,null,null,null,null,null,null,{"$f":"IFERROR(tblDataEntry1316[[#This Row],[Default (Avg.) Rate]]*(1+dsEstimatorAdjustment/100),\"---\")","v":0},null,{"$f":"IFERROR(IF(ISBLANK(tblDataEntry1316[[#This Row],[Rate Override]]),CEILING(tblDataEntry1316[[#This Row],[Quantity]]/tblDataEntry1316[[#This Row],[User Factored Rate]],1),CEILING(tblDataEntry1316[[#This Row],[Quantity]]/tblDataEntry1316[[#This Row],[Rate Override]],1)),\"---\")","v":"---"}]
[null,null,null,null,null,null,null,null,null,{"$f":"IFERROR(tblDataEntry1316[[#This Row],[Default (Avg.) Rate]]*(1+dsEstimatorAdjustment/100),\"---\")","v":0},null,{"$f":"IFERROR(IF(ISBLANK(tblDataEntry1316[[#This Row],[Rate Override]]),CEILING(tblDataEntry1316[[#This Row],[Quantity]]/tblDataEntry1316[[#This Row],[User Factored Rate]],1),CEILING(tblDataEntry1316[[#This Row],[Quantity]]/tblDataEntry1316[[#This Row],[Rate Override]],1)),\"---\")","v":"---"}]
[null,null,null,null,null,null,null,null,null,{"$f":"IFERROR(tblDataEntry1316[[#This Row],[Default (Avg.) Rate]]*(1+dsEstimatorAdjustment/100),\"---\")","v":0},null,{"$f":"IFERROR(IF(ISBLANK(tblDataEntry1316[[#This Row],[Rate Override]]),CEILING(tblDataEntry1316[[#This Row],[Quantity]]/tblDataEntry1316[[#This Row],[User Factored Rate]],1),CEILING(tblDataEntry1316[[#This Row],[Quantity]]/tblDataEntry1316[[#This Row],[Rate Override]],1)),\"---\")","v":"---"}]
[null,null,null,null,null,null,null,null,null,{"$f":"IFERROR(tblDataEntry1316[[#This Row],[Default (Avg.) Rate]]*(1+dsEstimatorAdjustment/100),\"---\")","v":0},null,{"$f":"IFERROR(IF(ISBLANK(tblDataEntry1316[[#This Row],[Rate Override]]),CEILING(tblDataEntry1316[[#This Row],[Quantity]]/tblDataEntry1316[[#This Row],[User Factored Rate]],1),CEILING(tblDataEntry1316[[#This Row],[Quantity]]/tblDataEntry1316[[#This Row],[Rate Override]],1)),\"---\")","v":"---"}]
[null,null,null,null,null,null,null,null,null,{"$f":"IFERROR(tblDataEntry1316[[#This Row],[Default (Avg.) Rate]]*(1+dsEstimatorAdjustment/100),\"---\")","v":0},null,{"$f":"IFERROR(IF(ISBLANK(tblDataEntry1316[[#This Row],[Rate Override]]),CEILING(tblDataEntry1316[[#This Row],[Quantity]]/tblDataEntry1316[[#This Row],[User Factored Rate]],1),CEILING(tblDataEntry1316[[#This Row],[Quantity]]/tblDataEntry1316[[#This Row],[Rate Override]],1)),\"---\")","v":"---"}]
[null,null,null,null,null,null,null,null,null,{"$f":"IFERROR(tblDataEntry1316[[#This Row],[Default (Avg.) Rate]]*(1+dsEstimatorAdjustment/100),\"---\")","v":0},null,{"$f":"IFERROR(IF(ISBLANK(tblDataEntry1316[[#This Row],[Rate Override]]),CEILING(tblDataEntry1316[[#This Row],[Quantity]]/tblDataEntry1316[[#This Row],[User Factored Rate]],1),CEILING(tblDataEntry1316[[#This Row],[Quantity]]/tblDataEntry1316[[#This Row],[Rate Override]],1)),\"---\")","v":"---"}]
[null,null,null,null,null,null,null,null,null,{"$f":"IFERROR(tblDataEntry1316[[#This Row],[Default (Avg.) Rate]]*(1+dsEstimatorAdjustment/100),\"---\")","v":0},null,{"$f":"IFERROR(IF(ISBLANK(tblDataEntry1316[[#This Row],[Rate Override]]),CEILING(tblDataEntry1316[[#This Row],[Quantity]]/tblDataEntry1316[[#This Row],[User Factored Rate]],1),CEILING(tblDataEntry1316[[#This Row],[Quantity]]/tblDataEntry1316[[#This Row],[Rate Override]],1)),\"---\")","v":"---"}]
[null,null,null,null,null,null,null,null,null,{"$f":"IFERROR(tblDataEntry1316[[#This Row],[Default (Avg.) Rate]]*(1+dsEstimatorAdjustment/100),\"---\")","v":0},null,{"$f":"IFERROR(IF(ISBLANK(tblDataEntry1316[[#This Row],[Rate Override]]),CEILING(tblDataEntry1316[[#This Row],[Quantity]]/tblDataEntry1316[[#This Row],[User Factored Rate]],1),CEILING(tblDataEntry1316[[#This Row],[Quantity]]/tblDataEntry1316[[#This Row],[Rate Override]],1)),\"---\")","v":"---"}]
[null,null,null,null,null,null,null,null,null,{"$f":"IFERROR(tblDataEntry1316[[#This Row],[Default (Avg.) Rate]]*(1+dsEstimatorAdjustment/100),\"---\")","v":0},null,{"$f":"IFERROR(IF(ISBLANK(tblDataEntry1316[[#This Row],[Rate Override]]),CEILING(tblDataEntry1316[[#This Row],[Quantity]]/tblDataEntry1316[[#This Row],[User Factored Rate]],1),CEILING(tblDataEntry1316[[#This Row],[Quantity]]/tblDataEntry1316[[#This Row],[Rate Override]],1)),\"---\")","v":"---"}]
[null,null,null,null,null,null,null,null,null,{"$f":"IFERROR(tblDataEntry1316[[#This Row],[Default (Avg.) Rate]]*(1+dsEstimatorAdjustment/100),\"---\")","v":0},null,{"$f":"IFERROR(IF(ISBLANK(tblDataEntry1316[[#This Row],[Rate Override]]),CEILING(tblDataEntry1316[[#This Row],[Quantity]]/tblDataEntry1316[[#This Row],[User Factored Rate]],1),CEILING(tblDataEntry1316[[#This Row],[Quantity]]/tblDataEntry1316[[#This Row],[Rate Override]],1)),\"---\")","v":"---"}]
[null,null,null,null,null,null,null,null,null,{"$f":"IFERROR(tblDataEntry1316[[#This Row],[Default (Avg.) Rate]]*(1+dsEstimatorAdjustment/100),\"---\")","v":0},null,{"$f":"IFERROR(IF(ISBLANK(tblDataEntry1316[[#This Row],[Rate Override]]),CEILING(tblDataEntry1316[[#This Row],[Quantity]]/tblDataEntry1316[[#This Row],[User Factored Rate]],1),CEILING(tblDataEntry1316[[#This Row],[Quantity]]/tblDataEntry1316[[#This Row],[Rate Override]],1)),\"---\")","v":"---"}]
[null,null,null,null,null,null,null,null,null,{"$f":"IFERROR(tblDataEntry1316[[#This Row],[Default (Avg.) Rate]]*(1+dsEstimatorAdjustment/100),\"---\")","v":0},null,{"$f":"IFERROR(IF(ISBLANK(tblDataEntry1316[[#This Row],[Rate Override]]),CEILING(tblDataEntry1316[[#This Row],[Quantity]]/tblDataEntry1316[[#This Row],[User Factored Rate]],1),CEILING(tblDataEntry1316[[#This Row],[Quantity]]/tblDataEntry1316[[#This Row],[Rate Override]],1)),\"---\")","v":"---"}]
[null,null,null,null,null,null,null,null,null,{"$f":"IFERROR(tblDataEntry1316[[#This Row],[Default (Avg.) Rate]]*(1+dsEstimatorAdjustment/100),\"---\")","v":0},null,{"$f":"IFERROR(IF(ISBLANK(tblDataEntry1316[[#This Row],[Rate Override]]),CEILING(tblDataEntry1316[[#This Row],[Quantity]]/tblDataEntry1316[[#This Row],[User Factored Rate]],1),CEILING(tblDataEntry1316[[#This Row],[Quantity]]/tblDataEntry1316[[#This Row],[Rate Override]],1)),\"---\")","v":"---"}]
[null,null,null,null,null,null,null,null,null,{"$f":"IFERROR(tblDataEntry1316[[#This Row],[Default (Avg.) Rate]]*(1+dsEstimatorAdjustment/100),\"---\")","v":0},null,{"$f":"IFERROR(IF(ISBLANK(tblDataEntry1316[[#This Row],[Rate Override]]),CEILING(tblDataEntry1316[[#This Row],[Quantity]]/tblDataEntry1316[[#This Row],[User Factored Rate]],1),CEILING(tblDataEntry1316[[#This Row],[Quantity]]/tblDataEntry1316[[#This Row],[Rate Override]],1)),\"---\")","v":"---"}]
[null,null,null,null,null,null,null,null,null,{"$f":"IFERROR(tblDataEntry1316[[#This Row],[Default (Avg.) Rate]]*(1+dsEstimatorAdjustment/100),\"---\")","v":0},null,{"$f":"IFERROR(IF(ISBLANK(tblDataEntry1316[[#This Row],[Rate Override]]),CEILING(tblDataEntry1316[[#This Row],[Quantity]]/tblDataEntry1316[[#This Row],[User Factored Rate]],1),CEILING(tblDataEntry1316[[#This Row],[Quantity]]/tblDataEntry1316[[#This Row],[Rate Override]],1)),\"---\")","v":"---"}]
[null,null,null,null,null,null,null,null,null,{"$f":"IFERROR(tblDataEntry1316[[#This Row],[Default (Avg.) Rate]]*(1+dsEstimatorAdjustment/100),\"---\")","v":0},null,{"$f":"IFERROR(IF(ISBLANK(tblDataEntry1316[[#This Row],[Rate Override]]),CEILING(tblDataEntry1316[[#This Row],[Quantity]]/tblDataEntry1316[[#This Row],[User Factored Rate]],1),CEILING(tblDataEntry1316[[#This Row],[Quantity]]/tblDataEntry1316[[#This Row],[Rate Override]],1)),\"---\")","v":"---"}]
[null,null,null,null,null,null,null,null,null,{"$f":"IFERROR(tblDataEntry1316[[#This Row],[Default (Avg.) Rate]]*(1+dsEstimatorAdjustment/100),\"---\")","v":0},null,{"$f":"IFERROR(IF(ISBLANK(tblDataEntry1316[[#This Row],[Rate Override]]),CEILING(tblDataEntry1316[[#This Row],[Quantity]]/tblDataEntry1316[[#This Row],[User Factored Rate]],1),CEILING(tblDataEntry1316[[#This Row],[Quantity]]/tblDataEntry1316[[#This Row],[Rate Override]],1)),\"---\")","v":"---"}]
[null,null,null,null,null,null,null,null,null,{"$f":"IFERROR(tblDataEntry1316[[#This Row],[Default (Avg.) Rate]]*(1+dsEstimatorAdjustment/100),\"---\")","v":0},null,{"$f":"IFERROR(IF(ISBLANK(tblDataEntry1316[[#This Row],[Rate Override]]),CEILING(tblDataEntry1316[[#This Row],[Quantity]]/tblDataEntry1316[[#This Row],[User Factored Rate]],1),CEILING(tblDataEntry1316[[#This Row],[Quantity]]/tblDataEntry1316[[#This Row],[Rate Override]],1)),\"---\")","v":"---"}]
[null,null,null,null,null,null,null,null,null,{"$f":"IFERROR(tblDataEntry1316[[#This Row],[Default (Avg.) Rate]]*(1+dsEstimatorAdjustment/100),\"---\")","v":0},null,{"$f":"IFERROR(IF(ISBLANK(tblDataEntry1316[[#This Row],[Rate Override]]),CEILING(tblDataEntry1316[[#This Row],[Quantity]]/tblDataEntry1316[[#This Row],[User Factored Rate]],1),CEILING(tblDataEntry1316[[#This Row],[Quantity]]/tblDataEntry1316[[#This Row],[Rate Override]],1)),\"---\")","v":"---"}]
[null,null,null,null,null,null,null,null,null,{"$f":"IFERROR(tblDataEntry1316[[#This Row],[Default (Avg.) Rate]]*(1+dsEstimatorAdjustment/100),\"---\")","v":0},null,{"$f":"IFERROR(IF(ISBLANK(tblDataEntry1316[[#This Row],[Rate Override]]),CEILING(tblDataEntry1316[[#This Row],[Quantity]]/tblDataEntry1316[[#This Row],[User Factored Rate]],1),CEILING(tblDataEntry1316[[#This Row],[Quantity]]/tblDataEntry1316[[#This Row],[Rate Override]],1)),\"---\")","v":"---"}]
[null,null,null,null,null,null,null,null,null,{"$f":"IFERROR(tblDataEntry1316[[#This Row],[Default (Avg.) Rate]]*(1+dsEstimatorAdjustment/100),\"---\")","v":0},null,{"$f":"IFERROR(IF(ISBLANK(tblDataEntry1316[[#This Row],[Rate Override]]),CEILING(tblDataEntry1316[[#This Row],[Quantity]]/tblDataEntry1316[[#This Row],[User Factored Rate]],1),CEILING(tblDataEntry1316[[#This Row],[Quantity]]/tblDataEntry1316[[#This Row],[Rate Override]],1)),\"---\")","v":"---"}]
[null,null,null,null,null,null,null,null,null,{"$f":"IFERROR(tblDataEntry1316[[#This Row],[Default (Avg.) Rate]]*(1+dsEstimatorAdjustment/100),\"---\")","v":0},null,{"$f":"IFERROR(IF(ISBLANK(tblDataEntry1316[[#This Row],[Rate Override]]),CEILING(tblDataEntry1316[[#This Row],[Quantity]]/tblDataEntry1316[[#This Row],[User Factored Rate]],1),CEILING(tblDataEntry1316[[#This Row],[Quantity]]/tblDataEntry1316[[#This Row],[Rate Override]],1)),\"---\")","v":"---"}]
[null,null,null,null,null,null,null,null,null,{"$f":"IFERROR(tblDataEntry1316[[#This Row],[Default (Avg.) Rate]]*(1+dsEstimatorAdjustment/100),\"---\")","v":0},null,{"$f":"IFERROR(IF(ISBLANK(tblDataEntry1316[[#This Row],[Rate Override]]),CEILING(tblDataEntry1316[[#This Row],[Quantity]]/tblDataEntry1316[[#This Row],[User Factored Rate]],1),CEILING(tblDataEntry1316[[#This Row],[Quantity]]/tblDataEntry1316[[#This Row],[Rate Override]],1)),\"---\")","v":"---"}]
[null,null,null,null,null,null,null,null,null,{"$f":"IFERROR(tblDataEntry1316[[#This Row],[Default (Avg.) Rate]]*(1+dsEstimatorAdjustment/100),\"---\")","v":0},null,{"$f":"IFERROR(IF(ISBLANK(tblDataEntry1316[[#This Row],[Rate Override]]),CEILING(tblDataEntry1316[[#This Row],[Quantity]]/tblDataEntry1316[[#This Row],[User Factored Rate]],1),CEILING(tblDataEntry1316[[#This Row],[Quantity]]/tblDataEntry1316[[#This Row],[Rate Override]],1)),\"---\")","v":"---"}]
[null,null,null,null,null,null,null,null,null,{"$f":"IFERROR(tblDataEntry1316[[#This Row],[Default (Avg.) Rate]]*(1+dsEstimatorAdjustment/100),\"---\")","v":0},null,{"$f":"IFERROR(IF(ISBLANK(tblDataEntry1316[[#This Row],[Rate Override]]),CEILING(tblDataEntry1316[[#This Row],[Quantity]]/tblDataEntry1316[[#This Row],[User Factored Rate]],1),CEILING(tblDataEntry1316[[#This Row],[Quantity]]/tblDataEntry1316[[#This Row],[Rate Override]],1)),\"---\")","v":"---"}]
[null,null,null,null,null,null,null,null,null,{"$f":"IFERROR(tblDataEntry1316[[#This Row],[Default (Avg.) Rate]]*(1+dsEstimatorAdjustment/100),\"---\")","v":0},null,{"$f":"IFERROR(IF(ISBLANK(tblDataEntry1316[[#This Row],[Rate Override]]),CEILING(tblDataEntry1316[[#This Row],[Quantity]]/tblDataEntry1316[[#This Row],[User Factored Rate]],1),CEILING(tblDataEntry1316[[#This Row],[Quantity]]/tblDataEntry1316[[#This Row],[Rate Override]],1)),\"---\")","v":"---"}]
[null,null,null,null,null,null,null,null,null,{"$f":"IFERROR(tblDataEntry1316[[#This Row],[Default (Avg.) Rate]]*(1+dsEstimatorAdjustment/100),\"---\")","v":0},null,{"$f":"IFERROR(IF(ISBLANK(tblDataEntry1316[[#This Row],[Rate Override]]),CEILING(tblDataEntry1316[[#This Row],[Quantity]]/tblDataEntry1316[[#This Row],[User Factored Rate]],1),CEILING(tblDataEntry1316[[#This Row],[Quantity]]/tblDataEntry1316[[#This Row],[Rate Override]],1)),\"---\")","v":"---"}]
[null,null,null,null,null,null,null,null,null,{"$f":"IFERROR(tblDataEntry1316[[#This Row],[Default (Avg.) Rate]]*(1+dsEstimatorAdjustment/100),\"---\")","v":0},null,{"$f":"IFERROR(IF(ISBLANK(tblDataEntry1316[[#This Row],[Rate Override]]),CEILING(tblDataEntry1316[[#This Row],[Quantity]]/tblDataEntry1316[[#This Row],[User Factored Rate]],1),CEILING(tblDataEntry1316[[#This Row],[Quantity]]/tblDataEntry1316[[#This Row],[Rate Override]],1)),\"---\")","v":"---"}]
[null,null,null,null,null,null,null,null,null,{"$f":"IFERROR(tblDataEntry1316[[#This Row],[Default (Avg.) Rate]]*(1+dsEstimatorAdjustment/100),\"---\")","v":0},null,{"$f":"IFERROR(IF(ISBLANK(tblDataEntry1316[[#This Row],[Rate Override]]),CEILING(tblDataEntry1316[[#This Row],[Quantity]]/tblDataEntry1316[[#This Row],[User Factored Rate]],1),CEILING(tblDataEntry1316[[#This Row],[Quantity]]/tblDataEntry1316[[#This Row],[Rate Override]],1)),\"---\")","v":"---"}]
[null,null,null,null,null,null,null,null,null,{"$f":"IFERROR(tblDataEntry1316[[#This Row],[Default (Avg.) Rate]]*(1+dsEstimatorAdjustment/100),\"---\")","v":0},null,{"$f":"IFERROR(IF(ISBLANK(tblDataEntry1316[[#This Row],[Rate Override]]),CEILING(tblDataEntry1316[[#This Row],[Quantity]]/tblDataEntry1316[[#This Row],[User Factored Rate]],1),CEILING(tblDataEntry1316[[#This Row],[Quantity]]/tblDataEntry1316[[#This Row],[Rate Override]],1)),\"---\")","v":"---"}]
[null,null,null,null,null,null,null,null,null,{"$f":"IFERROR(tblDataEntry1316[[#This Row],[Default (Avg.) Rate]]*(1+dsEstimatorAdjustment/100),\"---\")","v":0},null,{"$f":"IFERROR(IF(ISBLANK(tblDataEntry1316[[#This Row],[Rate Override]]),CEILING(tblDataEntry1316[[#This Row],[Quantity]]/tblDataEntry1316[[#This Row],[User Factored Rate]],1),CEILING(tblDataEntry1316[[#This Row],[Quantity]]/tblDataEntry1316[[#This Row],[Rate Override]],1)),\"---\")","v":"---"}]
[null,null,null,null,null,null,null,null,null,{"$f":"IFERROR(tblDataEntry1316[[#This Row],[Default (Avg.) Rate]]*(1+dsEstimatorAdjustment/100),\"---\")","v":0},null,{"$f":"IFERROR(IF(ISBLANK(tblDataEntry1316[[#This Row],[Rate Override]]),CEILING(tblDataEntry1316[[#This Row],[Quantity]]/tblDataEntry1316[[#This Row],[User Factored Rate]],1),CEILING(tblDataEntry1316[[#This Row],[Quantity]]/tblDataEntry1316[[#This Row],[Rate Override]],1)),\"---\")","v":"---"}]
[null,null,null,null,null,null,null,null,null,{"$f":"IFERROR(tblDataEntry1316[[#This Row],[Default (Avg.) Rate]]*(1+dsEstimatorAdjustment/100),\"---\")","v":0},null,{"$f":"IFERROR(IF(ISBLANK(tblDataEntry1316[[#This Row],[Rate Override]]),CEILING(tblDataEntry1316[[#This Row],[Quantity]]/tblDataEntry1316[[#This Row],[User Factored Rate]],1),CEILING(tblDataEntry1316[[#This Row],[Quantity]]/tblDataEntry1316[[#This Row],[Rate Override]],1)),\"---\")","v":"---"}]
[null,null,null,null,null,null,null,null,null,{"$f":"IFERROR(tblDataEntry1316[[#This Row],[Default (Avg.) Rate]]*(1+dsEstimatorAdjustment/100),\"---\")","v":0},null,{"$f":"IFERROR(IF(ISBLANK(tblDataEntry1316[[#This Row],[Rate Override]]),CEILING(tblDataEntry1316[[#This Row],[Quantity]]/tblDataEntry1316[[#This Row],[User Factored Rate]],1),CEILING(tblDataEntry1316[[#This Row],[Quantity]]/tblDataEntry1316[[#This Row],[Rate Override]],1)),\"---\")","v":"---"}]
[null,null,null,null,null,null,null,null,null,{"$f":"IFERROR(tblDataEntry1316[[#This Row],[Default (Avg.) Rate]]*(1+dsEstimatorAdjustment/100),\"---\")","v":0},null,{"$f":"IFERROR(IF(ISBLANK(tblDataEntry1316[[#This Row],[Rate Override]]),CEILING(tblDataEntry1316[[#This Row],[Quantity]]/tblDataEntry1316[[#This Row],[User Factored Rate]],1),CEILING(tblDataEntry1316[[#This Row],[Quantity]]/tblDataEntry1316[[#This Row],[Rate Override]],1)),\"---\")","v":"---"}]
[null,null,null,null,null,null,null,null,null,{"$f":"IFERROR(tblDataEntry1316[[#This Row],[Default (Avg.) Rate]]*(1+dsEstimatorAdjustment/100),\"---\")","v":0},null,{"$f":"IFERROR(IF(ISBLANK(tblDataEntry1316[[#This Row],[Rate Override]]),CEILING(tblDataEntry1316[[#This Row],[Quantity]]/tblDataEntry1316[[#This Row],[User Factored Rate]],1),CEILING(tblDataEntry1316[[#This Row],[Quantity]]/tblDataEntry1316[[#This Row],[Rate Override]],1)),\"---\")","v":"---"}]
[null,null,null,null,null,null,null,null,null,{"$f":"IFERROR(tblDataEntry1316[[#This Row],[Default (Avg.) Rate]]*(1+dsEstimatorAdjustment/100),\"---\")","v":0},null,{"$f":"IFERROR(IF(ISBLANK(tblDataEntry1316[[#This Row],[Rate Override]]),CEILING(tblDataEntry1316[[#This Row],[Quantity]]/tblDataEntry1316[[#This Row],[User Factored Rate]],1),CEILING(tblDataEntry1316[[#This Row],[Quantity]]/tblDataEntry1316[[#This Row],[Rate Override]],1)),\"---\")","v":"---"}]
[null,null,null,null,null,null,null,null,null,{"$f":"IFERROR(tblDataEntry1316[[#This Row],[Default (Avg.) Rate]]*(1+dsEstimatorAdjustment/100),\"---\")","v":0},null,{"$f":"IFERROR(IF(ISBLANK(tblDataEntry1316[[#This Row],[Rate Override]]),CEILING(tblDataEntry1316[[#This Row],[Quantity]]/tblDataEntry1316[[#This Row],[User Factored Rate]],1),CEILING(tblDataEntry1316[[#This Row],[Quantity]]/tblDataEntry1316[[#This Row],[Rate Override]],1)),\"---\")","v":"---"}]
[null,null,null,null,null,null,null,null,null,{"$f":"IFERROR(tblDataEntry1316[[#This Row],[Default (Avg.) Rate]]*(1+dsEstimatorAdjustment/100),\"---\")","v":0},null,{"$f":"IFERROR(IF(ISBLANK(tblDataEntry1316[[#This Row],[Rate Override]]),CEILING(tblDataEntry1316[[#This Row],[Quantity]]/tblDataEntry1316[[#This Row],[User Factored Rate]],1),CEILING(tblDataEntry1316[[#This Row],[Quantity]]/tblDataEntry1316[[#This Row],[Rate Override]],1)),\"---\")","v":"---"}]
[null,null,null,null,null,null,null,null,null,{"$f":"IFERROR(tblDataEntry1316[[#This Row],[Default (Avg.) Rate]]*(1+dsEstimatorAdjustment/100),\"---\")","v":0},null,{"$f":"IFERROR(IF(ISBLANK(tblDataEntry1316[[#This Row],[Rate Override]]),CEILING(tblDataEntry1316[[#This Row],[Quantity]]/tblDataEntry1316[[#This Row],[User Factored Rate]],1),CEILING(tblDataEntry1316[[#This Row],[Quantity]]/tblDataEntry1316[[#This Row],[Rate Override]],1)),\"---\")","v":"---"}]
[null,null,null,null,null,null,null,null,null,{"$f":"IFERROR(tblDataEntry1316[[#This Row],[Default (Avg.) Rate]]*(1+dsEstimatorAdjustment/100),\"---\")","v":0},null,{"$f":"IFERROR(IF(ISBLANK(tblDataEntry1316[[#This Row],[Rate Override]]),CEILING(tblDataEntry1316[[#This Row],[Quantity]]/tblDataEntry1316[[#This Row],[User Factored Rate]],1),CEILING(tblDataEntry1316[[#This Row],[Quantity]]/tblDataEntry1316[[#This Row],[Rate Override]],1)),\"---\")","v":"---"}]
[null,null,null,null,null,null,null,null,null,{"$f":"IFERROR(tblDataEntry1316[[#This Row],[Default (Avg.) Rate]]*(1+dsEstimatorAdjustment/100),\"---\")","v":0},null,{"$f":"IFERROR(IF(ISBLANK(tblDataEntry1316[[#This Row],[Rate Override]]),CEILING(tblDataEntry1316[[#This Row],[Quantity]]/tblDataEntry1316[[#This Row],[User Factored Rate]],1),CEILING(tblDataEntry1316[[#This Row],[Quantity]]/tblDataEntry1316[[#This Row],[Rate Override]],1)),\"---\")","v":"---"}]
[null,null,null,null,null,null,null,null,null,{"$f":"IFERROR(tblDataEntry1316[[#This Row],[Default (Avg.) Rate]]*(1+dsEstimatorAdjustment/100),\"---\")","v":0},null,{"$f":"IFERROR(IF(ISBLANK(tblDataEntry1316[[#This Row],[Rate Override]]),CEILING(tblDataEntry1316[[#This Row],[Quantity]]/tblDataEntry1316[[#This Row],[User Factored Rate]],1),CEILING(tblDataEntry1316[[#This Row],[Quantity]]/tblDataEntry1316[[#This Row],[Rate Override]],1)),\"---\")","v":"---"}]
[null,null,null,null,null,null,null,null,null,{"$f":"IFERROR(tblDataEntry1316[[#This Row],[Default (Avg.) Rate]]*(1+dsEstimatorAdjustment/100),\"---\")","v":0},null,{"$f":"IFERROR(IF(ISBLANK(tblDataEntry1316[[#This Row],[Rate Override]]),CEILING(tblDataEntry1316[[#This Row],[Quantity]]/tblDataEntry1316[[#This Row],[User Factored Rate]],1),CEILING(tblDataEntry1316[[#This Row],[Quantity]]/tblDataEntry1316[[#This Row],[Rate Override]],1)),\"---\")","v":"---"}]
[null,null,null,null,null,null,null,null,null,{"$f":"IFERROR(tblDataEntry1316[[#This Row],[Default (Avg.) Rate]]*(1+dsEstimatorAdjustment/100),\"---\")","v":0},null,{"$f":"IFERROR(IF(ISBLANK(tblDataEntry1316[[#This Row],[Rate Override]]),CEILING(tblDataEntry1316[[#This Row],[Quantity]]/tblDataEntry1316[[#This Row],[User Factored Rate]],1),CEILING(tblDataEntry1316[[#This Row],[Quantity]]/tblDataEntry1316[[#This Row],[Rate Override]],1)),\"---\")","v":"---"}]
[null,null,null,null,null,null,null,null,null,{"$f":"IFERROR(tblDataEntry1316[[#This Row],[Default (Avg.) Rate]]*(1+dsEstimatorAdjustment/100),\"---\")","v":0},null,{"$f":"IFERROR(IF(ISBLANK(tblDataEntry1316[[#This Row],[Rate Override]]),CEILING(tblDataEntry1316[[#This Row],[Quantity]]/tblDataEntry1316[[#This Row],[User Factored Rate]],1),CEILING(tblDataEntry1316[[#This Row],[Quantity]]/tblDataEntry1316[[#This Row],[Rate Override]],1)),\"---\")","v":"---"}]
[null,null,null,null,null,null,null,null,null,{"$f":"IFERROR(tblDataEntry1316[[#This Row],[Default (Avg.) Rate]]*(1+dsEstimatorAdjustment/100),\"---\")","v":0},null,{"$f":"IFERROR(IF(ISBLANK(tblDataEntry1316[[#This Row],[Rate Override]]),CEILING(tblDataEntry1316[[#This Row],[Quantity]]/tblDataEntry1316[[#This Row],[User Factored Rate]],1),CEILING(tblDataEntry1316[[#This Row],[Quantity]]/tblDataEntry1316[[#This Row],[Rate Override]],1)),\"---\")","v":"---"}]
[null,null,null,null,null,null,null,null,null,{"$f":"IFERROR(tblDataEntry1316[[#This Row],[Default (Avg.) Rate]]*(1+dsEstimatorAdjustment/100),\"---\")","v":0},null,{"$f":"IFERROR(IF(ISBLANK(tblDataEntry1316[[#This Row],[Rate Override]]),CEILING(tblDataEntry1316[[#This Row],[Quantity]]/tblDataEntry1316[[#This Row],[User Factored Rate]],1),CEILING(tblDataEntry1316[[#This Row],[Quantity]]/tblDataEntry1316[[#This Row],[Rate Override]],1)),\"---\")","v":"---"}]
[null,null,null,null,null,null,null,null,null,{"$f":"IFERROR(tblDataEntry1316[[#This Row],[Default (Avg.) Rate]]*(1+dsEstimatorAdjustment/100),\"---\")","v":0},null,{"$f":"IFERROR(IF(ISBLANK(tblDataEntry1316[[#This Row],[Rate Override]]),CEILING(tblDataEntry1316[[#This Row],[Quantity]]/tblDataEntry1316[[#This Row],[User Factored Rate]],1),CEILING(tblDataEntry1316[[#This Row],[Quantity]]/tblDataEntry1316[[#This Row],[Rate Override]],1)),\"---\")","v":"---"}]
[null,null,null,null,null,null,null,null,null,{"$f":"IFERROR(tblDataEntry1316[[#This Row],[Default (Avg.) Rate]]*(1+dsEstimatorAdjustment/100),\"---\")","v":0},null,{"$f":"IFERROR(IF(ISBLANK(tblDataEntry1316[[#This Row],[Rate Override]]),CEILING(tblDataEntry1316[[#This Row],[Quantity]]/tblDataEntry1316[[#This Row],[User Factored Rate]],1),CEILING(tblDataEntry1316[[#This Row],[Quantity]]/tblDataEntry1316[[#This Row],[Rate Override]],1)),\"---\")","v":"---"}]
[null,null,null,null,null,null,null,null,null,{"$f":"IFERROR(tblDataEntry1316[[#This Row],[Default (Avg.) Rate]]*(1+dsEstimatorAdjustment/100),\"---\")","v":0},null,{"$f":"IFERROR(IF(ISBLANK(tblDataEntry1316[[#This Row],[Rate Override]]),CEILING(tblDataEntry1316[[#This Row],[Quantity]]/tblDataEntry1316[[#This Row],[User Factored Rate]],1),CEILING(tblDataEntry1316[[#This Row],[Quantity]]/tblDataEntry1316[[#This Row],[Rate Override]],1)),\"---\")","v":"---"}]
[null,null,null,null,null,null,null,null,null,{"$f":"IFERROR(tblDataEntry1316[[#This Row],[Default (Avg.) Rate]]*(1+dsEstimatorAdjustment/100),\"---\")","v":0},null,{"$f":"IFERROR(IF(ISBLANK(tblDataEntry1316[[#This Row],[Rate Override]]),CEILING(tblDataEntry1316[[#This Row],[Quantity]]/tblDataEntry1316[[#This Row],[User Factored Rate]],1),CEILING(tblDataEntry1316[[#This Row],[Quantity]]/tblDataEntry1316[[#This Row],[Rate Override]],1)),\"---\")","v":"---"}]
[null,null,null,null,null,null,null,null,null,{"$f":"IFERROR(tblDataEntry1316[[#This Row],[Default (Avg.) Rate]]*(1+dsEstimatorAdjustment/100),\"---\")","v":0},null,{"$f":"IFERROR(IF(ISBLANK(tblDataEntry1316[[#This Row],[Rate Override]]),CEILING(tblDataEntry1316[[#This Row],[Quantity]]/tblDataEntry1316[[#This Row],[User Factored Rate]],1),CEILING(tblDataEntry1316[[#This Row],[Quantity]]/tblDataEntry1316[[#This Row],[Rate Override]],1)),\"---\")","v":"---"}]
[null,null,null,null,null,null,null,null,null,{"$f":"IFERROR(tblDataEntry1316[[#This Row],[Default (Avg.) Rate]]*(1+dsEstimatorAdjustment/100),\"---\")","v":0},null,{"$f":"IFERROR(IF(ISBLANK(tblDataEntry1316[[#This Row],[Rate Override]]),CEILING(tblDataEntry1316[[#This Row],[Quantity]]/tblDataEntry1316[[#This Row],[User Factored Rate]],1),CEILING(tblDataEntry1316[[#This Row],[Quantity]]/tblDataEntry1316[[#This Row],[Rate Override]],1)),\"---\")","v":"---"}]
[null,null,null,null,null,null,null,null,null,{"$f":"IFERROR(tblDataEntry1316[[#This Row],[Default (Avg.) Rate]]*(1+dsEstimatorAdjustment/100),\"---\")","v":0},null,{"$f":"IFERROR(IF(ISBLANK(tblDataEntry1316[[#This Row],[Rate Override]]),CEILING(tblDataEntry1316[[#This Row],[Quantity]]/tblDataEntry1316[[#This Row],[User Factored Rate]],1),CEILING(tblDataEntry1316[[#This Row],[Quantity]]/tblDataEntry1316[[#This Row],[Rate Override]],1)),\"---\")","v":"---"}]
[null,null,null,null,null,null,null,null,null,{"$f":"IFERROR(tblDataEntry1316[[#This Row],[Default (Avg.) Rate]]*(1+dsEstimatorAdjustment/100),\"---\")","v":0},null,{"$f":"IFERROR(IF(ISBLANK(tblDataEntry1316[[#This Row],[Rate Override]]),CEILING(tblDataEntry1316[[#This Row],[Quantity]]/tblDataEntry1316[[#This Row],[User Factored Rate]],1),CEILING(tblDataEntry1316[[#This Row],[Quantity]]/tblDataEntry1316[[#This Row],[Rate Override]],1)),\"---\")","v":"---"}]
[null,null,null,null,null,null,null,null,null,{"$f":"IFERROR(tblDataEntry1316[[#This Row],[Default (Avg.) Rate]]*(1+dsEstimatorAdjustment/100),\"---\")","v":0},null,{"$f":"IFERROR(IF(ISBLANK(tblDataEntry1316[[#This Row],[Rate Override]]),CEILING(tblDataEntry1316[[#This Row],[Quantity]]/tblDataEntry1316[[#This Row],[User Factored Rate]],1),CEILING(tblDataEntry1316[[#This Row],[Quantity]]/tblDataEntry1316[[#This Row],[Rate Override]],1)),\"---\")","v":"---"}]
[null,null,null,null,null,null,null,null,null,{"$f":"IFERROR(tblDataEntry1316[[#This Row],[Default (Avg.) Rate]]*(1+dsEstimatorAdjustment/100),\"---\")","v":0},null,{"$f":"IFERROR(IF(ISBLANK(tblDataEntry1316[[#This Row],[Rate Override]]),CEILING(tblDataEntry1316[[#This Row],[Quantity]]/tblDataEntry1316[[#This Row],[User Factored Rate]],1),CEILING(tblDataEntry1316[[#This Row],[Quantity]]/tblDataEntry1316[[#This Row],[Rate Override]],1)),\"---\")","v":"---"}]
[null,null,null,null,null,null,null,null,null,{"$f":"IFERROR(tblDataEntry1316[[#This Row],[Default (Avg.) Rate]]*(1+dsEstimatorAdjustment/100),\"---\")","v":0},null,{"$f":"IFERROR(IF(ISBLANK(tblDataEntry1316[[#This Row],[Rate Override]]),CEILING(tblDataEntry1316[[#This Row],[Quantity]]/tblDataEntry1316[[#This Row],[User Factored Rate]],1),CEILING(tblDataEntry1316[[#This Row],[Quantity]]/tblDataEntry1316[[#This Row],[Rate Override]],1)),\"---\")","v":"---"}]
[null,null,null,null,null,null,null,null,null,{"$f":"IFERROR(tblDataEntry1316[[#This Row],[Default (Avg.) Rate]]*(1+dsEstimatorAdjustment/100),\"---\")","v":0},null,{"$f":"IFERROR(IF(ISBLANK(tblDataEntry1316[[#This Row],[Rate Override]]),CEILING(tblDataEntry1316[[#This Row],[Quantity]]/tblDataEntry1316[[#This Row],[User Factored Rate]],1),CEILING(tblDataEntry1316[[#This Row],[Quantity]]/tblDataEntry1316[[#This Row],[Rate Override]],1)),\"---\")","v":"---"}]
[null,null,null,null,null,null,null,null,null,{"$f":"IFERROR(tblDataEntry1316[[#This Row],[Default (Avg.) Rate]]*(1+dsEstimatorAdjustment/100),\"---\")","v":0},null,{"$f":"IFERROR(IF(ISBLANK(tblDataEntry1316[[#This Row],[Rate Override]]),CEILING(tblDataEntry1316[[#This Row],[Quantity]]/tblDataEntry1316[[#This Row],[User Factored Rate]],1),CEILING(tblDataEntry1316[[#This Row],[Quantity]]/tblDataEntry1316[[#This Row],[Rate Override]],1)),\"---\")","v":"---"}]
[null,null,null,null,null,null,null,null,null,{"$f":"IFERROR(tblDataEntry1316[[#This Row],[Default (Avg.) Rate]]*(1+dsEstimatorAdjustment/100),\"---\")","v":0},null,{"$f":"IFERROR(IF(ISBLANK(tblDataEntry1316[[#This Row],[Rate Override]]),CEILING(tblDataEntry1316[[#This Row],[Quantity]]/tblDataEntry1316[[#This Row],[User Factored Rate]],1),CEILING(tblDataEntry1316[[#This Row],[Quantity]]/tblDataEntry1316[[#This Row],[Rate Override]],1)),\"---\")","v":"---"}]
[null,null,null,null,null,null,null,null,null,{"$f":"IFERROR(tblDataEntry1316[[#This Row],[Default (Avg.) Rate]]*(1+dsEstimatorAdjustment/100),\"---\")","v":0},null,{"$f":"IFERROR(IF(ISBLANK(tblDataEntry1316[[#This Row],[Rate Override]]),CEILING(tblDataEntry1316[[#This Row],[Quantity]]/tblDataEntry1316[[#This Row],[User Factored Rate]],1),CEILING(tblDataEntry1316[[#This Row],[Quantity]]/tblDataEntry1316[[#This Row],[Rate Override]],1)),\"---\")","v":"---"}]
[null,null,null,null,null,null,null,null,null,{"$f":"IFERROR(tblDataEntry1316[[#This Row],[Default (Avg.) Rate]]*(1+dsEstimatorAdjustment/100),\"---\")","v":0},null,{"$f":"IFERROR(IF(ISBLANK(tblDataEntry1316[[#This Row],[Rate Override]]),CEILING(tblDataEntry1316[[#This Row],[Quantity]]/tblDataEntry1316[[#This Row],[User Factored Rate]],1),CEILING(tblDataEntry1316[[#This Row],[Quantity]]/tblDataEntry1316[[#This Row],[Rate Override]],1)),\"---\")","v":"---"}]
[null,null,null,null,null,null,null,null,null,{"$f":"IFERROR(tblDataEntry1316[[#This Row],[Default (Avg.) Rate]]*(1+dsEstimatorAdjustment/100),\"---\")","v":0},null,{"$f":"IFERROR(IF(ISBLANK(tblDataEntry1316[[#This Row],[Rate Override]]),CEILING(tblDataEntry1316[[#This Row],[Quantity]]/tblDataEntry1316[[#This Row],[User Factored Rate]],1),CEILING(tblDataEntry1316[[#This Row],[Quantity]]/tblDataEntry1316[[#This Row],[Rate Override]],1)),\"---\")","v":"---"}]
[null,null,null,null,null,null,null,null,null,{"$f":"IFERROR(tblDataEntry1316[[#This Row],[Default (Avg.) Rate]]*(1+dsEstimatorAdjustment/100),\"---\")","v":0},null,{"$f":"IFERROR(IF(ISBLANK(tblDataEntry1316[[#This Row],[Rate Override]]),CEILING(tblDataEntry1316[[#This Row],[Quantity]]/tblDataEntry1316[[#This Row],[User Factored Rate]],1),CEILING(tblDataEntry1316[[#This Row],[Quantity]]/tblDataEntry1316[[#This Row],[Rate Override]],1)),\"---\")","v":"---"}]
[null,null,null,null,null,null,null,null,null,{"$f":"IFERROR(tblDataEntry1316[[#This Row],[Default (Avg.) Rate]]*(1+dsEstimatorAdjustment/100),\"---\")","v":0},null,{"$f":"IFERROR(IF(ISBLANK(tblDataEntry1316[[#This Row],[Rate Override]]),CEILING(tblDataEntry1316[[#This Row],[Quantity]]/tblDataEntry1316[[#This Row],[User Factored Rate]],1),CEILING(tblDataEntry1316[[#This Row],[Quantity]]/tblDataEntry1316[[#This Row],[Rate Override]],1)),\"---\")","v":"---"}]
[null,null,null,null,null,null,null,null,null,{"$f":"IFERROR(tblDataEntry1316[[#This Row],[Default (Avg.) Rate]]*(1+dsEstimatorAdjustment/100),\"---\")","v":0},null,{"$f":"IFERROR(IF(ISBLANK(tblDataEntry1316[[#This Row],[Rate Override]]),CEILING(tblDataEntry1316[[#This Row],[Quantity]]/tblDataEntry1316[[#This Row],[User Factored Rate]],1),CEILING(tblDataEntry1316[[#This Row],[Quantity]]/tblDataEntry1316[[#This Row],[Rate Override]],1)),\"---\")","v":"---"}]
[null,null,null,null,null,null,null,null,null,{"$f":"IFERROR(tblDataEntry1316[[#This Row],[Default (Avg.) Rate]]*(1+dsEstimatorAdjustment/100),\"---\")","v":0},null,{"$f":"IFERROR(IF(ISBLANK(tblDataEntry1316[[#This Row],[Rate Override]]),CEILING(tblDataEntry1316[[#This Row],[Quantity]]/tblDataEntry1316[[#This Row],[User Factored Rate]],1),CEILING(tblDataEntry1316[[#This Row],[Quantity]]/tblDataEntry1316[[#This Row],[Rate Override]],1)),\"---\")","v":"---"}]
[null,null,null,null,null,null,null,null,null,{"$f":"IFERROR(tblDataEntry1316[[#This Row],[Default (Avg.) Rate]]*(1+dsEstimatorAdjustment/100),\"---\")","v":0},null,{"$f":"IFERROR(IF(ISBLANK(tblDataEntry1316[[#This Row],[Rate Override]]),CEILING(tblDataEntry1316[[#This Row],[Quantity]]/tblDataEntry1316[[#This Row],[User Factored Rate]],1),CEILING(tblDataEntry1316[[#This Row],[Quantity]]/tblDataEntry1316[[#This Row],[Rate Override]],1)),\"---\")","v":"---"}]
[null,null,null,null,null,null,null,null,null,{"$f":"IFERROR(tblDataEntry1316[[#This Row],[Default (Avg.) Rate]]*(1+dsEstimatorAdjustment/100),\"---\")","v":0},null,{"$f":"IFERROR(IF(ISBLANK(tblDataEntry1316[[#This Row],[Rate Override]]),CEILING(tblDataEntry1316[[#This Row],[Quantity]]/tblDataEntry1316[[#This Row],[User Factored Rate]],1),CEILING(tblDataEntry1316[[#This Row],[Quantity]]/tblDataEntry1316[[#This Row],[Rate Override]],1)),\"---\")","v":"---"}]
[null,null,null,null,null,null,null,null,null,{"$f":"IFERROR(tblDataEntry1316[[#This Row],[Default (Avg.) Rate]]*(1+dsEstimatorAdjustment/100),\"---\")","v":0},null,{"$f":"IFERROR(IF(ISBLANK(tblDataEntry1316[[#This Row],[Rate Override]]),CEILING(tblDataEntry1316[[#This Row],[Quantity]]/tblDataEntry1316[[#This Row],[User Factored Rate]],1),CEILING(tblDataEntry1316[[#This Row],[Quantity]]/tblDataEntry1316[[#This Row],[Rate Override]],1)),\"---\")","v":"---"}]
[null,null,null,null,null,null,null,null,null,{"$f":"IFERROR(tblDataEntry1316[[#This Row],[Default (Avg.) Rate]]*(1+dsEstimatorAdjustment/100),\"---\")","v":0},null,{"$f":"IFERROR(IF(ISBLANK(tblDataEntry1316[[#This Row],[Rate Override]]),CEILING(tblDataEntry1316[[#This Row],[Quantity]]/tblDataEntry1316[[#This Row],[User Factored Rate]],1),CEILING(tblDataEntry1316[[#This Row],[Quantity]]/tblDataEntry1316[[#This Row],[Rate Override]],1)),\"---\")","v":"---"}]
[null,null,null,null,null,null,null,null,null,{"$f":"IFERROR(tblDataEntry1316[[#This Row],[Default (Avg.) Rate]]*(1+dsEstimatorAdjustment/100),\"---\")","v":0},null,{"$f":"IFERROR(IF(ISBLANK(tblDataEntry1316[[#This Row],[Rate Override]]),CEILING(tblDataEntry1316[[#This Row],[Quantity]]/tblDataEntry1316[[#This Row],[User Factored Rate]],1),CEILING(tblDataEntry1316[[#This Row],[Quantity]]/tblDataEntry1316[[#This Row],[Rate Override]],1)),\"---\")","v":"---"}]
[null,null,null,null,null,null,null,null,null,{"$f":"IFERROR(tblDataEntry1316[[#This Row],[Default (Avg.) Rate]]*(1+dsEstimatorAdjustment/100),\"---\")","v":0},null,{"$f":"IFERROR(IF(ISBLANK(tblDataEntry1316[[#This Row],[Rate Override]]),CEILING(tblDataEntry1316[[#This Row],[Quantity]]/tblDataEntry1316[[#This Row],[User Factored Rate]],1),CEILING(tblDataEntry1316[[#This Row],[Quantity]]/tblDataEntry1316[[#This Row],[Rate Override]],1)),\"---\")","v":"---"}]
[null,null,null,null,null,null,null,null,null,{"$f":"IFERROR(tblDataEntry1316[[#This Row],[Default (Avg.) Rate]]*(1+dsEstimatorAdjustment/100),\"---\")","v":0},null,{"$f":"IFERROR(IF(ISBLANK(tblDataEntry1316[[#This Row],[Rate Override]]),CEILING(tblDataEntry1316[[#This Row],[Quantity]]/tblDataEntry1316[[#This Row],[User Factored Rate]],1),CEILING(tblDataEntry1316[[#This Row],[Quantity]]/tblDataEntry1316[[#This Row],[Rate Override]],1)),\"---\")","v":"---"}]
[null,null,null,null,null,null,null,null,null,{"$f":"IFERROR(tblDataEntry1316[[#This Row],[Default (Avg.) Rate]]*(1+dsEstimatorAdjustment/100),\"---\")","v":0},null,{"$f":"IFERROR(IF(ISBLANK(tblDataEntry1316[[#This Row],[Rate Override]]),CEILING(tblDataEntry1316[[#This Row],[Quantity]]/tblDataEntry1316[[#This Row],[User Factored Rate]],1),CEILING(tblDataEntry1316[[#This Row],[Quantity]]/tblDataEntry1316[[#This Row],[Rate Override]],1)),\"---\")","v":"---"}]
[null,null,null,null,null,null,null,null,null,{"$f":"IFERROR(tblDataEntry1316[[#This Row],[Default (Avg.) Rate]]*(1+dsEstimatorAdjustment/100),\"---\")","v":0},null,{"$f":"IFERROR(IF(ISBLANK(tblDataEntry1316[[#This Row],[Rate Override]]),CEILING(tblDataEntry1316[[#This Row],[Quantity]]/tblDataEntry1316[[#This Row],[User Factored Rate]],1),CEILING(tblDataEntry1316[[#This Row],[Quantity]]/tblDataEntry1316[[#This Row],[Rate Override]],1)),\"---\")","v":"---"}]
[null,null,null,null,null,null,null,null,null,{"$f":"IFERROR(tblDataEntry1316[[#This Row],[Default (Avg.) Rate]]*(1+dsEstimatorAdjustment/100),\"---\")","v":0},null,{"$f":"IFERROR(IF(ISBLANK(tblDataEntry1316[[#This Row],[Rate Override]]),CEILING(tblDataEntry1316[[#This Row],[Quantity]]/tblDataEntry1316[[#This Row],[User Factored Rate]],1),CEILING(tblDataEntry1316[[#This Row],[Quantity]]/tblDataEntry1316[[#This Row],[Rate Override]],1)),\"---\")","v":"---"}]
[null,null,null,null,null,null,null,null,null,{"$f":"IFERROR(tblDataEntry1316[[#This Row],[Default (Avg.) Rate]]*(1+dsEstimatorAdjustment/100),\"---\")","v":0},null,{"$f":"IFERROR(IF(ISBLANK(tblDataEntry1316[[#This Row],[Rate Override]]),CEILING(tblDataEntry1316[[#This Row],[Quantity]]/tblDataEntry1316[[#This Row],[User Factored Rate]],1),CEILING(tblDataEntry1316[[#This Row],[Quantity]]/tblDataEntry1316[[#This Row],[Rate Override]],1)),\"---\")","v":"---"}]
[null,null,null,null,null,null,null,null,null,{"$f":"IFERROR(tblDataEntry1316[[#This Row],[Default (Avg.) Rate]]*(1+dsEstimatorAdjustment/100),\"---\")","v":0},null,{"$f":"IFERROR(IF(ISBLANK(tblDataEntry1316[[#This Row],[Rate Override]]),CEILING(tblDataEntry1316[[#This Row],[Quantity]]/tblDataEntry1316[[#This Row],[User Factored Rate]],1),CEILING(tblDataEntry1316[[#This Row],[Quantity]]/tblDataEntry1316[[#This Row],[Rate Override]],1)),\"---\")","v":"---"}]
[null,null,null,null,null,null,null,null,null,{"$f":"IFERROR(tblDataEntry1316[[#This Row],[Default (Avg.) Rate]]*(1+dsEstimatorAdjustment/100),\"---\")","v":0},null,{"$f":"IFERROR(IF(ISBLANK(tblDataEntry1316[[#This Row],[Rate Override]]),CEILING(tblDataEntry1316[[#This Row],[Quantity]]/tblDataEntry1316[[#This Row],[User Factored Rate]],1),CEILING(tblDataEntry1316[[#This Row],[Quantity]]/tblDataEntry1316[[#This Row],[Rate Override]],1)),\"---\")","v":"---"}]
[null,null,null,null,null,null,null,null,null,{"$f":"IFERROR(tblDataEntry1316[[#This Row],[Default (Avg.) Rate]]*(1+dsEstimatorAdjustment/100),\"---\")","v":0},null,{"$f":"IFERROR(IF(ISBLANK(tblDataEntry1316[[#This Row],[Rate Override]]),CEILING(tblDataEntry1316[[#This Row],[Quantity]]/tblDataEntry1316[[#This Row],[User Factored Rate]],1),CEILING(tblDataEntry1316[[#This Row],[Quantity]]/tblDataEntry1316[[#This Row],[Rate Override]],1)),\"---\")","v":"---"}]
[null,null,null,null,null,null,null,null,null,{"$f":"IFERROR(tblDataEntry1316[[#This Row],[Default (Avg.) Rate]]*(1+dsEstimatorAdjustment/100),\"---\")","v":0},null,{"$f":"IFERROR(IF(ISBLANK(tblDataEntry1316[[#This Row],[Rate Override]]),CEILING(tblDataEntry1316[[#This Row],[Quantity]]/tblDataEntry1316[[#This Row],[User Factored Rate]],1),CEILING(tblDataEntry1316[[#This Row],[Quantity]]/tblDataEntry1316[[#This Row],[Rate Override]],1)),\"---\")","v":"---"}]
[null,null,null,null,null,null,null,null,null,{"$f":"IFERROR(tblDataEntry1316[[#This Row],[Default (Avg.) Rate]]*(1+dsEstimatorAdjustment/100),\"---\")","v":0},null,{"$f":"IFERROR(IF(ISBLANK(tblDataEntry1316[[#This Row],[Rate Override]]),CEILING(tblDataEntry1316[[#This Row],[Quantity]]/tblDataEntry1316[[#This Row],[User Factored Rate]],1),CEILING(tblDataEntry1316[[#This Row],[Quantity]]/tblDataEntry1316[[#This Row],[Rate Override]],1)),\"---\")","v":"---"}]

{"sheet":"Phase II","index":4,"n_rows":297,"n_cols":14,"rows_kept":297,"cut":false,"hidden":true,"merged":[]}
[null,null,null,null,null,"INSTRUCTIONS:"]
[]
[]
[]
[]
[]
[]
[]
[]
[]
[]
[]
[]
[]
["Pay Item","Work Group","Activity","Quantity","Unit","Low","Avg.","High","Default (Avg.) Rate","User Factored Rate","Rate Override","Estimated Duration (days)","Duration Override","Comments"]
["110-1-X","Clearing & Grubbing","Clearing And Grubbing",1,"AC",0.5,1.5,3,1.5,{"$f":"IFERROR(tblDataEntry131613[[#This Row],[Default (Avg.) Rate]]*(1+dsEstimatorAdjustment/100),\"---\")","v":1.5},null,{"$f":"IFERROR(IF(ISBLANK(tblDataEntry131613[[#This Row],[Rate Override]]),CEILING(tblDataEntry131613[[#This Row],[Quantity]]/tblDataEntry131613[[#This Row],[User Factored Rate]],1),CEILING(tblDataEntry131613[[#This Row],[Quantity]]/tblDataEntry131613[[#This Row],[Rate Override]],1)),\"---\")","v":1}]
["110-4","Clearing & Grubbing","Remove Existing Concrete Pavement",60,"SY",100,300,600,300,{"$f":"IFERROR(tblDataEntry131613[[#This Row],[Default (Avg.) Rate]]*(1+dsEstimatorAdjustment/100),\"---\")","v":300},null,{"$f":"IFERROR(IF(ISBLANK(tblDataEntry131613[[#This Row],[Rate Override]]),CEILING(tblDataEntry131613[[#This Row],[Quantity]]/tblDataEntry131613[[#This Row],[User Factored Rate]],1),CEILING(tblDataEntry131613[[#This Row],[Quantity]]/tblDataEntry131613[[#This Row],[Rate Override]],1)),\"---\")","v":1}]
["120-X","Earthwork","Regular And Borrow Excavation (< 50,000 CY)",8000,"CY",700,900,1200,900,{"$f":"IFERROR(tblDataEntry131613[[#This Row],[Default (Avg.) Rate]]*(1+dsEstimatorAdjustment/100),\"---\")","v":900},750,{"$f":"IFERROR(IF(ISBLANK(tblDataEntry131613[[#This Row],[Rate Override]]),CEILING(tblDataEntry131613[[#This Row],[Quantity]]/tblDataEntry131613[[#This Row],[User Factored Rate]],1),CEILING(tblDataEntry131613[[#This Row],[Quantity]]/tblDataEntry131613[[#This Row],[Rate Override]],1)),\"---\")","v":11},7]
["210-1 AND 285-XXX","Base","Asphalt/Limerock/OBG Base (< 10,000 SY)",588,"SY",400,700,1000,700,{"$f":"IFERROR(tblDataEntry131613[[#This Row],[Default (Avg.) Rate]]*(1+dsEstimatorAdjustment/100),\"---\")","v":700},null,{"$f":"IFERROR(IF(ISBLANK(tblDataEntry131613[[#This Row],[Rate Override]]),CEILING(tblDataEntry131613[[#This Row],[Quantity]]/tblDataEntry131613[[#This Row],[User Factored Rate]],1),CEILING(tblDataEntry131613[[#This Row],[Quantity]]/tblDataEntry131613[[#This Row],[Rate Override]],1)),\"---\")","v":1}]
["520-1-XX","Roadway","Curb & Gutter, Shoulder Gutter",241,"LF",400,600,800,600,{"$f":"IFERROR(tblDataEntry131613[[#This Row],[Default (Avg.) Rate]]*(1+dsEstimatorAdjustment/100),\"---\")","v":600},null,{"$f":"IFERROR(IF(ISBLANK(tblDataEntry131613[[#This Row],[Rate Override]]),CEILING(tblDataEntry131613[[#This Row],[Quantity]]/tblDataEntry131613[[#This Row],[User Factored Rate]],1),CEILING(tblDataEntry131613[[#This Row],[Quantity]]/tblDataEntry131613[[#This Row],[Rate Override]],1)),\"---\")","v":1}]
[null,"Concrete","ADA Ramps",4,"EA","n/a",0.5,"n/a",0.5,{"$f":"IFERROR(tblDataEntry131613[[#This Row],[Default (Avg.) Rate]]*(1+dsEstimatorAdjustment/100),\"---\")","v":0.5},null,{"$f":"IFERROR(IF(ISBLANK(tblDataEntry131613[[#This Row],[Rate Override]]),CEILING(tblDataEntry131613[[#This Row],[Quantity]]/tblDataEntry131613[[#This Row],[User Factored Rate]],1),CEILING(tblDataEntry131613[[#This Row],[Quantity]]/tblDataEntry131613[[#This Row],[Rate Override]],1)),\"---\")","v":8}]
["327-70-XX","Roadway","Asphalt Milling",8400,"SY","n/a",8000,"n/a",8000,{"$f":"IFERROR(tblDataEntry131613[[#This Row],[Default (Avg.) Rate]]*(1+dsEstimatorAdjustment/100),\"---\")","v":8000},null,{"$f":"IFERROR(IF(ISBLANK(tblDataEntry131613[[#This Row],[Rate Override]]),CEILING(tblDataEntry131613[[#This Row],[Quantity]]/tblDataEntry131613[[#This Row],[User Factored Rate]],1),CEILING(tblDataEntry131613[[#This Row],[Quantity]]/tblDataEntry131613[[#This Row],[Rate Override]],1)),\"---\")","v":2},1]
[null,null,null,null,null,null,null,null,null,{"$f":"IFERROR(tblDataEntry131613[[#This Row],[Default (Avg.) Rate]]*(1+dsEstimatorAdjustment/100),\"---\")","v":0},null,{"$f":"IFERROR(IF(ISBLANK(tblDataEntry131613[[#This Row],[Rate Override]]),CEILING(tblDataEntry131613[[#This Row],[Quantity]]/tblDataEntry131613[[#This Row],[User Factored Rate]],1),CEILING(tblDataEntry131613[[#This Row],[Quantity]]/tblDataEntry131613[[#This Row],[Rate Override]],1)),\"---\")","v":"---"}]
[null,null,null,null,null,null,null,null,null,{"$f":"IFERROR(tblDataEntry131613[[#This Row],[Default (Avg.) Rate]]*(1+dsEstimatorAdjustment/100),\"---\")","v":0},null,{"$f":"IFERROR(IF(ISBLANK(tblDataEntry131613[[#This Row],[Rate Override]]),CEILING(tblDataEntry131613[[#This Row],[Quantity]]/tblDataEntry131613[[#This Row],[User Factored Rate]],1),CEILING(tblDataEntry131613[[#This Row],[Quantity]]/tblDataEntry131613[[#This Row],[Rate Override]],1)),\"---\")","v":"---"}]
[null,null,null,null,null,null,null,null,null,{"$f":"IFERROR(tblDataEntry131613[[#This Row],[Default (Avg.) Rate]]*(1+dsEstimatorAdjustment/100),\"---\")","v":0},null,{"$f":"IFERROR(IF(ISBLANK(tblDataEntry131613[[#This Row],[Rate Override]]),CEILING(tblDataEntry131613[[#This Row],[Quantity]]/tblDataEntry131613[[#This Row],[User Factored Rate]],1),CEILING(tblDataEntry131613[[#This Row],[Quantity]]/tblDataEntry131613[[#This Row],[Rate Override]],1)),\"---\")","v":"---"}]
[null,null,null,null,null,null,null,null,null,{"$f":"IFERROR(tblDataEntry131613[[#This Row],[Default (Avg.) Rate]]*(1+dsEstimatorAdjustment/100),\"---\")","v":0},null,{"$f":"IFERROR(IF(ISBLANK(tblDataEntry131613[[#This Row],[Rate Override]]),CEILING(tblDataEntry131613[[#This Row],[Quantity]]/tblDataEntry131613[[#This Row],[User Factored Rate]],1),CEILING(tblDataEntry131613[[#This Row],[Quantity]]/tblDataEntry131613[[#This Row],[Rate Override]],1)),\"---\")","v":"---"}]
[null,null,null,null,null,null,null,null,null,{"$f":"IFERROR(tblDataEntry131613[[#This Row],[Default (Avg.) Rate]]*(1+dsEstimatorAdjustment/100),\"---\")","v":0},null,{"$f":"IFERROR(IF(ISBLANK(tblDataEntry131613[[#This Row],[Rate Override]]),CEILING(tblDataEntry131613[[#This Row],[Quantity]]/tblDataEntry131613[[#This Row],[User Factored Rate]],1),CEILING(tblDataEntry131613[[#This Row],[Quantity]]/tblDataEntry131613[[#This Row],[Rate Override]],1)),\"---\")","v":"---"}]
[null,null,null,null,null,null,null,null,null,{"$f":"IFERROR(tblDataEntry131613[[#This Row],[Default (Avg.) Rate]]*(1+dsEstimatorAdjustment/100),\"---\")","v":0},null,{"$f":"IFERROR(IF(ISBLANK(tblDataEntry131613[[#This Row],[Rate Override]]),CEILING(tblDataEntry131613[[#This Row],[Quantity]]/tblDataEntry131613[[#This Row],[User Factored Rate]],1),CEILING(tblDataEntry131613[[#This Row],[Quantity]]/tblDataEntry131613[[#This Row],[Rate Override]],1)),\"---\")","v":"---"}]
[null,null,null,null,null,null,null,null,null,{"$f":"IFERROR(tblDataEntry131613[[#This Row],[Default (Avg.) Rate]]*(1+dsEstimatorAdjustment/100),\"---\")","v":0},null,{"$f":"IFERROR(IF(ISBLANK(tblDataEntry131613[[#This Row],[Rate Override]]),CEILING(tblDataEntry131613[[#This Row],[Quantity]]/tblDataEntry131613[[#This Row],[User Factored Rate]],1),CEILING(tblDataEntry131613[[#This Row],[Quantity]]/tblDataEntry131613[[#This Row],[Rate Override]],1)),\"---\")","v":"---"}]
[null,null,null,null,null,null,null,null,null,{"$f":"IFERROR(tblDataEntry131613[[#This Row],[Default (Avg.) Rate]]*(1+dsEstimatorAdjustment/100),\"---\")","v":0},null,{"$f":"IFERROR(IF(ISBLANK(tblDataEntry131613[[#This Row],[Rate Override]]),CEILING(tblDataEntry131613[[#This Row],[Quantity]]/tblDataEntry131613[[#This Row],[User Factored Rate]],1),CEILING(tblDataEntry131613[[#This Row],[Quantity]]/tblDataEntry131613[[#This Row],[Rate Override]],1)),\"---\")","v":"---"}]
[null,null,null,null,null,null,null,null,null,{"$f":"IFERROR(tblDataEntry131613[[#This Row],[Default (Avg.) Rate]]*(1+dsEstimatorAdjustment/100),\"---\")","v":0},null,{"$f":"IFERROR(IF(ISBLANK(tblDataEntry131613[[#This Row],[Rate Override]]),CEILING(tblDataEntry131613[[#This Row],[Quantity]]/tblDataEntry131613[[#This Row],[User Factored Rate]],1),CEILING(tblDataEntry131613[[#This Row],[Quantity]]/tblDataEntry131613[[#This Row],[Rate Override]],1)),\"---\")","v":"---"}]
[null,null,null,null,null,null,null,null,null,{"$f":"IFERROR(tblDataEntry131613[[#This Row],[Default (Avg.) Rate]]*(1+dsEstimatorAdjustment/100),\"---\")","v":0},null,{"$f":"IFERROR(IF(ISBLANK(tblDataEntry131613[[#This Row],[Rate Override]]),CEILING(tblDataEntry131613[[#This Row],[Quantity]]/tblDataEntry131613[[#This Row],[User Factored Rate]],1),CEILING(tblDataEntry131613[[#This Row],[Quantity]]/tblDataEntry131613[[#This Row],[Rate Override]],1)),\"---\")","v":"---"}]
[null,null,null,null,null,null,null,null,null,{"$f":"IFERROR(tblDataEntry131613[[#This Row],[Default (Avg.) Rate]]*(1+dsEstimatorAdjustment/100),\"---\")","v":0},null,{"$f":"IFERROR(IF(ISBLANK(tblDataEntry131613[[#This Row],[Rate Override]]),CEILING(tblDataEntry131613[[#This Row],[Quantity]]/tblDataEntry131613[[#This Row],[User Factored Rate]],1),CEILING(tblDataEntry131613[[#This Row],[Quantity]]/tblDataEntry131613[[#This Row],[Rate Override]],1)),\"---\")","v":"---"}]
[null,null,null,null,null,null,null,null,null,{"$f":"IFERROR(tblDataEntry131613[[#This Row],[Default (Avg.) Rate]]*(1+dsEstimatorAdjustment/100),\"---\")","v":0},null,{"$f":"IFERROR(IF(ISBLANK(tblDataEntry131613[[#This Row],[Rate Override]]),CEILING(tblDataEntry131613[[#This Row],[Quantity]]/tblDataEntry131613[[#This Row],[User Factored Rate]],1),CEILING(tblDataEntry131613[[#This Row],[Quantity]]/tblDataEntry131613[[#This Row],[Rate Override]],1)),\"---\")","v":"---"}]
[null,null,null,null,null,null,null,null,null,{"$f":"IFERROR(tblDataEntry131613[[#This Row],[Default (Avg.) Rate]]*(1+dsEstimatorAdjustment/100),\"---\")","v":0},null,{"$f":"IFERROR(IF(ISBLANK(tblDataEntry131613[[#This Row],[Rate Override]]),CEILING(tblDataEntry131613[[#This Row],[Quantity]]/tblDataEntry131613[[#This Row],[User Factored Rate]],1),CEILING(tblDataEntry131613[[#This Row],[Quantity]]/tblDataEntry131613[[#This Row],[Rate Override]],1)),\"---\")","v":"---"}]
[null,null,null,null,null,null,null,null,null,{"$f":"IFERROR(tblDataEntry131613[[#This Row],[Default (Avg.) Rate]]*(1+dsEstimatorAdjustment/100),\"---\")","v":0},null,{"$f":"IFERROR(IF(ISBLANK(tblDataEntry131613[[#This Row],[Rate Override]]),CEILING(tblDataEntry131613[[#This Row],[Quantity]]/tblDataEntry131613[[#This Row],[User Factored Rate]],1),CEILING(tblDataEntry131613[[#This Row],[Quantity]]/tblDataEntry131613[[#This Row],[Rate Override]],1)),\"---\")","v":"---"}]
[null,null,null,null,null,null,null,null,null,{"$f":"IFERROR(tblDataEntry131613[[#This Row],[Default (Avg.) Rate]]*(1+dsEstimatorAdjustment/100),\"---\")","v":0},null,{"$f":"IFERROR(IF(ISBLANK(tblDataEntry131613[[#This Row],[Rate Override]]),CEILING(tblDataEntry131613[[#This Row],[Quantity]]/tblDataEntry131613[[#This Row],[User Factored Rate]],1),CEILING(tblDataEntry131613[[#This Row],[Quantity]]/tblDataEntry131613[[#This Row],[Rate Override]],1)),\"---\")","v":"---"}]
[null,null,null,null,null,null,null,null,null,{"$f":"IFERROR(tblDataEntry131613[[#This Row],[Default (Avg.) Rate]]*(1+dsEstimatorAdjustment/100),\"---\")","v":0},null,{"$f":"IFERROR(IF(ISBLANK(tblDataEntry131613[[#This Row],[Rate Override]]),CEILING(tblDataEntry131613[[#This Row],[Quantity]]/tblDataEntry131613[[#This Row],[User Factored Rate]],1),CEILING(tblDataEntry131613[[#This Row],[Quantity]]/tblDataEntry131613[[#This Row],[Rate Override]],1)),\"---\")","v":"---"}]
[null,null,null,null,null,null,null,null,null,{"$f":"IFERROR(tblDataEntry131613[[#This Row],[Default (Avg.) Rate]]*(1+dsEstimatorAdjustment/100),\"---\")","v":0},null,{"$f":"IFERROR(IF(ISBLANK(tblDataEntry131613[[#This Row],[Rate Override]]),CEILING(tblDataEntry131613[[#This Row],[Quantity]]/tblDataEntry131613[[#This Row],[User Factored Rate]],1),CEILING(tblDataEntry131613[[#This Row],[Quantity]]/tblDataEntry131613[[#This Row],[Rate Override]],1)),\"---\")","v":"---"}]
[null,null,null,null,null,null,null,null,null,{"$f":"IFERROR(tblDataEntry131613[[#This Row],[Default (Avg.) Rate]]*(1+dsEstimatorAdjustment/100),\"---\")","v":0},null,{"$f":"IFERROR(IF(ISBLANK(tblDataEntry131613[[#This Row],[Rate Override]]),CEILING(tblDataEntry131613[[#This Row],[Quantity]]/tblDataEntry131613[[#This Row],[User Factored Rate]],1),CEILING(tblDataEntry131613[[#This Row],[Quantity]]/tblDataEntry131613[[#This Row],[Rate Override]],1)),\"---\")","v":"---"}]
[null,null,null,null,null,null,null,null,null,{"$f":"IFERROR(tblDataEntry131613[[#This Row],[Default (Avg.) Rate]]*(1+dsEstimatorAdjustment/100),\"---\")","v":0},null,{"$f":"IFERROR(IF(ISBLANK(tblDataEntry131613[[#This Row],[Rate Override]]),CEILING(tblDataEntry131613[[#This Row],[Quantity]]/tblDataEntry131613[[#This Row],[User Factored Rate]],1),CEILING(tblDataEntry131613[[#This Row],[Quantity]]/tblDataEntry131613[[#This Row],[Rate Override]],1)),\"---\")","v":"---"}]
[null,null,null,null,null,null,null,null,null,{"$f":"IFERROR(tblDataEntry131613[[#This Row],[Default (Avg.) Rate]]*(1+dsEstimatorAdjustment/100),\"---\")","v":0},null,{"$f":"IFERROR(IF(ISBLANK(tblDataEntry131613[[#This Row],[Rate Override]]),CEILING(tblDataEntry131613[[#This Row],[Quantity]]/tblDataEntry131613[[#This Row],[User Factored Rate]],1),CEILING(tblDataEntry131613[[#This Row],[Quantity]]/tblDataEntry131613[[#This Row],[Rate Override]],1)),\"---\")","v":"---"}]
[null,null,null,null,null,null,null,null,null,{"$f":"IFERROR(tblDataEntry131613[[#This Row],[Default (Avg.) Rate]]*(1+dsEstimatorAdjustment/100),\"---\")","v":0},null,{"$f":"IFERROR(IF(ISBLANK(tblDataEntry131613[[#This Row],[Rate Override]]),CEILING(tblDataEntry131613[[#This Row],[Quantity]]/tblDataEntry131613[[#This Row],[User Factored Rate]],1),CEILING(tblDataEntry131613[[#This Row],[Quantity]]/tblDataEntry131613[[#This Row],[Rate Override]],1)),\"---\")","v":"---"}]
[null,null,null,null,null,null,null,null,null,{"$f":"IFERROR(tblDataEntry131613[[#This Row],[Default (Avg.) Rate]]*(1+dsEstimatorAdjustment/100),\"---\")","v":0},null,{"$f":"IFERROR(IF(ISBLANK(tblDataEntry131613[[#This Row],[Rate Override]]),CEILING(tblDataEntry131613[[#This Row],[Quantity]]/tblDataEntry131613[[#This Row],[User Factored Rate]],1),CEILING(tblDataEntry131613[[#This Row],[Quantity]]/tblDataEntry131613[[#This Row],[Rate Override]],1)),\"---\")","v":"---"}]
[null,null,null,null,null,null,null,null,null,{"$f":"IFERROR(tblDataEntry131613[[#This Row],[Default (Avg.) Rate]]*(1+dsEstimatorAdjustment/100),\"---\")","v":0},null,{"$f":"IFERROR(IF(ISBLANK(tblDataEntry131613[[#This Row],[Rate Override]]),CEILING(tblDataEntry131613[[#This Row],[Quantity]]/tblDataEntry131613[[#This Row],[User Factored Rate]],1),CEILING(tblDataEntry131613[[#This Row],[Quantity]]/tblDataEntry131613[[#This Row],[Rate Override]],1)),\"---\")","v":"---"}]
[null,null,null,null,null,null,null,null,null,{"$f":"IFERROR(tblDataEntry131613[[#This Row],[Default (Avg.) Rate]]*(1+dsEstimatorAdjustment/100),\"---\")","v":0},null,{"$f":"IFERROR(IF(ISBLANK(tblDataEntry131613[[#This Row],[Rate Override]]),CEILING(tblDataEntry131613[[#This Row],[Quantity]]/tblDataEntry131613[[#This Row],[User Factored Rate]],1),CEILING(tblDataEntry131613[[#This Row],[Quantity]]/tblDataEntry131613[[#This Row],[Rate Override]],1)),\"---\")","v":"---"}]
[null,null,null,null,null,null,null,null,null,{"$f":"IFERROR(tblDataEntry131613[[#This Row],[Default (Avg.) Rate]]*(1+dsEstimatorAdjustment/100),\"---\")","v":0},null,{"$f":"IFERROR(IF(ISBLANK(tblDataEntry131613[[#This Row],[Rate Override]]),CEILING(tblDataEntry131613[[#This Row],[Quantity]]/tblDataEntry131613[[#This Row],[User Factored Rate]],1),CEILING(tblDataEntry131613[[#This Row],[Quantity]]/tblDataEntry131613[[#This Row],[Rate Override]],1)),\"---\")","v":"---"}]
[null,null,null,null,null,null,null,null,null,{"$f":"IFERROR(tblDataEntry131613[[#This Row],[Default (Avg.) Rate]]*(1+dsEstimatorAdjustment/100),\"---\")","v":0},null,{"$f":"IFERROR(IF(ISBLANK(tblDataEntry131613[[#This Row],[Rate Override]]),CEILING(tblDataEntry131613[[#This Row],[Quantity]]/tblDataEntry131613[[#This Row],[User Factored Rate]],1),CEILING(tblDataEntry131613[[#This Row],[Quantity]]/tblDataEntry131613[[#This Row],[Rate Override]],1)),\"---\")","v":"---"}]
[null,null,null,null,null,null,null,null,null,{"$f":"IFERROR(tblDataEntry131613[[#This Row],[Default (Avg.) Rate]]*(1+dsEstimatorAdjustment/100),\"---\")","v":0},null,{"$f":"IFERROR(IF(ISBLANK(tblDataEntry131613[[#This Row],[Rate Override]]),CEILING(tblDataEntry131613[[#This Row],[Quantity]]/tblDataEntry131613[[#This Row],[User Factored Rate]],1),CEILING(tblDataEntry131613[[#This Row],[Quantity]]/tblDataEntry131613[[#This Row],[Rate Override]],1)),\"---\")","v":"---"}]
[null,null,null,null,null,null,null,null,null,{"$f":"IFERROR(tblDataEntry131613[[#This Row],[Default (Avg.) Rate]]*(1+dsEstimatorAdjustment/100),\"---\")","v":0},null,{"$f":"IFERROR(IF(ISBLANK(tblDataEntry131613[[#This Row],[Rate Override]]),CEILING(tblDataEntry131613[[#This Row],[Quantity]]/tblDataEntry131613[[#This Row],[User Factored Rate]],1),CEILING(tblDataEntry131613[[#This Row],[Quantity]]/tblDataEntry131613[[#This Row],[Rate Override]],1)),\"---\")","v":"---"}]
[null,null,null,null,null,null,null,null,null,{"$f":"IFERROR(tblDataEntry131613[[#This Row],[Default (Avg.) Rate]]*(1+dsEstimatorAdjustment/100),\"---\")","v":0},null,{"$f":"IFERROR(IF(ISBLANK(tblDataEntry131613[[#This Row],[Rate Override]]),CEILING(tblDataEntry131613[[#This Row],[Quantity]]/tblDataEntry131613[[#This Row],[User Factored Rate]],1),CEILING(tblDataEntry131613[[#This Row],[Quantity]]/tblDataEntry131613[[#This Row],[Rate Override]],1)),\"---\")","v":"---"}]
[null,null,null,null,null,null,null,null,null,{"$f":"IFERROR(tblDataEntry131613[[#This Row],[Default (Avg.) Rate]]*(1+dsEstimatorAdjustment/100),\"---\")","v":0},null,{"$f":"IFERROR(IF(ISBLANK(tblDataEntry131613[[#This Row],[Rate Override]]),CEILING(tblDataEntry131613[[#This Row],[Quantity]]/tblDataEntry131613[[#This Row],[User Factored Rate]],1),CEILING(tblDataEntry131613[[#This Row],[Quantity]]/tblDataEntry131613[[#This Row],[Rate Override]],1)),\"---\")","v":"---"}]
[null,null,null,null,null,null,null,null,null,{"$f":"IFERROR(tblDataEntry131613[[#This Row],[Default (Avg.) Rate]]*(1+dsEstimatorAdjustment/100),\"---\")","v":0},null,{"$f":"IFERROR(IF(ISBLANK(tblDataEntry131613[[#This Row],[Rate Override]]),CEILING(tblDataEntry131613[[#This Row],[Quantity]]/tblDataEntry131613[[#This Row],[User Factored Rate]],1),CEILING(tblDataEntry131613[[#This Row],[Quantity]]/tblDataEntry131613[[#This Row],[Rate Override]],1)),\"---\")","v":"---"}]
[null,null,null,null,null,null,null,null,null,{"$f":"IFERROR(tblDataEntry131613[[#This Row],[Default (Avg.) Rate]]*(1+dsEstimatorAdjustment/100),\"---\")","v":0},null,{"$f":"IFERROR(IF(ISBLANK(tblDataEntry131613[[#This Row],[Rate Override]]),CEILING(tblDataEntry131613[[#This Row],[Quantity]]/tblDataEntry131613[[#This Row],[User Factored Rate]],1),CEILING(tblDataEntry131613[[#This Row],[Quantity]]/tblDataEntry131613[[#This Row],[Rate Override]],1)),\"---\")","v":"---"}]
[null,null,null,null,null,null,null,null,null,{"$f":"IFERROR(tblDataEntry131613[[#This Row],[Default (Avg.) Rate]]*(1+dsEstimatorAdjustment/100),\"---\")","v":0},null,{"$f":"IFERROR(IF(ISBLANK(tblDataEntry131613[[#This Row],[Rate Override]]),CEILING(tblDataEntry131613[[#This Row],[Quantity]]/tblDataEntry131613[[#This Row],[User Factored Rate]],1),CEILING(tblDataEntry131613[[#This Row],[Quantity]]/tblDataEntry131613[[#This Row],[Rate Override]],1)),\"---\")","v":"---"}]
[null,null,null,null,null,null,null,null,null,{"$f":"IFERROR(tblDataEntry131613[[#This Row],[Default (Avg.) Rate]]*(1+dsEstimatorAdjustment/100),\"---\")","v":0},null,{"$f":"IFERROR(IF(ISBLANK(tblDataEntry131613[[#This Row],[Rate Override]]),CEILING(tblDataEntry131613[[#This Row],[Quantity]]/tblDataEntry131613[[#This Row],[User Factored Rate]],1),CEILING(tblDataEntry131613[[#This Row],[Quantity]]/tblDataEntry131613[[#This Row],[Rate Override]],1)),\"---\")","v":"---"}]
[null,null,null,null,null,null,null,null,null,{"$f":"IFERROR(tblDataEntry131613[[#This Row],[Default (Avg.) Rate]]*(1+dsEstimatorAdjustment/100),\"---\")","v":0},null,{"$f":"IFERROR(IF(ISBLANK(tblDataEntry131613[[#This Row],[Rate Override]]),CEILING(tblDataEntry131613[[#This Row],[Quantity]]/tblDataEntry131613[[#This Row],[User Factored Rate]],1),CEILING(tblDataEntry131613[[#This Row],[Quantity]]/tblDataEntry131613[[#This Row],[Rate Override]],1)),\"---\")","v":"---"}]
[null,null,null,null,null,null,null,null,null,{"$f":"IFERROR(tblDataEntry131613[[#This Row],[Default (Avg.) Rate]]*(1+dsEstimatorAdjustment/100),\"---\")","v":0},null,{"$f":"IFERROR(IF(ISBLANK(tblDataEntry131613[[#This Row],[Rate Override]]),CEILING(tblDataEntry131613[[#This Row],[Quantity]]/tblDataEntry131613[[#This Row],[User Factored Rate]],1),CEILING(tblDataEntry131613[[#This Row],[Quantity]]/tblDataEntry131613[[#This Row],[Rate Override]],1)),\"---\")","v":"---"}]
[null,null,null,null,null,null,null,null,null,{"$f":"IFERROR(tblDataEntry131613[[#This Row],[Default (Avg.) Rate]]*(1+dsEstimatorAdjustment/100),\"---\")","v":0},null,{"$f":"IFERROR(IF(ISBLANK(tblDataEntry131613[[#This Row],[Rate Override]]),CEILING(tblDataEntry131613[[#This Row],[Quantity]]/tblDataEntry131613[[#This Row],[User Factored Rate]],1),CEILING(tblDataEntry131613[[#This Row],[Quantity]]/tblDataEntry131613[[#This Row],[Rate Override]],1)),\"---\")","v":"---"}]
[null,null,null,null,null,null,null,null,null,{"$f":"IFERROR(tblDataEntry131613[[#This Row],[Default (Avg.) Rate]]*(1+dsEstimatorAdjustment/100),\"---\")","v":0},null,{"$f":"IFERROR(IF(ISBLANK(tblDataEntry131613[[#This Row],[Rate Override]]),CEILING(tblDataEntry131613[[#This Row],[Quantity]]/tblDataEntry131613[[#This Row],[User Factored Rate]],1),CEILING(tblDataEntry131613[[#This Row],[Quantity]]/tblDataEntry131613[[#This Row],[Rate Override]],1)),\"---\")","v":"---"}]
[null,null,null,null,null,null,null,null,null,{"$f":"IFERROR(tblDataEntry131613[[#This Row],[Default (Avg.) Rate]]*(1+dsEstimatorAdjustment/100),\"---\")","v":0},null,{"$f":"IFERROR(IF(ISBLANK(tblDataEntry131613[[#This Row],[Rate Override]]),CEILING(tblDataEntry131613[[#This Row],[Quantity]]/tblDataEntry131613[[#This Row],[User Factored Rate]],1),CEILING(tblDataEntry131613[[#This Row],[Quantity]]/tblDataEntry131613[[#This Row],[Rate Override]],1)),\"---\")","v":"---"}]
[null,null,null,null,null,null,null,null,null,{"$f":"IFERROR(tblDataEntry131613[[#This Row],[Default (Avg.) Rate]]*(1+dsEstimatorAdjustment/100),\"---\")","v":0},null,{"$f":"IFERROR(IF(ISBLANK(tblDataEntry131613[[#This Row],[Rate Override]]),CEILING(tblDataEntry131613[[#This Row],[Quantity]]/tblDataEntry131613[[#This Row],[User Factored Rate]],1),CEILING(tblDataEntry131613[[#This Row],[Quantity]]/tblDataEntry131613[[#This Row],[Rate Override]],1)),\"---\")","v":"---"}]
[null,null,null,null,null,null,null,null,null,{"$f":"IFERROR(tblDataEntry131613[[#This Row],[Default (Avg.) Rate]]*(1+dsEstimatorAdjustment/100),\"---\")","v":0},null,{"$f":"IFERROR(IF(ISBLANK(tblDataEntry131613[[#This Row],[Rate Override]]),CEILING(tblDataEntry131613[[#This Row],[Quantity]]/tblDataEntry131613[[#This Row],[User Factored Rate]],1),CEILING(tblDataEntry131613[[#This Row],[Quantity]]/tblDataEntry131613[[#This Row],[Rate Override]],1)),\"---\")","v":"---"}]
[null,null,null,null,null,null,null,null,null,{"$f":"IFERROR(tblDataEntry131613[[#This Row],[Default (Avg.) Rate]]*(1+dsEstimatorAdjustment/100),\"---\")","v":0},null,{"$f":"IFERROR(IF(ISBLANK(tblDataEntry131613[[#This Row],[Rate Override]]),CEILING(tblDataEntry131613[[#This Row],[Quantity]]/tblDataEntry131613[[#This Row],[User Factored Rate]],1),CEILING(tblDataEntry131613[[#This Row],[Quantity]]/tblDataEntry131613[[#This Row],[Rate Override]],1)),\"---\")","v":"---"}]
[null,null,null,null,null,null,null,null,null,{"$f":"IFERROR(tblDataEntry131613[[#This Row],[Default (Avg.) Rate]]*(1+dsEstimatorAdjustment/100),\"---\")","v":0},null,{"$f":"IFERROR(IF(ISBLANK(tblDataEntry131613[[#This Row],[Rate Override]]),CEILING(tblDataEntry131613[[#This Row],[Quantity]]/tblDataEntry131613[[#This Row],[User Factored Rate]],1),CEILING(tblDataEntry131613[[#This Row],[Quantity]]/tblDataEntry131613[[#This Row],[Rate Override]],1)),\"---\")","v":"---"}]
[null,null,null,null,null,null,null,null,null,{"$f":"IFERROR(tblDataEntry131613[[#This Row],[Default (Avg.) Rate]]*(1+dsEstimatorAdjustment/100),\"---\")","v":0},null,{"$f":"IFERROR(IF(ISBLANK(tblDataEntry131613[[#This Row],[Rate Override]]),CEILING(tblDataEntry131613[[#This Row],[Quantity]]/tblDataEntry131613[[#This Row],[User Factored Rate]],1),CEILING(tblDataEntry131613[[#This Row],[Quantity]]/tblDataEntry131613[[#This Row],[Rate Override]],1)),\"---\")","v":"---"}]
[null,null,null,null,null,null,null,null,null,{"$f":"IFERROR(tblDataEntry131613[[#This Row],[Default (Avg.) Rate]]*(1+dsEstimatorAdjustment/100),\"---\")","v":0},null,{"$f":"IFERROR(IF(ISBLANK(tblDataEntry131613[[#This Row],[Rate Override]]),CEILING(tblDataEntry131613[[#This Row],[Quantity]]/tblDataEntry131613[[#This Row],[User Factored Rate]],1),CEILING(tblDataEntry131613[[#This Row],[Quantity]]/tblDataEntry131613[[#This Row],[Rate Override]],1)),\"---\")","v":"---"}]
[null,null,null,null,null,null,null,null,null,{"$f":"IFERROR(tblDataEntry131613[[#This Row],[Default (Avg.) Rate]]*(1+dsEstimatorAdjustment/100),\"---\")","v":0},null,{"$f":"IFERROR(IF(ISBLANK(tblDataEntry131613[[#This Row],[Rate Override]]),CEILING(tblDataEntry131613[[#This Row],[Quantity]]/tblDataEntry131613[[#This Row],[User Factored Rate]],1),CEILING(tblDataEntry131613[[#This Row],[Quantity]]/tblDataEntry131613[[#This Row],[Rate Override]],1)),\"---\")","v":"---"}]
[null,null,null,null,null,null,null,null,null,{"$f":"IFERROR(tblDataEntry131613[[#This Row],[Default (Avg.) Rate]]*(1+dsEstimatorAdjustment/100),\"---\")","v":0},null,{"$f":"IFERROR(IF(ISBLANK(tblDataEntry131613[[#This Row],[Rate Override]]),CEILING(tblDataEntry131613[[#This Row],[Quantity]]/tblDataEntry131613[[#This Row],[User Factored Rate]],1),CEILING(tblDataEntry131613[[#This Row],[Quantity]]/tblDataEntry131613[[#This Row],[Rate Override]],1)),\"---\")","v":"---"}]
[null,null,null,null,null,null,null,null,null,{"$f":"IFERROR(tblDataEntry131613[[#This Row],[Default (Avg.) Rate]]*(1+dsEstimatorAdjustment/100),\"---\")","v":0},null,{"$f":"IFERROR(IF(ISBLANK(tblDataEntry131613[[#This Row],[Rate Override]]),CEILING(tblDataEntry131613[[#This Row],[Quantity]]/tblDataEntry131613[[#This Row],[User Factored Rate]],1),CEILING(tblDataEntry131613[[#This Row],[Quantity]]/tblDataEntry131613[[#This Row],[Rate Override]],1)),\"---\")","v":"---"}]
[null,null,null,null,null,null,null,null,null,{"$f":"IFERROR(tblDataEntry131613[[#This Row],[Default (Avg.) Rate]]*(1+dsEstimatorAdjustment/100),\"---\")","v":0},null,{"$f":"IFERROR(IF(ISBLANK(tblDataEntry131613[[#This Row],[Rate Override]]),CEILING(tblDataEntry131613[[#This Row],[Quantity]]/tblDataEntry131613[[#This Row],[User Factored Rate]],1),CEILING(tblDataEntry131613[[#This Row],[Quantity]]/tblDataEntry131613[[#This Row],[Rate Override]],1)),\"---\")","v":"---"}]
[null,null,null,null,null,null,null,null,null,{"$f":"IFERROR(tblDataEntry131613[[#This Row],[Default (Avg.) Rate]]*(1+dsEstimatorAdjustment/100),\"---\")","v":0},null,{"$f":"IFERROR(IF(ISBLANK(tblDataEntry131613[[#This Row],[Rate Override]]),CEILING(tblDataEntry131613[[#This Row],[Quantity]]/tblDataEntry131613[[#This Row],[User Factored Rate]],1),CEILING(tblDataEntry131613[[#This Row],[Quantity]]/tblDataEntry131613[[#This Row],[Rate Override]],1)),\"---\")","v":"---"}]
[null,null,null,null,null,null,null,null,null,{"$f":"IFERROR(tblDataEntry131613[[#This Row],[Default (Avg.) Rate]]*(1+dsEstimatorAdjustment/100),\"---\")","v":0},null,{"$f":"IFERROR(IF(ISBLANK(tblDataEntry131613[[#This Row],[Rate Override]]),CEILING(tblDataEntry131613[[#This Row],[Quantity]]/tblDataEntry131613[[#This Row],[User Factored Rate]],1),CEILING(tblDataEntry131613[[#This Row],[Quantity]]/tblDataEntry131613[[#This Row],[Rate Override]],1)),\"---\")","v":"---"}]
[null,null,null,null,null,null,null,null,null,{"$f":"IFERROR(tblDataEntry131613[[#This Row],[Default (Avg.) Rate]]*(1+dsEstimatorAdjustment/100),\"---\")","v":0},null,{"$f":"IFERROR(IF(ISBLANK(tblDataEntry131613[[#This Row],[Rate Override]]),CEILING(tblDataEntry131613[[#This Row],[Quantity]]/tblDataEntry131613[[#This Row],[User Factored Rate]],1),CEILING(tblDataEntry131613[[#This Row],[Quantity]]/tblDataEntry131613[[#This Row],[Rate Override]],1)),\"---\")","v":"---"}]
[null,null,null,null,null,null,null,null,null,{"$f":"IFERROR(tblDataEntry131613[[#This Row],[Default (Avg.) Rate]]*(1+dsEstimatorAdjustment/100),\"---\")","v":0},null,{"$f":"IFERROR(IF(ISBLANK(tblDataEntry131613[[#This Row],[Rate Override]]),CEILING(tblDataEntry131613[[#This Row],[Quantity]]/tblDataEntry131613[[#This Row],[User Factored Rate]],1),CEILING(tblDataEntry131613[[#This Row],[Quantity]]/tblDataEntry131613[[#This Row],[Rate Override]],1)),\"---\")","v":"---"}]
[null,null,null,null,null,null,null,null,null,{"$f":"IFERROR(tblDataEntry131613[[#This Row],[Default (Avg.) Rate]]*(1+dsEstimatorAdjustment/100),\"---\")","v":0},null,{"$f":"IFERROR(IF(ISBLANK(tblDataEntry131613[[#This Row],[Rate Override]]),CEILING(tblDataEntry131613[[#This Row],[Quantity]]/tblDataEntry131613[[#This Row],[User Factored Rate]],1),CEILING(tblDataEntry131613[[#This Row],[Quantity]]/tblDataEntry131613[[#This Row],[Rate Override]],1)),\"---\")","v":"---"}]
[null,null,null,null,null,null,null,null,null,{"$f":"IFERROR(tblDataEntry131613[[#This Row],[Default (Avg.) Rate]]*(1+dsEstimatorAdjustment/100),\"---\")","v":0},null,{"$f":"IFERROR(IF(ISBLANK(tblDataEntry131613[[#This Row],[Rate Override]]),CEILING(tblDataEntry131613[[#This Row],[Quantity]]/tblDataEntry131613[[#This Row],[User Factored Rate]],1),CEILING(tblDataEntry131613[[#This Row],[Quantity]]/tblDataEntry131613[[#This Row],[Rate Override]],1)),\"---\")","v":"---"}]
[null,null,null,null,null,null,null,null,null,{"$f":"IFERROR(tblDataEntry131613[[#This Row],[Default (Avg.) Rate]]*(1+dsEstimatorAdjustment/100),\"---\")","v":0},null,{"$f":"IFERROR(IF(ISBLANK(tblDataEntry131613[[#This Row],[Rate Override]]),CEILING(tblDataEntry131613[[#This Row],[Quantity]]/tblDataEntry131613[[#This Row],[User Factored Rate]],1),CEILING(tblDataEntry131613[[#This Row],[Quantity]]/tblDataEntry131613[[#This Row],[Rate Override]],1)),\"---\")","v":"---"}]
[null,null,null,null,null,null,null,null,null,{"$f":"IFERROR(tblDataEntry131613[[#This Row],[Default (Avg.) Rate]]*(1+dsEstimatorAdjustment/100),\"---\")","v":0},null,{"$f":"IFERROR(IF(ISBLANK(tblDataEntry131613[[#This Row],[Rate Override]]),CEILING(tblDataEntry131613[[#This Row],[Quantity]]/tblDataEntry131613[[#This Row],[User Factored Rate]],1),CEILING(tblDataEntry131613[[#This Row],[Quantity]]/tblDataEntry131613[[#This Row],[Rate Override]],1)),\"---\")","v":"---"}]
[null,null,null,null,null,null,null,null,null,{"$f":"IFERROR(tblDataEntry131613[[#This Row],[Default (Avg.) Rate]]*(1+dsEstimatorAdjustment/100),\"---\")","v":0},null,{"$f":"IFERROR(IF(ISBLANK(tblDataEntry131613[[#This Row],[Rate Override]]),CEILING(tblDataEntry131613[[#This Row],[Quantity]]/tblDataEntry131613[[#This Row],[User Factored Rate]],1),CEILING(tblDataEntry131613[[#This Row],[Quantity]]/tblDataEntry131613[[#This Row],[Rate Override]],1)),\"---\")","v":"---"}]
[null,null,null,null,null,null,null,null,null,{"$f":"IFERROR(tblDataEntry131613[[#This Row],[Default (Avg.) Rate]]*(1+dsEstimatorAdjustment/100),\"---\")","v":0},null,{"$f":"IFERROR(IF(ISBLANK(tblDataEntry131613[[#This Row],[Rate Override]]),CEILING(tblDataEntry131613[[#This Row],[Quantity]]/tblDataEntry131613[[#This Row],[User Factored Rate]],1),CEILING(tblDataEntry131613[[#This Row],[Quantity]]/tblDataEntry131613[[#This Row],[Rate Override]],1)),\"---\")","v":"---"}]
[null,null,null,null,null,null,null,null,null,{"$f":"IFERROR(tblDataEntry131613[[#This Row],[Default (Avg.) Rate]]*(1+dsEstimatorAdjustment/100),\"---\")","v":0},null,{"$f":"IFERROR(IF(ISBLANK(tblDataEntry131613[[#This Row],[Rate Override]]),CEILING(tblDataEntry131613[[#This Row],[Quantity]]/tblDataEntry131613[[#This Row],[User Factored Rate]],1),CEILING(tblDataEntry131613[[#This Row],[Quantity]]/tblDataEntry131613[[#This Row],[Rate Override]],1)),\"---\")","v":"---"}]
[null,null,null,null,null,null,null,null,null,{"$f":"IFERROR(tblDataEntry131613[[#This Row],[Default (Avg.) Rate]]*(1+dsEstimatorAdjustment/100),\"---\")","v":0},null,{"$f":"IFERROR(IF(ISBLANK(tblDataEntry131613[[#This Row],[Rate Override]]),CEILING(tblDataEntry131613[[#This Row],[Quantity]]/tblDataEntry131613[[#This Row],[User Factored Rate]],1),CEILING(tblDataEntry131613[[#This Row],[Quantity]]/tblDataEntry131613[[#This Row],[Rate Override]],1)),\"---\")","v":"---"}]
[null,null,null,null,null,null,null,null,null,{"$f":"IFERROR(tblDataEntry131613[[#This Row],[Default (Avg.) Rate]]*(1+dsEstimatorAdjustment/100),\"---\")","v":0},null,{"$f":"IFERROR(IF(ISBLANK(tblDataEntry131613[[#This Row],[Rate Override]]),CEILING(tblDataEntry131613[[#This Row],[Quantity]]/tblDataEntry131613[[#This Row],[User Factored Rate]],1),CEILING(tblDataEntry131613[[#This Row],[Quantity]]/tblDataEntry131613[[#This Row],[Rate Override]],1)),\"---\")","v":"---"}]
[null,null,null,null,null,null,null,null,null,{"$f":"IFERROR(tblDataEntry131613[[#This Row],[Default (Avg.) Rate]]*(1+dsEstimatorAdjustment/100),\"---\")","v":0},null,{"$f":"IFERROR(IF(ISBLANK(tblDataEntry131613[[#This Row],[Rate Override]]),CEILING(tblDataEntry131613[[#This Row],[Quantity]]/tblDataEntry131613[[#This Row],[User Factored Rate]],1),CEILING(tblDataEntry131613[[#This Row],[Quantity]]/tblDataEntry131613[[#This Row],[Rate Override]],1)),\"---\")","v":"---"}]
[null,null,null,null,null,null,null,null,null,{"$f":"IFERROR(tblDataEntry131613[[#This Row],[Default (Avg.) Rate]]*(1+dsEstimatorAdjustment/100),\"---\")","v":0},null,{"$f":"IFERROR(IF(ISBLANK(tblDataEntry131613[[#This Row],[Rate Override]]),CEILING(tblDataEntry131613[[#This Row],[Quantity]]/tblDataEntry131613[[#This Row],[User Factored Rate]],1),CEILING(tblDataEntry131613[[#This Row],[Quantity]]/tblDataEntry131613[[#This Row],[Rate Override]],1)),\"---\")","v":"---"}]
[null,null,null,null,null,null,null,null,null,{"$f":"IFERROR(tblDataEntry131613[[#This Row],[Default (Avg.) Rate]]*(1+dsEstimatorAdjustment/100),\"---\")","v":0},null,{"$f":"IFERROR(IF(ISBLANK(tblDataEntry131613[[#This Row],[Rate Override]]),CEILING(tblDataEntry131613[[#This Row],[Quantity]]/tblDataEntry131613[[#This Row],[User Factored Rate]],1),CEILING(tblDataEntry131613[[#This Row],[Quantity]]/tblDataEntry131613[[#This Row],[Rate Override]],1)),\"---\")","v":"---"}]
[null,null,null,null,null,null,null,null,null,{"$f":"IFERROR(tblDataEntry131613[[#This Row],[Default (Avg.) Rate]]*(1+dsEstimatorAdjustment/100),\"---\")","v":0},null,{"$f":"IFERROR(IF(ISBLANK(tblDataEntry131613[[#This Row],[Rate Override]]),CEILING(tblDataEntry131613[[#This Row],[Quantity]]/tblDataEntry131613[[#This Row],[User Factored Rate]],1),CEILING(tblDataEntry131613[[#This Row],[Quantity]]/tblDataEntry131613[[#This Row],[Rate Override]],1)),\"---\")","v":"---"}]
[null,null,null,null,null,null,null,null,null,{"$f":"IFERROR(tblDataEntry131613[[#This Row],[Default (Avg.) Rate]]*(1+dsEstimatorAdjustment/100),\"---\")","v":0},null,{"$f":"IFERROR(IF(ISBLANK(tblDataEntry131613[[#This Row],[Rate Override]]),CEILING(tblDataEntry131613[[#This Row],[Quantity]]/tblDataEntry131613[[#This Row],[User Factored Rate]],1),CEILING(tblDataEntry131613[[#This Row],[Quantity]]/tblDataEntry131613[[#This Row],[Rate Override]],1)),\"---\")","v":"---"}]
[null,null,null,null,null,null,null,null,null,{"$f":"IFERROR(tblDataEntry131613[[#This Row],[Default (Avg.) Rate]]*(1+dsEstimatorAdjustment/100),\"---\")","v":0},null,{"$f":"IFERROR(IF(ISBLANK(tblDataEntry131613[[#This Row],[Rate Override]]),CEILING(tblDataEntry131613[[#This Row],[Quantity]]/tblDataEntry131613[[#This Row],[User Factored Rate]],1),CEILING(tblDataEntry131613[[#This Row],[Quantity]]/tblDataEntry131613[[#This Row],[Rate Override]],1)),\"---\")","v":"---"}]
[null,null,null,null,null,null,null,null,null,{"$f":"IFERROR(tblDataEntry131613[[#This Row],[Default (Avg.) Rate]]*(1+dsEstimatorAdjustment/100),\"---\")","v":0},null,{"$f":"IFERROR(IF(ISBLANK(tblDataEntry131613[[#This Row],[Rate Override]]),CEILING(tblDataEntry131613[[#This Row],[Quantity]]/tblDataEntry131613[[#This Row],[User Factored Rate]],1),CEILING(tblDataEntry131613[[#This Row],[Quantity]]/tblDataEntry131613[[#This Row],[Rate Override]],1)),\"---\")","v":"---"}]
[null,null,null,null,null,null,null,null,null,{"$f":"IFERROR(tblDataEntry131613[[#This Row],[Default (Avg.) Rate]]*(1+dsEstimatorAdjustment/100),\"---\")","v":0},null,{"$f":"IFERROR(IF(ISBLANK(tblDataEntry131613[[#This Row],[Rate Override]]),CEILING(tblDataEntry131613[[#This Row],[Quantity]]/tblDataEntry131613[[#This Row],[User Factored Rate]],1),CEILING(tblDataEntry131613[[#This Row],[Quantity]]/tblDataEntry131613[[#This Row],[Rate Override]],1)),\"---\")","v":"---"}]
[null,null,null,null,null,null,null,null,null,{"$f":"IFERROR(tblDataEntry131613[[#This Row],[Default (Avg.) Rate]]*(1+dsEstimatorAdjustment/100),\"---\")","v":0},null,{"$f":"IFERROR(IF(ISBLANK(tblDataEntry131613[[#This Row],[Rate Override]]),CEILING(tblDataEntry131613[[#This Row],[Quantity]]/tblDataEntry131613[[#This Row],[User Factored Rate]],1),CEILING(tblDataEntry131613[[#This Row],[Quantity]]/tblDataEntry131613[[#This Row],[Rate Override]],1)),\"---\")","v":"---"}]
[null,null,null,null,null,null,null,null,null,{"$f":"IFERROR(tblDataEntry131613[[#This Row],[Default (Avg.) Rate]]*(1+dsEstimatorAdjustment/100),\"---\")","v":0},null,{"$f":"IFERROR(IF(ISBLANK(tblDataEntry131613[[#This Row],[Rate Override]]),CEILING(tblDataEntry131613[[#This Row],[Quantity]]/tblDataEntry131613[[#This Row],[User Factored Rate]],1),CEILING(tblDataEntry131613[[#This Row],[Quantity]]/tblDataEntry131613[[#This Row],[Rate Override]],1)),\"---\")","v":"---"}]
[null,null,null,null,null,null,null,null,null,{"$f":"IFERROR(tblDataEntry131613[[#This Row],[Default (Avg.) Rate]]*(1+dsEstimatorAdjustment/100),\"---\")","v":0},null,{"$f":"IFERROR(IF(ISBLANK(tblDataEntry131613[[#This Row],[Rate Override]]),CEILING(tblDataEntry131613[[#This Row],[Quantity]]/tblDataEntry131613[[#This Row],[User Factored Rate]],1),CEILING(tblDataEntry131613[[#This Row],[Quantity]]/tblDataEntry131613[[#This Row],[Rate Override]],1)),\"---\")","v":"---"}]
[null,null,null,null,null,null,null,null,null,{"$f":"IFERROR(tblDataEntry131613[[#This Row],[Default (Avg.) Rate]]*(1+dsEstimatorAdjustment/100),\"---\")","v":0},null,{"$f":"IFERROR(IF(ISBLANK(tblDataEntry131613[[#This Row],[Rate Override]]),CEILING(tblDataEntry131613[[#This Row],[Quantity]]/tblDataEntry131613[[#This Row],[User Factored Rate]],1),CEILING(tblDataEntry131613[[#This Row],[Quantity]]/tblDataEntry131613[[#This Row],[Rate Override]],1)),\"---\")","v":"---"}]
[null,null,null,null,null,null,null,null,null,{"$f":"IFERROR(tblDataEntry131613[[#This Row],[Default (Avg.) Rate]]*(1+dsEstimatorAdjustment/100),\"---\")","v":0},null,{"$f":"IFERROR(IF(ISBLANK(tblDataEntry131613[[#This Row],[Rate Override]]),CEILING(tblDataEntry131613[[#This Row],[Quantity]]/tblDataEntry131613[[#This Row],[User Factored Rate]],1),CEILING(tblDataEntry131613[[#This Row],[Quantity]]/tblDataEntry131613[[#This Row],[Rate Override]],1)),\"---\")","v":"---"}]
[null,null,null,null,null,null,null,null,null,{"$f":"IFERROR(tblDataEntry131613[[#This Row],[Default (Avg.) Rate]]*(1+dsEstimatorAdjustment/100),\"---\")","v":0},null,{"$f":"IFERROR(IF(ISBLANK(tblDataEntry131613[[#This Row],[Rate Override]]),CEILING(tblDataEntry131613[[#This Row],[Quantity]]/tblDataEntry131613[[#This Row],[User Factored Rate]],1),CEILING(tblDataEntry131613[[#This Row],[Quantity]]/tblDataEntry131613[[#This Row],[Rate Override]],1)),\"---\")","v":"---"}]
[null,null,null,null,null,null,null,null,null,{"$f":"IFERROR(tblDataEntry131613[[#This Row],[Default (Avg.) Rate]]*(1+dsEstimatorAdjustment/100),\"---\")","v":0},null,{"$f":"IFERROR(IF(ISBLANK(tblDataEntry131613[[#This Row],[Rate Override]]),CEILING(tblDataEntry131613[[#This Row],[Quantity]]/tblDataEntry131613[[#This Row],[User Factored Rate]],1),CEILING(tblDataEntry131613[[#This Row],[Quantity]]/tblDataEntry131613[[#This Row],[Rate Override]],1)),\"---\")","v":"---"}]
[null,null,null,null,null,null,null,null,null,{"$f":"IFERROR(tblDataEntry131613[[#This Row],[Default (Avg.) Rate]]*(1+dsEstimatorAdjustment/100),\"---\")","v":0},null,{"$f":"IFERROR(IF(ISBLANK(tblDataEntry131613[[#This Row],[Rate Override]]),CEILING(tblDataEntry131613[[#This Row],[Quantity]]/tblDataEntry131613[[#This Row],[User Factored Rate]],1),CEILING(tblDataEntry131613[[#This Row],[Quantity]]/tblDataEntry131613[[#This Row],[Rate Override]],1)),\"---\")","v":"---"}]
[null,null,null,null,null,null,null,null,null,{"$f":"IFERROR(tblDataEntry131613[[#This Row],[Default (Avg.) Rate]]*(1+dsEstimatorAdjustment/100),\"---\")","v":0},null,{"$f":"IFERROR(IF(ISBLANK(tblDataEntry131613[[#This Row],[Rate Override]]),CEILING(tblDataEntry131613[[#This Row],[Quantity]]/tblDataEntry131613[[#This Row],[User Factored Rate]],1),CEILING(tblDataEntry131613[[#This Row],[Quantity]]/tblDataEntry131613[[#This Row],[Rate Override]],1)),\"---\")","v":"---"}]
[null,null,null,null,null,null,null,null,null,{"$f":"IFERROR(tblDataEntry131613[[#This Row],[Default (Avg.) Rate]]*(1+dsEstimatorAdjustment/100),\"---\")","v":0},null,{"$f":"IFERROR(IF(ISBLANK(tblDataEntry131613[[#This Row],[Rate Override]]),CEILING(tblDataEntry131613[[#This Row],[Quantity]]/tblDataEntry131613[[#This Row],[User Factored Rate]],1),CEILING(tblDataEntry131613[[#This Row],[Quantity]]/tblDataEntry131613[[#This Row],[Rate Override]],1)),\"---\")","v":"---"}]
[null,null,null,null,null,null,null,null,null,{"$f":"IFERROR(tblDataEntry131613[[#This Row],[Default (Avg.) Rate]]*(1+dsEstimatorAdjustment/100),\"---\")","v":0},null,{"$f":"IFERROR(IF(ISBLANK(tblDataEntry131613[[#This Row],[Rate Override]]),CEILING(tblDataEntry131613[[#This Row],[Quantity]]/tblDataEntry131613[[#This Row],[User Factored Rate]],1),CEILING(tblDataEntry131613[[#This Row],[Quantity]]/tblDataEntry131613[[#This Row],[Rate Override]],1)),\"---\")","v":"---"}]
[null,null,null,null,null,null,null,null,null,{"$f":"IFERROR(tblDataEntry131613[[#This Row],[Default (Avg.) Rate]]*(1+dsEstimatorAdjustment/100),\"---\")","v":0},null,{"$f":"IFERROR(IF(ISBLANK(tblDataEntry131613[[#This Row],[Rate Override]]),CEILING(tblDataEntry131613[[#This Row],[Quantity]]/tblDataEntry131613[[#This Row],[User Factored Rate]],1),CEILING(tblDataEntry131613[[#This Row],[Quantity]]/tblDataEntry131613[[#This Row],[Rate Override]],1)),\"---\")","v":"---"}]
[null,null,null,null,null,null,null,null,null,{"$f":"IFERROR(tblDataEntry131613[[#This Row],[Default (Avg.) Rate]]*(1+dsEstimatorAdjustment/100),\"---\")","v":0},null,{"$f":"IFERROR(IF(ISBLANK(tblDataEntry131613[[#This Row],[Rate Override]]),CEILING(tblDataEntry131613[[#This Row],[Quantity]]/tblDataEntry131613[[#This Row],[User Factored Rate]],1),CEILING(tblDataEntry131613[[#This Row],[Quantity]]/tblDataEntry131613[[#This Row],[Rate Override]],1)),\"---\")","v":"---"}]
[null,null,null,null,null,null,null,null,null,{"$f":"IFERROR(tblDataEntry131613[[#This Row],[Default (Avg.) Rate]]*(1+dsEstimatorAdjustment/100),\"---\")","v":0},null,{"$f":"IFERROR(IF(ISBLANK(tblDataEntry131613[[#This Row],[Rate Override]]),CEILING(tblDataEntry131613[[#This Row],[Quantity]]/tblDataEntry131613[[#This Row],[User Factored Rate]],1),CEILING(tblDataEntry131613[[#This Row],[Quantity]]/tblDataEntry131613[[#This Row],[Rate Override]],1)),\"---\")","v":"---"}]
[null,null,null,null,null,null,null,null,null,{"$f":"IFERROR(tblDataEntry131613[[#This Row],[Default (Avg.) Rate]]*(1+dsEstimatorAdjustment/100),\"---\")","v":0},null,{"$f":"IFERROR(IF(ISBLANK(tblDataEntry131613[[#This Row],[Rate Override]]),CEILING(tblDataEntry131613[[#This Row],[Quantity]]/tblDataEntry131613[[#This Row],[User Factored Rate]],1),CEILING(tblDataEntry131613[[#This Row],[Quantity]]/tblDataEntry131613[[#This Row],[Rate Override]],1)),\"---\")","v":"---"}]
[null,null,null,null,null,null,null,null,null,{"$f":"IFERROR(tblDataEntry131613[[#This Row],[Default (Avg.) Rate]]*(1+dsEstimatorAdjustment/100),\"---\")","v":0},null,{"$f":"IFERROR(IF(ISBLANK(tblDataEntry131613[[#This Row],[Rate Override]]),CEILING(tblDataEntry131613[[#This Row],[Quantity]]/tblDataEntry131613[[#This Row],[User Factored Rate]],1),CEILING(tblDataEntry131613[[#This Row],[Quantity]]/tblDataEntry131613[[#This Row],[Rate Override]],1)),\"---\")","v":"---"}]
[null,null,null,null,null,null,null,null,null,{"$f":"IFERROR(tblDataEntry131613[[#This Row],[Default (Avg.) Rate]]*(1+dsEstimatorAdjustment/100),\"---\")","v":0},null,{"$f":"IFERROR(IF(ISBLANK(tblDataEntry131613[[#This Row],[Rate Override]]),CEILING(tblDataEntry131613[[#This Row],[Quantity]]/tblDataEntry131613[[#This Row],[User Factored Rate]],1),CEILING(tblDataEntry131613[[#This Row],[Quantity]]/tblDataEntry131613[[#This Row],[Rate Override]],1)),\"---\")","v":"---"}]
[null,null,null,null,null,null,null,null,null,{"$f":"IFERROR(tblDataEntry131613[[#This Row],[Default (Avg.) Rate]]*(1+dsEstimatorAdjustment/100),\"---\")","v":0},null,{"$f":"IFERROR(IF(ISBLANK(tblDataEntry131613[[#This Row],[Rate Override]]),CEILING(tblDataEntry131613[[#This Row],[Quantity]]/tblDataEntry131613[[#This Row],[User Factored Rate]],1),CEILING(tblDataEntry131613[[#This Row],[Quantity]]/tblDataEntry131613[[#This Row],[Rate Override]],1)),\"---\")","v":"---"}]
[null,null,null,null,null,null,null,null,null,{"$f":"IFERROR(tblDataEntry131613[[#This Row],[Default (Avg.) Rate]]*(1+dsEstimatorAdjustment/100),\"---\")","v":0},null,{"$f":"IFERROR(IF(ISBLANK(tblDataEntry131613[[#This Row],[Rate Override]]),CEILING(tblDataEntry131613[[#This Row],[Quantity]]/tblDataEntry131613[[#This Row],[User Factored Rate]],1),CEILING(tblDataEntry131613[[#This Row],[Quantity]]/tblDataEntry131613[[#This Row],[Rate Override]],1)),\"---\")","v":"---"}]
[null,null,null,null,null,null,null,null,null,{"$f":"IFERROR(tblDataEntry131613[[#This Row],[Default (Avg.) Rate]]*(1+dsEstimatorAdjustment/100),\"---\")","v":0},null,{"$f":"IFERROR(IF(ISBLANK(tblDataEntry131613[[#This Row],[Rate Override]]),CEILING(tblDataEntry131613[[#This Row],[Quantity]]/tblDataEntry131613[[#This Row],[User Factored Rate]],1),CEILING(tblDataEntry131613[[#This Row],[Quantity]]/tblDataEntry131613[[#This Row],[Rate Override]],1)),\"---\")","v":"---"}]
[null,null,null,null,null,null,null,null,null,{"$f":"IFERROR(tblDataEntry131613[[#This Row],[Default (Avg.) Rate]]*(1+dsEstimatorAdjustment/100),\"---\")","v":0},null,{"$f":"IFERROR(IF(ISBLANK(tblDataEntry131613[[#This Row],[Rate Override]]),CEILING(tblDataEntry131613[[#This Row],[Quantity]]/tblDataEntry131613[[#This Row],[User Factored Rate]],1),CEILING(tblDataEntry131613[[#This Row],[Quantity]]/tblDataEntry131613[[#This Row],[Rate Override]],1)),\"---\")","v":"---"}]
[null,null,null,null,null,null,null,null,null,{"$f":"IFERROR(tblDataEntry131613[[#This Row],[Default (Avg.) Rate]]*(1+dsEstimatorAdjustment/100),\"---\")","v":0},null,{"$f":"IFERROR(IF(ISBLANK(tblDataEntry131613[[#This Row],[Rate Override]]),CEILING(tblDataEntry131613[[#This Row],[Quantity]]/tblDataEntry131613[[#This Row],[User Factored Rate]],1),CEILING(tblDataEntry131613[[#This Row],[Quantity]]/tblDataEntry131613[[#This Row],[Rate Override]],1)),\"---\")","v":"---"}]
[null,null,null,null,null,null,null,null,null,{"$f":"IFERROR(tblDataEntry131613[[#This Row],[Default (Avg.) Rate]]*(1+dsEstimatorAdjustment/100),\"---\")","v":0},null,{"$f":"IFERROR(IF(ISBLANK(tblDataEntry131613[[#This Row],[Rate Override]]),CEILING(tblDataEntry131613[[#This Row],[Quantity]]/tblDataEntry131613[[#This Row],[User Factored Rate]],1),CEILING(tblDataEntry131613[[#This Row],[Quantity]]/tblDataEntry131613[[#This Row],[Rate Override]],1)),\"---\")","v":"---"}]
[null,null,null,null,null,null,null,null,null,{"$f":"IFERROR(tblDataEntry131613[[#This Row],[Default (Avg.) Rate]]*(1+dsEstimatorAdjustment/100),\"---\")","v":0},null,{"$f":"IFERROR(IF(ISBLANK(tblDataEntry131613[[#This Row],[Rate Override]]),CEILING(tblDataEntry131613[[#This Row],[Quantity]]/tblDataEntry131613[[#This Row],[User Factored Rate]],1),CEILING(tblDataEntry131613[[#This Row],[Quantity]]/tblDataEntry131613[[#This Row],[Rate Override]],1)),\"---\")","v":"---"}]
[null,null,null,null,null,null,null,null,null,{"$f":"IFERROR(tblDataEntry131613[[#This Row],[Default (Avg.) Rate]]*(1+dsEstimatorAdjustment/100),\"---\")","v":0},null,{"$f":"IFERROR(IF(ISBLANK(tblDataEntry131613[[#This Row],[Rate Override]]),CEILING(tblDataEntry131613[[#This Row],[Quantity]]/tblDataEntry131613[[#This Row],[User Factored Rate]],1),CEILING(tblDataEntry131613[[#This Row],[Quantity]]/tblDataEntry131613[[#This Row],[Rate Override]],1)),\"---\")","v":"---"}]
[null,null,null,null,null,null,null,null,null,{"$f":"IFERROR(tblDataEntry131613[[#This Row],[Default (Avg.) Rate]]*(1+dsEstimatorAdjustment/100),\"---\")","v":0},null,{"$f":"IFERROR(IF(ISBLANK(tblDataEntry131613[[#This Row],[Rate Override]]),CEILING(tblDataEntry131613[[#This Row],[Quantity]]/tblDataEntry131613[[#This Row],[User Factored Rate]],1),CEILING(tblDataEntry131613[[#This Row],[Quantity]]/tblDataEntry131613[[#This Row],[Rate Override]],1)),\"---\")","v":"---"}]
[null,null,null,null,null,null,null,null,null,{"$f":"IFERROR(tblDataEntry131613[[#This Row],[Default (Avg.) Rate]]*(1+dsEstimatorAdjustment/100),\"---\")","v":0},null,{"$f":"IFERROR(IF(ISBLANK(tblDataEntry131613[[#This Row],[Rate Override]]),CEILING(tblDataEntry131613[[#This Row],[Quantity]]/tblDataEntry131613[[#This Row],[User Factored Rate]],1),CEILING(tblDataEntry131613[[#This Row],[Quantity]]/tblDataEntry131613[[#This Row],[Rate Override]],1)),\"---\")","v":"---"}]
[null,null,null,null,null,null,null,null,null,{"$f":"IFERROR(tblDataEntry131613[[#This Row],[Default (Avg.) Rate]]*(1+dsEstimatorAdjustment/100),\"---\")","v":0},null,{"$f":"IFERROR(IF(ISBLANK(tblDataEntry131613[[#This Row],[Rate Override]]),CEILING(tblDataEntry131613[[#This Row],[Quantity]]/tblDataEntry131613[[#This Row],[User Factored Rate]],1),CEILING(tblDataEntry131613[[#This Row],[Quantity]]/tblDataEntry131613[[#This Row],[Rate Override]],1)),\"---\")","v":"---"}]
[null,null,null,null,null,null,null,null,null,{"$f":"IFERROR(tblDataEntry131613[[#This Row],[Default (Avg.) Rate]]*(1+dsEstimatorAdjustment/100),\"---\")","v":0},null,{"$f":"IFERROR(IF(ISBLANK(tblDataEntry131613[[#This Row],[Rate Override]]),CEILING(tblDataEntry131613[[#This Row],[Quantity]]/tblDataEntry131613[[#This Row],[User Factored Rate]],1),CEILING(tblDataEntry131613[[#This Row],[Quantity]]/tblDataEntry131613[[#This Row],[Rate Override]],1)),\"---\")","v":"---"}]
[null,null,null,null,null,null,null,null,null,{"$f":"IFERROR(tblDataEntry131613[[#This Row],[Default (Avg.) Rate]]*(1+dsEstimatorAdjustment/100),\"---\")","v":0},null,{"$f":"IFERROR(IF(ISBLANK(tblDataEntry131613[[#This Row],[Rate Override]]),CEILING(tblDataEntry131613[[#This Row],[Quantity]]/tblDataEntry131613[[#This Row],[User Factored Rate]],1),CEILING(tblDataEntry131613[[#This Row],[Quantity]]/tblDataEntry131613[[#This Row],[Rate Override]],1)),\"---\")","v":"---"}]
[null,null,null,null,null,null,null,null,null,{"$f":"IFERROR(tblDataEntry131613[[#This Row],[Default (Avg.) Rate]]*(1+dsEstimatorAdjustment/100),\"---\")","v":0},null,{"$f":"IFERROR(IF(ISBLANK(tblDataEntry131613[[#This Row],[Rate Override]]),CEILING(tblDataEntry131613[[#This Row],[Quantity]]/tblDataEntry131613[[#This Row],[User Factored Rate]],1),CEILING(tblDataEntry131613[[#This Row],[Quantity]]/tblDataEntry131613[[#This Row],[Rate Override]],1)),\"---\")","v":"---"}]
[null,null,null,null,null,null,null,null,null,{"$f":"IFERROR(tblDataEntry131613[[#This Row],[Default (Avg.) Rate]]*(1+dsEstimatorAdjustment/100),\"---\")","v":0},null,{"$f":"IFERROR(IF(ISBLANK(tblDataEntry131613[[#This Row],[Rate Override]]),CEILING(tblDataEntry131613[[#This Row],[Quantity]]/tblDataEntry131613[[#This Row],[User Factored Rate]],1),CEILING(tblDataEntry131613[[#This Row],[Quantity]]/tblDataEntry131613[[#This Row],[Rate Override]],1)),\"---\")","v":"---"}]
[null,null,null,null,null,null,null,null,null,{"$f":"IFERROR(tblDataEntry131613[[#This Row],[Default (Avg.) Rate]]*(1+dsEstimatorAdjustment/100),\"---\")","v":0},null,{"$f":"IFERROR(IF(ISBLANK(tblDataEntry131613[[#This Row],[Rate Override]]),CEILING(tblDataEntry131613[[#This Row],[Quantity]]/tblDataEntry131613[[#This Row],[User Factored Rate]],1),CEILING(tblDataEntry131613[[#This Row],[Quantity]]/tblDataEntry131613[[#This Row],[Rate Override]],1)),\"---\")","v":"---"}]
[null,null,null,null,null,null,null,null,null,{"$f":"IFERROR(tblDataEntry131613[[#This Row],[Default (Avg.) Rate]]*(1+dsEstimatorAdjustment/100),\"---\")","v":0},null,{"$f":"IFERROR(IF(ISBLANK(tblDataEntry131613[[#This Row],[Rate Override]]),CEILING(tblDataEntry131613[[#This Row],[Quantity]]/tblDataEntry131613[[#This Row],[User Factored Rate]],1),CEILING(tblDataEntry131613[[#This Row],[Quantity]]/tblDataEntry131613[[#This Row],[Rate Override]],1)),\"---\")","v":"---"}]
[null,null,null,null,null,null,null,null,null,{"$f":"IFERROR(tblDataEntry131613[[#This Row],[Default (Avg.) Rate]]*(1+dsEstimatorAdjustment/100),\"---\")","v":0},null,{"$f":"IFERROR(IF(ISBLANK(tblDataEntry131613[[#This Row],[Rate Override]]),CEILING(tblDataEntry131613[[#This Row],[Quantity]]/tblDataEntry131613[[#This Row],[User Factored Rate]],1),CEILING(tblDataEntry131613[[#This Row],[Quantity]]/tblDataEntry131613[[#This Row],[Rate Override]],1)),\"---\")","v":"---"}]
[null,null,null,null,null,null,null,null,null,{"$f":"IFERROR(tblDataEntry131613[[#This Row],[Default (Avg.) Rate]]*(1+dsEstimatorAdjustment/100),\"---\")","v":0},null,{"$f":"IFERROR(IF(ISBLANK(tblDataEntry131613[[#This Row],[Rate Override]]),CEILING(tblDataEntry131613[[#This Row],[Quantity]]/tblDataEntry131613[[#This Row],[User Factored Rate]],1),CEILING(tblDataEntry131613[[#This Row],[Quantity]]/tblDataEntry131613[[#This Row],[Rate Override]],1)),\"---\")","v":"---"}]
[null,null,null,null,null,null,null,null,null,{"$f":"IFERROR(tblDataEntry131613[[#This Row],[Default (Avg.) Rate]]*(1+dsEstimatorAdjustment/100),\"---\")","v":0},null,{"$f":"IFERROR(IF(ISBLANK(tblDataEntry131613[[#This Row],[Rate Override]]),CEILING(tblDataEntry131613[[#This Row],[Quantity]]/tblDataEntry131613[[#This Row],[User Factored Rate]],1),CEILING(tblDataEntry131613[[#This Row],[Quantity]]/tblDataEntry131613[[#This Row],[Rate Override]],1)),\"---\")","v":"---"}]
[null,null,null,null,null,null,null,null,null,{"$f":"IFERROR(tblDataEntry131613[[#This Row],[Default (Avg.) Rate]]*(1+dsEstimatorAdjustment/100),\"---\")","v":0},null,{"$f":"IFERROR(IF(ISBLANK(tblDataEntry131613[[#This Row],[Rate Override]]),CEILING(tblDataEntry131613[[#This Row],[Quantity]]/tblDataEntry131613[[#This Row],[User Factored Rate]],1),CEILING(tblDataEntry131613[[#This Row],[Quantity]]/tblDataEntry131613[[#This Row],[Rate Override]],1)),\"---\")","v":"---"}]
[null,null,null,null,null,null,null,null,null,{"$f":"IFERROR(tblDataEntry131613[[#This Row],[Default (Avg.) Rate]]*(1+dsEstimatorAdjustment/100),\"---\")","v":0},null,{"$f":"IFERROR(IF(ISBLANK(tblDataEntry131613[[#This Row],[Rate Override]]),CEILING(tblDataEntry131613[[#This Row],[Quantity]]/tblDataEntry131613[[#This Row],[User Factored Rate]],1),CEILING(tblDataEntry131613[[#This Row],[Quantity]]/tblDataEntry131613[[#This Row],[Rate Override]],1)),\"---\")","v":"---"}]
[null,null,null,null,null,null,null,null,null,{"$f":"IFERROR(tblDataEntry131613[[#This Row],[Default (Avg.) Rate]]*(1+dsEstimatorAdjustment/100),\"---\")","v":0},null,{"$f":"IFERROR(IF(ISBLANK(tblDataEntry131613[[#This Row],[Rate Override]]),CEILING(tblDataEntry131613[[#This Row],[Quantity]]/tblDataEntry131613[[#This Row],[User Factored Rate]],1),CEILING(tblDataEntry131613[[#This Row],[Quantity]]/tblDataEntry131613[[#This Row],[Rate Override]],1)),\"---\")","v":"---"}]
[null,null,null,null,null,null,null,null,null,{"$f":"IFERROR(tblDataEntry131613[[#This Row],[Default (Avg.) Rate]]*(1+dsEstimatorAdjustment/100),\"---\")","v":0},null,{"$f":"IFERROR(IF(ISBLANK(tblDataEntry131613[[#This Row],[Rate Override]]),CEILING(tblDataEntry131613[[#This Row],[Quantity]]/tblDataEntry131613[[#This Row],[User Factored Rate]],1),CEILING(tblDataEntry131613[[#This Row],[Quantity]]/tblDataEntry131613[[#This Row],[Rate Override]],1)),\"---\")","v":"---"}]
[null,null,null,null,null,null,null,null,null,{"$f":"IFERROR(tblDataEntry131613[[#This Row],[Default (Avg.) Rate]]*(1+dsEstimatorAdjustment/100),\"---\")","v":0},null,{"$f":"IFERROR(IF(ISBLANK(tblDataEntry131613[[#This Row],[Rate Override]]),CEILING(tblDataEntry131613[[#This Row],[Quantity]]/tblDataEntry131613[[#This Row],[User Factored Rate]],1),CEILING(tblDataEntry131613[[#This Row],[Quantity]]/tblDataEntry131613[[#This Row],[Rate Override]],1)),\"---\")","v":"---"}]
[null,null,null,null,null,null,null,null,null,{"$f":"IFERROR(tblDataEntry131613[[#This Row],[Default (Avg.) Rate]]*(1+dsEstimatorAdjustment/100),\"---\")","v":0},null,{"$f":"IFERROR(IF(ISBLANK(tblDataEntry131613[[#This Row],[Rate Override]]),CEILING(tblDataEntry131613[[#This Row],[Quantity]]/tblDataEntry131613[[#This Row],[User Factored Rate]],1),CEILING(tblDataEntry131613[[#This Row],[Quantity]]/tblDataEntry131613[[#This Row],[Rate Override]],1)),\"---\")","v":"---"}]
[null,null,null,null,null,null,null,null,null,{"$f":"IFERROR(tblDataEntry131613[[#This Row],[Default (Avg.) Rate]]*(1+dsEstimatorAdjustment/100),\"---\")","v":0},null,{"$f":"IFERROR(IF(ISBLANK(tblDataEntry131613[[#This Row],[Rate Override]]),CEILING(tblDataEntry131613[[#This Row],[Quantity]]/tblDataEntry131613[[#This Row],[User Factored Rate]],1),CEILING(tblDataEntry131613[[#This Row],[Quantity]]/tblDataEntry131613[[#This Row],[Rate Override]],1)),\"---\")","v":"---"}]
[null,null,null,null,null,null,null,null,null,{"$f":"IFERROR(tblDataEntry131613[[#This Row],[Default (Avg.) Rate]]*(1+dsEstimatorAdjustment/100),\"---\")","v":0},null,{"$f":"IFERROR(IF(ISBLANK(tblDataEntry131613[[#This Row],[Rate Override]]),CEILING(tblDataEntry131613[[#This Row],[Quantity]]/tblDataEntry131613[[#This Row],[User Factored Rate]],1),CEILING(tblDataEntry131613[[#This Row],[Quantity]]/tblDataEntry131613[[#This Row],[Rate Override]],1)),\"---\")","v":"---"}]
[null,null,null,null,null,null,null,null,null,{"$f":"IFERROR(tblDataEntry131613[[#This Row],[Default (Avg.) Rate]]*(1+dsEstimatorAdjustment/100),\"---\")","v":0},null,{"$f":"IFERROR(IF(ISBLANK(tblDataEntry131613[[#This Row],[Rate Override]]),CEILING(tblDataEntry131613[[#This Row],[Quantity]]/tblDataEntry131613[[#This Row],[User Factored Rate]],1),CEILING(tblDataEntry131613[[#This Row],[Quantity]]/tblDataEntry131613[[#This Row],[Rate Override]],1)),\"---\")","v":"---"}]
[null,null,null,null,null,null,null,null,null,{"$f":"IFERROR(tblDataEntry131613[[#This Row],[Default (Avg.) Rate]]*(1+dsEstimatorAdjustment/100),\"---\")","v":0},null,{"$f":"IFERROR(IF(ISBLANK(tblDataEntry131613[[#This Row],[Rate Override]]),CEILING(tblDataEntry131613[[#This Row],[Quantity]]/tblDataEntry131613[[#This Row],[User Factored Rate]],1),CEILING(tblDataEntry131613[[#This Row],[Quantity]]/tblDataEntry131613[[#This Row],[Rate Override]],1)),\"---\")","v":"---"}]
[null,null,null,null,null,null,null,null,null,{"$f":"IFERROR(tblDataEntry131613[[#This Row],[Default (Avg.) Rate]]*(1+dsEstimatorAdjustment/100),\"---\")","v":0},null,{"$f":"IFERROR(IF(ISBLANK(tblDataEntry131613[[#This Row],[Rate Override]]),CEILING(tblDataEntry131613[[#This Row],[Quantity]]/tblDataEntry131613[[#This Row],[User Factored Rate]],1),CEILING(tblDataEntry131613[[#This Row],[Quantity]]/tblDataEntry131613[[#This Row],[Rate Override]],1)),\"---\")","v":"---"}]
[null,null,null,null,null,null,null,null,null,{"$f":"IFERROR(tblDataEntry131613[[#This Row],[Default (Avg.) Rate]]*(1+dsEstimatorAdjustment/100),\"---\")","v":0},null,{"$f":"IFERROR(IF(ISBLANK(tblDataEntry131613[[#This Row],[Rate Override]]),CEILING(tblDataEntry131613[[#This Row],[Quantity]]/tblDataEntry131613[[#This Row],[User Factored Rate]],1),CEILING(tblDataEntry131613[[#This Row],[Quantity]]/tblDataEntry131613[[#This Row],[Rate Override]],1)),\"---\")","v":"---"}]
[null,null,null,null,null,null,null,null,null,{"$f":"IFERROR(tblDataEntry131613[[#This Row],[Default (Avg.) Rate]]*(1+dsEstimatorAdjustment/100),\"---\")","v":0},null,{"$f":"IFERROR(IF(ISBLANK(tblDataEntry131613[[#This Row],[Rate Override]]),CEILING(tblDataEntry131613[[#This Row],[Quantity]]/tblDataEntry131613[[#This Row],[User Factored Rate]],1),CEILING(tblDataEntry131613[[#This Row],[Quantity]]/tblDataEntry131613[[#This Row],[Rate Override]],1)),\"---\")","v":"---"}]
[null,null,null,null,null,null,null,null,null,{"$f":"IFERROR(tblDataEntry131613[[#This Row],[Default (Avg.) Rate]]*(1+dsEstimatorAdjustment/100),\"---\")","v":0},null,{"$f":"IFERROR(IF(ISBLANK(tblDataEntry131613[[#This Row],[Rate Override]]),CEILING(tblDataEntry131613[[#This Row],[Quantity]]/tblDataEntry131613[[#This Row],[User Factored Rate]],1),CEILING(tblDataEntry131613[[#This Row],[Quantity]]/tblDataEntry131613[[#This Row],[Rate Override]],1)),\"---\")","v":"---"}]
[null,null,null,null,null,null,null,null,null,{"$f":"IFERROR(tblDataEntry131613[[#This Row],[Default (Avg.) Rate]]*(1+dsEstimatorAdjustment/100),\"---\")","v":0},null,{"$f":"IFERROR(IF(ISBLANK(tblDataEntry131613[[#This Row],[Rate Override]]),CEILING(tblDataEntry131613[[#This Row],[Quantity]]/tblDataEntry131613[[#This Row],[User Factored Rate]],1),CEILING(tblDataEntry131613[[#This Row],[Quantity]]/tblDataEntry131613[[#This Row],[Rate Override]],1)),\"---\")","v":"---"}]
[null,null,null,null,null,null,null,null,null,{"$f":"IFERROR(tblDataEntry131613[[#This Row],[Default (Avg.) Rate]]*(1+dsEstimatorAdjustment/100),\"---\")","v":0},null,{"$f":"IFERROR(IF(ISBLANK(tblDataEntry131613[[#This Row],[Rate Override]]),CEILING(tblDataEntry131613[[#This Row],[Quantity]]/tblDataEntry131613[[#This Row],[User Factored Rate]],1),CEILING(tblDataEntry131613[[#This Row],[Quantity]]/tblDataEntry131613[[#This Row],[Rate Override]],1)),\"---\")","v":"---"}]
[null,null,null,null,null,null,null,null,null,{"$f":"IFERROR(tblDataEntry131613[[#This Row],[Default (Avg.) Rate]]*(1+dsEstimatorAdjustment/100),\"---\")","v":0},null,{"$f":"IFERROR(IF(ISBLANK(tblDataEntry131613[[#This Row],[Rate Override]]),CEILING(tblDataEntry131613[[#This Row],[Quantity]]/tblDataEntry131613[[#This Row],[User Factored Rate]],1),CEILING(tblDataEntry131613[[#This Row],[Quantity]]/tblDataEntry131613[[#This Row],[Rate Override]],1)),\"---\")","v":"---"}]
[null,null,null,null,null,null,null,null,null,{"$f":"IFERROR(tblDataEntry131613[[#This Row],[Default (Avg.) Rate]]*(1+dsEstimatorAdjustment/100),\"---\")","v":0},null,{"$f":"IFERROR(IF(ISBLANK(tblDataEntry131613[[#This Row],[Rate Override]]),CEILING(tblDataEntry131613[[#This Row],[Quantity]]/tblDataEntry131613[[#This Row],[User Factored Rate]],1),CEILING(tblDataEntry131613[[#This Row],[Quantity]]/tblDataEntry131613[[#This Row],[Rate Override]],1)),\"---\")","v":"---"}]
[null,null,null,null,null,null,null,null,null,{"$f":"IFERROR(tblDataEntry131613[[#This Row],[Default (Avg.) Rate]]*(1+dsEstimatorAdjustment/100),\"---\")","v":0},null,{"$f":"IFERROR(IF(ISBLANK(tblDataEntry131613[[#This Row],[Rate Override]]),CEILING(tblDataEntry131613[[#This Row],[Quantity]]/tblDataEntry131613[[#This Row],[User Factored Rate]],1),CEILING(tblDataEntry131613[[#This Row],[Quantity]]/tblDataEntry131613[[#This Row],[Rate Override]],1)),\"---\")","v":"---"}]
[null,null,null,null,null,null,null,null,null,{"$f":"IFERROR(tblDataEntry131613[[#This Row],[Default (Avg.) Rate]]*(1+dsEstimatorAdjustment/100),\"---\")","v":0},null,{"$f":"IFERROR(IF(ISBLANK(tblDataEntry131613[[#This Row],[Rate Override]]),CEILING(tblDataEntry131613[[#This Row],[Quantity]]/tblDataEntry131613[[#This Row],[User Factored Rate]],1),CEILING(tblDataEntry131613[[#This Row],[Quantity]]/tblDataEntry131613[[#This Row],[Rate Override]],1)),\"---\")","v":"---"}]
[null,null,null,null,null,null,null,null,null,{"$f":"IFERROR(tblDataEntry131613[[#This Row],[Default (Avg.) Rate]]*(1+dsEstimatorAdjustment/100),\"---\")","v":0},null,{"$f":"IFERROR(IF(ISBLANK(tblDataEntry131613[[#This Row],[Rate Override]]),CEILING(tblDataEntry131613[[#This Row],[Quantity]]/tblDataEntry131613[[#This Row],[User Factored Rate]],1),CEILING(tblDataEntry131613[[#This Row],[Quantity]]/tblDataEntry131613[[#This Row],[Rate Override]],1)),\"---\")","v":"---"}]
[null,null,null,null,null,null,null,null,null,{"$f":"IFERROR(tblDataEntry131613[[#This Row],[Default (Avg.) Rate]]*(1+dsEstimatorAdjustment/100),\"---\")","v":0},null,{"$f":"IFERROR(IF(ISBLANK(tblDataEntry131613[[#This Row],[Rate Override]]),CEILING(tblDataEntry131613[[#This Row],[Quantity]]/tblDataEntry131613[[#This Row],[User Factored Rate]],1),CEILING(tblDataEntry131613[[#This Row],[Quantity]]/tblDataEntry131613[[#This Row],[Rate Override]],1)),\"---\")","v":"---"}]
[null,null,null,null,null,null,null,null,null,{"$f":"IFERROR(tblDataEntry131613[[#This Row],[Default (Avg.) Rate]]*(1+dsEstimatorAdjustment/100),\"---\")","v":0},null,{"$f":"IFERROR(IF(ISBLANK(tblDataEntry131613[[#This Row],[Rate Override]]),CEILING(tblDataEntry131613[[#This Row],[Quantity]]/tblDataEntry131613[[#This Row],[User Factored Rate]],1),CEILING(tblDataEntry131613[[#This Row],[Quantity]]/tblDataEntry131613[[#This Row],[Rate Override]],1)),\"---\")","v":"---"}]
[null,null,null,null,null,null,null,null,null,{"$f":"IFERROR(tblDataEntry131613[[#This Row],[Default (Avg.) Rate]]*(1+dsEstimatorAdjustment/100),\"---\")","v":0},null,{"$f":"IFERROR(IF(ISBLANK(tblDataEntry131613[[#This Row],[Rate Override]]),CEILING(tblDataEntry131613[[#This Row],[Quantity]]/tblDataEntry131613[[#This Row],[User Factored Rate]],1),CEILING(tblDataEntry131613[[#This Row],[Quantity]]/tblDataEntry131613[[#This Row],[Rate Override]],1)),\"---\")","v":"---"}]
[null,null,null,null,null,null,null,null,null,{"$f":"IFERROR(tblDataEntry131613[[#This Row],[Default (Avg.) Rate]]*(1+dsEstimatorAdjustment/100),\"---\")","v":0},null,{"$f":"IFERROR(IF(ISBLANK(tblDataEntry131613[[#This Row],[Rate Override]]),CEILING(tblDataEntry131613[[#This Row],[Quantity]]/tblDataEntry131613[[#This Row],[User Factored Rate]],1),CEILING(tblDataEntry131613[[#This Row],[Quantity]]/tblDataEntry131613[[#This Row],[Rate Override]],1)),\"---\")","v":"---"}]
[null,null,null,null,null,null,null,null,null,{"$f":"IFERROR(tblDataEntry131613[[#This Row],[Default (Avg.) Rate]]*(1+dsEstimatorAdjustment/100),\"---\")","v":0},null,{"$f":"IFERROR(IF(ISBLANK(tblDataEntry131613[[#This Row],[Rate Override]]),CEILING(tblDataEntry131613[[#This Row],[Quantity]]/tblDataEntry131613[[#This Row],[User Factored Rate]],1),CEILING(tblDataEntry131613[[#This Row],[Quantity]]/tblDataEntry131613[[#This Row],[Rate Override]],1)),\"---\")","v":"---"}]
[null,null,null,null,null,null,null,null,null,{"$f":"IFERROR(tblDataEntry131613[[#This Row],[Default (Avg.) Rate]]*(1+dsEstimatorAdjustment/100),\"---\")","v":0},null,{"$f":"IFERROR(IF(ISBLANK(tblDataEntry131613[[#This Row],[Rate Override]]),CEILING(tblDataEntry131613[[#This Row],[Quantity]]/tblDataEntry131613[[#This Row],[User Factored Rate]],1),CEILING(tblDataEntry131613[[#This Row],[Quantity]]/tblDataEntry131613[[#This Row],[Rate Override]],1)),\"---\")","v":"---"}]
[null,null,null,null,null,null,null,null,null,{"$f":"IFERROR(tblDataEntry131613[[#This Row],[Default (Avg.) Rate]]*(1+dsEstimatorAdjustment/100),\"---\")","v":0},null,{"$f":"IFERROR(IF(ISBLANK(tblDataEntry131613[[#This Row],[Rate Override]]),CEILING(tblDataEntry131613[[#This Row],[Quantity]]/tblDataEntry131613[[#This Row],[User Factored Rate]],1),CEILING(tblDataEntry131613[[#This Row],[Quantity]]/tblDataEntry131613[[#This Row],[Rate Override]],1)),\"---\")","v":"---"}]
[null,null,null,null,null,null,null,null,null,{"$f":"IFERROR(tblDataEntry131613[[#This Row],[Default (Avg.) Rate]]*(1+dsEstimatorAdjustment/100),\"---\")","v":0},null,{"$f":"IFERROR(IF(ISBLANK(tblDataEntry131613[[#This Row],[Rate Override]]),CEILING(tblDataEntry131613[[#This Row],[Quantity]]/tblDataEntry131613[[#This Row],[User Factored Rate]],1),CEILING(tblDataEntry131613[[#This Row],[Quantity]]/tblDataEntry131613[[#This Row],[Rate Override]],1)),\"---\")","v":"---"}]
[null,null,null,null,null,null,null,null,null,{"$f":"IFERROR(tblDataEntry131613[[#This Row],[Default (Avg.) Rate]]*(1+dsEstimatorAdjustment/100),\"---\")","v":0},null,{"$f":"IFERROR(IF(ISBLANK(tblDataEntry131613[[#This Row],[Rate Override]]),CEILING(tblDataEntry131613[[#This Row],[Quantity]]/tblDataEntry131613[[#This Row],[User Factored Rate]],1),CEILING(tblDataEntry131613[[#This Row],[Quantity]]/tblDataEntry131613[[#This Row],[Rate Override]],1)),\"---\")","v":"---"}]
[null,null,null,null,null,null,null,null,null,{"$f":"IFERROR(tblDataEntry131613[[#This Row],[Default (Avg.) Rate]]*(1+dsEstimatorAdjustment/100),\"---\")","v":0},null,{"$f":"IFERROR(IF(ISBLANK(tblDataEntry131613[[#This Row],[Rate Override]]),CEILING(tblDataEntry131613[[#This Row],[Quantity]]/tblDataEntry131613[[#This Row],[User Factored Rate]],1),CEILING(tblDataEntry131613[[#This Row],[Quantity]]/tblDataEntry131613[[#This Row],[Rate Override]],1)),\"---\")","v":"---"}]
[null,null,null,null,null,null,null,null,null,{"$f":"IFERROR(tblDataEntry131613[[#This Row],[Default (Avg.) Rate]]*(1+dsEstimatorAdjustment/100),\"---\")","v":0},null,{"$f":"IFERROR(IF(ISBLANK(tblDataEntry131613[[#This Row],[Rate Override]]),CEILING(tblDataEntry131613[[#This Row],[Quantity]]/tblDataEntry131613[[#This Row],[User Factored Rate]],1),CEILING(tblDataEntry131613[[#This Row],[Quantity]]/tblDataEntry131613[[#This Row],[Rate Override]],1)),\"---\")","v":"---"}]
[null,null,null,null,null,null,null,null,null,{"$f":"IFERROR(tblDataEntry131613[[#This Row],[Default (Avg.) Rate]]*(1+dsEstimatorAdjustment/100),\"---\")","v":0},null,{"$f":"IFERROR(IF(ISBLANK(tblDataEntry131613[[#This Row],[Rate Override]]),CEILING(tblDataEntry131613[[#This Row],[Quantity]]/tblDataEntry131613[[#This Row],[User Factored Rate]],1),CEILING(tblDataEntry131613[[#This Row],[Quantity]]/tblDataEntry131613[[#This Row],[Rate Override]],1)),\"---\")","v":"---"}]
[null,null,null,null,null,null,null,null,null,{"$f":"IFERROR(tblDataEntry131613[[#This Row],[Default (Avg.) Rate]]*(1+dsEstimatorAdjustment/100),\"---\")","v":0},null,{"$f":"IFERROR(IF(ISBLANK(tblDataEntry131613[[#This Row],[Rate Override]]),CEILING(tblDataEntry131613[[#This Row],[Quantity]]/tblDataEntry131613[[#This Row],[User Factored Rate]],1),CEILING(tblDataEntry131613[[#This Row],[Quantity]]/tblDataEntry131613[[#This Row],[Rate Override]],1)),\"---\")","v":"---"}]
[null,null,null,null,null,null,null,null,null,{"$f":"IFERROR(tblDataEntry131613[[#This Row],[Default (Avg.) Rate]]*(1+dsEstimatorAdjustment/100),\"---\")","v":0},null,{"$f":"IFERROR(IF(ISBLANK(tblDataEntry131613[[#This Row],[Rate Override]]),CEILING(tblDataEntry131613[[#This Row],[Quantity]]/tblDataEntry131613[[#This Row],[User Factored Rate]],1),CEILING(tblDataEntry131613[[#This Row],[Quantity]]/tblDataEntry131613[[#This Row],[Rate Override]],1)),\"---\")","v":"---"}]
[null,null,null,null,null,null,null,null,null,{"$f":"IFERROR(tblDataEntry131613[[#This Row],[Default (Avg.) Rate]]*(1+dsEstimatorAdjustment/100),\"---\")","v":0},null,{"$f":"IFERROR(IF(ISBLANK(tblDataEntry131613[[#This Row],[Rate Override]]),CEILING(tblDataEntry131613[[#This Row],[Quantity]]/tblDataEntry131613[[#This Row],[User Factored Rate]],1),CEILING(tblDataEntry131613[[#This Row],[Quantity]]/tblDataEntry131613[[#This Row],[Rate Override]],1)),\"---\")","v":"---"}]
[null,null,null,null,null,null,null,null,null,{"$f":"IFERROR(tblDataEntry131613[[#This Row],[Default (Avg.) Rate]]*(1+dsEstimatorAdjustment/100),\"---\")","v":0},null,{"$f":"IFERROR(IF(ISBLANK(tblDataEntry131613[[#This Row],[Rate Override]]),CEILING(tblDataEntry131613[[#This Row],[Quantity]]/tblDataEntry131613[[#This Row],[User Factored Rate]],1),CEILING(tblDataEntry131613[[#This Row],[Quantity]]/tblDataEntry131613[[#This Row],[Rate Override]],1)),\"---\")","v":"---"}]
[null,null,null,null,null,null,null,null,null,{"$f":"IFERROR(tblDataEntry131613[[#This Row],[Default (Avg.) Rate]]*(1+dsEstimatorAdjustment/100),\"---\")","v":0},null,{"$f":"IFERROR(IF(ISBLANK(tblDataEntry131613[[#This Row],[Rate Override]]),CEILING(tblDataEntry131613[[#This Row],[Quantity]]/tblDataEntry131613[[#This Row],[User Factored Rate]],1),CEILING(tblDataEntry131613[[#This Row],[Quantity]]/tblDataEntry131613[[#This Row],[Rate Override]],1)),\"---\")","v":"---"}]
[null,null,null,null,null,null,null,null,null,{"$f":"IFERROR(tblDataEntry131613[[#This Row],[Default (Avg.) Rate]]*(1+dsEstimatorAdjustment/100),\"---\")","v":0},null,{"$f":"IFERROR(IF(ISBLANK(tblDataEntry131613[[#This Row],[Rate Override]]),CEILING(tblDataEntry131613[[#This Row],[Quantity]]/tblDataEntry131613[[#This Row],[User Factored Rate]],1),CEILING(tblDataEntry131613[[#This Row],[Quantity]]/tblDataEntry131613[[#This Row],[Rate Override]],1)),\"---\")","v":"---"}]
[null,null,null,null,null,null,null,null,null,{"$f":"IFERROR(tblDataEntry131613[[#This Row],[Default (Avg.) Rate]]*(1+dsEstimatorAdjustment/100),\"---\")","v":0},null,{"$f":"IFERROR(IF(ISBLANK(tblDataEntry131613[[#This Row],[Rate Override]]),CEILING(tblDataEntry131613[[#This Row],[Quantity]]/tblDataEntry131613[[#This Row],[User Factored Rate]],1),CEILING(tblDataEntry131613[[#This Row],[Quantity]]/tblDataEntry131613[[#This Row],[Rate Override]],1)),\"---\")","v":"---"}]
[null,null,null,null,null,null,null,null,null,{"$f":"IFERROR(tblDataEntry131613[[#This Row],[Default (Avg.) Rate]]*(1+dsEstimatorAdjustment/100),\"---\")","v":0},null,{"$f":"IFERROR(IF(ISBLANK(tblDataEntry131613[[#This Row],[Rate Override]]),CEILING(tblDataEntry131613[[#This Row],[Quantity]]/tblDataEntry131613[[#This Row],[User Factored Rate]],1),CEILING(tblDataEntry131613[[#This Row],[Quantity]]/tblDataEntry131613[[#This Row],[Rate Override]],1)),\"---\")","v":"---"}]
[null,null,null,null,null,null,null,null,null,{"$f":"IFERROR(tblDataEntry131613[[#This Row],[Default (Avg.) Rate]]*(1+dsEstimatorAdjustment/100),\"---\")","v":0},null,{"$f":"IFERROR(IF(ISBLANK(tblDataEntry131613[[#This Row],[Rate Override]]),CEILING(tblDataEntry131613[[#This Row],[Quantity]]/tblDataEntry131613[[#This Row],[User Factored Rate]],1),CEILING(tblDataEntry131613[[#This Row],[Quantity]]/tblDataEntry131613[[#This Row],[Rate Override]],1)),\"---\")","v":"---"}]
[null,null,null,null,null,null,null,null,null,{"$f":"IFERROR(tblDataEntry131613[[#This Row],[Default (Avg.) Rate]]*(1+dsEstimatorAdjustment/100),\"---\")","v":0},null,{"$f":"IFERROR(IF(ISBLANK(tblDataEntry131613[[#This Row],[Rate Override]]),CEILING(tblDataEntry131613[[#This Row],[Quantity]]/tblDataEntry131613[[#This Row],[User Factored Rate]],1),CEILING(tblDataEntry131613[[#This Row],[Quantity]]/tblDataEntry131613[[#This Row],[Rate Override]],1)),\"---\")","v":"---"}]
[null,null,null,null,null,null,null,null,null,{"$f":"IFERROR(tblDataEntry131613[[#This Row],[Default (Avg.) Rate]]*(1+dsEstimatorAdjustment/100),\"---\")","v":0},null,{"$f":"IFERROR(IF(ISBLANK(tblDataEntry131613[[#This Row],[Rate Override]]),CEILING(tblDataEntry131613[[#This Row],[Quantity]]/tblDataEntry131613[[#This Row],[User Factored Rate]],1),CEILING(tblDataEntry131613[[#This Row],[Quantity]]/tblDataEntry131613[[#This Row],[Rate Override]],1)),\"---\")","v":"---"}]
[null,null,null,null,null,null,null,null,null,{"$f":"IFERROR(tblDataEntry131613[[#This Row],[Default (Avg.) Rate]]*(1+dsEstimatorAdjustment/100),\"---\")","v":0},null,{"$f":"IFERROR(IF(ISBLANK(tblDataEntry131613[[#This Row],[Rate Override]]),CEILING(tblDataEntry131613[[#This Row],[Quantity]]/tblDataEntry131613[[#This Row],[User Factored Rate]],1),CEILING(tblDataEntry131613[[#This Row],[Quantity]]/tblDataEntry131613[[#This Row],[Rate Override]],1)),\"---\")","v":"---"}]
[null,null,null,null,null,null,null,null,null,{"$f":"IFERROR(tblDataEntry131613[[#This Row],[Default (Avg.) Rate]]*(1+dsEstimatorAdjustment/100),\"---\")","v":0},null,{"$f":"IFERROR(IF(ISBLANK(tblDataEntry131613[[#This Row],[Rate Override]]),CEILING(tblDataEntry131613[[#This Row],[Quantity]]/tblDataEntry131613[[#This Row],[User Factored Rate]],1),CEILING(tblDataEntry131613[[#This Row],[Quantity]]/tblDataEntry131613[[#This Row],[Rate Override]],1)),\"---\")","v":"---"}]
[null,null,null,null,null,null,null,null,null,{"$f":"IFERROR(tblDataEntry131613[[#This Row],[Default (Avg.) Rate]]*(1+dsEstimatorAdjustment/100),\"---\")","v":0},null,{"$f":"IFERROR(IF(ISBLANK(tblDataEntry131613[[#This Row],[Rate Override]]),CEILING(tblDataEntry131613[[#This Row],[Quantity]]/tblDataEntry131613[[#This Row],[User Factored Rate]],1),CEILING(tblDataEntry131613[[#This Row],[Quantity]]/tblDataEntry131613[[#This Row],[Rate Override]],1)),\"---\")","v":"---"}]
[null,null,null,null,null,null,null,null,null,{"$f":"IFERROR(tblDataEntry131613[[#This Row],[Default (Avg.) Rate]]*(1+dsEstimatorAdjustment/100),\"---\")","v":0},null,{"$f":"IFERROR(IF(ISBLANK(tblDataEntry131613[[#This Row],[Rate Override]]),CEILING(tblDataEntry131613[[#This Row],[Quantity]]/tblDataEntry131613[[#This Row],[User Factored Rate]],1),CEILING(tblDataEntry131613[[#This Row],[Quantity]]/tblDataEntry131613[[#This Row],[Rate Override]],1)),\"---\")","v":"---"}]
[null,null,null,null,null,null,null,null,null,{"$f":"IFERROR(tblDataEntry131613[[#This Row],[Default (Avg.) Rate]]*(1+dsEstimatorAdjustment/100),\"---\")","v":0},null,{"$f":"IFERROR(IF(ISBLANK(tblDataEntry131613[[#This Row],[Rate Override]]),CEILING(tblDataEntry131613[[#This Row],[Quantity]]/tblDataEntry131613[[#This Row],[User Factored Rate]],1),CEILING(tblDataEntry131613[[#This Row],[Quantity]]/tblDataEntry131613[[#This Row],[Rate Override]],1)),\"---\")","v":"---"}]
[null,null,null,null,null,null,null,null,null,{"$f":"IFERROR(tblDataEntry131613[[#This Row],[Default (Avg.) Rate]]*(1+dsEstimatorAdjustment/100),\"---\")","v":0},null,{"$f":"IFERROR(IF(ISBLANK(tblDataEntry131613[[#This Row],[Rate Override]]),CEILING(tblDataEntry131613[[#This Row],[Quantity]]/tblDataEntry131613[[#This Row],[User Factored Rate]],1),CEILING(tblDataEntry131613[[#This Row],[Quantity]]/tblDataEntry131613[[#This Row],[Rate Override]],1)),\"---\")","v":"---"}]
[null,null,null,null,null,null,null,null,null,{"$f":"IFERROR(tblDataEntry131613[[#This Row],[Default (Avg.) Rate]]*(1+dsEstimatorAdjustment/100),\"---\")","v":0},null,{"$f":"IFERROR(IF(ISBLANK(tblDataEntry131613[[#This Row],[Rate Override]]),CEILING(tblDataEntry131613[[#This Row],[Quantity]]/tblDataEntry131613[[#This Row],[User Factored Rate]],1),CEILING(tblDataEntry131613[[#This Row],[Quantity]]/tblDataEntry131613[[#This Row],[Rate Override]],1)),\"---\")","v":"---"}]
[null,null,null,null,null,null,null,null,null,{"$f":"IFERROR(tblDataEntry131613[[#This Row],[Default (Avg.) Rate]]*(1+dsEstimatorAdjustment/100),\"---\")","v":0},null,{"$f":"IFERROR(IF(ISBLANK(tblDataEntry131613[[#This Row],[Rate Override]]),CEILING(tblDataEntry131613[[#This Row],[Quantity]]/tblDataEntry131613[[#This Row],[User Factored Rate]],1),CEILING(tblDataEntry131613[[#This Row],[Quantity]]/tblDataEntry131613[[#This Row],[Rate Override]],1)),\"---\")","v":"---"}]
[null,null,null,null,null,null,null,null,null,{"$f":"IFERROR(tblDataEntry131613[[#This Row],[Default (Avg.) Rate]]*(1+dsEstimatorAdjustment/100),\"---\")","v":0},null,{"$f":"IFERROR(IF(ISBLANK(tblDataEntry131613[[#This Row],[Rate Override]]),CEILING(tblDataEntry131613[[#This Row],[Quantity]]/tblDataEntry131613[[#This Row],[User Factored Rate]],1),CEILING(tblDataEntry131613[[#This Row],[Quantity]]/tblDataEntry131613[[#This Row],[Rate Override]],1)),\"---\")","v":"---"}]
[null,null,null,null,null,null,null,null,null,{"$f":"IFERROR(tblDataEntry131613[[#This Row],[Default (Avg.) Rate]]*(1+dsEstimatorAdjustment/100),\"---\")","v":0},null,{"$f":"IFERROR(IF(ISBLANK(tblDataEntry131613[[#This Row],[Rate Override]]),CEILING(tblDataEntry131613[[#This Row],[Quantity]]/tblDataEntry131613[[#This Row],[User Factored Rate]],1),CEILING(tblDataEntry131613[[#This Row],[Quantity]]/tblDataEntry131613[[#This Row],[Rate Override]],1)),\"---\")","v":"---"}]
[null,null,null,null,null,null,null,null,null,{"$f":"IFERROR(tblDataEntry131613[[#This Row],[Default (Avg.) Rate]]*(1+dsEstimatorAdjustment/100),\"---\")","v":0},null,{"$f":"IFERROR(IF(ISBLANK(tblDataEntry131613[[#This Row],[Rate Override]]),CEILING(tblDataEntry131613[[#This Row],[Quantity]]/tblDataEntry131613[[#This Row],[User Factored Rate]],1),CEILING(tblDataEntry131613[[#This Row],[Quantity]]/tblDataEntry131613[[#This Row],[Rate Override]],1)),\"---\")","v":"---"}]
[null,null,null,null,null,null,null,null,null,{"$f":"IFERROR(tblDataEntry131613[[#This Row],[Default (Avg.) Rate]]*(1+dsEstimatorAdjustment/100),\"---\")","v":0},null,{"$f":"IFERROR(IF(ISBLANK(tblDataEntry131613[[#This Row],[Rate Override]]),CEILING(tblDataEntry131613[[#This Row],[Quantity]]/tblDataEntry131613[[#This Row],[User Factored Rate]],1),CEILING(tblDataEntry131613[[#This Row],[Quantity]]/tblDataEntry131613[[#This Row],[Rate Override]],1)),\"---\")","v":"---"}]
[null,null,null,null,null,null,null,null,null,{"$f":"IFERROR(tblDataEntry131613[[#This Row],[Default (Avg.) Rate]]*(1+dsEstimatorAdjustment/100),\"---\")","v":0},null,{"$f":"IFERROR(IF(ISBLANK(tblDataEntry131613[[#This Row],[Rate Override]]),CEILING(tblDataEntry131613[[#This Row],[Quantity]]/tblDataEntry131613[[#This Row],[User Factored Rate]],1),CEILING(tblDataEntry131613[[#This Row],[Quantity]]/tblDataEntry131613[[#This Row],[Rate Override]],1)),\"---\")","v":"---"}]
[null,null,null,null,null,null,null,null,null,{"$f":"IFERROR(tblDataEntry131613[[#This Row],[Default (Avg.) Rate]]*(1+dsEstimatorAdjustment/100),\"---\")","v":0},null,{"$f":"IFERROR(IF(ISBLANK(tblDataEntry131613[[#This Row],[Rate Override]]),CEILING(tblDataEntry131613[[#This Row],[Quantity]]/tblDataEntry131613[[#This Row],[User Factored Rate]],1),CEILING(tblDataEntry131613[[#This Row],[Quantity]]/tblDataEntry131613[[#This Row],[Rate Override]],1)),\"---\")","v":"---"}]
[null,null,null,null,null,null,null,null,null,{"$f":"IFERROR(tblDataEntry131613[[#This Row],[Default (Avg.) Rate]]*(1+dsEstimatorAdjustment/100),\"---\")","v":0},null,{"$f":"IFERROR(IF(ISBLANK(tblDataEntry131613[[#This Row],[Rate Override]]),CEILING(tblDataEntry131613[[#This Row],[Quantity]]/tblDataEntry131613[[#This Row],[User Factored Rate]],1),CEILING(tblDataEntry131613[[#This Row],[Quantity]]/tblDataEntry131613[[#This Row],[Rate Override]],1)),\"---\")","v":"---"}]
[null,null,null,null,null,null,null,null,null,{"$f":"IFERROR(tblDataEntry131613[[#This Row],[Default (Avg.) Rate]]*(1+dsEstimatorAdjustment/100),\"---\")","v":0},null,{"$f":"IFERROR(IF(ISBLANK(tblDataEntry131613[[#This Row],[Rate Override]]),CEILING(tblDataEntry131613[[#This Row],[Quantity]]/tblDataEntry131613[[#This Row],[User Factored Rate]],1),CEILING(tblDataEntry131613[[#This Row],[Quantity]]/tblDataEntry131613[[#This Row],[Rate Override]],1)),\"---\")","v":"---"}]
[null,null,null,null,null,null,null,null,null,{"$f":"IFERROR(tblDataEntry131613[[#This Row],[Default (Avg.) Rate]]*(1+dsEstimatorAdjustment/100),\"---\")","v":0},null,{"$f":"IFERROR(IF(ISBLANK(tblDataEntry131613[[#This Row],[Rate Override]]),CEILING(tblDataEntry131613[[#This Row],[Quantity]]/tblDataEntry131613[[#This Row],[User Factored Rate]],1),CEILING(tblDataEntry131613[[#This Row],[Quantity]]/tblDataEntry131613[[#This Row],[Rate Override]],1)),\"---\")","v":"---"}]
[null,null,null,null,null,null,null,null,null,{"$f":"IFERROR(tblDataEntry131613[[#This Row],[Default (Avg.) Rate]]*(1+dsEstimatorAdjustment/100),\"---\")","v":0},null,{"$f":"IFERROR(IF(ISBLANK(tblDataEntry131613[[#This Row],[Rate Override]]),CEILING(tblDataEntry131613[[#This Row],[Quantity]]/tblDataEntry131613[[#This Row],[User Factored Rate]],1),CEILING(tblDataEntry131613[[#This Row],[Quantity]]/tblDataEntry131613[[#This Row],[Rate Override]],1)),\"---\")","v":"---"}]
[null,null,null,null,null,null,null,null,null,{"$f":"IFERROR(tblDataEntry131613[[#This Row],[Default (Avg.) Rate]]*(1+dsEstimatorAdjustment/100),\"---\")","v":0},null,{"$f":"IFERROR(IF(ISBLANK(tblDataEntry131613[[#This Row],[Rate Override]]),CEILING(tblDataEntry131613[[#This Row],[Quantity]]/tblDataEntry131613[[#This Row],[User Factored Rate]],1),CEILING(tblDataEntry131613[[#This Row],[Quantity]]/tblDataEntry131613[[#This Row],[Rate Override]],1)),\"---\")","v":"---"}]
[null,null,null,null,null,null,null,null,null,{"$f":"IFERROR(tblDataEntry131613[[#This Row],[Default (Avg.) Rate]]*(1+dsEstimatorAdjustment/100),\"---\")","v":0},null,{"$f":"IFERROR(IF(ISBLANK(tblDataEntry131613[[#This Row],[Rate Override]]),CEILING(tblDataEntry131613[[#This Row],[Quantity]]/tblDataEntry131613[[#This Row],[User Factored Rate]],1),CEILING(tblDataEntry131613[[#This Row],[Quantity]]/tblDataEntry131613[[#This Row],[Rate Override]],1)),\"---\")","v":"---"}]
[null,null,null,null,null,null,null,null,null,{"$f":"IFERROR(tblDataEntry131613[[#This Row],[Default (Avg.) Rate]]*(1+dsEstimatorAdjustment/100),\"---\")","v":0},null,{"$f":"IFERROR(IF(ISBLANK(tblDataEntry131613[[#This Row],[Rate Override]]),CEILING(tblDataEntry131613[[#This Row],[Quantity]]/tblDataEntry131613[[#This Row],[User Factored Rate]],1),CEILING(tblDataEntry131613[[#This Row],[Quantity]]/tblDataEntry131613[[#This Row],[Rate Override]],1)),\"---\")","v":"---"}]
[null,null,null,null,null,null,null,null,null,{"$f":"IFERROR(tblDataEntry131613[[#This Row],[Default (Avg.) Rate]]*(1+dsEstimatorAdjustment/100),\"---\")","v":0},null,{"$f":"IFERROR(IF(ISBLANK(tblDataEntry131613[[#This Row],[Rate Override]]),CEILING(tblDataEntry131613[[#This Row],[Quantity]]/tblDataEntry131613[[#This Row],[User Factored Rate]],1),CEILING(tblDataEntry131613[[#This Row],[Quantity]]/tblDataEntry131613[[#This Row],[Rate Override]],1)),\"---\")","v":"---"}]
[null,null,null,null,null,null,null,null,null,{"$f":"IFERROR(tblDataEntry131613[[#This Row],[Default (Avg.) Rate]]*(1+dsEstimatorAdjustment/100),\"---\")","v":0},null,{"$f":"IFERROR(IF(ISBLANK(tblDataEntry131613[[#This Row],[Rate Override]]),CEILING(tblDataEntry131613[[#This Row],[Quantity]]/tblDataEntry131613[[#This Row],[User Factored Rate]],1),CEILING(tblDataEntry131613[[#This Row],[Quantity]]/tblDataEntry131613[[#This Row],[Rate Override]],1)),\"---\")","v":"---"}]
[null,null,null,null,null,null,null,null,null,{"$f":"IFERROR(tblDataEntry131613[[#This Row],[Default (Avg.) Rate]]*(1+dsEstimatorAdjustment/100),\"---\")","v":0},null,{"$f":"IFERROR(IF(ISBLANK(tblDataEntry131613[[#This Row],[Rate Override]]),CEILING(tblDataEntry131613[[#This Row],[Quantity]]/tblDataEntry131613[[#This Row],[User Factored Rate]],1),CEILING(tblDataEntry131613[[#This Row],[Quantity]]/tblDataEntry131613[[#This Row],[Rate Override]],1)),\"---\")","v":"---"}]
[null,null,null,null,null,null,null,null,null,{"$f":"IFERROR(tblDataEntry131613[[#This Row],[Default (Avg.) Rate]]*(1+dsEstimatorAdjustment/100),\"---\")","v":0},null,{"$f":"IFERROR(IF(ISBLANK(tblDataEntry131613[[#This Row],[Rate Override]]),CEILING(tblDataEntry131613[[#This Row],[Quantity]]/tblDataEntry131613[[#This Row],[User Factored Rate]],1),CEILING(tblDataEntry131613[[#This Row],[Quantity]]/tblDataEntry131613[[#This Row],[Rate Override]],1)),\"---\")","v":"---"}]
[null,null,null,null,null,null,null,null,null,{"$f":"IFERROR(tblDataEntry131613[[#This Row],[Default (Avg.) Rate]]*(1+dsEstimatorAdjustment/100),\"---\")","v":0},null,{"$f":"IFERROR(IF(ISBLANK(tblDataEntry131613[[#This Row],[Rate Override]]),CEILING(tblDataEntry131613[[#This Row],[Quantity]]/tblDataEntry131613[[#This Row],[User Factored Rate]],1),CEILING(tblDataEntry131613[[#This Row],[Quantity]]/tblDataEntry131613[[#This Row],[Rate Override]],1)),\"---\")","v":"---"}]
[null,null,null,null,null,null,null,null,null,{"$f":"IFERROR(tblDataEntry131613[[#This Row],[Default (Avg.) Rate]]*(1+dsEstimatorAdjustment/100),\"---\")","v":0},null,{"$f":"IFERROR(IF(ISBLANK(tblDataEntry131613[[#This Row],[Rate Override]]),CEILING(tblDataEntry131613[[#This Row],[Quantity]]/tblDataEntry131613[[#This Row],[User Factored Rate]],1),CEILING(tblDataEntry131613[[#This Row],[Quantity]]/tblDataEntry131613[[#This Row],[Rate Override]],1)),\"---\")","v":"---"}]
[null,null,null,null,null,null,null,null,null,{"$f":"IFERROR(tblDataEntry131613[[#This Row],[Default (Avg.) Rate]]*(1+dsEstimatorAdjustment/100),\"---\")","v":0},null,{"$f":"IFERROR(IF(ISBLANK(tblDataEntry131613[[#This Row],[Rate Override]]),CEILING(tblDataEntry131613[[#This Row],[Quantity]]/tblDataEntry131613[[#This Row],[User Factored Rate]],1),CEILING(tblDataEntry131613[[#This Row],[Quantity]]/tblDataEntry131613[[#This Row],[Rate Override]],1)),\"---\")","v":"---"}]
[null,null,null,null,null,null,null,null,null,{"$f":"IFERROR(tblDataEntry131613[[#This Row],[Default (Avg.) Rate]]*(1+dsEstimatorAdjustment/100),\"---\")","v":0},null,{"$f":"IFERROR(IF(ISBLANK(tblDataEntry131613[[#This Row],[Rate Override]]),CEILING(tblDataEntry131613[[#This Row],[Quantity]]/tblDataEntry131613[[#This Row],[User Factored Rate]],1),CEILING(tblDataEntry131613[[#This Row],[Quantity]]/tblDataEntry131613[[#This Row],[Rate Override]],1)),\"---\")","v":"---"}]
[null,null,null,null,null,null,null,null,null,{"$f":"IFERROR(tblDataEntry131613[[#This Row],[Default (Avg.) Rate]]*(1+dsEstimatorAdjustment/100),\"---\")","v":0},null,{"$f":"IFERROR(IF(ISBLANK(tblDataEntry131613[[#This Row],[Rate Override]]),CEILING(tblDataEntry131613[[#This Row],[Quantity]]/tblDataEntry131613[[#This Row],[User Factored Rate]],1),CEILING(tblDataEntry131613[[#This Row],[Quantity]]/tblDataEntry131613[[#This Row],[Rate Override]],1)),\"---\")","v":"---"}]
[null,null,null,null,null,null,null,null,null,{"$f":"IFERROR(tblDataEntry131613[[#This Row],[Default (Avg.) Rate]]*(1+dsEstimatorAdjustment/100),\"---\")","v":0},null,{"$f":"IFERROR(IF(ISBLANK(tblDataEntry131613[[#This Row],[Rate Override]]),CEILING(tblDataEntry131613[[#This Row],[Quantity]]/tblDataEntry131613[[#This Row],[User Factored Rate]],1),CEILING(tblDataEntry131613[[#This Row],[Quantity]]/tblDataEntry131613[[#This Row],[Rate Override]],1)),\"---\")","v":"---"}]
[null,null,null,null,null,null,null,null,null,{"$f":"IFERROR(tblDataEntry131613[[#This Row],[Default (Avg.) Rate]]*(1+dsEstimatorAdjustment/100),\"---\")","v":0},null,{"$f":"IFERROR(IF(ISBLANK(tblDataEntry131613[[#This Row],[Rate Override]]),CEILING(tblDataEntry131613[[#This Row],[Quantity]]/tblDataEntry131613[[#This Row],[User Factored Rate]],1),CEILING(tblDataEntry131613[[#This Row],[Quantity]]/tblDataEntry131613[[#This Row],[Rate Override]],1)),\"---\")","v":"---"}]
[null,null,null,null,null,null,null,null,null,{"$f":"IFERROR(tblDataEntry131613[[#This Row],[Default (Avg.) Rate]]*(1+dsEstimatorAdjustment/100),\"---\")","v":0},null,{"$f":"IFERROR(IF(ISBLANK(tblDataEntry131613[[#This Row],[Rate Override]]),CEILING(tblDataEntry131613[[#This Row],[Quantity]]/tblDataEntry131613[[#This Row],[User Factored Rate]],1),CEILING(tblDataEntry131613[[#This Row],[Quantity]]/tblDataEntry131613[[#This Row],[Rate Override]],1)),\"---\")","v":"---"}]
[null,null,null,null,null,null,null,null,null,{"$f":"IFERROR(tblDataEntry131613[[#This Row],[Default (Avg.) Rate]]*(1+dsEstimatorAdjustment/100),\"---\")","v":0},null,{"$f":"IFERROR(IF(ISBLANK(tblDataEntry131613[[#This Row],[Rate Override]]),CEILING(tblDataEntry131613[[#This Row],[Quantity]]/tblDataEntry131613[[#This Row],[User Factored Rate]],1),CEILING(tblDataEntry131613[[#This Row],[Quantity]]/tblDataEntry131613[[#This Row],[Rate Override]],1)),\"---\")","v":"---"}]
[null,null,null,null,null,null,null,null,null,{"$f":"IFERROR(tblDataEntry131613[[#This Row],[Default (Avg.) Rate]]*(1+dsEstimatorAdjustment/100),\"---\")","v":0},null,{"$f":"IFERROR(IF(ISBLANK(tblDataEntry131613[[#This Row],[Rate Override]]),CEILING(tblDataEntry131613[[#This Row],[Quantity]]/tblDataEntry131613[[#This Row],[User Factored Rate]],1),CEILING(tblDataEntry131613[[#This Row],[Quantity]]/tblDataEntry131613[[#This Row],[Rate Override]],1)),\"---\")","v":"---"}]
[null,null,null,null,null,null,null,null,null,{"$f":"IFERROR(tblDataEntry131613[[#This Row],[Default (Avg.) Rate]]*(1+dsEstimatorAdjustment/100),\"---\")","v":0},null,{"$f":"IFERROR(IF(ISBLANK(tblDataEntry131613[[#This Row],[Rate Override]]),CEILING(tblDataEntry131613[[#This Row],[Quantity]]/tblDataEntry131613[[#This Row],[User Factored Rate]],1),CEILING(tblDataEntry131613[[#This Row],[Quantity]]/tblDataEntry131613[[#This Row],[Rate Override]],1)),\"---\")","v":"---"}]
[null,null,null,null,null,null,null,null,null,{"$f":"IFERROR(tblDataEntry131613[[#This Row],[Default (Avg.) Rate]]*(1+dsEstimatorAdjustment/100),\"---\")","v":0},null,{"$f":"IFERROR(IF(ISBLANK(tblDataEntry131613[[#This Row],[Rate Override]]),CEILING(tblDataEntry131613[[#This Row],[Quantity]]/tblDataEntry131613[[#This Row],[User Factored Rate]],1),CEILING(tblDataEntry131613[[#This Row],[Quantity]]/tblDataEntry131613[[#This Row],[Rate Override]],1)),\"---\")","v":"---"}]
[null,null,null,null,null,null,null,null,null,{"$f":"IFERROR(tblDataEntry131613[[#This Row],[Default (Avg.) Rate]]*(1+dsEstimatorAdjustment/100),\"---\")","v":0},null,{"$f":"IFERROR(IF(ISBLANK(tblDataEntry131613[[#This Row],[Rate Override]]),CEILING(tblDataEntry131613[[#This Row],[Quantity]]/tblDataEntry131613[[#This Row],[User Factored Rate]],1),CEILING(tblDataEntry131613[[#This Row],[Quantity]]/tblDataEntry131613[[#This Row],[Rate Override]],1)),\"---\")","v":"---"}]
[null,null,null,null,null,null,null,null,null,{"$f":"IFERROR(tblDataEntry131613[[#This Row],[Default (Avg.) Rate]]*(1+dsEstimatorAdjustment/100),\"---\")","v":0},null,{"$f":"IFERROR(IF(ISBLANK(tblDataEntry131613[[#This Row],[Rate Override]]),CEILING(tblDataEntry131613[[#This Row],[Quantity]]/tblDataEntry131613[[#This Row],[User Factored Rate]],1),CEILING(tblDataEntry131613[[#This Row],[Quantity]]/tblDataEntry131613[[#This Row],[Rate Override]],1)),\"---\")","v":"---"}]
[null,null,null,null,null,null,null,null,null,{"$f":"IFERROR(tblDataEntry131613[[#This Row],[Default (Avg.) Rate]]*(1+dsEstimatorAdjustment/100),\"---\")","v":0},null,{"$f":"IFERROR(IF(ISBLANK(tblDataEntry131613[[#This Row],[Rate Override]]),CEILING(tblDataEntry131613[[#This Row],[Quantity]]/tblDataEntry131613[[#This Row],[User Factored Rate]],1),CEILING(tblDataEntry131613[[#This Row],[Quantity]]/tblDataEntry131613[[#This Row],[Rate Override]],1)),\"---\")","v":"---"}]
[null,null,null,null,null,null,null,null,null,{"$f":"IFERROR(tblDataEntry131613[[#This Row],[Default (Avg.) Rate]]*(1+dsEstimatorAdjustment/100),\"---\")","v":0},null,{"$f":"IFERROR(IF(ISBLANK(tblDataEntry131613[[#This Row],[Rate Override]]),CEILING(tblDataEntry131613[[#This Row],[Quantity]]/tblDataEntry131613[[#This Row],[User Factored Rate]],1),CEILING(tblDataEntry131613[[#This Row],[Quantity]]/tblDataEntry131613[[#This Row],[Rate Override]],1)),\"---\")","v":"---"}]
[null,null,null,null,null,null,null,null,null,{"$f":"IFERROR(tblDataEntry131613[[#This Row],[Default (Avg.) Rate]]*(1+dsEstimatorAdjustment/100),\"---\")","v":0},null,{"$f":"IFERROR(IF(ISBLANK(tblDataEntry131613[[#This Row],[Rate Override]]),CEILING(tblDataEntry131613[[#This Row],[Quantity]]/tblDataEntry131613[[#This Row],[User Factored Rate]],1),CEILING(tblDataEntry131613[[#This Row],[Quantity]]/tblDataEntry131613[[#This Row],[Rate Override]],1)),\"---\")","v":"---"}]
[null,null,null,null,null,null,null,null,null,{"$f":"IFERROR(tblDataEntry131613[[#This Row],[Default (Avg.) Rate]]*(1+dsEstimatorAdjustment/100),\"---\")","v":0},null,{"$f":"IFERROR(IF(ISBLANK(tblDataEntry131613[[#This Row],[Rate Override]]),CEILING(tblDataEntry131613[[#This Row],[Quantity]]/tblDataEntry131613[[#This Row],[User Factored Rate]],1),CEILING(tblDataEntry131613[[#This Row],[Quantity]]/tblDataEntry131613[[#This Row],[Rate Override]],1)),\"---\")","v":"---"}]
[null,null,null,null,null,null,null,null,null,{"$f":"IFERROR(tblDataEntry131613[[#This Row],[Default (Avg.) Rate]]*(1+dsEstimatorAdjustment/100),\"---\")","v":0},null,{"$f":"IFERROR(IF(ISBLANK(tblDataEntry131613[[#This Row],[Rate Override]]),CEILING(tblDataEntry131613[[#This Row],[Quantity]]/tblDataEntry131613[[#This Row],[User Factored Rate]],1),CEILING(tblDataEntry131613[[#This Row],[Quantity]]/tblDataEntry131613[[#This Row],[Rate Override]],1)),\"---\")","v":"---"}]
[null,null,null,null,null,null,null,null,null,{"$f":"IFERROR(tblDataEntry131613[[#This Row],[Default (Avg.) Rate]]*(1+dsEstimatorAdjustment/100),\"---\")","v":0},null,{"$f":"IFERROR(IF(ISBLANK(tblDataEntry131613[[#This Row],[Rate Override]]),CEILING(tblDataEntry131613[[#This Row],[Quantity]]/tblDataEntry131613[[#This Row],[User Factored Rate]],1),CEILING(tblDataEntry131613[[#This Row],[Quantity]]/tblDataEntry131613[[#This Row],[Rate Override]],1)),\"---\")","v":"---"}]
[null,null,null,null,null,null,null,null,null,{"$f":"IFERROR(tblDataEntry131613[[#This Row],[Default (Avg.) Rate]]*(1+dsEstimatorAdjustment/100),\"---\")","v":0},null,{"$f":"IFERROR(IF(ISBLANK(tblDataEntry131613[[#This Row],[Rate Override]]),CEILING(tblDataEntry131613[[#This Row],[Quantity]]/tblDataEntry131613[[#This Row],[User Factored Rate]],1),CEILING(tblDataEntry131613[[#This Row],[Quantity]]/tblDataEntry131613[[#This Row],[Rate Override]],1)),\"---\")","v":"---"}]
[null,null,null,null,null,null,null,null,null,{"$f":"IFERROR(tblDataEntry131613[[#This Row],[Default (Avg.) Rate]]*(1+dsEstimatorAdjustment/100),\"---\")","v":0},null,{"$f":"IFERROR(IF(ISBLANK(tblDataEntry131613[[#This Row],[Rate Override]]),CEILING(tblDataEntry131613[[#This Row],[Quantity]]/tblDataEntry131613[[#This Row],[User Factored Rate]],1),CEILING(tblDataEntry131613[[#This Row],[Quantity]]/tblDataEntry131613[[#This Row],[Rate Override]],1)),\"---\")","v":"---"}]
[null,null,null,null,null,null,null,null,null,{"$f":"IFERROR(tblDataEntry131613[[#This Row],[Default (Avg.) Rate]]*(1+dsEstimatorAdjustment/100),\"---\")","v":0},null,{"$f":"IFERROR(IF(ISBLANK(tblDataEntry131613[[#This Row],[Rate Override]]),CEILING(tblDataEntry131613[[#This Row],[Quantity]]/tblDataEntry131613[[#This Row],[User Factored Rate]],1),CEILING(tblDataEntry131613[[#This Row],[Quantity]]/tblDataEntry131613[[#This Row],[Rate Override]],1)),\"---\")","v":"---"}]
[null,null,null,null,null,null,null,null,null,{"$f":"IFERROR(tblDataEntry131613[[#This Row],[Default (Avg.) Rate]]*(1+dsEstimatorAdjustment/100),\"---\")","v":0},null,{"$f":"IFERROR(IF(ISBLANK(tblDataEntry131613[[#This Row],[Rate Override]]),CEILING(tblDataEntry131613[[#This Row],[Quantity]]/tblDataEntry131613[[#This Row],[User Factored Rate]],1),CEILING(tblDataEntry131613[[#This Row],[Quantity]]/tblDataEntry131613[[#This Row],[Rate Override]],1)),\"---\")","v":"---"}]
[null,null,null,null,null,null,null,null,null,{"$f":"IFERROR(tblDataEntry131613[[#This Row],[Default (Avg.) Rate]]*(1+dsEstimatorAdjustment/100),\"---\")","v":0},null,{"$f":"IFERROR(IF(ISBLANK(tblDataEntry131613[[#This Row],[Rate Override]]),CEILING(tblDataEntry131613[[#This Row],[Quantity]]/tblDataEntry131613[[#This Row],[User Factored Rate]],1),CEILING(tblDataEntry131613[[#This Row],[Quantity]]/tblDataEntry131613[[#This Row],[Rate Override]],1)),\"---\")","v":"---"}]
[null,null,null,null,null,null,null,null,null,{"$f":"IFERROR(tblDataEntry131613[[#This Row],[Default (Avg.) Rate]]*(1+dsEstimatorAdjustment/100),\"---\")","v":0},null,{"$f":"IFERROR(IF(ISBLANK(tblDataEntry131613[[#This Row],[Rate Override]]),CEILING(tblDataEntry131613[[#This Row],[Quantity]]/tblDataEntry131613[[#This Row],[User Factored Rate]],1),CEILING(tblDataEntry131613[[#This Row],[Quantity]]/tblDataEntry131613[[#This Row],[Rate Override]],1)),\"---\")","v":"---"}]
[null,null,null,null,null,null,null,null,null,{"$f":"IFERROR(tblDataEntry131613[[#This Row],[Default (Avg.) Rate]]*(1+dsEstimatorAdjustment/100),\"---\")","v":0},null,{"$f":"IFERROR(IF(ISBLANK(tblDataEntry131613[[#This Row],[Rate Override]]),CEILING(tblDataEntry131613[[#This Row],[Quantity]]/tblDataEntry131613[[#This Row],[User Factored Rate]],1),CEILING(tblDataEntry131613[[#This Row],[Quantity]]/tblDataEntry131613[[#This Row],[Rate Override]],1)),\"---\")","v":"---"}]
[null,null,null,null,null,null,null,null,null,{"$f":"IFERROR(tblDataEntry131613[[#This Row],[Default (Avg.) Rate]]*(1+dsEstimatorAdjustment/100),\"---\")","v":0},null,{"$f":"IFERROR(IF(ISBLANK(tblDataEntry131613[[#This Row],[Rate Override]]),CEILING(tblDataEntry131613[[#This Row],[Quantity]]/tblDataEntry131613[[#This Row],[User Factored Rate]],1),CEILING(tblDataEntry131613[[#This Row],[Quantity]]/tblDataEntry131613[[#This Row],[Rate Override]],1)),\"---\")","v":"---"}]
[null,null,null,null,null,null,null,null,null,{"$f":"IFERROR(tblDataEntry131613[[#This Row],[Default (Avg.) Rate]]*(1+dsEstimatorAdjustment/100),\"---\")","v":0},null,{"$f":"IFERROR(IF(ISBLANK(tblDataEntry131613[[#This Row],[Rate Override]]),CEILING(tblDataEntry131613[[#This Row],[Quantity]]/tblDataEntry131613[[#This Row],[User Factored Rate]],1),CEILING(tblDataEntry131613[[#This Row],[Quantity]]/tblDataEntry131613[[#This Row],[Rate Override]],1)),\"---\")","v":"---"}]
[null,null,null,null,null,null,null,null,null,{"$f":"IFERROR(tblDataEntry131613[[#This Row],[Default (Avg.) Rate]]*(1+dsEstimatorAdjustment/100),\"---\")","v":0},null,{"$f":"IFERROR(IF(ISBLANK(tblDataEntry131613[[#This Row],[Rate Override]]),CEILING(tblDataEntry131613[[#This Row],[Quantity]]/tblDataEntry131613[[#This Row],[User Factored Rate]],1),CEILING(tblDataEntry131613[[#This Row],[Quantity]]/tblDataEntry131613[[#This Row],[Rate Override]],1)),\"---\")","v":"---"}]
[null,null,null,null,null,null,null,null,null,{"$f":"IFERROR(tblDataEntry131613[[#This Row],[Default (Avg.) Rate]]*(1+dsEstimatorAdjustment/100),\"---\")","v":0},null,{"$f":"IFERROR(IF(ISBLANK(tblDataEntry131613[[#This Row],[Rate Override]]),CEILING(tblDataEntry131613[[#This Row],[Quantity]]/tblDataEntry131613[[#This Row],[User Factored Rate]],1),CEILING(tblDataEntry131613[[#This Row],[Quantity]]/tblDataEntry131613[[#This Row],[Rate Override]],1)),\"---\")","v":"---"}]
[null,null,null,null,null,null,null,null,null,{"$f":"IFERROR(tblDataEntry131613[[#This Row],[Default (Avg.) Rate]]*(1+dsEstimatorAdjustment/100),\"---\")","v":0},null,{"$f":"IFERROR(IF(ISBLANK(tblDataEntry131613[[#This Row],[Rate Override]]),CEILING(tblDataEntry131613[[#This Row],[Quantity]]/tblDataEntry131613[[#This Row],[User Factored Rate]],1),CEILING(tblDataEntry131613[[#This Row],[Quantity]]/tblDataEntry131613[[#This Row],[Rate Override]],1)),\"---\")","v":"---"}]
[null,null,null,null,null,null,null,null,null,{"$f":"IFERROR(tblDataEntry131613[[#This Row],[Default (Avg.) Rate]]*(1+dsEstimatorAdjustment/100),\"---\")","v":0},null,{"$f":"IFERROR(IF(ISBLANK(tblDataEntry131613[[#This Row],[Rate Override]]),CEILING(tblDataEntry131613[[#This Row],[Quantity]]/tblDataEntry131613[[#This Row],[User Factored Rate]],1),CEILING(tblDataEntry131613[[#This Row],[Quantity]]/tblDataEntry131613[[#This Row],[Rate Override]],1)),\"---\")","v":"---"}]
[null,null,null,null,null,null,null,null,null,{"$f":"IFERROR(tblDataEntry131613[[#This Row],[Default (Avg.) Rate]]*(1+dsEstimatorAdjustment/100),\"---\")","v":0},null,{"$f":"IFERROR(IF(ISBLANK(tblDataEntry131613[[#This Row],[Rate Override]]),CEILING(tblDataEntry131613[[#This Row],[Quantity]]/tblDataEntry131613[[#This Row],[User Factored Rate]],1),CEILING(tblDataEntry131613[[#This Row],[Quantity]]/tblDataEntry131613[[#This Row],[Rate Override]],1)),\"---\")","v":"---"}]
[null,null,null,null,null,null,null,null,null,{"$f":"IFERROR(tblDataEntry131613[[#This Row],[Default (Avg.) Rate]]*(1+dsEstimatorAdjustment/100),\"---\")","v":0},null,{"$f":"IFERROR(IF(ISBLANK(tblDataEntry131613[[#This Row],[Rate Override]]),CEILING(tblDataEntry131613[[#This Row],[Quantity]]/tblDataEntry131613[[#This Row],[User Factored Rate]],1),CEILING(tblDataEntry131613[[#This Row],[Quantity]]/tblDataEntry131613[[#This Row],[Rate Override]],1)),\"---\")","v":"---"}]
[null,null,null,null,null,null,null,null,null,{"$f":"IFERROR(tblDataEntry131613[[#This Row],[Default (Avg.) Rate]]*(1+dsEstimatorAdjustment/100),\"---\")","v":0},null,{"$f":"IFERROR(IF(ISBLANK(tblDataEntry131613[[#This Row],[Rate Override]]),CEILING(tblDataEntry131613[[#This Row],[Quantity]]/tblDataEntry131613[[#This Row],[User Factored Rate]],1),CEILING(tblDataEntry131613[[#This Row],[Quantity]]/tblDataEntry131613[[#This Row],[Rate Override]],1)),\"---\")","v":"---"}]
[null,null,null,null,null,null,null,null,null,{"$f":"IFERROR(tblDataEntry131613[[#This Row],[Default (Avg.) Rate]]*(1+dsEstimatorAdjustment/100),\"---\")","v":0},null,{"$f":"IFERROR(IF(ISBLANK(tblDataEntry131613[[#This Row],[Rate Override]]),CEILING(tblDataEntry131613[[#This Row],[Quantity]]/tblDataEntry131613[[#This Row],[User Factored Rate]],1),CEILING(tblDataEntry131613[[#This Row],[Quantity]]/tblDataEntry131613[[#This Row],[Rate Override]],1)),\"---\")","v":"---"}]
[null,null,null,null,null,null,null,null,null,{"$f":"IFERROR(tblDataEntry131613[[#This Row],[Default (Avg.) Rate]]*(1+dsEstimatorAdjustment/100),\"---\")","v":0},null,{"$f":"IFERROR(IF(ISBLANK(tblDataEntry131613[[#This Row],[Rate Override]]),CEILING(tblDataEntry131613[[#This Row],[Quantity]]/tblDataEntry131613[[#This Row],[User Factored Rate]],1),CEILING(tblDataEntry131613[[#This Row],[Quantity]]/tblDataEntry131613[[#This Row],[Rate Override]],1)),\"---\")","v":"---"}]
[null,null,null,null,null,null,null,null,null,{"$f":"IFERROR(tblDataEntry131613[[#This Row],[Default (Avg.) Rate]]*(1+dsEstimatorAdjustment/100),\"---\")","v":0},null,{"$f":"IFERROR(IF(ISBLANK(tblDataEntry131613[[#This Row],[Rate Override]]),CEILING(tblDataEntry131613[[#This Row],[Quantity]]/tblDataEntry131613[[#This Row],[User Factored Rate]],1),CEILING(tblDataEntry131613[[#This Row],[Quantity]]/tblDataEntry131613[[#This Row],[Rate Override]],1)),\"---\")","v":"---"}]
[null,null,null,null,null,null,null,null,null,{"$f":"IFERROR(tblDataEntry131613[[#This Row],[Default (Avg.) Rate]]*(1+dsEstimatorAdjustment/100),\"---\")","v":0},null,{"$f":"IFERROR(IF(ISBLANK(tblDataEntry131613[[#This Row],[Rate Override]]),CEILING(tblDataEntry131613[[#This Row],[Quantity]]/tblDataEntry131613[[#This Row],[User Factored Rate]],1),CEILING(tblDataEntry131613[[#This Row],[Quantity]]/tblDataEntry131613[[#This Row],[Rate Override]],1)),\"---\")","v":"---"}]
[null,null,null,null,null,null,null,null,null,{"$f":"IFERROR(tblDataEntry131613[[#This Row],[Default (Avg.) Rate]]*(1+dsEstimatorAdjustment/100),\"---\")","v":0},null,{"$f":"IFERROR(IF(ISBLANK(tblDataEntry131613[[#This Row],[Rate Override]]),CEILING(tblDataEntry131613[[#This Row],[Quantity]]/tblDataEntry131613[[#This Row],[User Factored Rate]],1),CEILING(tblDataEntry131613[[#This Row],[Quantity]]/tblDataEntry131613[[#This Row],[Rate Override]],1)),\"---\")","v":"---"}]
[null,null,null,null,null,null,null,null,null,{"$f":"IFERROR(tblDataEntry131613[[#This Row],[Default (Avg.) Rate]]*(1+dsEstimatorAdjustment/100),\"---\")","v":0},null,{"$f":"IFERROR(IF(ISBLANK(tblDataEntry131613[[#This Row],[Rate Override]]),CEILING(tblDataEntry131613[[#This Row],[Quantity]]/tblDataEntry131613[[#This Row],[User Factored Rate]],1),CEILING(tblDataEntry131613[[#This Row],[Quantity]]/tblDataEntry131613[[#This Row],[Rate Override]],1)),\"---\")","v":"---"}]
[null,null,null,null,null,null,null,null,null,{"$f":"IFERROR(tblDataEntry131613[[#This Row],[Default (Avg.) Rate]]*(1+dsEstimatorAdjustment/100),\"---\")","v":0},null,{"$f":"IFERROR(IF(ISBLANK(tblDataEntry131613[[#This Row],[Rate Override]]),CEILING(tblDataEntry131613[[#This Row],[Quantity]]/tblDataEntry131613[[#This Row],[User Factored Rate]],1),CEILING(tblDataEntry131613[[#This Row],[Quantity]]/tblDataEntry131613[[#This Row],[Rate Override]],1)),\"---\")","v":"---"}]
[null,null,null,null,null,null,null,null,null,{"$f":"IFERROR(tblDataEntry131613[[#This Row],[Default (Avg.) Rate]]*(1+dsEstimatorAdjustment/100),\"---\")","v":0},null,{"$f":"IFERROR(IF(ISBLANK(tblDataEntry131613[[#This Row],[Rate Override]]),CEILING(tblDataEntry131613[[#This Row],[Quantity]]/tblDataEntry131613[[#This Row],[User Factored Rate]],1),CEILING(tblDataEntry131613[[#This Row],[Quantity]]/tblDataEntry131613[[#This Row],[Rate Override]],1)),\"---\")","v":"---"}]
[null,null,null,null,null,null,null,null,null,{"$f":"IFERROR(tblDataEntry131613[[#This Row],[Default (Avg.) Rate]]*(1+dsEstimatorAdjustment/100),\"---\")","v":0},null,{"$f":"IFERROR(IF(ISBLANK(tblDataEntry131613[[#This Row],[Rate Override]]),CEILING(tblDataEntry131613[[#This Row],[Quantity]]/tblDataEntry131613[[#This Row],[User Factored Rate]],1),CEILING(tblDataEntry131613[[#This Row],[Quantity]]/tblDataEntry131613[[#This Row],[Rate Override]],1)),\"---\")","v":"---"}]
[null,null,null,null,null,null,null,null,null,{"$f":"IFERROR(tblDataEntry131613[[#This Row],[Default (Avg.) Rate]]*(1+dsEstimatorAdjustment/100),\"---\")","v":0},null,{"$f":"IFERROR(IF(ISBLANK(tblDataEntry131613[[#This Row],[Rate Override]]),CEILING(tblDataEntry131613[[#This Row],[Quantity]]/tblDataEntry131613[[#This Row],[User Factored Rate]],1),CEILING(tblDataEntry131613[[#This Row],[Quantity]]/tblDataEntry131613[[#This Row],[Rate Override]],1)),\"---\")","v":"---"}]
[null,null,null,null,null,null,null,null,null,{"$f":"IFERROR(tblDataEntry131613[[#This Row],[Default (Avg.) Rate]]*(1+dsEstimatorAdjustment/100),\"---\")","v":0},null,{"$f":"IFERROR(IF(ISBLANK(tblDataEntry131613[[#This Row],[Rate Override]]),CEILING(tblDataEntry131613[[#This Row],[Quantity]]/tblDataEntry131613[[#This Row],[User Factored Rate]],1),CEILING(tblDataEntry131613[[#This Row],[Quantity]]/tblDataEntry131613[[#This Row],[Rate Override]],1)),\"---\")","v":"---"}]
[null,null,null,null,null,null,null,null,null,{"$f":"IFERROR(tblDataEntry131613[[#This Row],[Default (Avg.) Rate]]*(1+dsEstimatorAdjustment/100),\"---\")","v":0},null,{"$f":"IFERROR(IF(ISBLANK(tblDataEntry131613[[#This Row],[Rate Override]]),CEILING(tblDataEntry131613[[#This Row],[Quantity]]/tblDataEntry131613[[#This Row],[User Factored Rate]],1),CEILING(tblDataEntry131613[[#This Row],[Quantity]]/tblDataEntry131613[[#This Row],[Rate Override]],1)),\"---\")","v":"---"}]
[null,null,null,null,null,null,null,null,null,{"$f":"IFERROR(tblDataEntry131613[[#This Row],[Default (Avg.) Rate]]*(1+dsEstimatorAdjustment/100),\"---\")","v":0},null,{"$f":"IFERROR(IF(ISBLANK(tblDataEntry131613[[#This Row],[Rate Override]]),CEILING(tblDataEntry131613[[#This Row],[Quantity]]/tblDataEntry131613[[#This Row],[User Factored Rate]],1),CEILING(tblDataEntry131613[[#This Row],[Quantity]]/tblDataEntry131613[[#This Row],[Rate Override]],1)),\"---\")","v":"---"}]
[null,null,null,null,null,null,null,null,null,{"$f":"IFERROR(tblDataEntry131613[[#This Row],[Default (Avg.) Rate]]*(1+dsEstimatorAdjustment/100),\"---\")","v":0},null,{"$f":"IFERROR(IF(ISBLANK(tblDataEntry131613[[#This Row],[Rate Override]]),CEILING(tblDataEntry131613[[#This Row],[Quantity]]/tblDataEntry131613[[#This Row],[User Factored Rate]],1),CEILING(tblDataEntry131613[[#This Row],[Quantity]]/tblDataEntry131613[[#This Row],[Rate Override]],1)),\"---\")","v":"---"}]
[null,null,null,null,null,null,null,null,null,{"$f":"IFERROR(tblDataEntry131613[[#This Row],[Default (Avg.) Rate]]*(1+dsEstimatorAdjustment/100),\"---\")","v":0},null,{"$f":"IFERROR(IF(ISBLANK(tblDataEntry131613[[#This Row],[Rate Override]]),CEILING(tblDataEntry131613[[#This Row],[Quantity]]/tblDataEntry131613[[#This Row],[User Factored Rate]],1),CEILING(tblDataEntry131613[[#This Row],[Quantity]]/tblDataEntry131613[[#This Row],[Rate Override]],1)),\"---\")","v":"---"}]
[null,null,null,null,null,null,null,null,null,{"$f":"IFERROR(tblDataEntry131613[[#This Row],[Default (Avg.) Rate]]*(1+dsEstimatorAdjustment/100),\"---\")","v":0},null,{"$f":"IFERROR(IF(ISBLANK(tblDataEntry131613[[#This Row],[Rate Override]]),CEILING(tblDataEntry131613[[#This Row],[Quantity]]/tblDataEntry131613[[#This Row],[User Factored Rate]],1),CEILING(tblDataEntry131613[[#This Row],[Quantity]]/tblDataEntry131613[[#This Row],[Rate Override]],1)),\"---\")","v":"---"}]
[null,null,null,null,null,null,null,null,null,{"$f":"IFERROR(tblDataEntry131613[[#This Row],[Default (Avg.) Rate]]*(1+dsEstimatorAdjustment/100),\"---\")","v":0},null,{"$f":"IFERROR(IF(ISBLANK(tblDataEntry131613[[#This Row],[Rate Override]]),CEILING(tblDataEntry131613[[#This Row],[Quantity]]/tblDataEntry131613[[#This Row],[User Factored Rate]],1),CEILING(tblDataEntry131613[[#This Row],[Quantity]]/tblDataEntry131613[[#This Row],[Rate Override]],1)),\"---\")","v":"---"}]
[null,null,null,null,null,null,null,null,null,{"$f":"IFERROR(tblDataEntry131613[[#This Row],[Default (Avg.) Rate]]*(1+dsEstimatorAdjustment/100),\"---\")","v":0},null,{"$f":"IFERROR(IF(ISBLANK(tblDataEntry131613[[#This Row],[Rate Override]]),CEILING(tblDataEntry131613[[#This Row],[Quantity]]/tblDataEntry131613[[#This Row],[User Factored Rate]],1),CEILING(tblDataEntry131613[[#This Row],[Quantity]]/tblDataEntry131613[[#This Row],[Rate Override]],1)),\"---\")","v":"---"}]
[null,null,null,null,null,null,null,null,null,{"$f":"IFERROR(tblDataEntry131613[[#This Row],[Default (Avg.) Rate]]*(1+dsEstimatorAdjustment/100),\"---\")","v":0},null,{"$f":"IFERROR(IF(ISBLANK(tblDataEntry131613[[#This Row],[Rate Override]]),CEILING(tblDataEntry131613[[#This Row],[Quantity]]/tblDataEntry131613[[#This Row],[User Factored Rate]],1),CEILING(tblDataEntry131613[[#This Row],[Quantity]]/tblDataEntry131613[[#This Row],[Rate Override]],1)),\"---\")","v":"---"}]
[null,null,null,null,null,null,null,null,null,{"$f":"IFERROR(tblDataEntry131613[[#This Row],[Default (Avg.) Rate]]*(1+dsEstimatorAdjustment/100),\"---\")","v":0},null,{"$f":"IFERROR(IF(ISBLANK(tblDataEntry131613[[#This Row],[Rate Override]]),CEILING(tblDataEntry131613[[#This Row],[Quantity]]/tblDataEntry131613[[#This Row],[User Factored Rate]],1),CEILING(tblDataEntry131613[[#This Row],[Quantity]]/tblDataEntry131613[[#This Row],[Rate Override]],1)),\"---\")","v":"---"}]
[null,null,null,null,null,null,null,null,null,{"$f":"IFERROR(tblDataEntry131613[[#This Row],[Default (Avg.) Rate]]*(1+dsEstimatorAdjustment/100),\"---\")","v":0},null,{"$f":"IFERROR(IF(ISBLANK(tblDataEntry131613[[#This Row],[Rate Override]]),CEILING(tblDataEntry131613[[#This Row],[Quantity]]/tblDataEntry131613[[#This Row],[User Factored Rate]],1),CEILING(tblDataEntry131613[[#This Row],[Quantity]]/tblDataEntry131613[[#This Row],[Rate Override]],1)),\"---\")","v":"---"}]
[null,null,null,null,null,null,null,null,null,{"$f":"IFERROR(tblDataEntry131613[[#This Row],[Default (Avg.) Rate]]*(1+dsEstimatorAdjustment/100),\"---\")","v":0},null,{"$f":"IFERROR(IF(ISBLANK(tblDataEntry131613[[#This Row],[Rate Override]]),CEILING(tblDataEntry131613[[#This Row],[Quantity]]/tblDataEntry131613[[#This Row],[User Factored Rate]],1),CEILING(tblDataEntry131613[[#This Row],[Quantity]]/tblDataEntry131613[[#This Row],[Rate Override]],1)),\"---\")","v":"---"}]
[null,null,null,null,null,null,null,null,null,{"$f":"IFERROR(tblDataEntry131613[[#This Row],[Default (Avg.) Rate]]*(1+dsEstimatorAdjustment/100),\"---\")","v":0},null,{"$f":"IFERROR(IF(ISBLANK(tblDataEntry131613[[#This Row],[Rate Override]]),CEILING(tblDataEntry131613[[#This Row],[Quantity]]/tblDataEntry131613[[#This Row],[User Factored Rate]],1),CEILING(tblDataEntry131613[[#This Row],[Quantity]]/tblDataEntry131613[[#This Row],[Rate Override]],1)),\"---\")","v":"---"}]
[null,null,null,null,null,null,null,null,null,{"$f":"IFERROR(tblDataEntry131613[[#This Row],[Default (Avg.) Rate]]*(1+dsEstimatorAdjustment/100),\"---\")","v":0},null,{"$f":"IFERROR(IF(ISBLANK(tblDataEntry131613[[#This Row],[Rate Override]]),CEILING(tblDataEntry131613[[#This Row],[Quantity]]/tblDataEntry131613[[#This Row],[User Factored Rate]],1),CEILING(tblDataEntry131613[[#This Row],[Quantity]]/tblDataEntry131613[[#This Row],[Rate Override]],1)),\"---\")","v":"---"}]
[null,null,null,null,null,null,null,null,null,{"$f":"IFERROR(tblDataEntry131613[[#This Row],[Default (Avg.) Rate]]*(1+dsEstimatorAdjustment/100),\"---\")","v":0},null,{"$f":"IFERROR(IF(ISBLANK(tblDataEntry131613[[#This Row],[Rate Override]]),CEILING(tblDataEntry131613[[#This Row],[Quantity]]/tblDataEntry131613[[#This Row],[User Factored Rate]],1),CEILING(tblDataEntry131613[[#This Row],[Quantity]]/tblDataEntry131613[[#This Row],[Rate Override]],1)),\"---\")","v":"---"}]
[null,null,null,null,null,null,null,null,null,{"$f":"IFERROR(tblDataEntry131613[[#This Row],[Default (Avg.) Rate]]*(1+dsEstimatorAdjustment/100),\"---\")","v":0},null,{"$f":"IFERROR(IF(ISBLANK(tblDataEntry131613[[#This Row],[Rate Override]]),CEILING(tblDataEntry131613[[#This Row],[Quantity]]/tblDataEntry131613[[#This Row],[User Factored Rate]],1),CEILING(tblDataEntry131613[[#This Row],[Quantity]]/tblDataEntry131613[[#This Row],[Rate Override]],1)),\"---\")","v":"---"}]
[null,null,null,null,null,null,null,null,null,{"$f":"IFERROR(tblDataEntry131613[[#This Row],[Default (Avg.) Rate]]*(1+dsEstimatorAdjustment/100),\"---\")","v":0},null,{"$f":"IFERROR(IF(ISBLANK(tblDataEntry131613[[#This Row],[Rate Override]]),CEILING(tblDataEntry131613[[#This Row],[Quantity]]/tblDataEntry131613[[#This Row],[User Factored Rate]],1),CEILING(tblDataEntry131613[[#This Row],[Quantity]]/tblDataEntry131613[[#This Row],[Rate Override]],1)),\"---\")","v":"---"}]
[null,null,null,null,null,null,null,null,null,{"$f":"IFERROR(tblDataEntry131613[[#This Row],[Default (Avg.) Rate]]*(1+dsEstimatorAdjustment/100),\"---\")","v":0},null,{"$f":"IFERROR(IF(ISBLANK(tblDataEntry131613[[#This Row],[Rate Override]]),CEILING(tblDataEntry131613[[#This Row],[Quantity]]/tblDataEntry131613[[#This Row],[User Factored Rate]],1),CEILING(tblDataEntry131613[[#This Row],[Quantity]]/tblDataEntry131613[[#This Row],[Rate Override]],1)),\"---\")","v":"---"}]
[null,null,null,null,null,null,null,null,null,{"$f":"IFERROR(tblDataEntry131613[[#This Row],[Default (Avg.) Rate]]*(1+dsEstimatorAdjustment/100),\"---\")","v":0},null,{"$f":"IFERROR(IF(ISBLANK(tblDataEntry131613[[#This Row],[Rate Override]]),CEILING(tblDataEntry131613[[#This Row],[Quantity]]/tblDataEntry131613[[#This Row],[User Factored Rate]],1),CEILING(tblDataEntry131613[[#This Row],[Quantity]]/tblDataEntry131613[[#This Row],[Rate Override]],1)),\"---\")","v":"---"}]
[null,null,null,null,null,null,null,null,null,{"$f":"IFERROR(tblDataEntry131613[[#This Row],[Default (Avg.) Rate]]*(1+dsEstimatorAdjustment/100),\"---\")","v":0},null,{"$f":"IFERROR(IF(ISBLANK(tblDataEntry131613[[#This Row],[Rate Override]]),CEILING(tblDataEntry131613[[#This Row],[Quantity]]/tblDataEntry131613[[#This Row],[User Factored Rate]],1),CEILING(tblDataEntry131613[[#This Row],[Quantity]]/tblDataEntry131613[[#This Row],[Rate Override]],1)),\"---\")","v":"---"}]
[null,null,null,null,null,null,null,null,null,{"$f":"IFERROR(tblDataEntry131613[[#This Row],[Default (Avg.) Rate]]*(1+dsEstimatorAdjustment/100),\"---\")","v":0},null,{"$f":"IFERROR(IF(ISBLANK(tblDataEntry131613[[#This Row],[Rate Override]]),CEILING(tblDataEntry131613[[#This Row],[Quantity]]/tblDataEntry131613[[#This Row],[User Factored Rate]],1),CEILING(tblDataEntry131613[[#This Row],[Quantity]]/tblDataEntry131613[[#This Row],[Rate Override]],1)),\"---\")","v":"---"}]
[null,null,null,null,null,null,null,null,null,{"$f":"IFERROR(tblDataEntry131613[[#This Row],[Default (Avg.) Rate]]*(1+dsEstimatorAdjustment/100),\"---\")","v":0},null,{"$f":"IFERROR(IF(ISBLANK(tblDataEntry131613[[#This Row],[Rate Override]]),CEILING(tblDataEntry131613[[#This Row],[Quantity]]/tblDataEntry131613[[#This Row],[User Factored Rate]],1),CEILING(tblDataEntry131613[[#This Row],[Quantity]]/tblDataEntry131613[[#This Row],[Rate Override]],1)),\"---\")","v":"---"}]
[null,null,null,null,null,null,null,null,null,{"$f":"IFERROR(tblDataEntry131613[[#This Row],[Default (Avg.) Rate]]*(1+dsEstimatorAdjustment/100),\"---\")","v":0},null,{"$f":"IFERROR(IF(ISBLANK(tblDataEntry131613[[#This Row],[Rate Override]]),CEILING(tblDataEntry131613[[#This Row],[Quantity]]/tblDataEntry131613[[#This Row],[User Factored Rate]],1),CEILING(tblDataEntry131613[[#This Row],[Quantity]]/tblDataEntry131613[[#This Row],[Rate Override]],1)),\"---\")","v":"---"}]
[null,null,null,null,null,null,null,null,null,{"$f":"IFERROR(tblDataEntry131613[[#This Row],[Default (Avg.) Rate]]*(1+dsEstimatorAdjustment/100),\"---\")","v":0},null,{"$f":"IFERROR(IF(ISBLANK(tblDataEntry131613[[#This Row],[Rate Override]]),CEILING(tblDataEntry131613[[#This Row],[Quantity]]/tblDataEntry131613[[#This Row],[User Factored Rate]],1),CEILING(tblDataEntry131613[[#This Row],[Quantity]]/tblDataEntry131613[[#This Row],[Rate Override]],1)),\"---\")","v":"---"}]
[null,null,null,null,null,null,null,null,null,{"$f":"IFERROR(tblDataEntry131613[[#This Row],[Default (Avg.) Rate]]*(1+dsEstimatorAdjustment/100),\"---\")","v":0},null,{"$f":"IFERROR(IF(ISBLANK(tblDataEntry131613[[#This Row],[Rate Override]]),CEILING(tblDataEntry131613[[#This Row],[Quantity]]/tblDataEntry131613[[#This Row],[User Factored Rate]],1),CEILING(tblDataEntry131613[[#This Row],[Quantity]]/tblDataEntry131613[[#This Row],[Rate Override]],1)),\"---\")","v":"---"}]
[null,null,null,null,null,null,null,null,null,{"$f":"IFERROR(tblDataEntry131613[[#This Row],[Default (Avg.) Rate]]*(1+dsEstimatorAdjustment/100),\"---\")","v":0},null,{"$f":"IFERROR(IF(ISBLANK(tblDataEntry131613[[#This Row],[Rate Override]]),CEILING(tblDataEntry131613[[#This Row],[Quantity]]/tblDataEntry131613[[#This Row],[User Factored Rate]],1),CEILING(tblDataEntry131613[[#This Row],[Quantity]]/tblDataEntry131613[[#This Row],[Rate Override]],1)),\"---\")","v":"---"}]
[null,null,null,null,null,null,null,null,null,{"$f":"IFERROR(tblDataEntry131613[[#This Row],[Default (Avg.) Rate]]*(1+dsEstimatorAdjustment/100),\"---\")","v":0},null,{"$f":"IFERROR(IF(ISBLANK(tblDataEntry131613[[#This Row],[Rate Override]]),CEILING(tblDataEntry131613[[#This Row],[Quantity]]/tblDataEntry131613[[#This Row],[User Factored Rate]],1),CEILING(tblDataEntry131613[[#This Row],[Quantity]]/tblDataEntry131613[[#This Row],[Rate Override]],1)),\"---\")","v":"---"}]
[null,null,null,null,null,null,null,null,null,{"$f":"IFERROR(tblDataEntry131613[[#This Row],[Default (Avg.) Rate]]*(1+dsEstimatorAdjustment/100),\"---\")","v":0},null,{"$f":"IFERROR(IF(ISBLANK(tblDataEntry131613[[#This Row],[Rate Override]]),CEILING(tblDataEntry131613[[#This Row],[Quantity]]/tblDataEntry131613[[#This Row],[User Factored Rate]],1),CEILING(tblDataEntry131613[[#This Row],[Quantity]]/tblDataEntry131613[[#This Row],[Rate Override]],1)),\"---\")","v":"---"}]
[null,null,null,null,null,null,null,null,null,{"$f":"IFERROR(tblDataEntry131613[[#This Row],[Default (Avg.) Rate]]*(1+dsEstimatorAdjustment/100),\"---\")","v":0},null,{"$f":"IFERROR(IF(ISBLANK(tblDataEntry131613[[#This Row],[Rate Override]]),CEILING(tblDataEntry131613[[#This Row],[Quantity]]/tblDataEntry131613[[#This Row],[User Factored Rate]],1),CEILING(tblDataEntry131613[[#This Row],[Quantity]]/tblDataEntry131613[[#This Row],[Rate Override]],1)),\"---\")","v":"---"}]
[null,null,null,null,null,null,null,null,null,{"$f":"IFERROR(tblDataEntry131613[[#This Row],[Default (Avg.) Rate]]*(1+dsEstimatorAdjustment/100),\"---\")","v":0},null,{"$f":"IFERROR(IF(ISBLANK(tblDataEntry131613[[#This Row],[Rate Override]]),CEILING(tblDataEntry131613[[#This Row],[Quantity]]/tblDataEntry131613[[#This Row],[User Factored Rate]],1),CEILING(tblDataEntry131613[[#This Row],[Quantity]]/tblDataEntry131613[[#This Row],[Rate Override]],1)),\"---\")","v":"---"}]
[null,null,null,null,null,null,null,null,null,{"$f":"IFERROR(tblDataEntry131613[[#This Row],[Default (Avg.) Rate]]*(1+dsEstimatorAdjustment/100),\"---\")","v":0},null,{"$f":"IFERROR(IF(ISBLANK(tblDataEntry131613[[#This Row],[Rate Override]]),CEILING(tblDataEntry131613[[#This Row],[Quantity]]/tblDataEntry131613[[#This Row],[User Factored Rate]],1),CEILING(tblDataEntry131613[[#This Row],[Quantity]]/tblDataEntry131613[[#This Row],[Rate Override]],1)),\"---\")","v":"---"}]
[null,null,null,null,null,null,null,null,null,{"$f":"IFERROR(tblDataEntry131613[[#This Row],[Default (Avg.) Rate]]*(1+dsEstimatorAdjustment/100),\"---\")","v":0},null,{"$f":"IFERROR(IF(ISBLANK(tblDataEntry131613[[#This Row],[Rate Override]]),CEILING(tblDataEntry131613[[#This Row],[Quantity]]/tblDataEntry131613[[#This Row],[User Factored Rate]],1),CEILING(tblDataEntry131613[[#This Row],[Quantity]]/tblDataEntry131613[[#This Row],[Rate Override]],1)),\"---\")","v":"---"}]
[null,null,null,null,null,null,null,null,null,{"$f":"IFERROR(tblDataEntry131613[[#This Row],[Default (Avg.) Rate]]*(1+dsEstimatorAdjustment/100),\"---\")","v":0},null,{"$f":"IFERROR(IF(ISBLANK(tblDataEntry131613[[#This Row],[Rate Override]]),CEILING(tblDataEntry131613[[#This Row],[Quantity]]/tblDataEntry131613[[#This Row],[User Factored Rate]],1),CEILING(tblDataEntry131613[[#This Row],[Quantity]]/tblDataEntry131613[[#This Row],[Rate Override]],1)),\"---\")","v":"---"}]
[null,null,null,null,null,null,null,null,null,{"$f":"IFERROR(tblDataEntry131613[[#This Row],[Default (Avg.) Rate]]*(1+dsEstimatorAdjustment/100),\"---\")","v":0},null,{"$f":"IFERROR(IF(ISBLANK(tblDataEntry131613[[#This Row],[Rate Override]]),CEILING(tblDataEntry131613[[#This Row],[Quantity]]/tblDataEntry131613[[#This Row],[User Factored Rate]],1),CEILING(tblDataEntry131613[[#This Row],[Quantity]]/tblDataEntry131613[[#This Row],[Rate Override]],1)),\"---\")","v":"---"}]
[null,null,null,null,null,null,null,null,null,{"$f":"IFERROR(tblDataEntry131613[[#This Row],[Default (Avg.) Rate]]*(1+dsEstimatorAdjustment/100),\"---\")","v":0},null,{"$f":"IFERROR(IF(ISBLANK(tblDataEntry131613[[#This Row],[Rate Override]]),CEILING(tblDataEntry131613[[#This Row],[Quantity]]/tblDataEntry131613[[#This Row],[User Factored Rate]],1),CEILING(tblDataEntry131613[[#This Row],[Quantity]]/tblDataEntry131613[[#This Row],[Rate Override]],1)),\"---\")","v":"---"}]
[null,null,null,null,null,null,null,null,null,{"$f":"IFERROR(tblDataEntry131613[[#This Row],[Default (Avg.) Rate]]*(1+dsEstimatorAdjustment/100),\"---\")","v":0},null,{"$f":"IFERROR(IF(ISBLANK(tblDataEntry131613[[#This Row],[Rate Override]]),CEILING(tblDataEntry131613[[#This Row],[Quantity]]/tblDataEntry131613[[#This Row],[User Factored Rate]],1),CEILING(tblDataEntry131613[[#This Row],[Quantity]]/tblDataEntry131613[[#This Row],[Rate Override]],1)),\"---\")","v":"---"}]
[null,null,null,null,null,null,null,null,null,{"$f":"IFERROR(tblDataEntry131613[[#This Row],[Default (Avg.) Rate]]*(1+dsEstimatorAdjustment/100),\"---\")","v":0},null,{"$f":"IFERROR(IF(ISBLANK(tblDataEntry131613[[#This Row],[Rate Override]]),CEILING(tblDataEntry131613[[#This Row],[Quantity]]/tblDataEntry131613[[#This Row],[User Factored Rate]],1),CEILING(tblDataEntry131613[[#This Row],[Quantity]]/tblDataEntry131613[[#This Row],[Rate Override]],1)),\"---\")","v":"---"}]
[null,null,null,null,null,null,null,null,null,{"$f":"IFERROR(tblDataEntry131613[[#This Row],[Default (Avg.) Rate]]*(1+dsEstimatorAdjustment/100),\"---\")","v":0},null,{"$f":"IFERROR(IF(ISBLANK(tblDataEntry131613[[#This Row],[Rate Override]]),CEILING(tblDataEntry131613[[#This Row],[Quantity]]/tblDataEntry131613[[#This Row],[User Factored Rate]],1),CEILING(tblDataEntry131613[[#This Row],[Quantity]]/tblDataEntry131613[[#This Row],[Rate Override]],1)),\"---\")","v":"---"}]
[null,null,null,null,null,null,null,null,null,{"$f":"IFERROR(tblDataEntry131613[[#This Row],[Default (Avg.) Rate]]*(1+dsEstimatorAdjustment/100),\"---\")","v":0},null,{"$f":"IFERROR(IF(ISBLANK(tblDataEntry131613[[#This Row],[Rate Override]]),CEILING(tblDataEntry131613[[#This Row],[Quantity]]/tblDataEntry131613[[#This Row],[User Factored Rate]],1),CEILING(tblDataEntry131613[[#This Row],[Quantity]]/tblDataEntry131613[[#This Row],[Rate Override]],1)),\"---\")","v":"---"}]
[null,null,null,null,null,null,null,null,null,{"$f":"IFERROR(tblDataEntry131613[[#This Row],[Default (Avg.) Rate]]*(1+dsEstimatorAdjustment/100),\"---\")","v":0},null,{"$f":"IFERROR(IF(ISBLANK(tblDataEntry131613[[#This Row],[Rate Override]]),CEILING(tblDataEntry131613[[#This Row],[Quantity]]/tblDataEntry131613[[#This Row],[User Factored Rate]],1),CEILING(tblDataEntry131613[[#This Row],[Quantity]]/tblDataEntry131613[[#This Row],[Rate Override]],1)),\"---\")","v":"---"}]
[null,null,null,null,null,null,null,null,null,{"$f":"IFERROR(tblDataEntry131613[[#This Row],[Default (Avg.) Rate]]*(1+dsEstimatorAdjustment/100),\"---\")","v":0},null,{"$f":"IFERROR(IF(ISBLANK(tblDataEntry131613[[#This Row],[Rate Override]]),CEILING(tblDataEntry131613[[#This Row],[Quantity]]/tblDataEntry131613[[#This Row],[User Factored Rate]],1),CEILING(tblDataEntry131613[[#This Row],[Quantity]]/tblDataEntry131613[[#This Row],[Rate Override]],1)),\"---\")","v":"---"}]
[null,null,null,null,null,null,null,null,null,{"$f":"IFERROR(tblDataEntry131613[[#This Row],[Default (Avg.) Rate]]*(1+dsEstimatorAdjustment/100),\"---\")","v":0},null,{"$f":"IFERROR(IF(ISBLANK(tblDataEntry131613[[#This Row],[Rate Override]]),CEILING(tblDataEntry131613[[#This Row],[Quantity]]/tblDataEntry131613[[#This Row],[User Factored Rate]],1),CEILING(tblDataEntry131613[[#This Row],[Quantity]]/tblDataEntry131613[[#This Row],[Rate Override]],1)),\"---\")","v":"---"}]
[null,null,null,null,null,null,null,null,null,{"$f":"IFERROR(tblDataEntry131613[[#This Row],[Default (Avg.) Rate]]*(1+dsEstimatorAdjustment/100),\"---\")","v":0},null,{"$f":"IFERROR(IF(ISBLANK(tblDataEntry131613[[#This Row],[Rate Override]]),CEILING(tblDataEntry131613[[#This Row],[Quantity]]/tblDataEntry131613[[#This Row],[User Factored Rate]],1),CEILING(tblDataEntry131613[[#This Row],[Quantity]]/tblDataEntry131613[[#This Row],[Rate Override]],1)),\"---\")","v":"---"}]
[null,null,null,null,null,null,null,null,null,{"$f":"IFERROR(tblDataEntry131613[[#This Row],[Default (Avg.) Rate]]*(1+dsEstimatorAdjustment/100),\"---\")","v":0},null,{"$f":"IFERROR(IF(ISBLANK(tblDataEntry131613[[#This Row],[Rate Override]]),CEILING(tblDataEntry131613[[#This Row],[Quantity]]/tblDataEntry131613[[#This Row],[User Factored Rate]],1),CEILING(tblDataEntry131613[[#This Row],[Quantity]]/tblDataEntry131613[[#This Row],[Rate Override]],1)),\"---\")","v":"---"}]
[null,null,null,null,null,null,null,null,null,{"$f":"IFERROR(tblDataEntry131613[[#This Row],[Default (Avg.) Rate]]*(1+dsEstimatorAdjustment/100),\"---\")","v":0},null,{"$f":"IFERROR(IF(ISBLANK(tblDataEntry131613[[#This Row],[Rate Override]]),CEILING(tblDataEntry131613[[#This Row],[Quantity]]/tblDataEntry131613[[#This Row],[User Factored Rate]],1),CEILING(tblDataEntry131613[[#This Row],[Quantity]]/tblDataEntry131613[[#This Row],[Rate Override]],1)),\"---\")","v":"---"}]
[null,null,null,null,null,null,null,null,null,{"$f":"IFERROR(tblDataEntry131613[[#This Row],[Default (Avg.) Rate]]*(1+dsEstimatorAdjustment/100),\"---\")","v":0},null,{"$f":"IFERROR(IF(ISBLANK(tblDataEntry131613[[#This Row],[Rate Override]]),CEILING(tblDataEntry131613[[#This Row],[Quantity]]/tblDataEntry131613[[#This Row],[User Factored Rate]],1),CEILING(tblDataEntry131613[[#This Row],[Quantity]]/tblDataEntry131613[[#This Row],[Rate Override]],1)),\"---\")","v":"---"}]
[null,null,null,null,null,null,null,null,null,{"$f":"IFERROR(tblDataEntry131613[[#This Row],[Default (Avg.) Rate]]*(1+dsEstimatorAdjustment/100),\"---\")","v":0},null,{"$f":"IFERROR(IF(ISBLANK(tblDataEntry131613[[#This Row],[Rate Override]]),CEILING(tblDataEntry131613[[#This Row],[Quantity]]/tblDataEntry131613[[#This Row],[User Factored Rate]],1),CEILING(tblDataEntry131613[[#This Row],[Quantity]]/tblDataEntry131613[[#This Row],[Rate Override]],1)),\"---\")","v":"---"}]
[null,null,null,null,null,null,null,null,null,{"$f":"IFERROR(tblDataEntry131613[[#This Row],[Default (Avg.) Rate]]*(1+dsEstimatorAdjustment/100),\"---\")","v":0},null,{"$f":"IFERROR(IF(ISBLANK(tblDataEntry131613[[#This Row],[Rate Override]]),CEILING(tblDataEntry131613[[#This Row],[Quantity]]/tblDataEntry131613[[#This Row],[User Factored Rate]],1),CEILING(tblDataEntry131613[[#This Row],[Quantity]]/tblDataEntry131613[[#This Row],[Rate Override]],1)),\"---\")","v":"---"}]
[null,null,null,null,null,null,null,null,null,{"$f":"IFERROR(tblDataEntry131613[[#This Row],[Default (Avg.) Rate]]*(1+dsEstimatorAdjustment/100),\"---\")","v":0},null,{"$f":"IFERROR(IF(ISBLANK(tblDataEntry131613[[#This Row],[Rate Override]]),CEILING(tblDataEntry131613[[#This Row],[Quantity]]/tblDataEntry131613[[#This Row],[User Factored Rate]],1),CEILING(tblDataEntry131613[[#This Row],[Quantity]]/tblDataEntry131613[[#This Row],[Rate Override]],1)),\"---\")","v":"---"}]
[null,null,null,null,null,null,null,null,null,{"$f":"IFERROR(tblDataEntry131613[[#This Row],[Default (Avg.) Rate]]*(1+dsEstimatorAdjustment/100),\"---\")","v":0},null,{"$f":"IFERROR(IF(ISBLANK(tblDataEntry131613[[#This Row],[Rate Override]]),CEILING(tblDataEntry131613[[#This Row],[Quantity]]/tblDataEntry131613[[#This Row],[User Factored Rate]],1),CEILING(tblDataEntry131613[[#This Row],[Quantity]]/tblDataEntry131613[[#This Row],[Rate Override]],1)),\"---\")","v":"---"}]
[null,null,null,null,null,null,null,null,null,{"$f":"IFERROR(tblDataEntry131613[[#This Row],[Default (Avg.) Rate]]*(1+dsEstimatorAdjustment/100),\"---\")","v":0},null,{"$f":"IFERROR(IF(ISBLANK(tblDataEntry131613[[#This Row],[Rate Override]]),CEILING(tblDataEntry131613[[#This Row],[Quantity]]/tblDataEntry131613[[#This Row],[User Factored Rate]],1),CEILING(tblDataEntry131613[[#This Row],[Quantity]]/tblDataEntry131613[[#This Row],[Rate Override]],1)),\"---\")","v":"---"}]
[null,null,null,null,null,null,null,null,null,{"$f":"IFERROR(tblDataEntry131613[[#This Row],[Default (Avg.) Rate]]*(1+dsEstimatorAdjustment/100),\"---\")","v":0},null,{"$f":"IFERROR(IF(ISBLANK(tblDataEntry131613[[#This Row],[Rate Override]]),CEILING(tblDataEntry131613[[#This Row],[Quantity]]/tblDataEntry131613[[#This Row],[User Factored Rate]],1),CEILING(tblDataEntry131613[[#This Row],[Quantity]]/tblDataEntry131613[[#This Row],[Rate Override]],1)),\"---\")","v":"---"}]
[null,null,null,null,null,null,null,null,null,{"$f":"IFERROR(tblDataEntry131613[[#This Row],[Default (Avg.) Rate]]*(1+dsEstimatorAdjustment/100),\"---\")","v":0},null,{"$f":"IFERROR(IF(ISBLANK(tblDataEntry131613[[#This Row],[Rate Override]]),CEILING(tblDataEntry131613[[#This Row],[Quantity]]/tblDataEntry131613[[#This Row],[User Factored Rate]],1),CEILING(tblDataEntry131613[[#This Row],[Quantity]]/tblDataEntry131613[[#This Row],[Rate Override]],1)),\"---\")","v":"---"}]

{"sheet":"lkpGeneral","index":5,"n_rows":33,"n_cols":21,"rows_kept":33,"cut":false,"hidden":true,"merged":[]}
["district",null,"context_classification",null,"functional_classification",null,"project_size",null,"construction_constraints",null,"working_hours",null,"utility_influence",null,"mot_complexity",null,"high_water_table",null,"work_groups"]
["D1",null,"C1",null,"Insterstate",null,"< $5 m",null,"Normal / Adequate Space",null,4,null,"None",null,"Simple",null,"Yes",null,"Asphalt",null,{"$f":"_xlfn._xlws.SORT(_xlfn.UNIQUE(lkpRates!$B$2:$B$9999,FALSE,FALSE))","v":"Asphalt"}]
["D2",null,"C2T",null,"Freeway / Expwy.",null,"$ 5 - 20 m",null,"Somewhat Constrained",null,6,null,"Minor",null,"Typical",null,"No",null,"Base",null,"Base"]
["D3",null,"C3C",null,"Principal Arterial",null,"> $20 m",null,"Very Tight w/ Minimal Room",null,8,null,"Major",null,"Complex",null,"Unknown",null,"Bridge - Clean & Seal",null,"Bridge - Clean & Seal"]
["D4",null,"C3R",null,"Minor Arterial",null,null,null,null,null,10,null,null,null,null,null,null,null,"Bridge - Demo",null,"Bridge - Demo"]
["D5",null,"C4",null,"Major Collector",null,null,null,null,null,"12+",null,null,null,null,null,null,null,"Bridge - Misc",null,"Bridge - Misc"]
["D6",null,"C5",null,"Minor Collector",null,null,null,null,null,null,null,null,null,null,null,null,null,"Bridge - Paint",null,"Bridge - Paint"]
["D7",null,"C6",null,"Local",null,null,null,null,null,null,null,null,null,null,null,null,null,"Bridge - Substructure",null,"Bridge - Substructure"]
["Turnpike",null,"L.A. Facility",null,null,null,null,null,null,null,null,null,null,null,null,null,null,null,"Bridge - Superstructure",null,"Bridge - Superstructure"]
[null,null,"FL Greenbook",null,null,null,null,null,null,null,null,null,null,null,null,null,null,null,"Bridge - Walls",null,"Bridge - Walls"]
[null,null,null,null,null,null,null,null,null,null,null,null,null,null,null,null,null,null,"Clearing & Grubbing",null,"Clearing & Grubbing"]
[null,null,null,null,null,null,null,null,null,null,null,null,null,null,null,null,null,null,"Concrete",null,"Concrete"]
[null,null,null,null,null,null,null,null,null,null,null,null,null,null,null,null,null,null,"Drainage",null,"Drainage"]
[null,null,null,null,null,null,null,null,null,null,null,null,null,null,null,null,null,null,"Dredging",null,"Dredging"]
[null,null,null,null,null,null,null,null,null,null,null,null,null,null,null,null,null,null,"Earthwork",null,"Earthwork"]
[null,null,null,null,null,null,null,null,null,null,null,null,null,null,null,null,null,null,"Erosion Control",null,"Erosion Control"]
[null,null,null,null,null,null,null,null,null,null,null,null,null,null,null,null,null,null,"Fence",null,"Fence"]
[null,null,null,null,null,null,null,null,null,null,null,null,null,null,null,null,null,null,"General",null,"General"]
[null,null,null,null,null,null,null,null,null,null,null,null,null,null,null,null,null,null,"Guardrail",null,"Guardrail"]
[null,null,null,null,null,null,null,null,null,null,null,null,null,null,null,null,null,null,"ITS",null,"ITS"]
[null,null,null,null,null,null,null,null,null,null,null,null,null,null,null,null,null,null,"Landscaping",null,"Landscaping"]
[null,null,null,null,null,null,null,null,null,null,null,null,null,null,null,null,null,null,"Lighting",null,"Lighting"]
[null,null,null,null,null,null,null,null,null,null,null,null,null,null,null,null,null,null,"MOT",null,"MOT"]
[null,null,null,null,null,null,null,null,null,null,null,null,null,null,null,null,null,null,"Pavement Marking",null,"Pavement Marking"]
[null,null,null,null,null,null,null,null,null,null,null,null,null,null,null,null,null,null,"Procurement ",null,"Procurement "]
[null,null,null,null,null,null,null,null,null,null,null,null,null,null,null,null,null,null,"Railing",null,"Railing"]
[null,null,null,null,null,null,null,null,null,null,null,null,null,null,null,null,null,null,"Roadway",null,"Roadway"]
[null,null,null,null,null,null,null,null,null,null,null,null,null,null,null,null,null,null,"Sheet Piling",null,"Sheet Piling"]
[null,null,null,null,null,null,null,null,null,null,null,null,null,null,null,null,null,null,"Signalization",null,"Signalization"]
[null,null,null,null,null,null,null,null,null,null,null,null,null,null,null,null,null,null,"Signing",null,"Signing"]
[null,null,null,null,null,null,null,null,null,null,null,null,null,null,null,null,null,null,"Toll Plazas",null,"Toll Plazas"]
[null,null,null,null,null,null,null,null,null,null,null,null,null,null,null,null,null,null,"Utilities ",null,"Utilities "]
[null,null,null,null,null,null,null,null,null,null,null,null,null,null,null,null,null,null,null,null,0]

{"sheet":"lkpCounty","index":6,"n_rows":68,"n_cols":24,"rows_kept":68,"cut":false,"hidden":true,"merged":[]}
["NAME","FIRST_FIPS","FDOTDistr","DistrictString","DEPCODE","DEPCODENUM","DCode","County",null,"D1Counties",null,"D2Counties",null,"D3Counties",null,"D4Counties",null,"D5Counties",null,"D6Counties",null,"D7Counties",null,"TurnpikeCounties"]
["Alachua",1,2,"Two",1,1,"D2","Alachua",null,"Charlotte",null,"Alachua",null,"Bay",null,"Broward",null,"Brevard",null,"Miami-Dade",null,"Citrus",null,"Brevard"]
["Baker",3,2,"Two",2,2,"D2","Baker",null,"Collier",null,"Baker",null,"Calhoun",null,"Indian River",null,"Flagler",null,"Monroe",null,"Hernando",null,"Broward"]
["Bay",5,3,"Three",3,3,"D3","Bay",null,"DeSoto",null,"Bradford",null,"Escambia",null,"Martin",null,"Lake",null,null,null,"Hillsborough",null,"Citrus"]
["Bradford",7,2,"Two",4,4,"D2","Bradford",null,"Glades",null,"Clay",null,"Franklin",null,"Palm Beach",null,"Marion",null,null,null,"Pasco",null,"Clay"]
["Brevard",9,5,"Five",5,5,"D5","Brevard",null,"Hardee",null,"Columbia",null,"Gadsden",null,"St Lucie",null,"Orange",null,null,null,"Pinellas",null,"Duval"]
["Broward",11,4,"Four",6,6,"D4","Broward",null,"Hendry",null,"Dixie",null,"Gulf",null,null,null,"Osceola",null,null,null,null,null,"Hernando"]
["Calhoun",13,3,"Three",7,7,"D3","Calhoun",null,"Highlands",null,"Duval",null,"Holmes",null,null,null,"Seminole",null,null,null,null,null,"Hillsborough"]
["Charlotte",15,1,"One",8,8,"D1","Charlotte",null,"Lee",null,"Gilchrist",null,"Jackson",null,null,null,"Sumter",null,null,null,null,null,"Lake"]
["Citrus",17,7,"Seven",9,9,"D7","Citrus",null,"Manatee",null,"Hamilton",null,"Jefferson",null,null,null,"Volusia",null,null,null,null,null,"Levy"]
["Clay",19,2,"Two",10,10,"D2","Clay",null,"Okeechobee",null,"Lafayette",null,"Leon",null,null,null,null,null,null,null,null,null,"Marion"]
["Collier",21,1,"One",11,11,"D1","Collier",null,"Polk",null,"Levy",null,"Liberty",null,null,null,null,null,null,null,null,null,"Martin"]
["Columbia",23,2,"Two",12,12,"D2","Columbia",null,"Sarasota",null,"Madison",null,"Okaloosa",null,null,null,null,null,null,null,null,null,"Miami-Dade"]
["DeSoto",27,1,"One",14,14,"D1","DeSoto",null,null,null,"Nassau",null,"Santa Rosa",null,null,null,null,null,null,null,null,null,"Okeechobee"]
["Dixie",29,2,"Two",15,15,"D2","Dixie",null,null,null,"Putnam",null,"Wakulla",null,null,null,null,null,null,null,null,null,"Orange"]
["Duval",31,2,"Two",16,16,"D2","Duval",null,null,null,"St Johns",null,"Walton",null,null,null,null,null,null,null,null,null,"Osceola"]
["Escambia",33,3,"Three",17,17,"D3","Escambia",null,null,null,"Suwannee",null,"Washington",null,null,null,null,null,null,null,null,null,"Palm Beach"]
["Flagler",35,5,"Five",18,18,"D5","Flagler",null,null,null,"Taylor",null,null,null,null,null,null,null,null,null,null,null,"Pasco"]
["Franklin",37,3,"Three",19,19,"D3","Franklin",null,null,null,"Union",null,null,null,null,null,null,null,null,null,null,null,"Polk"]
["Gadsden",39,3,"Three",20,20,"D3","Gadsden",null,null,null,null,null,null,null,null,null,null,null,null,null,null,null,"Seminole"]
["Gilchrist",41,2,"Two",21,21,"D2","Gilchrist",null,null,null,null,null,null,null,null,null,null,null,null,null,null,null,"St Lucie"]
["Glades",43,1,"One",22,22,"D1","Glades",null,null,null,null,null,null,null,null,null,null,null,null,null,null,null,"Sumter"]
["Gulf",45,3,"Three",23,23,"D3","Gulf"]
["Hamilton",47,2,"Two",24,24,"D2","Hamilton"]
["Hardee",49,1,"One",25,25,"D1","Hardee"]
["Hendry",51,1,"One",26,26,"D1","Hendry"]
["Hernando",53,7,"Seven",27,27,"D7","Hernando"]
["Highlands",55,1,"One",28,28,"D1","Highlands"]
["Hillsborough",57,7,"Seven",29,29,"D7","Hillsborough"]
["Holmes",59,3,"Three",30,30,"D3","Holmes"]
["Indian River",61,4,"Four",31,31,"D4","Indian River"]
["Jackson",63,3,"Three",32,32,"D3","Jackson"]
["Jefferson",65,3,"Three",33,33,"D3","Jefferson"]
["Lafayette",67,2,"Two",34,34,"D2","Lafayette"]
["Lake",69,5,"Five",35,35,"D5","Lake"]
["Lee",71,1,"One",36,36,"D1","Lee"]
["Leon",73,3,"Three",37,37,"D3","Leon"]
["Levy",75,2,"Two",38,38,"D2","Levy"]
["Liberty",77,3,"Three",39,39,"D3","Liberty"]
["Madison",79,2,"Two",40,40,"D2","Madison"]
["Manatee",81,1,"One",41,41,"D1","Manatee"]
["Marion",83,5,"Five",42,42,"D5","Marion"]
["Martin",85,4,"Four",43,43,"D4","Martin"]
["Miami-Dade",86,6,"Six",13,13,"D6","Miami-Dade"]
["Monroe",87,6,"Six",44,44,"D6","Monroe"]
["Nassau",89,2,"Two",45,45,"D2","Nassau"]
["Okaloosa",91,3,"Three",46,46,"D3","Okaloosa"]
["Okeechobee",93,1,"One",47,47,"D1","Okeechobee"]
["Orange",95,5,"Five",48,48,"D5","Orange"]
["Osceola",97,5,"Five",49,49,"D5","Osceola"]
["Palm Beach",99,4,"Four",50,50,"D4","Palm Beach"]
["Pasco",101,7,"Seven",51,51,"D7","Pasco"]
["Pinellas",103,7,"Seven",52,52,"D7","Pinellas"]
["Polk",105,1,"One",53,53,"D1","Polk"]
["Putnam",107,2,"Two",54,54,"D2","Putnam"]
["Santa Rosa",113,3,"Three",55,55,"D3","Santa Rosa"]
["Sarasota",115,1,"One",56,56,"D1","Sarasota"]
["Seminole",117,5,"Five",57,57,"D5","Seminole"]
["St Johns",109,2,"Two",58,58,"D2","St Johns"]
["St Lucie",111,4,"Four",59,59,"D4","St Lucie"]
["Sumter",119,5,"Five",60,60,"D5","Sumter"]
["Suwannee",121,2,"Two",61,61,"D2","Suwannee"]
["Taylor",123,2,"Two",62,62,"D2","Taylor"]
["Union",125,2,"Two",63,63,"D2","Union"]
["Volusia",127,5,"Five",64,64,"D5","Volusia"]
["Wakulla",129,3,"Three",65,65,"D3","Wakulla"]
["Walton",131,3,"Three",66,66,"D3","Walton"]
["Washington",133,3,"Three",67,67,"D3","Washington"]